{"text_format":"1","workbook":"xlsx","n_sheets":12,"sheets":["Utilitaire","Accueil","Administration","Description","Détail des projets","GES","Adaptation","Indicateurs","Commentaires","Évaluation","Validation","Prochain Exercice-Commentaires"],"not_rendered":{"charts":0,"images":23,"macros":1,"external_links":0,"defined_names":489,"comments":4,"pivot_tables":0},"unopened":[],"bounds":{"document_bytes":16777216,"sheet_cells":100000,"rows_first":2000,"rows_last":500,"rows_between":2000,"halvings":0,"cell_chars":16384,"cell_head_chars":4096},"cells_cut":0,"cells_raw":0,"read":"whole","date_system":"1900"}

{"sheet":"Utilitaire","index":0,"n_rows":239,"n_cols":16,"rows_kept":239,"cut":false,"hidden":true,"merged":[[15,1,15,5],[15,8,15,9]]}
[]
[]
["A","Mot de passe:","!1320PACC","Fiche verrouillée:","Oui - diffusion en ligne"]
[null,"Fiche validée:","Oui","Fiche générée:","Générée"]
[null,"GES attendu:",null,"Est-ce que le pop-up \"validation\" s'affiche:","Générée"]
[null,"Feuille accueil complètement remplie:","Oui","Exercice de suivi:","2020-10-01","Date de l'exercice:","2022-03-31"]
[null,"Statut action:",{"$f":"Accueil!D58","v":"en cours"},null,null,"Année Courante","2022-2023"]
[null,"Feuille Utilitaire visible:","Non","Titre des Onglets:","Plan pour une économie verte 2030"]
[null,"Dernière ligne de la zone de défilement de l'onglet détail des projets:",350]
[null,"nombre d'indicateurs approuvés:",{"$f":"COUNT(Indicateurs!E25:E45)","v":0}]
[null,"Secteur:","PMO"]
[null,"Numéro de séquence de l'action:",1042.0101,"Remplir la section Évaluation requis : ",{"$f":"IF(Utilitaire!C7=I21,\"Oui\",IF(C7=I23,\"Oui\",\"Non\"))","v":"Non"},"Première ligne masquée dans l'onglet Indicateurs : ",164]
[null,"Première ligne masquée dans l'onglet Description:",74,"Affiche onglet Évaluation:","Non","Première ligne masquée dans l'onglet Évaluation:",51]
[]
[null,"Listes Déroulantes"]
[null,"Onglet \"Détail des projets\"",null,null,null,null,"Onglet \"Indicateurs\"","DRFM COF","Accueil",null,null,null,null,"Administration"]
[null,"Région Administrative","Statut","Classification","Type d'émissions","Info GES","Type d'indicateur","Exercice de suivi","Statut de l'action","Programmes","Fiche verrouillée",null,null,"Reccommandation"]
[null,"Sans objet","AC-Actif","Subvention","Québec","Oui","Minimum à atteindre","2013-2014-1","non démarrée","Sans objet","Oui - partenaire",null,null,"Arrêter l'action"]
[null,"Plusieurs régions","TE-Terminé","Contrat fonctionnement","Hors-Québec","Non","Maximum à ne pas dépasser","2013-2014-2","en élaboration","Action-climat","Oui - diffusion en ligne",null,null,"Diminuer le budget de l'action"]
[null,"Toutes les régions","AT-En attente","Contrat immobilisation","Non quantifiable",null,"Binaire","2014-2015-1","en cours","Aide financière au développement des transports actifs dans les périmètres urbains (TAPU)","Non - BGFV",null,null,"Maintenir le budget de l'action"]
[null,"01-Bas-Saint-Laurent","SU-Suspendu","CP-Contrat service professionnel",null,null,null,"2014-2015-2","terminée","Analyses de risques - municipalités",null,null,null,"Augmenter le budget de l'action"]
[null,"02-Saguenay- Lac-Saint-Jean","AN-Annulé","CT-Contrat service technique",null,null,null,"2015-2016-1","en suspens","Cadre pour la prévention des sinistres"]
[null,"03-Capitale-Nationale","AB-Abandonnée","PI-Projet à l'interne",null,"PMO - FECC",null,"2015-2016-2","Retirée du PMO","Chauffez vert",null,null,null,"Niv dépense"]
[null,"04-Mauricie ","Aucun frais d'administration","AU-Autre",null,"PMO - hors FECC","Étape","2016-2017-1",null,"ClimatSol-Plus",null,null,null,"Moins d'un mois",null,"Oui"]
[null,"05-Estrie",null,null,null,"PMO - FECC et hors FECC","Acquisition de connaissances  ","2016-2017-2",null,"Écocamionnage","Commentaires",null,null,"de un à 2 mois",null,"Non"]
[null,"06-Montréal",null,null,null,null,"Planification de la mise en œuvre","2017-2018-1",null,"ÉcoPerformance","Accueil",null,null,"de 3 à 4 mois",null,"Incertain"]
[null,"07-Outaouais","Projet en lien avec le transport","Horizon temporel Potentiel GES",null,"Catégories","Implantation de solutions ","2017-2018-2",null,"Mesure d’aide pour la décarbonisation du secteur industriel québécois ","Description",null,null,"de 5 à 6 mois"]
[null,"08-Abitibi-Témiscamingue","Oui","À la fin du projet (suite au dernier versement)",null,"Agriculture","Suivi et évaluation ","2018-2019-1",null,"Programme bioénergie","Détail des projets",null,null,"de 7 à 12 mois"]
[null,"09-Côte-Nord","Non","Cinq ans après la commercialisation du produit",null,"Aménagement du territoire","Démarche intégrée","2018-2019-2","Part de financement par le PACC","Programme d’aide gouvernementale à l’amélioration de l’efficacité du transport maritime, aérien et ferroviaire (PETMAF)","GES"]
[null,"10-Nord-du-Québec",null,"Dix ans après la commercialisation du produit",null,"Bâtiment",null,"2019-2020-1","Variable","Programme d’extension du réseau triphasé","Indicateurs"]
[null,"11-Gaspésie-Iles-de-la-Madeleine",null,2030,null,"Biodiversité, écosystèmes et ressources naturelles",null,"2019-2020-2",{"$f":"10 & \" %\"","v":"10 %"},"Programme d’intégration du matériau bois dans la construction .  ","Validation",null,null,"Documents de mise en œuvre de l'action"]
[null,"12-Chaudières-Appalaches",null,2040,null,"Industrie",null,"2020-2021-1",{"$f":"20 & \" %\"","v":"20 %"},"Programme d'aide au développement du transport collectif (PADTC) - offre de services  ","Tout - autres"]
[null,"13-Laval",null,2050,null,"Matières résiduelles",null,"2020-2021-2",{"$f":"30 & \" %\"","v":"30 %"},"Programme d'aide gouvernementale au transport collectif des personnes (PAGTCP) - immobilisation ",null,null,null,"Document de planification du déroulement de l'action"]
[null,"14-Lanaudière",null,null,null,"Production d'énergie",null,"2021-2022-1",{"$f":"40 & \" %\"","v":"40 %"},"Programme d'aide gouvernementale au transport collectif des personnes (PAGTCP) - Volet Électrification des autobus urbains ",null,null,null,"Cadre normatif, guide d'appel de projets et documents afférents"]
[null,"15-Laurentides",null,null,null,"Résidentiel, commercial et institutionnel","Ajustements","2021-2022-2",{"$f":"50 & \" %\"","v":"50 %"},"Programme d'appui aux entreprises dans la mise en place du télétravail","Onglet Évaluation",null,null,"Description de projet"]
[null,"16-Montérégie",null,null,null,"Transport","Biodiversité et écosystèmes","2022-2023-1",{"$f":"60 & \" %\"","v":"60 %"},"Programme de résilience et d'adaptation face aux inondations","Type de document",null,null,"Indicateurs et cibles"]
[null,"17-Centre-du-Québec",null,null,null,"Autres","Communautés (santé-sécurité)","2022-2023-2",{"$f":"70 & \" %\"","v":"70 %"},"Programme de soutien à l’implantation de bornes dans les résidences, les entreprises et sur le réseau routier - Borne sur rue","Cadre d'évaluation"]
[null,"À l'extérieur du Québec",null,null,null,null,"Économie","2023-2024-1",{"$f":"80 & \" %\"","v":"80 %"},"Programme de soutien à la modernisation de l’industrie du taxi (PSMITT) ","Cadre de suivi d'évaluation préliminaire",null,null,"Cadre de suivi et d'évaluation préliminaire"]
[null,null,null,null,null,null,"Infrastructures","2023-2024-2",{"$f":"90 & \" %\"","v":"90 %"},"Programme de soutien à la production de gaz naturel renouvelable, à son injection ou à sa connexion au réseau de distribution de gaz naturel (PSPGNR)2","Rapport d'évaluation",null,null,"Cadre d'évaluation"]
[null,"Onglet \"Description\"",null,null,null,null,"Autres",null,{"$f":"100 & \" %\"","v":"100 %"},"Programme de soutien au déploiement des autobus scolaires électriques au Qc (PSDASEQ) ","Résultats",null,null,"Rapport d'évaluation"]
[null,"Bénéficiaires","État d'avancement","Moyens","Finalité","COVID",null,null,null,"Programme de soutien au déploiement des autobus urbains et privés électriques - Écobus",null,null,null,"Le bilan"]
[null,"Citoyens","Nouvelle","Savoir (Adaptation)","Atténuer les changements climatiques","Aucun changement prévu",null,null,null,"Programme des nouvelles mobilités (NOMO)","Type d'évaluation"]
[null,"Communautés autochtones","En cours","Savoir (GES)","Construire l'économie de demain","Diminution des coûts prévus",null,null,null,"Programme d'innovation en construction bois","En cours d'action"]
[null,"Entreprises (grandes entreprises)","Complétée","S'outiller (Adaptation)","Renforcer la résilience du Québec face aux impacts des changements climatiques","Augmentation des coûts prévus",null,null,null,"Programme Innovation","Lorsque l'action est terminée"]
[null,"Entreprises (grands émetteurs)","Inactive","S'outiller (GES)","Sensibiliser, mobiliser et engager la société dans la transition climatique","L'augmentation prévue du coûts des projets rend le budget 2013-2020 insuffisant pour garantir la réalisation de tous les projets entamés",null,null,null,"Roulez Vert - Volets multiples"]
[null,"Entreprises (petites ou moyennes entreprises)","Abandonnée","Agir (Adaptation)",null,"moins d'un mois",null,null,null,"Technoclimat"]
[null,"Milieu de la recherche scientifique",null,"Éviter (GES)",null,"de 1 à 6 mois",null,null,null,"Transportez-vert ","Recommandation"]
[null,"Milieu municipal",null,"Réduire (GES)",null,"de 7 à 12 mois",null,null,null,"Autre programme","Reconduire"]
[null,"Ministères et organismes gouvernementaux",null,"Séquestrer (GES)",null,"plus de 12 mois",null,null,null,null,"Ne pas reconduire"]
[null,"Organismes à but non lucratif",null,null,null,"Aucun changement","Risques",null,null,null,"Voir commentaire ci-dessous"]
[null,null,null,null,null,"Retards prévus, mais les engagements seront tous pris avant le 31 décembre 2020","Biodiversité",null,null,null,"Objectifs initiaux"]
[null,"Clientèle",null,null,null,"Retards prévus et les engagements ne pourront pas tous être pris avant le 31 décembre 2020","Économie",null,null,null,"Oui"]
[null,null,null,null,null,"Les échéanciers pourront être devancés","Environnement",null,null,null,"Partiellement"]
[null,"Citoyens",null,null,null,"Des cibles pourraient être atteintes avant les délais prévus","Ressources naturelles",null,null,null,"Non"]
[null,"Communautés autochtones",null,null,null,"Toutes les cibles devraient être atteintes dans les délais prévus","Santé et sécurité publique"]
[null,"Entreprises (grandes entreprises)",null,null,null,"Toutes les cibles devraient être atteintes avec certains retards","Services à la population"]
[null,"Entreprises (grands émetteurs)",null,null,null,"Certaines cibles pourraient ne pas être atteintes"]
[null,"Entreprises (petites ou moyennes entreprises)",null,null,null,"Aucune cible ne pourra être atteinte"]
[null,"Milieu communautaire"]
[null,"Milieu de la recherche scientifique"]
[null,"Milieu municipal",null,null,null,null,"Aléas climatiques"]
[null,"Ministères et organismes gouvernementaux",null,null,null,null,"Chaleur extrême et hausse des températures moyennes",null,null,"NoProgrammeFonctionnement","SigleMinistere","NoProgrammeTransfert",null,null,"IdSeqAction","PSACof"]
[null,"Partenaires hors Québec",null,null,null,null,"Dégradation du pergélisol",null,null,17014,"HQ",53985,null,null,1011.0101,1813050]
[null,null,null,null,null,null,"Érosion et submersion côtières",null,null,17010,"MAMH",53981,null,null,1011.0103,1813051]
[null,null,null,null,null,null,"Feux de forêt",null,null,17007,"MAPAQ",53978,null,null,1011.0201,1813052]
[null,"Onglet \"Détails des projets\"",null,null,null,null,"Glissements de terrain",null,null,17009,"MEI",53980,null,null,1011.0203,1813053]
[null,"Type de bénéficiaire",null,null,null,null,"Inondations",null,null,17000,"MELCC",53971,null,null,1011.0205,1813054]
[null,"Final",null,null,null,null,"Manque d'eau",null,null,17002,"MERN",53973,null,null,1011.0207,1813055]
[null,"Intermédiaire",null,null,null,null,"Pluies intenses ",null,null,17015,"MERN (SITE)",53986,null,null,1011.0209,1813056]
[null,null,null,null,null,null,"Vent, verglas, redoux hivernaux, gel-dégel ",null,null,17004,"MFFP",53975,null,null,1011.03,1813057]
[null,null,null,null,null,null,"Plusieurs aléas",null,null,17003,"MFFP_FRN_ADTF",53974,null,null,1011.0401000000001,1813058]
[null,null,null,null,null,null,"Autres",null,null,17013,"MFQ",53984,null,null,1011.0403,1813059]
[null,null,null,null,null,null,null,null,null,17012,"MRIF",53983,null,null,1011.0405,1813060]
[null,null,null,null,null,null,null,null,null,17008,"MSP",53979,null,null,1011.05,1813061]
[null,null,null,null,null,null,null,null,null,17005,"MSSS",53976,null,null,1012.0101,1813062]
[null,null,null,null,null,null,"Effet visé",null,null,17016,"MTESS",53987,null,null,1012.0103,1813063]
[null,null,null,null,null,null,"Atténuation des changements climatiques",null,null,17011,"MTO",53982,null,null,1012.0105,1813064]
[null,null,null,null,null,null,"Augmentation de la résilience face aux changements climatiques",null,null,17001,"MTQ",53972,null,null,1012.02,1813065]
[null,null,null,null,null,null,null,null,null,17006,"RBQ",53977,null,null,1021.01,1813066]
[null,null,null,null,null,null,null,null,null,null,null,null,null,null,1021.0201,1813067]
[null,null,null,null,null,null,null,null,null,null,null,null,null,null,1021.0203,1813068]
[null,null,null,null,null,null,null,null,null,null,"Onglet de la fiche",null,null,null,1021.03,1813069]
[null,null,null,null,null,null,null,null,null,null,"Accueil",null,null,null,1021.04,1813070]
[null,null,null,null,null,null,null,null,null,null,"Administration",null,null,null,1031.01,1813071]
[null,null,null,null,null,null,null,null,null,null,"Description",null,null,null,1031.02]
[null,null,null,null,null,null,null,null,null,null,"Détail des projets",null,null,null,1032.01,1813072]
[null,null,null,null,null,null,null,null,null,null,"GES",null,null,null,1041.01,1813073]
[null,null,null,null,null,null,null,null,null,null,"Adaptation",null,null,null,1041.02,1813074]
[null,null,null,null,null,null,null,null,null,null,"Indicateurs",null,null,null,1041.03,1813075]
[null,null,null,null,null,null,null,null,null,null,"Commentaires",null,null,null,1041.04,1813076]
[null,null,null,null,null,null,null,null,null,null,null,null,null,null,1042.0101,1813077]
[null,null,null,null,null,null,null,null,null,null,null,null,null,null,1042.0102999999999,1813078]
[null,null,null,null,null,null,null,null,null,null,null,null,null,null,1042.0105000000001,1813079]
[null,null,null,null,null,null,null,null,null,null,null,null,null,null,1042.02,1813080]
[null,null,null,null,null,null,null,null,null,null,null,null,null,null,1051.01,1813081]
[null,null,null,null,null,null,null,null,null,null,null,null,null,null,1051.02,1813082]
[null,null,null,null,null,null,null,null,null,null,null,null,null,null,1061.01,1813083]
[null,null,null,null,null,null,null,null,null,null,null,null,null,null,1061.02]
[null,null,null,null,null,null,null,null,null,null,null,null,null,null,1062.01,1813084]
[null,null,null,null,null,null,null,null,null,null,null,null,null,null,1062.02,1813085]
[null,null,null,null,null,null,null,null,null,null,null,null,null,null,1062.03,1813086]
[null,null,null,null,null,null,null,null,null,null,null,null,null,null,1062.04,1813087]
[null,null,null,null,null,null,null,null,null,null,null,null,null,null,1062.05,1813088]
[null,null,null,null,null,null,null,null,null,null,null,null,null,null,1063.01,1813089]
[null,null,null,null,null,null,null,null,null,null,null,null,null,null,1063.02]
[null,null,null,null,null,null,null,null,null,null,null,null,null,null,1063.03,1813090]
[null,null,null,null,null,null,null,null,null,null,null,null,null,null,1071.01,1813091]
[null,null,null,null,null,null,null,null,null,null,null,null,null,null,1072.01,1813092]
[null,null,null,null,null,null,null,null,null,null,null,null,null,null,1072.02,1813093]
[null,null,null,null,null,null,null,null,null,null,null,null,null,null,1081.01,1813094]
[null,null,null,null,null,null,null,null,null,null,null,null,null,null,1082.01,1813095]
[null,null,null,null,null,null,null,null,null,null,null,null,null,null,1083.01,1813096]
[null,null,null,null,null,null,null,null,null,null,null,null,null,null,1084.01,1813097]
[null,null,null,null,null,null,null,null,null,null,null,null,null,null,1091.01,1813098]
[null,null,null,null,null,null,null,null,null,null,null,null,null,null,1092.01]
[null,null,null,null,null,null,null,null,null,null,null,null,null,null,1092.02,1813099]
[null,null,null,null,null,null,null,null,null,null,null,null,null,null,1092.03,1813100]
[null,null,null,null,null,null,null,null,null,null,null,null,null,null,1101.01]
[null,null,null,null,null,null,null,null,null,null,null,null,null,null,1111.01,1813101]
[null,null,null,null,null,null,null,null,null,null,null,null,null,null,1121.0101,1813102]
[null,null,null,null,null,null,null,null,null,null,null,null,null,null,1121.02,1813103]
[null,null,null,null,null,null,null,null,null,null,null,null,null,null,1131.0101,1813104]
[null,null,null,null,null,null,null,null,null,null,null,null,null,null,1131.0105000000001,1813105]
[null,null,null,null,null,null,null,null,null,null,null,null,null,null,2011.01,1810630]
[null,null,null,null,null,null,null,null,null,null,null,null,null,null,2011.02,1810631]
[null,null,null,null,null,null,null,null,null,null,null,null,null,null,2011.03,1813106]
[null,null,null,null,null,null,null,null,null,null,null,null,null,null,2011.04,1813107]
[null,null,null,null,null,null,null,null,null,null,null,null,null,null,2011.05,1813108]
[null,null,null,null,null,null,null,null,null,null,null,null,null,null,2011.0600999999999,1813109]
[null,null,null,null,null,null,null,null,null,null,null,null,null,null,2011.0700999999999,1813110]
[null,null,null,null,null,null,null,null,null,null,null,null,null,null,2011.0703000000001,1813111]
[null,null,null,null,null,null,null,null,null,null,null,null,null,null,2011.0705]
[null,null,null,null,null,null,null,null,null,null,null,null,null,null,2011.08]
[null,null,null,null,null,null,null,null,null,null,null,null,null,null,2011.09,1813112]
[null,null,null,null,null,null,null,null,null,null,null,null,null,null,2021.01,1813113]
[null,null,null,null,null,null,null,null,null,null,null,null,null,null,2021.02,1813114]
[null,null,null,null,null,null,null,null,null,null,null,null,null,null,2031.01,1813115]
[null,null,null,null,null,null,null,null,null,null,null,null,null,null,2031.02,1813116]
[null,null,null,null,null,null,null,null,null,null,null,null,null,null,2031.03,1813117]
[null,null,null,null,null,null,null,null,null,null,null,null,null,null,2032.01,1813118]
[null,null,null,null,null,null,null,null,null,null,null,null,null,null,2032.02,1813119]
[null,null,null,null,null,null,null,null,null,null,null,null,null,null,2032.03,1813120]
[null,null,null,null,null,null,null,null,null,null,null,null,null,null,2041.01,1813121]
[null,null,null,null,null,null,null,null,null,null,null,null,null,null,2041.0201,1813122]
[null,null,null,null,null,null,null,null,null,null,null,null,null,null,2041.0202999999999,1813126]
[null,null,null,null,null,null,null,null,null,null,null,null,null,null,2041.0205000000001,1813123]
[null,null,null,null,null,null,null,null,null,null,null,null,null,null,2041.0207,1813124]
[null,null,null,null,null,null,null,null,null,null,null,null,null,null,2041.0209,1813125]
[null,null,null,null,null,null,null,null,null,null,null,null,null,null,3011.01,1813127]
[null,null,null,null,null,null,null,null,null,null,null,null,null,null,3011.0201000000002,1813128]
[null,null,null,null,null,null,null,null,null,null,null,null,null,null,3011.0203000000001,1813129]
[null,null,null,null,null,null,null,null,null,null,null,null,null,null,3011.0205000000001,1813130]
[null,null,null,null,null,null,null,null,null,null,null,null,null,null,3011.0300999999999,1813131]
[null,null,null,null,null,null,null,null,null,null,null,null,null,null,3011.0302999999999,1813132]
[null,null,null,null,null,null,null,null,null,null,null,null,null,null,3011.0304999999998,1813133]
[null,null,null,null,null,null,null,null,null,null,null,null,null,null,3011.0306999999998,1813134]
[null,null,null,null,null,null,null,null,null,null,null,null,null,null,3012.01]
[null,null,null,null,null,null,null,null,null,null,null,null,null,null,3012.02]
[null,null,null,null,null,null,null,null,null,null,null,null,null,null,3012.03,1813135]
[null,null,null,null,null,null,null,null,null,null,null,null,null,null,3013.01,1813136]
[null,null,null,null,null,null,null,null,null,null,null,null,null,null,3013.02,1813137]
[null,null,null,null,null,null,null,null,null,null,null,null,null,null,3013.0300999999999,1813138]
[null,null,null,null,null,null,null,null,null,null,null,null,null,null,3013.04]
[null,null,null,null,null,null,null,null,null,null,null,null,null,null,3021.0101,1813139]
[null,null,null,null,null,null,null,null,null,null,null,null,null,null,3021.0102999999999,1813140]
[null,null,null,null,null,null,null,null,null,null,null,null,null,null,3021.02,1813141]
[null,null,null,null,null,null,null,null,null,null,null,null,null,null,3031.0101,1813142]
[null,null,null,null,null,null,null,null,null,null,null,null,null,null,3031.0104999999999,1813143]
[null,null,null,null,null,null,null,null,null,null,null,null,null,null,3031.0106999999998]
[null,null,null,null,null,null,null,null,null,null,null,null,null,null,3041.0101,1813144]
[null,null,null,null,null,null,null,null,null,null,null,null,null,null,3041.0102999999999,1813144]
[null,null,null,null,null,null,null,null,null,null,null,null,null,null,3042.0101,1813145]
[null,null,null,null,null,null,null,null,null,null,null,null,null,null,3042.0102999999999,1813145]
[null,null,null,null,null,null,null,null,null,null,null,null,null,null,3051.0101,1813146]
[null,null,null,null,null,null,null,null,null,null,null,null,null,null,3051.0102999999999,1813147]
[null,null,null,null,null,null,null,null,null,null,null,null,null,null,3051.02,1813148]
[null,null,null,null,null,null,null,null,null,null,null,null,null,null,3051.03,1813149]
[null,null,null,null,null,null,null,null,null,null,null,null,null,null,3052.01,1813150]
[null,null,null,null,null,null,null,null,null,null,null,null,null,null,3052.02,1813151]
[null,null,null,null,null,null,null,null,null,null,null,null,null,null,3052.0300999999999,1813152]
[null,null,null,null,null,null,null,null,null,null,null,null,null,null,3052.0302999999999,1813152]
[null,null,null,null,null,null,null,null,null,null,null,null,null,null,3053.01,1813153]
[null,null,null,null,null,null,null,null,null,null,null,null,null,null,3061.0101,1813154]
[null,null,null,null,null,null,null,null,null,null,null,null,null,null,3061.0102999999999]
[null,null,null,null,null,null,null,null,null,null,null,null,null,null,3062.02,1813155]
[null,null,null,null,null,null,null,null,null,null,null,null,null,null,4011.01,1813156]
[null,null,null,null,null,null,null,null,null,null,null,null,null,null,4011.02,1813157]
[null,null,null,null,null,null,null,null,null,null,null,null,null,null,4021.0101,1813158]
[null,null,null,null,null,null,null,null,null,null,null,null,null,null,4021.0102999999999,1813159]
[null,null,null,null,null,null,null,null,null,null,null,null,null,null,4021.0104999999999,1813160]
[null,null,null,null,null,null,null,null,null,null,null,null,null,null,4021.0106999999998,1813161]
[null,null,null,null,null,null,null,null,null,null,null,null,null,null,4021.0109000000002,1813162]
[null,null,null,null,null,null,null,null,null,null,null,null,null,null,4021.0111000000002,1810230]
[null,null,null,null,null,null,null,null,null,null,null,null,null,null,4022.0101,1813163]
[null,null,null,null,null,null,null,null,null,null,null,null,null,null,4022.0102999999999,1813163]
[null,null,null,null,null,null,null,null,null,null,null,null,null,null,4023.01,1813164]
[null,null,null,null,null,null,null,null,null,null,null,null,null,null,4023.0201000000002,1813165]
[null,null,null,null,null,null,null,null,null,null,null,null,null,null,4023.0203000000001,1813166]
[null,null,null,null,null,null,null,null,null,null,null,null,null,null,4023.0205000000001,1813167]
[null,null,null,null,null,null,null,null,null,null,null,null,null,null,4023.0205099999998,1813193]
[null,null,null,null,null,null,null,null,null,null,null,null,null,null,4031.01,1813168]
[null,null,null,null,null,null,null,null,null,null,null,null,null,null,4031.02,1813169]
[null,null,null,null,null,null,null,null,null,null,null,null,null,null,4031.03,1813170]
[null,null,null,null,null,null,null,null,null,null,null,null,null,null,4031.04,1813171]
[null,null,null,null,null,null,null,null,null,null,null,null,null,null,4032.01,1813172]
[null,null,null,null,null,null,null,null,null,null,null,null,null,null,4032.02,1813173]
[null,null,null,null,null,null,null,null,null,null,null,null,null,null,4032.03,1813174]
[null,null,null,null,null,null,null,null,null,null,null,null,null,null,4032.04,1813175]
[null,null,null,null,null,null,null,null,null,null,null,null,null,null,5011.01,1813176]
[null,null,null,null,null,null,null,null,null,null,null,null,null,null,5011.0200999999997,1813177]
[null,null,null,null,null,null,null,null,null,null,null,null,null,null,5011.0203000000001,1813178]
[null,null,null,null,null,null,null,null,null,null,null,null,null,null,5012.01,1813179]
[null,null,null,null,null,null,null,null,null,null,null,null,null,null,5012.0200999999997,1813180]
[null,null,null,null,null,null,null,null,null,null,null,null,null,null,5021.01,1813181]
[null,null,null,null,null,null,null,null,null,null,null,null,null,null,5021.0200000000004,1813182]
[null,null,null,null,null,null,null,null,null,null,null,null,null,null,5031.0101000000004,1813183]
[null,null,null,null,null,null,null,null,null,null,null,null,null,null,5031.0200999999997,1813184]
[null,null,null,null,null,null,null,null,null,null,null,null,null,null,5041.01,1813185]
[null,null,null,null,null,null,null,null,null,null,null,null,null,null,5041.0200000000004,1813186]
[]
[]
[]
[]
[]
[]
[]
[null,"ONGLET INDICATEURS: Liste des statuts de l'action"]
[null,null,"2019-2020","2020-2021","2021-2022","2022-2023","2023-2024","2024-2025","2025-2026","2026-2027","2027-2028","2028-2029","2029-2030","2030-2031","2031-2032","2032-2033"]
[null,"Valeurs actuelles",{"$f":"IF(C228=$G$7,IF(Accueil!$D$58<>$C$239,Accueil!$D$58,IF(ISBLANK(C230),B230,C230)),C230)","v":"non démarrée"},{"$f":"IF(D228=$G$7,IF(Accueil!$D$58<>$C$239,Accueil!$D$58,IF(ISBLANK(D230),C230,D230)),D230)","v":"non démarrée"},{"$f":"IF(E228=$G$7,IF(Accueil!$D$58<>$C$239,Accueil!$D$58,IF(ISBLANK(E230),D230,E230)),E230)","v":"non démarrée"},{"$f":"IF(F228=$G$7,IF(Accueil!$D$58<>$C$239,Accueil!$D$58,IF(ISBLANK(F230),E230,F230)),F230)","v":"en cours"},{"$f":"IF(G228=$G$7,IF(Accueil!$D$58<>$C$239,Accueil!$D$58,IF(ISBLANK(G230),F230,G230)),G230)","v":0},{"$f":"IF(H228=$G$7,IF(Accueil!$D$58<>$C$239,Accueil!$D$58,IF(ISBLANK(H230),G230,H230)),H230)","v":0},{"$f":"IF(I228=$G$7,IF(Accueil!$D$58<>$C$239,Accueil!$D$58,IF(ISBLANK(I230),H230,I230)),I230)","v":0},{"$f":"IF(J228=$G$7,IF(Accueil!$D$58<>$C$239,Accueil!$D$58,IF(ISBLANK(J230),I230,J230)),J230)","v":0},{"$f":"IF(K228=$G$7,IF(Accueil!$D$58<>$C$239,Accueil!$D$58,IF(ISBLANK(K230),J230,K230)),K230)","v":0},{"$f":"IF(L228=$G$7,IF(Accueil!$D$58<>$C$239,Accueil!$D$58,IF(ISBLANK(L230),K230,L230)),L230)","v":0},{"$f":"IF(M228=$G$7,IF(Accueil!$D$58<>$C$239,Accueil!$D$58,IF(ISBLANK(M230),L230,M230)),M230)","v":0},{"$f":"IF(N228=$G$7,IF(Accueil!$D$58<>$C$239,Accueil!$D$58,IF(ISBLANK(N230),M230,N230)),N230)","v":0},{"$f":"IF(O228=$G$7,IF(Accueil!$D$58<>$C$239,Accueil!$D$58,IF(ISBLANK(O230),N230,O230)),O230)","v":0},{"$f":"IF(P228=$G$7,IF(Accueil!$D$58<>$C$239,Accueil!$D$58,IF(ISBLANK(P230),O230,P230)),P230)","v":0}]
[null,"Valeurs précédentes","non démarrée","non démarrée","non démarrée","en cours"]
[]
[]
[null,"IdStatutAction","codeStatutAction","valeurStatutAction","rangStatut"]
[null,1,{"$f":"I18","v":"non démarrée"},0,1]
[null,2,{"$f":"I19","v":"en élaboration"},0,2]
[null,3,"en cours",0.5,3]
[null,4,"terminée",1,4]
[null,5,"en suspens",0,5]
[null,6,"Retirée du PMO",0,6]

{"sheet":"Accueil","index":1,"n_rows":85,"n_cols":11,"rows_kept":85,"cut":false,"hidden":false,"merged":[[84,1,84,12],[1,5,2,12],[65,3,65,6],[64,3,64,6],[9,1,9,12],[4,1,5,12],[54,1,54,2],[58,1,58,2],[56,1,56,2],[56,3,56,10],[49,1,49,12],[55,1,55,2],[51,1,51,2],[52,1,52,2],[54,4,54,11],[53,4,53,11],[53,1,53,2],[55,3,55,11],[51,4,51,11],[52,4,52,11],[67,1,67,2],[57,1,57,2],[58,3,58,11],[64,8,64,9],[62,3,62,7],[57,3,57,11],[66,10,66,11],[65,1,65,2],[65,8,65,9],[64,1,64,2],[62,1,62,2],[65,10,65,11],[64,10,64,11],[66,3,66,6],[66,8,66,9],[66,1,66,2],[69,10,69,11],[67,3,67,6],[67,8,67,9],[67,10,67,11],[69,3,69,6],[73,3,73,11],[70,3,70,6],[69,8,69,9],[70,10,70,11],[72,3,72,6],[72,8,72,9],[72,10,72,11],[50,16,50,17],[85,1,87,12],[72,1,72,2],[69,0,71,0],[68,1,68,12],[71,10,71,11],[69,1,69,2],[71,8,71,9],[70,1,70,2],[71,1,71,2],[71,3,71,6],[74,3,74,11],[74,1,74,2],[73,1,73,2],[76,11,76,12],[70,8,70,9]]}
[]
[null,null,null,null,null,"Exercice de suivi du Plan pour une économie verte 2030"]
[]
[]
[]
[]
[]
[]
[]
[]
[]
[]
[]
[]
[]
[]
[]
[]
[]
[]
[]
[]
[]
[]
[]
[]
[]
[]
[]
[]
[]
[]
[]
[]
[]
[]
[]
[]
[]
[]
[]
[]
[]
[]
[]
[]
[]
[]
[]
[null,"Veuillez vérifier, compléter ou corriger les informations ci-dessous "]
[]
[null,"Mesure :",null,"1.4.2","Appuyer l’efficacité et la conversion énergétiques, et l’optimisation des procédés en entreprise"]
[null,"Action :",null,"1.4.2.1","Appuyer la réalisation de projets en efficacité énergétique et en conversion énergétique"]
[null,"Sous-action :",null,"1.4.2.1a","Programme ÉcoPerformance Industrie - Standard"]
[null,"Libellé usuel :",null,"1.4.2.1a","Appuyer la réalisation de projets en efficacité énergétique et en conversion énergétique - Programme ÉcoPerformance Industrie - Standard"]
[null,"Programme :",null,"ÉcoPerformance"]
[null,"Nom du programme :"]
[null,"Statut :",null,"en cours"]
[null,"Raison du statut de l’action :"]
[]
[]
[]
[null,"Informations en date du :",null,{"$f":"Utilitaire!G6","v":"2022-03-31"}]
[]
[null,"Ministère porteur :",null,"MERN (SITE)",null,null,null,null,"Direction responsable :",null,"Dir. des secteurs affaires et innovation"]
[null,"Partenaires :",null,"FEFEC",null,null,null,null,"Part de financement par le FECC :",null,1]
[null,"Budget (M$) :",null,351.27475178000003,null,null,null,null,"Autres sources de financement :",null,"Variable"]
[null,"Date de lancement de l’action :",null,"2021-04-01",null,null,null,null,"Date de fin de l’action :",null,"2025-12-31"]
[null,"Section réservée à l’usage exclusif du BECC (lignes 70 à 73 non publiées)"]
[null,"Chargé de projet :",null,null,null,null,null,null,"Tél. :"]
[null,"Responsable ministériel :",null,null,null,null,null,null,"Tél. :"]
[null,"Personne ressource pour le BECC :",null,"Guy Desbiens",null,null,null,null,"Courriel : ",null,"Guy.Desbiens@mern.gouv.qc.ca"]
[null,"Estimation des sommes résiduelles au \n31 décembre 2020 ($) :",null,0,null,null,null,null,"Précisions sur le montant des sommes résiduelles :",null,"s"]
[null,"Téléphone pour informations :",null,"418 627-6379, poste 708016"]
[null,"Référence Web :",null,"https://transitionenergetique.gouv.qc.ca/affaires/programmes/ecoperformance"]
[]
[]
[]
[]
[]
[]
[]
[]
[]
[null,"Ministère de l'Énergie et des Ressources naturelles (Sous-Ministère associé de l'Innovation et de la Transition Energétique)"]

{"sheet":"Administration","index":2,"n_rows":300,"n_cols":13,"rows_kept":300,"cut":false,"hidden":true,"merged":[[30,5,30,6],[24,8,24,14],[26,8,26,10],[27,8,27,10],[34,9,34,10],[28,8,28,10],[31,8,31,10],[29,3,29,4],[27,1,27,2],[27,3,27,4],[27,5,27,6],[25,5,25,6],[28,1,28,2],[208,1,299,1],[75,1,207,1],[30,11,30,14],[30,8,30,10],[75,12,75,14],[33,1,33,2],[33,3,33,4],[33,5,33,6],[30,1,30,2],[45,1,45,6],[31,1,31,2],[32,1,32,2],[32,5,32,6],[37,1,37,2],[37,4,37,6],[36,1,36,2],[1,1,2,6],[4,4,4,6],[4,1,4,3],[5,4,5,6],[26,5,26,6],[25,3,25,4],[24,1,24,6],[25,1,25,2],[26,1,26,2],[26,3,26,4],[6,4,6,5],[6,1,6,2],[7,1,7,6],[23,2,23,3],[73,1,74,1],[26,11,26,12],[27,11,27,12],[28,11,28,12],[25,8,25,14],[36,3,36,6],[28,5,28,6],[28,3,28,4],[31,5,31,6],[32,3,32,4],[35,1,35,6],[31,3,31,4],[30,3,30,4],[34,12,35,14],[29,1,29,2],[29,5,29,6]]}
[]
[null,{"$f":"Utilitaire!E8","v":"Plan pour une économie verte 2030"}]
[]
[]
[null,"Administration",null,null,{"$f":"Accueil!D65 & \" - \" & Accueil!D53","v":"MERN (SITE) - 1.4.2.1"}]
[null,null,null,null,{"$f":"\"Action \" & Accueil!D58","v":"Action en cours"}]
[null,"Conseils de rédaction :",null,null,"Informations en date du :",null,{"$f":"Utilitaire!G6","v":"2022-03-31"}]
[null,"- Cet onglet sera pour usage interne seulement, il ne sera pas publié.\n- Vous pouvez faire une recommandation en vue de la prochaine mise à jour budgétaire du PMO quant au budget de cette action dans le tableau de la ligne 25.\n- Le BECC tiendra à jour en continu la liste des livrables que vous devez transmettre en lien avec votre action. Vous serez en mesure de commenter et de mettre à jour les échéances à chaque exercice."]
[]
[]
[]
[]
[]
[]
[]
[]
[]
[]
[]
[]
[]
[]
[]
[]
[null,"Niveau annuel de dépenses au FECC",null,null,null,null,null,null,"Informations de gestion"]
[null,null,null,"2022-2023",null,"2023-2024",null,null,"Combinaison comptable pour imputation à SAGIR"]
[null,"Dernières prévisions de dépenses au FECC ($)",null,59645942.960000001,null,61727331.350000001,null,null,"Programme pour transferts :",null,null,{"$f":"IF(D27+F27>0,INDEX(Utilitaire!L63:L79,MATCH(Accueil!D65,Utilitaire!K63:K79,0)),\"\")","v":53986}]
[null,"Allez-vous atteindre ce niveau de dépense annuel?",null,"Oui",null,null,null,null,"Programme pour fonctionnement : ",null,null,{"$f":"IF(D27+F27>0,INDEX(Utilitaire!J63:J79,MATCH(Accueil!D65,Utilitaire!K63:K79,0)),\"\")","v":17015}]
[null,"Sommes prévues être dépensées dans l'année ($) :",null,null,null,null,null,null,"PSA :",null,null,{"$f":"IF(D27+F27>0,INDEX(Utilitaire!P63:P219,MATCH(Utilitaire!C12,Utilitaire!O63:O219,0)),\"\")","v":1813077}]
[null,"Commentaires :"]
[null,"Pouvez-vous aller au-delà de ce niveau de dépense?",null,null,null,null,null,null,"Pour toute question, vous pouvez contacter :"]
[null,"Augmentation possible ($) :",null,null,null,null,null,null,"Documents de référence :"]
[null,"Préavis requis :",null,null,null,null,null,null,null,"",null,null,""]
[null,"Méthode employée :",null,null,null,null,null,null,null,"",null,null,""]
[]
[null,"Enjeux et possibilités",null,null,null,null,null,null,null,""]
[null,"Risques liés au déploiement et probabilité de la réalisation de l'action"]
[null,"Avez-vous besoin d'un budget supplémentaire jusqu'à la fin du PEV afin d'atteindre les objectifs de l'action ?"]
[]
[]
[]
[]
[]
[]
[]
[null,"Liste des livrables"]
[null,null,"Type de document","Titre","Date prévue d'envoi au BECC","Date réelle d'envoi au BECC","Commentaires et hyperliens"]
[null,"Évaluation"]
[]
[]
[]
[]
[]
[]
[]
[]
[]
[]
[]
[]
[]
[]
[]
[]
[]
[]
[]
[]
[]
[]
[]
[]
[]
[null,"Évaluation","Rapport d'évaluation","Rapport d'évaluation - ÉcoPerformance, 14 mai 2021",null,null,"https://transitionenergetique.gouv.qc.ca/fileadmin/medias/pdf/evaluation-programmes/EcoPerformance_rapport_evaluation_2021.pdf"]
[]
[null,"Documents de mise en œuvre de l'action",null,null,null,null,null,null,null,"- Entente administrative ",null,null,"- Directives de quantification B2"]
[]
[]
[]
[]
[]
[]
[]
[]
[]
[]
[]
[]
[]
[]
[]
[]
[]
[]
[]
[]
[]
[]
[]
[]
[]
[]
[]
[]
[]
[]
[]
[]
[]
[]
[]
[]
[]
[]
[]
[]
[]
[]
[]
[]
[]
[]
[]
[]
[]
[]
[]
[]
[]
[]
[]
[]
[]
[]
[]
[]
[]
[]
[]
[]
[]
[]
[]
[]
[]
[]
[]
[]
[]
[]
[]
[]
[]
[]
[]
[]
[]
[]
[]
[]
[]
[]
[]
[]
[]
[]
[]
[]
[]
[]
[]
[]
[]
[]
[]
[]
[]
[]
[]
[]
[]
[]
[]
[]
[]
[]
[]
[]
[]
[]
[]
[]
[]
[]
[]
[]
[]
[]
[]
[]
[]
[]
[]
[null,null,"Cadre normatif, guide d'appel de projets et documents afférents","Révision du cadre normatif","2022-10-30"]
[null,null,"Indicateurs et cibles","Indicateurs de base","2022-03-31","2022-03-29"]
[null,null,"Indicateurs et cibles","Indicateurs de GES","2022-03-31","2022-03-29"]
[]
[]
[null,"Rapports et résultats","Livrables"]
[null,null,"Livrables"]
[null,null,"Livrables"]
[null,null,"Livrables"]
[null,null,"Livrables"]
[null,null,"Livrables"]
[null,null,"Livrables"]
[null,null,"Livrables"]
[null,null,"Livrables"]
[null,null,"Livrables"]
[null,null,"Livrables"]
[null,null,"Livrables"]
[null,null,"Livrables"]
[null,null,"Livrables"]
[null,null,"Livrables"]
[null,null,"Livrables"]
[null,null,"Livrables"]
[null,null,"Livrables"]
[null,null,"Livrables"]
[null,null,"Livrables"]
[null,null,"Livrables"]
[null,null,"Livrables"]
[null,null,"Livrables"]
[null,null,"Livrables"]
[null,null,"Livrables"]
[null,null,"Livrables"]
[null,null,"Livrables"]
[null,null,"Livrables"]
[null,null,"Livrables"]
[null,null,"Livrables"]
[null,null,"Livrables"]
[null,null,"Livrables"]
[null,null,"Livrables"]
[null,null,"Livrables"]
[null,null,"Livrables"]
[null,null,"Livrables"]
[null,null,"Livrables"]
[null,null,"Livrables"]
[null,null,"Livrables"]
[null,null,"Livrables"]
[null,null,"Livrables"]
[null,null,"Livrables"]
[null,null,"Livrables"]
[null,null,"Livrables"]
[null,null,"Livrables"]
[null,null,"Livrables"]
[null,null,"Livrables"]
[null,null,"Livrables"]
[null,null,"Livrables"]
[null,null,"Livrables"]
[null,null,"Livrables"]
[null,null,"Livrables"]
[null,null,"Livrables"]
[null,null,"Livrables"]
[null,null,"Livrables"]
[null,null,"Livrables"]
[null,null,"Livrables"]
[null,null,"Livrables"]
[null,null,"Livrables"]
[null,null,"Livrables"]
[null,null,"Livrables"]
[null,null,"Livrables"]
[null,null,"Livrables"]
[null,null,"Livrables"]
[null,null,"Livrables"]
[null,null,"Livrables"]
[null,null,"Livrables"]
[null,null,"Livrables"]
[null,null,"Livrables"]
[null,null,"Livrables"]
[null,null,"Livrables"]
[null,null,"Livrables"]
[null,null,"Livrables"]
[null,null,"Livrables"]
[null,null,"Livrables"]
[null,null,"Livrables"]
[null,null,"Livrables"]
[null,null,"Livrables"]
[null,null,"Livrables"]
[null,null,"Livrables"]
[null,null,"Livrables"]
[null,null,"Livrables"]
[null,null,"Livrables"]
[null,null,"Livrables"]
[null,null,"Livrables"]
[null,null,"Livrables"]
[null,null,"Livrables"]
[null,null,"Livrables"]
[null,null,"Livrables"]
[null,null,"Livrables"]
[null,null,"Livrables"]
[null,null,"Livrables"]

{"sheet":"Description","index":3,"n_rows":198,"n_cols":14,"rows_kept":198,"cut":false,"hidden":false,"merged":[[40,1,40,4],[40,5,40,8],[6,13,6,14],[6,9,6,12],[6,1,6,2],[47,9,47,11],[47,12,47,14],[42,2,42,14],[41,1,41,14],[46,1,47,1],[46,2,46,3],[18,1,18,2],[18,3,18,4],[18,5,18,14],[46,4,46,5],[46,6,46,8],[46,9,46,11],[46,12,46,14],[47,2,47,3],[47,4,47,5],[47,6,47,8],[14,1,14,14],[15,1,15,2],[15,3,15,4],[15,5,15,14],[16,1,16,2],[16,3,16,4],[16,6,16,14],[17,1,17,2],[17,3,17,4],[17,6,17,14],[54,1,54,14],[162,1,162,8],[162,9,162,11],[162,12,162,14],[158,1,158,8],[158,9,158,11],[158,12,158,14],[159,1,159,8],[159,9,159,11],[159,12,159,14],[156,1,156,8],[156,9,156,11],[156,12,156,14],[157,1,157,8],[157,9,157,11],[157,12,157,14],[154,1,154,8],[154,9,154,11],[154,12,154,14],[155,1,155,8],[152,1,152,8],[152,9,152,11],[152,12,152,14],[153,1,153,8],[163,1,163,8],[163,9,163,11],[163,12,163,14],[160,1,160,8],[160,9,160,11],[160,12,160,14],[161,1,161,8],[161,9,161,11],[161,12,161,14],[153,9,153,11],[153,12,153,14],[150,1,150,8],[150,9,150,11],[150,12,150,14],[151,1,151,8],[151,9,151,11],[151,12,151,14],[148,1,148,8],[148,9,148,11],[148,12,148,14],[149,1,149,8],[149,9,149,11],[149,12,149,14],[146,1,146,8],[146,9,146,11],[146,12,146,14],[147,1,147,8],[147,9,147,11],[147,12,147,14],[144,1,144,8],[144,9,144,11],[144,12,144,14],[145,1,145,8],[145,9,145,11],[145,12,145,14],[142,1,142,8],[142,9,142,11],[142,12,142,14],[143,1,143,8],[143,9,143,11],[143,12,143,14],[140,1,140,8],[140,9,140,11],[140,12,140,14],[141,1,141,8],[141,9,141,11],[141,12,141,14],[138,1,138,8],[138,9,138,11],[138,12,138,14],[139,1,139,8],[139,9,139,11],[139,12,139,14],[136,1,136,8],[136,9,136,11],[136,12,136,14],[137,1,137,8],[137,9,137,11],[137,12,137,14],[134,1,134,8],[134,9,134,11],[134,12,134,14],[135,1,135,8],[135,9,135,11],[135,12,135,14],[132,1,132,8],[132,9,132,11],[132,12,132,14],[133,1,133,8],[133,9,133,11],[133,12,133,14],[130,1,130,8],[130,9,130,11],[130,12,130,14],[131,1,131,8],[131,9,131,11],[131,12,131,14],[128,1,128,8],[128,9,128,11],[128,12,128,14],[129,1,129,8],[129,9,129,11],[129,12,129,14],[126,1,126,8],[126,9,126,11],[126,12,126,14],[127,1,127,8],[127,9,127,11],[127,12,127,14],[124,1,124,8],[124,9,124,11],[124,12,124,14],[125,1,125,8],[125,9,125,11],[125,12,125,14],[122,1,122,8],[122,9,122,11],[122,12,122,14],[123,1,123,8],[123,9,123,11],[123,12,123,14],[120,1,120,8],[120,9,120,11],[120,12,120,14],[121,1,121,8],[121,9,121,11],[121,12,121,14],[118,1,118,8],[118,9,118,11],[118,12,118,14],[119,1,119,8],[119,9,119,11],[119,12,119,14],[116,1,116,8],[116,9,116,11],[116,12,116,14],[117,1,117,8],[117,9,117,11],[117,12,117,14],[114,1,114,8],[114,9,114,11],[114,12,114,14],[115,1,115,8],[115,9,115,11],[115,12,115,14],[112,1,112,8],[112,9,112,11],[112,12,112,14],[113,1,113,8],[113,9,113,11],[113,12,113,14],[110,1,110,8],[110,9,110,11],[110,12,110,14],[111,1,111,8],[111,9,111,11],[111,12,111,14],[108,1,108,8],[108,9,108,11],[108,12,108,14],[109,1,109,8],[109,9,109,11],[109,12,109,14],[106,1,106,8],[106,9,106,11],[106,12,106,14],[107,1,107,8],[107,9,107,11],[107,12,107,14],[104,1,104,8],[104,9,104,11],[104,12,104,14],[105,1,105,8],[105,9,105,11],[105,12,105,14],[102,1,102,8],[102,9,102,11],[102,12,102,14],[103,1,103,8],[103,9,103,11],[103,12,103,14],[100,1,100,8],[100,9,100,11],[100,12,100,14],[101,1,101,8],[101,9,101,11],[101,12,101,14],[93,9,93,11],[93,12,93,14],[98,1,98,8],[98,9,98,11],[98,12,98,14],[99,1,99,8],[99,9,99,11],[99,12,99,14],[96,1,96,8],[96,9,96,11],[96,12,96,14],[97,1,97,8],[97,9,97,11],[97,12,97,14],[85,1,85,8],[85,9,85,11],[85,12,85,14],[90,1,90,8],[90,9,90,11],[90,12,90,14],[91,1,91,8],[91,9,91,11],[91,12,91,14],[88,1,88,8],[88,9,88,11],[88,12,88,14],[89,1,89,8],[89,9,89,11],[89,12,89,14],[172,1,172,8],[172,9,172,11],[172,12,172,14],[169,1,169,8],[169,9,169,11],[169,12,169,14],[170,1,170,8],[170,9,170,11],[86,1,86,8],[86,9,86,11],[86,12,86,14],[87,1,87,8],[87,9,87,11],[87,12,87,14],[94,1,94,8],[94,9,94,11],[94,12,94,14],[95,1,95,8],[95,9,95,11],[95,12,95,14],[92,1,92,8],[92,9,92,11],[92,12,92,14],[93,1,93,8],[176,1,176,8],[176,9,176,11],[176,12,176,14],[173,1,173,8],[173,9,173,11],[173,12,173,14],[174,1,174,8],[174,9,174,11],[174,12,174,14],[175,1,175,8],[175,9,175,11],[175,12,175,14],[180,1,180,8],[180,9,180,11],[180,12,180,14],[177,1,177,8],[177,9,177,11],[177,12,177,14],[178,1,178,8],[178,9,178,11],[178,12,178,14],[179,1,179,8],[179,9,179,11],[179,12,179,14],[184,1,184,8],[184,9,184,11],[184,12,184,14],[181,1,181,8],[181,9,181,11],[181,12,181,14],[182,1,182,8],[182,9,182,11],[182,12,182,14],[183,1,183,8],[183,9,183,11],[183,12,183,14],[170,12,170,14],[171,1,171,8],[171,9,171,11],[171,12,171,14],[167,1,167,8],[167,9,167,11],[167,12,167,14],[168,1,168,8],[168,9,168,11],[168,12,168,14],[165,12,165,14],[166,1,166,8],[166,9,166,11],[166,12,166,14],[79,1,79,8],[79,9,79,11],[79,12,79,14],[82,1,82,8],[82,9,82,11],[80,1,80,8],[80,9,80,11],[80,12,80,14],[81,1,81,8],[81,9,81,11],[81,12,81,14],[155,9,155,11],[155,12,155,14],[82,12,82,14],[83,1,83,8],[83,9,83,11],[83,12,83,14],[84,1,84,8],[84,9,84,11],[84,12,84,14],[67,1,67,8],[64,9,64,11],[65,9,65,11],[66,9,66,11],[63,12,63,14],[186,12,186,14],[187,12,187,14],[64,1,64,8],[65,1,65,8],[66,1,66,8],[72,1,72,8],[70,1,70,8],[70,9,70,11],[70,12,70,14],[71,1,71,8],[71,9,71,11],[71,12,71,14],[73,1,73,8],[73,9,73,11],[73,12,73,14],[164,1,164,8],[164,9,164,11],[164,12,164,14],[78,12,78,14],[72,9,72,11],[72,12,72,14],[186,1,186,8],[187,1,187,8],[68,1,68,8],[68,9,68,11],[68,12,68,14],[69,1,69,8],[69,9,69,11],[69,12,69,14],[74,1,74,8],[74,9,74,11],[74,12,74,14],[75,1,75,8],[75,9,75,11],[75,12,75,14],[76,1,76,8],[76,9,76,11],[76,12,76,14],[77,1,77,8],[78,1,78,8],[78,9,78,11],[165,1,165,8],[165,9,165,11],[193,1,193,14],[51,2,51,14],[189,1,189,14],[188,1,188,8],[185,1,185,8],[185,9,185,11],[185,12,185,14],[61,1,61,14],[62,1,62,8],[62,9,62,11],[62,12,62,14],[63,1,63,8],[188,12,188,14],[63,9,63,11],[186,9,186,11],[187,9,187,11],[188,9,188,11],[67,12,67,14],[64,12,64,14],[65,12,65,14],[66,12,66,14],[77,9,77,11],[77,12,77,14],[67,9,67,11],[194,1,194,2],[201,1,201,2],[199,1,199,2],[198,1,198,2],[197,1,197,2],[196,1,196,2],[195,1,195,2],[196,13,196,14],[194,3,194,12],[194,13,194,14],[200,1,200,2],[200,3,200,12],[200,13,200,14],[201,3,201,12],[199,3,199,12],[198,3,198,12],[197,3,197,12],[196,3,196,12],[195,3,195,12],[201,13,201,14],[199,13,199,14],[198,13,198,14],[197,13,197,14],[195,13,195,14],[55,2,55,5],[55,6,55,8],[1,1,2,14],[7,1,7,14],[4,1,4,5],[4,6,4,14],[5,6,5,14],[44,1,45,1],[44,2,44,3],[44,4,44,5],[44,6,44,8],[44,9,44,11],[44,12,44,14],[45,2,45,3],[45,4,45,5],[45,6,45,8],[45,9,45,11],[45,12,45,14],[43,2,43,14],[48,2,48,14],[49,2,49,14],[50,2,50,14],[52,2,52,14],[55,9,55,14]]}
[]
[null,{"$f":"Utilitaire!E8","v":"Plan pour une économie verte 2030"}]
[]
[]
[null,"Description",null,null,null,null,{"$f":"Accueil!D65 & \" - \" & Accueil!D53","v":"MERN (SITE) - 1.4.2.1"}]
[null,null,null,null,null,null,{"$f":"\"Action \" & Accueil!D58","v":"Action en cours"}]
[null,"Conseils de rédaction :",null,null,null,null,null,null,null,"Informations en date du :",null,null,null,{"$f":"Utilitaire!G6","v":"2022-03-31"}]
[null,"- Des précisions sur les contenus attendus sont disponibles en commentaires dans les cellules titres.\n- Les cases de la section « Informations générales » sont limitées à 2000 caractères.\n- Pour ajouter une nouvelle ligne à la section « Mise en œuvre », utilisez le bouton à cet effet (ligne 190)."]
[]
[]
[]
[]
[]
[]
[null,"Évaluation des effets de la COVID-19 sur la mise en œuvre de l'action"]
[null,"Résultats attendus : "]
[null,"Échéancier : "]
[null,"Sommes engagées \n(projets en cours) :"]
[null,"Autres : "]
[]
[]
[]
[]
[]
[]
[]
[]
[]
[]
[]
[]
[]
[]
[]
[]
[]
[]
[]
[]
[]
[null,"Informations en date du :",null,null,null,"2022-03-31"]
[null,"Informations générales"]
[null,"Contexte de l'action: ","ÉcoPerformance est un programme d'aide financière pour des projets d'efficacité énergétique et de conversion. Il vise à réduire les émissions de gaz à effet de serre (GES) et la consommation énergétique des entreprises par le financement de projets ou de mesures liés à la consommation et à la production d'énergie, de même qu'à l'amélioration des procédés.\n\nLe Programme comporte également un volet transformation de marché qui inclut de la sensibilisation, de la formation et de l'accompagnement visant plus spécifiquement l'intégration de procédés, le forage de données et la mécanique des fluides numériques."]
[null,"Objectif de l'action :","Cette action contribue à l'objectif 1.4 - Réduire les émissions de GES du secteur industriel tout en renforçant sa compétitivité du Plan de mise en oeuvre du PEV\nLe Programme se divise en deux volets : le volet Analyse et le volet Implantation.\n\nLe volet Analyse a pour objectif d'identifier et de quantifier les mesures potentielles d'économies de combustible fossile et de réductions d'émissions de GES ainsi que les coûts pour les instaurer.\nLe volet Implantation a pour objectif de soutenir financièrement des projets permettant de réduire ultimement les émissions de GES, soit des projets d'efficacité énergétique, de réduction des émissions de GES ou de conversion à des sources d'énergie à plus faibles émissions de GES."]
[null,"Bénéficiaires : ","Entreprises (grandes entreprises)",null,"Entreprises (petites ou moyennes entreprises)",null,"Milieu municipal",null,null,"Milieu municipal",null,null,"Organismes à but non lucratif"]
[null,null,"Autres (précisez) : "]
[null,"Clientèle ou secteur réglementé :"]
[null,null,"Autres (précisez) : "]
[null,"Critères d'admissibilité : ","Un projet admissible doit d'abord permettre une réduction quantifiable des émissions de GES et peut contenir plusieurs mesures. \n\nFormulaire de demande signé par le participant, plan de projet et plan de surveillance signés par un ingénieur sont les documents minimaux requis pour présenter une demande.\n\nLes demandes sont analysées, en fonction de leurs dates de dépôt, par un chargé de programme pour ensuite être soumises à l'approbation des autorités du MERN."]
[null,"Processus de suivi de l'action :","L'action est suivie de manière continuelle. Le budget est suivi hebdomadairement, par l'émission d'un suivi budgétaire hebdomadaire. Ce suivi compare les engagements dans SAGIR, avec les budgets prévus, ainsi que les données fournies par la base de données de suivi du programme ÉcoPerformance.\n\nLe suivi de la mise en œuvre des projets est fait en continu par les chargés de programme. La mise en fonction des projets est le moment à partir duquel les déclarations de réductions des émissions de gaz à effet de serre sont comptabilisées. Les réductions sont comptabilisées pour la période d'engagement des participants, tant que les projets sont maintenus.\n\nUne reddition de comptes est faite au ministère de l'Environnement et de la Lutte contre les changements climatiques (MELCC) sur la base de deux rapports annuels."]
[null,"Résultats et co-bénéfices attendus :","Les résultats directs attendus sont l'économie d'énergie, la réduction des émissions de GES, des investissements importants dans le secteur industriel, la création d'emplois et une amélioration soutenue de la performance du secteur industriel au Québec.\n\nLes autres avantages ou co-bénéfices attendus de l'action sont de faire appel à des énergies renouvelables ou moins émettrices en carbone, d'améliorer les procédés industriels, de permettre de faire des choix de procédés et d'équipements plus performants lors de nouveaux projets. Également, l'action permet de transformer le marché et de dynamiser les interventions dans le secteur industriel. Plusieurs analyses permettront aux entreprises de se conscientiser sur leur consommation énergétique et de prendre action pour améliorer leur performance."]
[null,"Résultats et co-bénéfices obtenus dans la dernière année :","Du 1er avril 2021 au 31 mars 2022, 23 dossiers d’analyse et 227 projets d’implantation ont été acceptés par le ministre, pour une réduction annuelle potentielle de 196 789 tCO2é, nécessitant des investissements de 236,5 M$ grâce à des aides financières de 104,8 M$ pour un coût moyen de l’aide financière de 25.37 $/t sur la durée de vie des équipements (21 ans). Ces investissements entraîneraient la création de 3 310 emplois."]
[null,"Résultats et co-bénéfices obtenus depuis le lancement de l'action :"]
[]
[null,"Classification"]
[null,"Finalité :",null,null,null,null,"Moyen :",null,null,"Éviter (GES)"]
[]
[]
[]
[]
[]
[null,"Mise en œuvre "]
[null,"Étapes (depuis le début de l'action)",null,null,null,null,null,null,null,"Échéancier",null,null,"État d'avancement"]
[1,"Entrée en vigueur d'un nouveau cadre normatif au 1er janvier 2021",null,null,null,null,null,null,null,"2021-04-01",null,null,"Complétée"]
[2]
[3]
[4]
[5]
[6]
[]
[8]
[9]
[10]
[11]
[]
[]
[]
[]
[]
[]
[]
[]
[]
[]
[]
[]
[]
[]
[]
[]
[]
[]
[]
[]
[]
[]
[]
[]
[]
[]
[]
[]
[]
[]
[]
[]
[]
[]
[]
[]
[]
[]
[]
[]
[]
[]
[]
[]
[]
[]
[]
[]
[]
[]
[]
[]
[]
[]
[]
[]
[]
[]
[]
[]
[]
[]
[]
[]
[]
[]
[]
[]
[]
[]
[]
[]
[]
[]
[]
[]
[]
[]
[]
[]
[]
[]
[]
[]
[]
[]
[]
[]
[]
[]
[]
[]
[]
[]
[]
[]
[]
[]
[]
[]
[]
[]
[]
[]
[]
[]
[]
[]
[]
[]
[]
[]
[]
[]
[]
[null,"Ajouter une ligne"]
[]
[]
[]
[null,"Plans, stratégies ou politiques incluant la mise en œuvre de cette action"]
[null,"Abréviation",null,"Nom complet",null,null,null,null,null,null,null,null,null,"Numéro de l'action"]
[null,"PMO 2021-2026",null,"PLAN DE MISE EN ŒUVRE 2021-2026 POUR UNE ÉCONOMIE VERTE 2030",null,null,null,null,null,null,null,null,null,"1.4.2.1"]
[null,"PACC 2013-2020",null,"Plan d'action 2013-2020 sur les changements climatiques",null,null,null,null,null,null,null,null,null,"18.1.1, 20.1, 20.5, 21.1"]
[null,"PD",null,"Plan directeur en transition, innovation et efficacité énergétiques 2018-2023",null,null,null,null,null,null,null,null,null,38.700000000000003]

{"sheet":"Détail des projets","index":4,"n_rows":284,"n_cols":28,"rows_kept":284,"cut":false,"hidden":false,"merged":[[14,1,14,4],[22,2,23,2],[22,6,23,6],[22,5,23,5],[22,1,23,1],[22,4,23,4],[22,3,23,3],[21,1,21,5],[18,3,18,5],[18,6,18,8],[22,10,23,10],[22,13,23,13],[22,9,23,9],[283,1,283,10],[22,7,23,7],[22,8,23,8],[21,16,21,25],[22,14,23,14],[22,11,23,11],[22,27,23,27],[22,12,23,12],[22,15,23,15],[22,26,23,26],[5,1,5,14],[1,11,1,14],[2,11,2,14],[3,11,3,14],[1,9,1,10],[1,1,3,8],[4,12,4,13],[4,1,4,2]]}
[]
[null,{"$f":"Utilitaire!E8","v":"Plan pour une économie verte 2030"},null,null,null,null,null,null,null,"Détail des projets",null,{"$f":"Accueil!D65 & \" - \" & Accueil!D53","v":"MERN (SITE) - 1.4.2.1"}]
[null,null,null,null,null,null,null,null,null,null,null,{"$f":"\"Action \" & Accueil!D58","v":"Action en cours"}]
[]
[null,"Conseils de rédaction :",null,null,null,null,null,null,null,null,null,null,"Informations en date du :",null,{"$f":"Utilitaire!G6","v":"2022-03-31"}]
[null,"- Veuillez remplir cet onglet uniquement si vous connaissez les projets qui seront financés.\n- Inscrire en bleu toute ligne de projet n'ayant pas encore été approuvé ou annoncé.\n- Nouveau: Veuillez ajouter le type de bénéficiaire (final/intermédiaire) dans la colonne D."]
[]
[]
[]
[]
[]
[]
[]
[]
[]
[]
[]
[]
[null,null,null,"Informations en date du :",null,null,"2022-03-31"]
[]
[]
[null,"DÉTAILS DES PROJETS AUTORISÉS",null,null,null,null,null,null,null,null,null,null,null,null,null,null,"MONTANTS DÉPENSÉS DANS LE CADRE DU PEV 2030 ($)"]
["No","Nom du projet","Nom du requérant ou du bénéficiaire","Type de bénéficiaire","Volet ou thématique","Catégorie","Nombre de projets","Région administrative","Municipalité","Statut","Classification du projet","Montant engagé ($) par le PEV","Date de l'engagement","Date de fin","Dépenses imputées au FECC","Budget total du projet ($)","2019-2020","2020-2021","2021-2022","2022-2023","2023-2024","2024-2025","2025-2026","2026-2027","2027-2028","2028-2029","MONTANT DES DÉPENSES RÉELLES ($)","TOTAL DES DÉPENSES RÉELLES ET PRÉVUES ($)"]
[null,null,null,null,null,null,null,null,null,null,null,"(convention signée, contrat, lettre de confirmation du ministre ou de son représentant ou lettre d'octroi)",null,null,null,null,"Réel","Réel","Réel","Prévu","Prévu","Prévu","Prévu","Prévu","Prévu","Prévu"]
[1,"Frais de gestion et de coordination de l'action","MERN (SITE)",null,null,"Autres",null,"Sans objet","Sans objet",null,"Frais de gestion - rémunération",null,null,null,null,null,null,null,450118,null,null,null,null,null,null,null,{"$f":"SUM(Q25:S25)","v":450118},{"$f":"SUM(Q25:Z25)","v":450118}]
[2,"Frais de gestion et de coordination de l'action","MERN (SITE)",null,null,"Autres",null,"Sans objet","Sans objet",null,"Frais de gestion - fonctionnement",null,null,null,null,null,null,null,354976,null,null,null,null,null,null,null,{"$f":"SUM(Q26:S26)","v":354976},354976]
[3,null,null,null,null,null,null,null,null,null,null,null,null,null,null,null,null,null,null,null,null,null,null,null,null,null,{"$f":"SUM(Q27:S27)","v":0},0]
[4,"RSI Environnement - Étude conversion énergétique","Énergie Tergasa inc.","Final","Analyse","Industrie",null,"02-Saguenay--Lac-Saint-Jean",null,"AC","SU",22475.5,"00:00:00","2022-11-30","PMO - FECC",44951,0,0,11237.75,11237.75,0,0,0,0,0,0,{"$f":"SUM(Q28:S28)","v":11237.75},22475.5]
[5,"Excavation Alain Lemay - Audit énergétique, récupération de chaleur et optimisation énergétique","Excavation Alain Lemay inc.","Final","Analyse","Industrie",null,"17-Centre-du-Québec",null,"AC","SU",6000,"00:00:00","2023-01-19","PMO - FECC",18500,0,0,0,6000,0,0,0,0,0,0,0,6000]
[6,"Études comparatives en énergie 010501","Minière Osisko Inc.","Final","Analyse","Industrie",null,"10-Nord-du-Québec",null,"AC","SU",39272.1,"2021-08-13T13:35:04","2021-12-30","PMO - FECC",74804,0,0,39272.1,0,0,0,0,0,0,0,39272.1,39272.1]
[7,"Étude du chauffage des serres du Parc Marie-Victorin","Parc Marie-Victorin inc.","Final","Analyse","Industrie",null,"17-Centre-du-Québec",null,"AC","SU",5231.1000000000004,"2021-08-11T13:51:59","2021-09-30","PMO - FECC",9964,0,0,5231.1000000000004,0,0,0,0,0,0,0,5231.1000000000004,5231.1000000000004]
[8,"Analyse bilan d'air - Usine Essity","Essity Canada inc.","Final","Analyse","Industrie",null,"17-Centre-du-Québec",null,"AC","SU",7720,"2021-08-11T13:41:15","2021-09-15","PMO - FECC",16589,0,0,7720,0,0,0,0,0,0,0,7720,7720]
[9,"Étude en efficacité énergétique","Mercier, Industries en mécanique ltée","Final","Analyse","Industrie",null,"02-Saguenay--Lac-Saint-Jean",null,"AC","SU",8393.2199999999993,"2021-10-08T14:18:31","2022-01-26","PMO - FECC",20000,0,0,8393.2199999999993,0,0,0,0,0,0,0,8393.2199999999993,8393.2199999999993]
[10,"Audit des installations vapeur/condensat et des utilités thermiques","Canneberges Atoka inc.","Final","Analyse","Industrie",null,"17-Centre-du-Québec",null,"AC","SU",41325,"2021-05-11T08:38:48","2021-12-30","PMO - FECC",82650,0,0,41325,0,0,0,0,0,0,0,41325,41325]
[11,"Étude pour la réduction de la consommation d'énergie et d'émission de GES","Fortier 2000 ltée","Final","Analyse","Industrie",null,"12-Chaudière-Appalaches",null,"AC","SU",8875,"2021-11-16T08:34:15","2022-12-30","PMO - FECC",27000,0,0,4437.5,4437.5,0,0,0,0,0,0,4437.5,8875]
[12,"Étude IP - Phase II","Entreprise Greenfield Global Québec","Final","Analyse","Industrie",null,"16-Montérégie",null,"AC","SU",88018.5,"2021-10-21T14:12:34","2022-04-30","PMO - FECC",117358,0,0,44009.25,44009.25,0,0,0,0,0,0,44009.25,{"$f":"SUM(Q36:Z36)","v":88018.5}]
[13,"Étude en intégration énergétique par analyse de pincement","Technocell inc.","Final","Analyse","Industrie",null,"17-Centre-du-Québec",null,"AC","SU",46287.19,"2022-01-11T08:58:11","2022-04-01","PMO - FECC",61881.25,0,0,23143.599999999999,23143.59,0,0,0,0,0,0,23143.599999999999,{"$f":"SUM(Q37:Z37)","v":46287.19}]
[14,"Étude écoénergétique à la teinturerie Cansew","Cansew inc.","Final","Analyse","Industrie",null,"06-Montréal",null,"AC","SU",10384,"2021-06-15T16:09:47","2022-12-16","PMO - FECC",20768,0,0,0,10384,0,0,0,0,0,0,0,{"$f":"SUM(Q38:Z38)","v":10384}]
[15,"Étude d’efficacité énergétique des procédés et utilités","Les Ingrédients Alimentaires BSA inc.","Final","Analyse","Industrie",null,"06-Montréal",null,"AC","SU",9288,"2021-11-16T08:32:50","2022-02-19","PMO - FECC",18575,0,0,9288,0,0,0,0,0,0,0,9288,{"$f":"SUM(Q39:Z39)","v":9288}]
[16,"Conversion à l'hydrogène des fours du Centre de Coulée de Baie-Comeau","Alcoa Canada Cie","Final","Analyse","Industrie",null,"09-Côte-Nord",null,"AC","SU",27461.09,"2022-01-11T09:01:48","2022-03-31","PMO - FECC",63178.080000000002,0,0,27461.09,0,0,0,0,0,0,0,27461.09,{"$f":"SUM(Q40:Z40)","v":27461.09}]
[17,"Étude d’efficacité énergétique","Fonderie Poitras ltée","Final","Analyse","Industrie",null,"12-Chaudière-Appalaches",null,"AC","SU",25000,"2022-02-03T15:08:51","2023-03-01","PMO - FECC",61015,0,0,12500,12500,0,0,0,0,0,0,12500,{"$f":"SUM(Q41:Z41)","v":25000}]
[18,"Analyse énergétique et potentiel de récupération","La Fromagerie Polyethnique inc.","Final","Analyse","Industrie",null,"16-Montérégie",null,"TE","SU",23909.13,"2021-07-22T09:37:26","2021-08-04","PMO - FECC",52600,0,0,23909.13,0,0,0,0,0,0,0,23909.13,23909.13]
[19,"Étude de faisabilité - remplacement de la chaudière et mesures d'efficacité énergétique","Boulangerie St-Méthode inc.","Final","Analyse","Industrie",null,"12-Chaudière-Appalaches",null,"TE","SU",10195.48,"2021-07-22T08:55:05","2021-11-22","PMO - FECC",20390.97,0,0,10195.48,0,0,0,0,0,0,0,10195.48,{"$f":"SUM(Q43:Z43)","v":10195.48}]
[20,"Étude énergétique de récupération de chaleur du système de refroidissement","Les Plastiques Balcan","Final","Analyse","Industrie",null,"06-Montréal",null,"TE","SU",6247.5,"2021-07-22T09:00:50","2021-10-28","PMO - FECC",11900,0,0,6247.5,0,0,0,0,0,0,0,6247.5,{"$f":"SUM(Q44:Z44)","v":6247.5}]
[21,"Implantation d'un système de chauffage de serre","Entreprise Gendron-Benoit","Final","Analyse","Industrie",null,"05-Estrie",null,"TE","SU",4462.5,"2021-06-14T10:30:23","2021-07-09","PMO - FECC",8500,0,0,4462.5,0,0,0,0,0,0,0,4462.5,{"$f":"SUM(Q45:Z45)","v":4462.5}]
[22,"Analyse des opportunités de réduction des GES de 2021","Groupe Canam inc.","Final","Analyse","Industrie",null,"16-Montérégie",null,"TE","SU",10352.58,"2021-06-14T10:49:35","2021-11-02","PMO - FECC",21277.15,0,0,10352.58,0,0,0,0,0,0,0,10352.58,{"$f":"SUM(Q46:Z46)","v":10352.58}]
[23,"Opportunités de réduction de coûts et de GES - MdFQ - Lac Bloom","Minerai de fer Québec inc.","Final","Analyse","Industrie",null,"09-Côte-Nord",null,"TE","SU",31170,"2021-07-22T09:28:24","2021-11-18","PMO - FECC",62500,0,0,31170,0,0,0,0,0,0,0,31170,{"$f":"SUM(Q47:Z47)","v":31170}]
[24,"Étude pour une boucle d’eau de chauffage par géothermie et efficacité énergétique en serre","L'Abri Végétal","Final","Analyse","Industrie",null,"05-Estrie",null,"TE","SU",25000,"2021-08-11T13:04:23","2022-01-19","PMO - FECC",53564.45,0,0,25000,0,0,0,0,0,0,0,25000,{"$f":"SUM(Q48:Z48)","v":25000}]
[25,"Amélioration de la fiabilité des bassins","Sonaca Montréal inc.","Final","Analyse","Industrie",null,"15-Laurentides",null,"TE","SU",12146.75,"2021-10-08T14:22:14","2022-01-28","PMO - FECC",24293.5,0,0,12146.75,0,0,0,0,0,0,0,12146.75,12146.75]
[26,"Étude d'intégration de procédés","Alcyon sel de mer inc.","Final","Analyse","Industrie",null,"11-Gaspésie--Îles-de-la-Madeleine",null,"TE","SU",27984,"2021-06-22T07:54:02","2021-12-10","PMO - FECC",37312.5,0,0,27984,0,0,0,0,0,0,0,27984,{"$f":"SUM(Q50:Z50)","v":27984}]
[27,null,null,null,null,null,null,null,null,null,null,null,null,null,null,null,null,null,null,null,null,null,null,null,null,null,{"$f":"SUM(Q51:S51)","v":0},0]
[28,"Économies d'énergie - Les Machineries Pronovost inc.","Les Machineries Pronovost inc.","Final","Implantation","Industrie",null,"04-Mauricie",null,"AC","SU",206330.83,"00:00:00","2023-03-31","PMO - FECC",381500,0,0,0,206330.83,0,0,0,0,0,0,0,{"$f":"SUM(Q52:Z52)","v":206330.83}]
[29,"Efficacité et conversion énergétiques chez Séchoirs St-Élisabeth","Séchoirs St-Élisabeth (9200-4746 Québec inc.)","Final","Implantation","Industrie",null,"14-Lanaudière",null,"AC","SU",1066729.24,"00:00:00","2022-12-31","PMO - FECC",1487300,0,0,533364.62,533364.62,0,0,0,0,0,0,{"$f":"SUM(Q53:S53)","v":533364.62},1066729.24]
[30,"Construction d’une ligne électrique en remplacement de deux génératrices pour 9246-7984 Québec inc.","9246-7984 Québec inc.","Final","Implantation","Industrie",null,"17-Centre-du-Québec",null,"AC","SU",14707.03,"00:00:00","2022-06-01","PMO - FECC",39625,0,0,0,14707.03,0,0,0,0,0,0,0,{"$f":"SUM(Q54:Z54)","v":14707.03}]
[31,"Ventilation de l'entrepôt de maintenance de Kerry Ste-Claire","Kerry (Canada) inc.","Final","Implantation","Industrie",null,"12-Chaudière-Appalaches",null,"AC","SU",35117.42,"00:00:00","2022-09-01","PMO - FECC",83123,0,0,26338.080000000002,8779.34,0,0,0,0,0,0,{"$f":"SUM(Q55:S55)","v":26338.080000000002},35117.42]
[32,"Construction Agropod Verchères - Phase 3","9444-0609 Québec inc.","Final","Implantation","Industrie",null,"16-Montérégie",null,"AC","SU",1823040,"00:00:00","2024-02-01","PMO - FECC",2923200,0,0,455760,911520,455760,0,0,0,0,0,455760,{"$f":"SUM(Q56:Z56)","v":1823040}]
[33,"Agropod Partnership inc.","Agropod Partnership inc.","Final","Implantation","Industrie",null,"16-Montérégie",null,"AC","SU",2011961.17,"00:00:00","2023-08-31","PMO - FECC",3548900,0,0,502990.29,1005980.58,502990.3,0,0,0,0,0,{"$f":"SUM(Q57:S57)","v":502990.29},2011961.17]
[34,"Rideaux d'air - Agrimétal inc.","Agrimétal inc.","Final","Implantation","Industrie",null,"17-Centre-du-Québec",null,"AC","SU",23681.190000000002,"00:00:00","2022-12-30","PMO - FECC",48300,0,0,17760.900000000001,5920.29,0,0,0,0,0,0,17760.900000000001,{"$f":"SUM(Q58:Z58)","v":23681.190000000002}]
[35,"Récupération de chaleur pour la réduction de la consommation du propane","Ouellet Canada inc","Final","Implantation","Industrie",null,"12-Chaudière-Appalaches",null,"AC","SU",1022434.28,"00:00:00","2022-11-30","PMO - FECC",1811667,0,0,255608.57,766825.71,0,0,0,0,0,0,{"$f":"SUM(Q59:S59)","v":255608.57},1022434.28]
[36,"Optimisation du système de traitement des COV des ateliers de peinture du bâtiment 318","Bombardier inc.","Final","Implantation","Industrie",null,"06-Montréal",null,"AC","SU",140856.37,"00:00:00","2022-12-30","PMO - FECC",521538,0,0,35214.089999999997,105642.28,0,0,0,0,0,0,35214.089999999997,{"$f":"SUM(Q60:Z60)","v":140856.37}]
[37,"Nouveau bâtiment de serre intérieure","PharmaflorX inc.","Final","Implantation","Industrie",null,"07-Outaouais",null,"AC","SU",1311196.69389,"2021-07-12T09:03:36","2024-05-01","PMO - FECC",2048976,0,0,686817.32257750002,312189.69036750001,0,312189.68094499997,0,0,0,0,{"$f":"SUM(Q61:S61)","v":686817.32257750002},1311196.69389]
[38,"Viandes Première - Agrandissement","4496663 Canada inc.","Final","Implantation","Industrie",null,"16-Montérégie",null,"AC","SU",260790.11767190002,"2021-10-13T10:47:38","2023-06-30","PMO - FECC",839080,0,0,65197.527861299997,130395.05572259999,65197.534088,0,0,0,0,0,65197.527861299997,{"$f":"SUM(Q62:Z62)","v":260790.11767190002}]
[39,"Implantation d’un séchoir électrique sur rail","Bois LIB inc.","Final","Implantation","Industrie",null,"17-Centre-du-Québec",null,"AC","SU",1135106.75,"2021-07-09T14:05:05","2022-06-01","PMO - FECC",3293238,0,0,864843.23,270263.52,0,0,0,0,0,0,{"$f":"SUM(Q63:S63)","v":864843.23},1135106.75]
[40,"Serre agricole, efficacité énergétique et conversion à la biomasse résiduelle","Fraîcheur Urbaine","Final","Implantation","Industrie",null,"05-Estrie",null,"AC","SU",22576.077700000002,"2021-08-31T10:23:19","2022-11-01","PMO - FECC",38108,0,0,16932.057828000001,5644.0198719999999,0,0,0,0,0,0,16932.057828000001,{"$f":"SUM(Q64:Z64)","v":22576.077700000002}]
[41,"Installation de thermopompes pour le chauffage","GEA Houle, une division de GEA Farm Technologies Canada","Final","Implantation","Industrie",null,"17-Centre-du-Québec",null,"AC","SU",248750,"2021-06-14T10:46:20","2023-04-03","PMO - FECC",465000,0,0,124375,62187.5,62187.5,0,0,0,0,0,{"$f":"SUM(Q65:S65)","v":124375},248750]
[42,"Amélioration de l'efficacité énergétique","Société en commandite Papier Masson WB","Final","Implantation","Industrie",null,"07-Outaouais",null,"AC","SU",4146363.08,"2021-06-11T10:08:25","2024-02-01","PMO - FECC",5854634,0,0,0,1036590.77,3109772.31,0,0,0,0,0,0,{"$f":"SUM(Q66:Z66)","v":4146363.08}]
[43,"Serre agricole de micropousses – Efficacité énergétique","Les Jardiniers du Chef","Final","Implantation","Industrie",null,"15-Laurentides",null,"AC","SU",31750.02,"2021-10-08T13:58:48","2023-12-31","PMO - FECC",79046,0,0,7937.5,15875,7937.52,0,0,0,0,0,{"$f":"SUM(Q67:S67)","v":7937.5},31750.02]
[44,"Électrification d'une cannebergière, phase II","Les Canneberges Dion inc.","Final","Implantation","Industrie",null,"17-Centre-du-Québec",null,"AC","SU",244625.28999999998,"2021-10-06T13:53:38","2022-06-01","PMO - FECC",642800,0,0,122312.64,122312.65,0,0,0,0,0,0,122312.64,{"$f":"SUM(Q68:Z68)","v":244625.28999999998}]
[45,"Agrandissement de 3 hectares, efficacité énergétique et chauffage à la biomasse","9328-3810 Québec inc.","Final","Implantation","Industrie",null,"15-Laurentides",null,"AC","SU",2209804.46,"2021-04-19","2022-10-01","PMO - FECC",6107000,0,0,1657353.36,552451.1,0,0,0,0,0,0,{"$f":"SUM(Q69:S69)","v":1657353.36},2209804.46]
[46,"Échangeur de chaleur","Soprema inc.","Final","Implantation","Industrie",null,"17-Centre-du-Québec",null,"AC","SU",294750,"2021-06-11T09:01:41","2022-04-02","PMO - FECC",412500,0,0,221089.47,73660.53,0,0,0,0,0,0,221089.47,{"$f":"SUM(Q70:Z70)","v":294750}]
[47,"Remplacement de deux échangeurs de chaleur","Société en commandite FF Soucy WB","Final","Implantation","Industrie",null,"01-Bas-Saint-Laurent",null,"AC","SU",67198.799999999988,"2022-03-08T10:26:25","2021-04-01","PMO - FECC",300000,0,null,67199,0,0,0,0,0,0,0,{"$f":"SUM(Q71:S71)","v":67199},67199]
[48,"Écrans thermiques - Phase 3","Serres Toundra inc.","Final","Implantation","Industrie",null,"02-Saguenay--Lac-Saint-Jean",null,"AC","SU",1904919.31,"2021-07-22T11:52:47","2022-10-15","PMO - FECC",3232052,0,0,1428689.49,476229.82,0,0,0,0,0,0,1428689.49,{"$f":"SUM(Q72:Z72)","v":1904919.31}]
[49,"Valorisation de rejets thermiques industriels - phase 3","Serres Toundra inc.","Final","Implantation","Industrie",null,"02-Saguenay--Lac-Saint-Jean",null,"AC","SU",3441707.25,"2022-02-24","2023-06-15","PMO - FECC",4588943,0,0,1720853.62,860426.81,860426.82,0,0,0,0,0,{"$f":"SUM(Q73:S73)","v":1720853.62},3441707.25]
[50,"Acériculture-Évaporateur électrique","9071-0567 Québec inc.","Final","Implantation","Industrie",null,"12-Chaudière-Appalaches",null,"AC","SU",28839.67,"2020-10-21T12:20:52","2022-09-25","PMO - FECC",81299,0,0,0,28839.67,0,0,0,0,0,0,0,{"$f":"SUM(Q74:Z74)","v":28839.67}]
[51,"Système Thermo PVT, chauffage de l’eau de lavage avec récupération de chaleur sur le procédé de refroidissement du séchoir de canneberges","Fruit d'Or inc.","Final","Implantation","Industrie",null,"17-Centre-du-Québec",null,"AC","SU",146244.19,"2021-05-17T09:45:11","2021-11-01","PMO - FECC",338000,0,0,146244.19,0,0,0,0,0,0,0,{"$f":"SUM(Q75:S75)","v":146244.19},146244.19]
[52,"Brûleurs régénératifs Laterrière","Rio Tinto Aluminium","Final","Implantation","Industrie",null,"02-Saguenay--Lac-Saint-Jean",null,"AC","SU",302310.56000000006,"2021-05-17T09:36:04","2023-04-28","PMO - FECC",10912767,0,0,158353.14000000001,71978.7,71978.720000000001,0,0,0,0,0,158353.14000000001,{"$f":"SUM(Q76:Z76)","v":302310.56000000006}]
[53,"Deux murs solaires et un rideau d'air","ABB Électrification Canada SRI","Final","Implantation","Industrie",null,"06-Montréal",null,"AC","SU",60808.99,"2021-07-22T09:42:54","2022-06-01","PMO - FECC",144800,0,0,45606.75,15202.24,0,0,0,0,0,0,{"$f":"SUM(Q77:S77)","v":45606.75},60808.99]
[54,"Mur solaire et rideau d'air","ABB Électrification Canada SRI","Final","Implantation","Industrie",null,"06-Montréal",null,"AC","SU",30572,"2021-09-07T13:23:23","2023-05-01","PMO - FECC",69000,0,0,7643,15286,7643,0,0,0,0,0,7643,{"$f":"SUM(Q78:Z78)","v":30572}]
[55,"Remplacement d'un concasseur diesel par un nouveau concasseur électrique","Bellemare abrasifs & minéraux","Final","Implantation","Industrie",null,"04-Mauricie",null,"AC","SU",182780.28,"2021-05-17T09:10:24","2023-04-29","PMO - FECC",350000,0,0,0,139261.18,43519.1,0,0,0,0,0,{"$f":"SUM(Q79:S79)","v":0},182780.28]
[56,"Remplacement d'un convoyeur empileur au diesel par un convoyeur électrique","Bellemare abrasifs & minéraux","Final","Implantation","Industrie",null,"04-Mauricie",null,"AC","SU",67811.3,"2021-05-31T09:22:11","2023-05-31","PMO - FECC",127000,0,0,0,51665.760000000002,16145.54,0,0,0,0,0,0,{"$f":"SUM(Q80:Z80)","v":67811.3}]
[57,"Remplacement d'un tamiseur rotatif Laprade diesel par un tamiseur rotatif Laprade électrique","Bellemare abrasifs & minéraux","Final","Implantation","Industrie",null,"04-Mauricie",null,"AC","SU",75129.149999999994,"2021-05-31T09:24:05","2022-05-31","PMO - FECC",137000,0,0,57241.25,17887.900000000001,0,0,0,0,0,0,{"$f":"SUM(Q81:S81)","v":57241.25},75129.149999999994]
[58,"Remplacement d'un tamiseur McCloskey diesel par un tamiseur bivi-TEC électrique","Bellemare abrasifs & minéraux","Final","Implantation","Industrie",null,"04-Mauricie",null,"AC","SU",136112.04,"2021-05-17T09:16:23","2023-04-29","PMO - FECC",259655,0,0,0,103704.42,32407.62,0,0,0,0,0,0,{"$f":"SUM(Q82:Z82)","v":136112.04}]
[59,"Remplacement d'un tamiseur Powerscreen diesel par un tamiseur Midwestern électrique","Bellemare abrasifs & minéraux","Final","Implantation","Industrie",null,"04-Mauricie",null,"AC","SU",43899.08,"2021-05-31T09:26:09","2023-05-31","PMO - FECC",112968,0,0,0,33446.910000000003,10452.17,0,0,0,0,0,{"$f":"SUM(Q83:S83)","v":0},43899.08]
[60,"Remplacement tamiseur rotatif Vermeer diesel par tamiseur rotatif Vermeer électrique","Bellemare abrasifs & minéraux","Final","Implantation","Industrie",null,"04-Mauricie",null,"AC","SU",215435.9,"2021-05-17T09:18:42","2023-04-29","PMO - FECC",579000,0,0,0,164141.63,51294.27,0,0,0,0,0,0,{"$f":"SUM(Q84:Z84)","v":215435.9}]
[61,"Récupération de chaleur sur les refroidisseurs","GSK Vaccins","Final","Implantation","Industrie",null,"03-Capitale-Nationale",null,"AC","SU",548076.5,"2021-05-17T08:53:50","2022-08-31","PMO - FECC",1882992,0,0,411057.36,137019.14000000001,0,0,0,0,0,0,{"$f":"SUM(Q85:S85)","v":411057.36},548076.5]
[62,"Installation d'échangeurs de chaleur","Volailles St-Hugues inc.","Final","Implantation","Industrie",null,"16-Montérégie",null,"AC","SU",53416.15,"2022-02-18T10:02:59","2023-03-01","PMO - FECC",112806,0,0,0,53416.15,0,0,0,0,0,0,0,{"$f":"SUM(Q86:Z86)","v":53416.15}]
[63,"Acériculture-Évaporateur électrique","B.M. Les Hauteurs inc.","Final","Implantation","Industrie",null,"01-Bas-Saint-Laurent",null,"AC","SU",48923.41,"2020-06-29T17:19:55","2021-06-01","PMO - FECC",100216,0,0,48923.41,0,0,0,0,0,0,0,{"$f":"SUM(Q87:S87)","v":48923.41},48923.41]
[64,"Serre agricole de culture mixte – Efficacité énergétique","Coop de travailleurs en serres Belle-de-Jour","Final","Implantation","Industrie",null,"02-Saguenay--Lac-Saint-Jean",null,"AC","SU",48309.33,"2021-05-11T08:44:00","2022-10-15","PMO - FECC",92505,0,0,36231.99,12077.34,0,0,0,0,0,0,36231.99,{"$f":"SUM(Q88:Z88)","v":48309.33}]
[65,"Électrification d’un deuxième séchoir sur rail","Damabois division Cap-Chat inc.","Final","Implantation","Industrie",null,"11-Gaspésie--Îles-de-la-Madeleine",null,"AC","SU",1005090.53,"2021-09-20T09:01:34","2022-06-01","PMO - FECC",2937804,0,0,526475.99,478614.54,0,0,0,0,0,0,{"$f":"SUM(Q89:S89)","v":526475.99},1005090.53]
[66,"Acériculture-Évaporateur électrique","Les érablières Lalanne inc.","Final","Implantation","Industrie",null,"05-Estrie",null,"AC","SU",53345.729999999996,"2020-09-14T17:08:10","2022-01-30","PMO - FECC",112193,0,0,50805.46,2540.27,0,0,0,0,0,0,50805.46,{"$f":"SUM(Q90:Z90)","v":53345.729999999996}]
[67,"Électrification du chauffage des unités air make-up","Structures CPI inc.","Final","Implantation","Industrie",null,"02-Saguenay--Lac-Saint-Jean",null,"AC","SU",463896.91000000003,"2021-10-20T11:28:35","2022-06-30","PMO - FECC",651318,0,0,242305.93,221590.98,0,0,0,0,0,0,{"$f":"SUM(Q91:S91)","v":242305.93},463896.91000000003]
[68,"Économie d'énergie","Quali-T-Groupe ULC","Final","Implantation","Industrie",null,"05-Estrie",null,"AC","SU",622769.25,"2021-05-17T09:42:41","2022-08-31","PMO - FECC",960675,0,0,473361.78,149407.47,0,0,0,0,0,0,473361.78,{"$f":"SUM(Q92:Z92)","v":622769.25}]
[69,"Conversion à la biomasse résiduelle et implantation d’écrans thermiques en serres","9354-1704 Québec inc. (Les serres Stéphane Bertrand inc.)","Final","Implantation","Industrie",null,"14-Lanaudière",null,"AC","SU",2263558.52,"2021-04-23","2024-05-01","PMO - FECC",4014292,0,0,0,1131779.26,565889.63,565889.63,0,0,0,0,{"$f":"SUM(Q93:S93)","v":0},2263558.52]
[70,"Rideaux d'air","Industries Machinex inc.","Final","Implantation","Industrie",null,"17-Centre-du-Québec",null,"AC","SU",58770.869999999995,"2021-08-11T13:08:18","2023-09-20","PMO - FECC",99950,0,0,29385.439999999999,14692.72,14692.71,0,0,0,0,0,29385.439999999999,{"$f":"SUM(Q94:Z94)","v":58770.869999999995}]
[71,"Acériculture-Évaporateur électrique","Ferme Pascal Binette inc.","Final","Implantation","Industrie",null,"17-Centre-du-Québec",null,"AC","SU",65784.36,"2020-10-08T11:07:02","2022-03-14","PMO - FECC",119194,0,0,65784.36,0,0,0,0,0,0,0,{"$f":"SUM(Q95:S95)","v":65784.36},65784.36]
[72,"Optimisation énergétique des bassins de galvanisation","ArcelorMittal Produits longs Canada s.e.n.c.","Final","Implantation","Industrie",null,"06-Montréal",null,"AC","SU",202239.05,"2021-05-17T09:08:29","2022-08-30","PMO - FECC",1050000,0,0,105934.75,96304.3,0,0,0,0,0,0,105934.75,{"$f":"SUM(Q96:Z96)","v":202239.05}]
[73,"Implantation d'une unité de traitement d'air efficace","Agropod Limitée","Final","Implantation","Industrie",null,"16-Montérégie",null,"AC","SU",1771200,"2021-05-18T10:48:19","2023-01-24","PMO - FECC",3456000,0,0,1328400,442800,0,0,0,0,0,0,{"$f":"SUM(Q97:S97)","v":1328400},1771200]
[74,"Construction d'une nouvelle usine pour les produits pour la peau à base de lait de chèvre","Bopack inc.","Final","Implantation","Industrie",null,"17-Centre-du-Québec",null,"AC","SU",54350,"2022-02-18T12:59:04","2023-02-01","PMO - FECC",1399375,0,0,0,54350,0,0,0,0,0,0,0,{"$f":"SUM(Q98:Z98)","v":54350}]
[75,"Conversion électrique de chariots élévateurs","Boa-Franc, S.E.N.C.","Final","Implantation","Industrie",null,"12-Chaudière-Appalaches",null,"AC","SU",117115.79000000001,"2021-09-13T13:42:40","2024-11-07","PMO - FECC",843068,0,0,0,61346.36,0,55769.43,0,0,0,0,{"$f":"SUM(Q99:S99)","v":0},117115.79000000001]
[76,"Remplacement de chariots élévateurs","Boa-Franc, S.E.N.C.","Final","Implantation","Industrie",null,"12-Chaudière-Appalaches",null,"AC","SU",158272.82,"2021-09-23T11:30:40","2024-11-07","PMO - FECC",750116,0,0,45220.800000000003,37684,0,75368.02,0,0,0,0,45220.800000000003,{"$f":"SUM(Q100:Z100)","v":158272.82}]
[77,"Mur solaire","Boa-Franc, S.E.N.C.","Final","Implantation","Industrie",null,"12-Chaudière-Appalaches",null,"AC","SU",53448,"2021-10-08T14:08:15","2023-03-31","PMO - FECC",150000,0,0,40086,13362,0,0,0,0,0,0,{"$f":"SUM(Q101:S101)","v":40086},53448]
[78,"Mur solaire","Soprema inc.","Final","Implantation","Industrie",null,"17-Centre-du-Québec",null,"AC","SU",12449,"2021-08-11T13:48:26","2022-03-31","PMO - FECC",86700,0,0,12449,0,0,0,0,0,0,0,12449,{"$f":"SUM(Q102:Z102)","v":12449}]
[79,"Construction d'une usine de cannabis","Ono Cannabis inc.","Final","Implantation","Industrie",null,"12-Chaudière-Appalaches",null,"AC","SU",887251.34000000008,"2021-07-06T15:02:35","2024-04-01","PMO - FECC",2282500,0,0,464750.7,0,211250.32,211250.32,0,0,0,0,{"$f":"SUM(Q103:S103)","v":464750.7},887251.34000000008]
[80,"Mur solaire","Soprema inc.","Final","Implantation","Industrie",null,"14-Lanaudière",null,"AC","SU",31192.559999999998,"2021-06-14T10:37:34","2022-04-30","PMO - FECC",75800,0,0,23765.759999999998,7426.8,0,0,0,0,0,0,23765.759999999998,{"$f":"SUM(Q104:Z104)","v":31192.559999999998}]
[81,"Réduction des GES par la technique de l'osmose inverse","Fromagerie Boivin","Final","Implantation","Industrie",null,"02-Saguenay--Lac-Saint-Jean",null,"AC","SU",604273.25,"2021-07-12T08:48:04","2022-10-01","PMO - FECC",1151031,0,0,453204.93,151068.32,0,0,0,0,0,0,{"$f":"SUM(Q105:S105)","v":453204.93},604273.25]
[82,"Ajout d'échangeurs de chaleur dans des bâtiments d'élevage de volailles","Ferme Avicole MGF inc.","Final","Implantation","Industrie",null,"16-Montérégie",null,"AC","SU",184145.84,"2021-05-17T09:37:42","2023-07-30","PMO - FECC",269819,0,0,140301.6,0,43844.24,0,0,0,0,0,140301.6,{"$f":"SUM(Q106:Z106)","v":184145.84}]
[83,"Alimentation de l'usine en vapeur à faibles émissions de GES - Projet révisé","Produits Kruger Sherbrooke Inc.","Final","Implantation","Industrie",null,"05-Estrie",null,"AC","SU",5000000,"2021-08-13T15:26:26","2023-01-31","PMO - FECC",7242710,0,0,1250000,3750000,0,0,0,0,0,0,{"$f":"SUM(Q107:S107)","v":1250000},5000000]
[84,"Économie d'énergie","ABB Électrification Canada SRI","Final","Implantation","Industrie",null,"06-Montréal",null,"AC","SU",379443.31,"2021-05-17T09:33:24","2022-06-01","PMO - FECC",566000,0,0,286270.17,93173.14,0,0,0,0,0,0,286270.17,{"$f":"SUM(Q108:Z108)","v":379443.31}]
[85,"Alimentation au procédé et cascade","ABB Électrification Canada SRI","Final","Implantation","Industrie",null,"06-Montréal",null,"AC","SU",97459.579999999987,"2021-12-13T08:42:14","2022-10-01","PMO - FECC",152500,0,0,24364.9,73094.679999999993,0,0,0,0,0,0,{"$f":"SUM(Q109:S109)","v":24364.9},97459.579999999987]
[86,"Ajout d'échangeurs de chaleur dans des bâtiments d'élevage de volailles","Les Élevages Avico inc.","Final","Implantation","Industrie",null,"16-Montérégie",null,"AC","SU",114267.07,"2021-05-17T09:49:19","2023-07-30","PMO - FECC",179610,0,0,87060.61,0,27206.46,0,0,0,0,0,87060.61,{"$f":"SUM(Q110:Z110)","v":114267.07}]
[87,"Ajout d'échangeurs de chaleur dans des bâtiments d'élevage de volailles","Ferme Gilles Brodeur inc.","Final","Implantation","Industrie",null,"05-Estrie",null,"AC","SU",189318.26,"2021-06-11T11:49:00","2024-04-01","PMO - FECC",288064,0,0,47329.56,94659.12,0,47329.58,0,0,0,0,{"$f":"SUM(Q111:S111)","v":47329.56},189318.26]
[88,"Remplacement d'une génératrice au diesel pour la production de granulats par une entrée électrique","Pavage Sartigan ltée","Final","Implantation","Industrie",null,"12-Chaudière-Appalaches",null,"AC","SU",514310.84,"2021-06-11T10:19:14","2022-12-15","PMO - FECC",867182,0,0,257155.42,257155.42,0,0,0,0,0,0,257155.42,{"$f":"SUM(Q112:Z112)","v":514310.84}]
[89,"Conversion électrique des systèmes de pompage (diesel) pour l'irrigation des petits fruits","Les Fraises de l'Île d'Orléans inc.","Final","Implantation","Industrie",null,"03-Capitale-Nationale",null,"AC","SU",17878.690000000002,"2021-06-14T10:35:11","2022-11-25","PMO - FECC",50351,0,0,13409.01,4469.68,0,0,0,0,0,0,{"$f":"SUM(Q113:S113)","v":13409.01},17878.690000000002]
[90,"Acériculture-Évaporateur électrique","Érablière Mont Yamaska 2009 inc.","Final","Implantation","Industrie",null,"16-Montérégie",null,"AC","SU",67299.72,"2021-03-03T13:10:25","2022-02-28","PMO - FECC",120182,0,0,67299.72,0,0,0,0,0,0,0,67299.72,{"$f":"SUM(Q114:Z114)","v":67299.72}]
[91,"Serre agricole de culture mixte – Efficacité énergétique - Écrans thermiques","Maurice Bélanger paysagiste inc.","Final","Implantation","Industrie",null,"01-Bas-Saint-Laurent",null,"AC","SU",17954.22,"2021-07-22T09:38:50","2023-01-10","PMO - FECC",43688,0,0,13465.68,4488.54,0,0,0,0,0,0,{"$f":"SUM(Q115:S115)","v":13465.68},17954.22]
[92,"Mur solaire","Acier Rayco (2016) inc.","Final","Implantation","Industrie",null,"04-Mauricie",null,"AC","SU",16609.18,"2021-08-11T13:58:24","2022-05-31","PMO - FECC",35700,0,0,12456.9,4152.28,0,0,0,0,0,0,12456.9,{"$f":"SUM(Q116:Z116)","v":16609.18}]
[93,"Serre-Conversion chauffage-CII- électrique","La Boîte à Légumes Inc.","Final","Implantation","Industrie",null,"05-Estrie",null,"AC","SU",53010,"2021-05-27T12:34:23","2022-06-01","PMO - FECC",70680,0,0,0,53010,0,0,0,0,0,0,{"$f":"SUM(Q117:S117)","v":0},53010]
[94,"Installation d'un Flu-Ace et de trappes à vapeur Venturi","Société en commandite Stadacona WB","Final","Implantation","Industrie",null,"03-Capitale-Nationale",null,"AC","SU",3700585.55,"2021-05-26T09:33:57","2022-12-01","PMO - FECC",7076525,0,0,1850292.78,1850292.77,0,0,0,0,0,0,1850292.78,{"$f":"SUM(Q118:Z118)","v":3700585.55}]
[95,"Optimisation du réseau de vapeur et remplacement de la turbine à vapeur","Société en commandite Stadacona WB","Final","Implantation","Industrie",null,"03-Capitale-Nationale",null,"AC","SU",905941,"2021-06-11T11:57:59","2023-12-31","PMO - FECC",1689602,0,0,226485.25,452970.5,226485.25,0,0,0,0,0,{"$f":"SUM(Q119:S119)","v":226485.25},905941]
[96,"Économie d'énergie","Manac inc.","Final","Implantation","Industrie",null,"12-Chaudière-Appalaches",null,"AC","SU",285344.63,"2022-02-07T11:34:25","2022-05-28","PMO - FECC",460000,0,0,142672.32000000001,142672.31,0,0,0,0,0,0,142672.32000000001,{"$f":"SUM(Q120:Z120)","v":285344.63}]
[97,"Économie d'énergie","Manac inc.","Final","Implantation","Industrie",null,"12-Chaudière-Appalaches",null,"AC","SU",291880.49,"2021-12-20T10:38:35","2023-05-31","PMO - FECC",529000,0,0,145940.24,72970.12,72970.13,0,0,0,0,0,{"$f":"SUM(Q121:S121)","v":145940.24},291880.49]
[98,"Serre-Conversion chauffage-CII- électrique","Ferme Cabru inc.","Final","Implantation","Industrie",null,"16-Montérégie",null,"AC","SU",51212.91,"2021-04-12T10:32:03","2022-05-02","PMO - FECC",71976,0,0,0,51212.91,0,0,0,0,0,0,0,{"$f":"SUM(Q122:Z122)","v":51212.91}]
[99,"Construction Agropod Verchères","Agropod Services inc.","Final","Implantation","Industrie",null,"16-Montérégie",null,"AC","SU",1913913,"2021-11-10T08:24:51","2023-07-03","PMO - FECC",3030000,0,0,956956.5,478478.25,478478.25,0,0,0,0,0,{"$f":"SUM(Q123:S123)","v":956956.5},1913913]
[100,"Conversion du chauffage à la géothermie","Les Jardins de l'Écoumène inc.","Final","Implantation","Industrie",null,"14-Lanaudière",null,"AC","SU",28821.39,"2022-01-17T10:43:22","2022-07-01","PMO - FECC",343089,0,0,21616.05,7205.34,0,0,0,0,0,0,21616.05,{"$f":"SUM(Q124:Z124)","v":28821.39}]
[101,"Chauffage solaire sur l'agrandissement de l'usine Matritech","Gestion immeubles Cardin inc.","Final","Implantation","Industrie",null,"17-Centre-du-Québec",null,"AC","SU",134107.39000000001,"2021-05-31T09:09:03","2022-04-30","PMO - FECC",331720,0,0,100580.55,33526.839999999997,0,0,0,0,0,0,{"$f":"SUM(Q125:S125)","v":100580.55},134107.39000000001]
[102,"Serre-Conversion chauffage-CII- électrique","La cigale et la fourmi!","Final","Implantation","Industrie",null,"11-Gaspésie--Îles-de-la-Madeleine",null,"AC","SU",16948.46,"2021-03-16T13:20:43","2022-12-01","PMO - FECC",22598,0,0,0,16948.46,0,0,0,0,0,0,0,{"$f":"SUM(Q126:Z126)","v":16948.46}]
[103,"Boucle de récupération de chaleur au glycol pour chauffage et préchauffage divers","9416-8382 Québec inc.","Final","Implantation","Industrie",null,"05-Estrie",null,"AC","SU",1063486.74,"2021-08-13T15:28:18","2023-06-05","PMO - FECC",2967212,0,0,0,797615.04,265871.7,0,0,0,0,0,{"$f":"SUM(Q127:S127)","v":0},1063486.74]
[104,"Remplacement de deux séchoirs à grains","Ferme du Cordon inc.","Final","Implantation","Industrie",null,"17-Centre-du-Québec",null,"AC","SU",42130.100000000006,"2021-08-31T08:56:10","2022-05-01","PMO - FECC",297790,0,0,31597.56,10532.54,0,0,0,0,0,0,31597.56,{"$f":"SUM(Q128:Z128)","v":42130.100000000006}]
[105,"Plan de séchage de grains","Ferme Maquille inc.","Final","Implantation","Industrie",null,"17-Centre-du-Québec",null,"AC","SU",92061.3,"2021-10-21T14:02:27","2022-12-15","PMO - FECC",324684,0,0,69045.960000000006,23015.34,0,0,0,0,0,0,{"$f":"SUM(Q129:S129)","v":69045.960000000006},92061.3]
[106,"Implantation de deux séchoirs fixes électriques","Normand Sioui","Final","Implantation","Industrie",null,"03-Capitale-Nationale",null,"AC","SU",688530.71,"2021-10-27T14:13:55","2022-03-22","PMO - FECC",1629000,0,0,688530.71,0,0,0,0,0,0,0,688530.71,{"$f":"SUM(Q130:Z130)","v":688530.71}]
[107,"Cannasher - Récupération de chaleur du procédé","TPC3 investissements inc.","Final","Implantation","Industrie",null,"05-Estrie",null,"AC","SU",2193140.6,"2021-11-17T11:01:34","2023-10-15","PMO - FECC",11698147,0,0,0,1644855.45,548285.15,0,0,0,0,0,{"$f":"SUM(Q131:S131)","v":0},2193140.6]
[108,"Conversion électrique des systèmes de pompage (diesel) pour l'irrigation des petits fruits","Les Fraises de l'Île d'Orléans inc.","Final","Implantation","Industrie",null,"03-Capitale-Nationale",null,"AC","SU",20326.53,"2021-06-14T10:33:31","2022-10-15","PMO - FECC",56051,0,0,15244.89,5081.6400000000003,0,0,0,0,0,0,15244.89,{"$f":"SUM(Q132:Z132)","v":20326.53}]
[109,"Ajout d'une chaudière électrique de 1250 kW pour utilisation hors-pointe","Bernard Breton inc.","Final","Implantation","Industrie",null,"12-Chaudière-Appalaches",null,"AC","SU",394770,"2022-02-24T13:14:48","2022-10-15","PMO - FECC",526360,0,0,0,394770,0,0,0,0,0,0,{"$f":"SUM(Q133:S133)","v":0},394770]
[110,"Construction d'un complexe de serres et implantation de mesures d’efficacité énergétique","Marie-Josée Daguerre, Louis Vaillancourt S.E.N.C.","Final","Implantation","Industrie",null,"15-Laurentides",null,"AC","SU",633125,"2022-02-16T08:13:53","2023-04-01","PMO - FECC",1163900,0,0,474843.75,0,158281.25,0,0,0,0,0,474843.75,{"$f":"SUM(Q134:Z134)","v":633125}]
[111,"Acériculture-Évaporateur électrique","Érablière Maxime Caron inc.","Final","Implantation","Industrie",null,"12-Chaudière-Appalaches",null,"AC","SU",69176.06,"2021-05-05T08:55:19","2022-06-30","PMO - FECC",122018,0,0,0,69176.06,0,0,0,0,0,0,{"$f":"SUM(Q135:S135)","v":0},69176.06]
[112,"Remplacement du brûleur Hauck","Les Pavages des Monts","Final","Implantation","Industrie",null,"01-Bas-Saint-Laurent",null,"AC","SU",58557.69,"2021-07-22T09:02:55","2021-07-01","PMO - FECC",93000,0,0,58557.69,0,0,0,0,0,0,0,58557.69,{"$f":"SUM(Q136:Z136)","v":58557.69}]
[113,"Installation d'un nouveau séchoir à grains","R.S. Jeanson & Fils inc.","Final","Implantation","Industrie",null,"16-Montérégie",null,"AC","SU",109195.08,"2021-07-22T13:51:10","2024-07-15","PMO - FECC",493335,0,0,81896.31,0,0,27298.77,0,0,0,0,{"$f":"SUM(Q137:S137)","v":81896.31},109195.08]
[114,"Remplacement du préchauffeur no 3","La Cie matériaux de construction BP Canada","Final","Implantation","Industrie",null,"06-Montréal",null,"AC","SU",525889,"2021-06-11T09:05:28","2022-12-31","PMO - FECC",1461700,0,0,131472.25,394416.75,0,0,0,0,0,0,131472.25,{"$f":"SUM(Q138:Z138)","v":525889}]
[115,"Installation d'un séchoir à grains","Ferme L.A.B.D. inc.","Final","Implantation","Industrie",null,"12-Chaudière-Appalaches",null,"AC","SU",32917.22,"2021-07-22T09:40:59","2023-09-01","PMO - FECC",143960,0,0,0,24687.9,8229.32,0,0,0,0,0,{"$f":"SUM(Q139:S139)","v":0},32917.22]
[116,"Implantation de deux séchoirs électriques","Arbec, Bois d'œuvre inc.","Final","Implantation","Industrie",null,"04-Mauricie",null,"AC","SU",3663000,"2021-07-22T09:45:02","2022-08-01","PMO - FECC",7184000,0,0,2747250,915750,0,0,0,0,0,0,2747250,{"$f":"SUM(Q140:Z140)","v":3663000}]
[117,"Serre-Conversion chauffage-CII- électrique","Ferme la Bourrasque","Final","Implantation","Industrie",null,"16-Montérégie",null,"AC","SU",56550,"2021-06-15T13:16:23","2022-12-31","PMO - FECC",75400,0,0,0,56550,0,0,0,0,0,0,{"$f":"SUM(Q141:S141)","v":0},56550]
[118,"Serre-Conversion chauffage-CII- électrique","Ferme la Bourrasque","Final","Implantation","Industrie",null,"16-Montérégie",null,"AC","SU",52200,"2021-06-15T13:09:19","2022-12-31","PMO - FECC",69600,0,0,0,52200,0,0,0,0,0,0,0,{"$f":"SUM(Q142:Z142)","v":52200}]
[119,"Récupération de chaleur avec thermopompe pour le chauffage de l'eau de procédé","Spécialités Lassonde inc.","Final","Implantation","Industrie",null,"16-Montérégie",null,"AC","SU",534465.01,"2021-09-03T08:54:21","2022-10-30","PMO - FECC",868333,0,0,133616.25,400848.76,0,0,0,0,0,0,{"$f":"SUM(Q143:S143)","v":133616.25},534465.01]
[120,"Ajout d'échangeurs de chaleur dans des bâtiments d'élevage de volailles","Ferme Daniel Brodeur (1981) inc.","Final","Implantation","Industrie",null,"05-Estrie",null,"AC","SU",158612.41999999998,"2021-09-13T14:27:19","2023-10-15","PMO - FECC",264442,0,0,118659.33,0,39953.089999999997,0,0,0,0,0,118659.33,{"$f":"SUM(Q144:Z144)","v":158612.41999999998}]
[121,"Implantation d'un séchoir électrique","Produits Forestiers Petit-Paris inc.","Final","Implantation","Industrie",null,"02-Saguenay--Lac-Saint-Jean",null,"AC","SU",1476512.97,"2021-09-13T13:31:58","2021-10-31","PMO - FECC",3127780,0,0,1476512.97,0,0,0,0,0,0,0,{"$f":"SUM(Q145:S145)","v":1476512.97},1476512.97]
[122,"Implantation d'un chauffage électrique","Produits Forestiers Petit-Paris inc.","Final","Implantation","Industrie",null,"02-Saguenay--Lac-Saint-Jean",null,"AC","SU",120415.88,"2021-09-03T09:01:02","2022-05-01","PMO - FECC",285409,0,0,90311.91,30103.97,0,0,0,0,0,0,90311.91,{"$f":"SUM(Q146:Z146)","v":120415.88}]
[123,"Nouvelle usine de filtration des résidus - Mine LaRonde","Mines Agnico Eagle limitée","Final","Implantation","Industrie",null,"08-Abitibi-Témiscamingue",null,"AC","SU",139000,"2021-09-13T14:30:54","2023-04-01","PMO - FECC",578200,0,0,0,104250,34750,0,0,0,0,0,{"$f":"SUM(Q147:S147)","v":0},139000]
[124,"Électrification d'une cannebergière","Canneberges Dénitoine","Final","Implantation","Industrie",null,"17-Centre-du-Québec",null,"AC","SU",551662.41999999993,"2021-06-11T09:22:10","2022-12-31","PMO - FECC",894870,0,0,275831.21999999997,275831.2,0,0,0,0,0,0,275831.21999999997,{"$f":"SUM(Q148:Z148)","v":551662.41999999993}]
[125,"Serre agricole de culture ornementale – Efficacité énergétique","Les Serres Jacques Barbe inc.","Final","Implantation","Industrie",null,"15-Laurentides",null,"AC","SU",350534.99,"2021-09-13T14:04:55","2023-01-15","PMO - FECC",696799,0,0,175267.5,175267.49,0,0,0,0,0,0,{"$f":"SUM(Q149:S149)","v":175267.5},350534.99]
[126,"Acériculture-Évaporateur électrique","Érablière SFKL S.E.N.C.","Final","Implantation","Industrie",null,"12-Chaudière-Appalaches",null,"AC","SU",17074.32,"2021-04-29T16:10:19","2021-12-15","PMO - FECC",70891,0,0,17074.32,0,0,0,0,0,0,0,17074.32,{"$f":"SUM(Q150:Z150)","v":17074.32}]
[127,"Acériculture-Évaporateur électrique","Érablière Léonard (2017) inc.","Final","Implantation","Industrie",null,"15-Laurentides",null,"AC","SU",54857,"2021-05-05T09:07:34","2021-12-31","PMO - FECC",107967,0,0,54857,0,0,0,0,0,0,0,{"$f":"SUM(Q151:S151)","v":54857},54857]
[128,"Électrification des séchoirs à bois","Arbec, Bois d'œuvre inc.","Final","Implantation","Industrie",null,"02-Saguenay--Lac-Saint-Jean",null,"AC","SU",2013436.5799999998,"2021-07-22T09:48:43","2022-09-01","PMO - FECC",3956000,0,0,1510077.42,503359.16,0,0,0,0,0,0,1510077.42,{"$f":"SUM(Q152:Z152)","v":2013436.5799999998}]
[129,"Installation d’un échangeur pour la ventilation de l'usine","Robert Bernard (TRM) ltée","Final","Implantation","Industrie",null,"05-Estrie",null,"AC","SU",452593.69,"2021-12-20T10:42:19","2023-02-01","PMO - FECC",888000,0,0,113148.42,339445.27,0,0,0,0,0,0,{"$f":"SUM(Q153:S153)","v":113148.42},452593.69]
[130,"Une ligne électrique pour éviter l'utilisation d'une génératrice à l'Érablière Dany Michaud","Dany Michaud","Final","Implantation","Industrie",null,"01-Bas-Saint-Laurent",null,"AC","SU",11709.42,"2022-01-17T10:52:08","2022-06-01","PMO - FECC",36450,0,0,8782.08,2927.34,0,0,0,0,0,0,8782.08,{"$f":"SUM(Q154:Z154)","v":11709.42}]
[131,"Conversion du pompage diesel vers l'électricité","Gazonnière Alexander inc.","Final","Implantation","Industrie",null,"14-Lanaudière",null,"AC","SU",85169.66,"2022-02-28T08:34:39","2023-11-01","PMO - FECC",126914,0,0,21292.42,42584.84,21292.400000000001,0,0,0,0,0,{"$f":"SUM(Q155:S155)","v":21292.42},85169.66]
[132,"Isocanmed – Récupération de chaleur du procédé","Isocanmed inc.","Final","Implantation","Industrie",null,"04-Mauricie",null,"AC","SU",1907106.75,"2021-12-13T08:34:14","2023-09-19","PMO - FECC",3685000,0,0,476776.69,953553.38,476776.68,0,0,0,0,0,476776.69,{"$f":"SUM(Q156:Z156)","v":1907106.75}]
[133,"Phase 3 - Projet d’agrandissement et d’efficacité énergétique","Les Serres Coulombe inc.","Final","Implantation","Industrie",null,"14-Lanaudière",null,"AC","SU",161754.82,"2021-12-13T08:44:30","2023-03-31","PMO - FECC",361915,0,0,121316.1,40438.720000000001,0,0,0,0,0,0,{"$f":"SUM(Q157:S157)","v":121316.1},161754.82]
[134,"Phase 4 - Projet d’agrandissement et d’efficacité énergétique","12809672 Canada inc.","Final","Implantation","Industrie",null,"14-Lanaudière",null,"AC","SU",283880.74,"2021-12-01T13:59:42","2023-03-31","PMO - FECC",708550,0,0,212910.54,70970.2,0,0,0,0,0,0,212910.54,{"$f":"SUM(Q158:Z158)","v":283880.74}]
[135,"Acériculture-Évaporateur électrique","9274-6544 Québec inc.","Final","Implantation","Industrie",null,"01-Bas-Saint-Laurent",null,"AC","SU",100000,"2021-05-04T18:09:01","2022-06-30","PMO - FECC",159027,0,0,0,100000,0,0,0,0,0,0,{"$f":"SUM(Q159:S159)","v":0},100000]
[136,"Beaulieu Canada - Nouvelle centrale thermique","Beaulieu Canada","Final","Implantation","Industrie",null,"16-Montérégie",null,"AC","SU",1587139.6,"2021-08-13T15:22:10","2022-11-01","PMO - FECC",2161944,0,0,1190354.7,396784.9,0,0,0,0,0,0,1190354.7,{"$f":"SUM(Q160:Z160)","v":1587139.6}]
[137,"Acériculture-Évaporateur électrique","La Coulée LRP","Final","Implantation","Industrie",null,"05-Estrie",null,"AC","SU",100000,"2021-06-02T12:33:38","2022-11-01","PMO - FECC",173651,0,0,0,100000,0,0,0,0,0,0,{"$f":"SUM(Q161:S161)","v":0},100000]
[138,"Construction d'une ligne électrique aérienne au champ 2326","Cultures H. Dolbec inc.","Final","Implantation","Industrie",null,"03-Capitale-Nationale",null,"AC","SU",111261.97,"2021-07-22T13:11:21","2022-10-31","PMO - FECC",182076,0,0,27815.49,83446.48,0,0,0,0,0,0,27815.49,{"$f":"SUM(Q162:Z162)","v":111261.97}]
[139,"Conversion de la bouilloire au gaz naturel","Béton Provincial Div. Granby ltée","Final","Implantation","Industrie",null,"05-Estrie",null,"AC","SU",24995.55,"2022-01-10T08:26:54","2022-04-01","PMO - FECC",51345,0,0,18746.669999999998,6248.88,0,0,0,0,0,0,{"$f":"SUM(Q163:S163)","v":18746.669999999998},24995.55]
[140,"Ajout d'échangeurs de chaleur dans des bâtiments d'élevage de volailles","Ferme Handschin inc.","Final","Implantation","Industrie",null,"16-Montérégie",null,"AC","SU",105935.6,"2021-10-13T10:51:28","2023-12-15","PMO - FECC",149002,0,0,26483.9,52967.8,26483.9,0,0,0,0,0,26483.9,{"$f":"SUM(Q164:Z164)","v":105935.6}]
[141,"Optimisation énergétique des presses","Formica Canada inc.","Final","Implantation","Industrie",null,"16-Montérégie",null,"AC","SU",749311.68,"2021-07-21T10:47:50","2023-03-31","PMO - FECC",1750000,0,0,187327.92,561983.76,0,0,0,0,0,0,{"$f":"SUM(Q165:S165)","v":187327.92},749311.68]
[142,"Chauffage de l'accumulateur par récupération de l'énergie dans l'évacuation du traiteur 5","Formica Canada inc.","Final","Implantation","Industrie",null,"16-Montérégie",null,"AC","SU",371210.76,"2021-06-30T09:36:58","2022-12-01","PMO - FECC",1008000,0,0,185605.38,185605.38,0,0,0,0,0,0,185605.38,{"$f":"SUM(Q166:Z166)","v":371210.76}]
[143,"Chauffage de l'accumulateur par récupération de l'énergie des fumées des chaudières","Formica Canada inc.","Final","Implantation","Industrie",null,"16-Montérégie",null,"AC","SU",224155.53999999998,"2021-10-26T14:09:42","2023-12-01","PMO - FECC",706000,0,0,0,112077.75999999999,112077.78,0,0,0,0,0,{"$f":"SUM(Q167:S167)","v":0},224155.53999999998]
[144,"Récupération de l'énergie dans l'évacuation du traiteur 6","Formica Canada inc.","Final","Implantation","Industrie",null,"16-Montérégie",null,"AC","SU",351308.66,"2021-10-26T14:12:03","2023-06-01","PMO - FECC",985500,0,0,0,263481.48,87827.18,0,0,0,0,0,0,{"$f":"SUM(Q168:Z168)","v":351308.66}]
[145,"Implantation - Projet d'amélioration de l'efficacité des réseaux de chauffage (Site Expo)","Canadian Royalties inc.","Final","Implantation","Industrie",null,"06-Montréal",null,"AC","SU",468660.12,"2021-07-22T13:02:09","2022-11-01","PMO - FECC",1810615,0,0,0,468660.12,0,0,0,0,0,0,{"$f":"SUM(Q169:S169)","v":0},468660.12]
[146,"Chauffage de la ventilation du garage H1","Canadian Royalties inc.","Final","Implantation","Industrie",null,"06-Montréal",null,"AC","SU",147512.26,"2021-08-13T13:55:46","2023-03-01","PMO - FECC",384240,0,0,110634.18,36878.080000000002,0,0,0,0,0,0,110634.18,{"$f":"SUM(Q170:Z170)","v":147512.26}]
[147,"Serre agricole de tomates - Efficacité énergétique","TOMATÉ! Inc.","Final","Implantation","Industrie",null,"16-Montérégie",null,"AC","SU",349278.59,"2021-11-02T10:59:41","2023-09-30","PMO - FECC",749585,0,0,0,261958.95,87319.64,0,0,0,0,0,{"$f":"SUM(Q171:S171)","v":0},349278.59]
[148,"Acériculture-Évaporateur électrique","Érablière Nadeau & Fils inc.","Final","Implantation","Industrie",null,"12-Chaudière-Appalaches",null,"AC","SU",52541.53,"2021-06-23T14:22:06","2022-07-30","PMO - FECC",105695,0,0,0,52541.53,0,0,0,0,0,0,0,{"$f":"SUM(Q172:Z172)","v":52541.53}]
[149,"Nouveau AMU et échangeur de chaleur pour l'apport d'air frais","Ani-Mat inc.","Final","Implantation","Industrie",null,"05-Estrie",null,"AC","SU",312375,"2021-09-13T14:11:11","2022-12-01","PMO - FECC",596470,0,0,156187.5,156187.5,0,0,0,0,0,0,{"$f":"SUM(Q173:S173)","v":156187.5},312375]
[150,"Installation d’un échangeur de chaleur de 30 000 CFM pour la ventilation du secteur maturation","Domfoam inc.","Final","Implantation","Industrie",null,"06-Montréal",null,"AC","SU",604008.52,"2021-09-03T09:07:01","2022-05-31","PMO - FECC",901111,0,0,453006.39,151002.13,0,0,0,0,0,0,453006.39,{"$f":"SUM(Q174:Z174)","v":604008.52}]
[151,"Récupération de chaleur des compresseurs et du dépoussiéreur avec un nouveau contrôleur central","Elopak Canada inc.","Final","Implantation","Industrie",null,"15-Laurentides",null,"AC","SU",401195.01,"2021-07-06T14:11:14","2023-01-15","PMO - FECC",6594630,0,0,100298.75,300896.26,0,0,0,0,0,0,{"$f":"SUM(Q175:S175)","v":100298.75},401195.01]
[152,"Conversion d'un système de pompage","Ferme L.M. Drainville & Fils inc.","Final","Implantation","Industrie",null,"14-Lanaudière",null,"AC","SU",27091.52,"2021-11-26T08:30:43","2022-10-10","PMO - FECC",67250,0,0,20318.64,6772.88,0,0,0,0,0,0,20318.64,{"$f":"SUM(Q176:Z176)","v":27091.52}]
[153,"Pl5 - Conversion du chauffage des bassins par une chaudière électrique","Pratt & Whitney Canada Cie.","Final","Implantation","Industrie",null,"16-Montérégie",null,"AC","SU",1309415,"2021-08-16T08:23:10","2024-05-26","PMO - FECC",3911103,0,0,327353.75,327353.75,327353.75,327353.75,0,0,0,0,{"$f":"SUM(Q177:S177)","v":327353.75},1309415]
[154,"Chauffage solaire avec collecteur à faible émissivité","BHS Composites inc.","Final","Implantation","Industrie",null,"05-Estrie",null,"AC","SU",80072.149999999994,"2021-11-10T13:34:34","2023-03-03","PMO - FECC",200450,0,0,60054.12,20018.03,0,0,0,0,0,0,60054.12,{"$f":"SUM(Q178:Z178)","v":80072.149999999994}]
[155,"Électrification d'une cannebergière","Atocas St-Louis inc.","Final","Implantation","Industrie",null,"17-Centre-du-Québec",null,"AC","SU",469402.94,"2021-08-04T08:22:07","2024-12-31","PMO - FECC",941943,0,0,0,117350.74,117350.74,234701.46,0,0,0,0,{"$f":"SUM(Q179:S179)","v":0},469402.94]
[156,"Électrification d'une cannebergière","Atocas Blandford inc.","Final","Implantation","Industrie",null,"17-Centre-du-Québec",null,"AC","SU",306571.26,"2021-08-04T09:06:13","2024-12-31","PMO - FECC",823451,0,0,0,76642.820000000007,76642.820000000007,153285.62,0,0,0,0,0,{"$f":"SUM(Q180:Z180)","v":306571.26}]
[157,"Électrification d'une cannebergière","Les Bassins Rouges S.E.N.C.","Final","Implantation","Industrie",null,"17-Centre-du-Québec",null,"AC","SU",1004221.41,"2021-08-16T08:55:36","2024-12-31","PMO - FECC",1570483,0,0,0,251055.35,251055.35,502110.71,0,0,0,0,{"$f":"SUM(Q181:S181)","v":0},1004221.41]
[158,"Remplacement d’un séchoir à grains par un séchoir écoénergétique","Les Élévateurs D.P. inc.","Final","Implantation","Industrie",null,"16-Montérégie",null,"AC","SU",405681.8,"2021-11-29T14:44:31","2022-05-30","PMO - FECC",799250,0,0,304261.34999999998,101420.45,0,0,0,0,0,0,304261.34999999998,{"$f":"SUM(Q182:Z182)","v":405681.8}]
[159,"Remplacement des séchoirs à grains de la Ferme Porclair","Ferme Porclair S.E.N.C.","Final","Implantation","Industrie",null,"17-Centre-du-Québec",null,"AC","SU",49047.040000000001,"2022-01-10T08:31:39","2023-01-30","PMO - FECC",190194,0,0,0,49047.040000000001,0,0,0,0,0,0,{"$f":"SUM(Q183:S183)","v":0},49047.040000000001]
[160,"Projet d'efficacité énergétique","Boulangerie WF","Final","Implantation","Industrie",null,"16-Montérégie",null,"AC","SU",339639.56,"2021-10-06T14:33:02","2023-03-10","PMO - FECC",733754,0,0,0,339639.56,0,0,0,0,0,0,0,{"$f":"SUM(Q184:Z184)","v":339639.56}]
[161,"Optimisation de la centrale d’enrobés bitumineux par vis de préchauffage du GBR","P. Baillargeon ltée","Final","Implantation","Industrie",null,"16-Montérégie",null,"AC","SU",126668.49,"2021-08-04T09:21:14","2023-12-15","PMO - FECC",359000,0,0,31667.119999999999,63334.239999999998,31667.13,0,0,0,0,0,{"$f":"SUM(Q185:S185)","v":31667.119999999999},126668.49]
[162,"Serre de plants : efficacité énergétique","Ferme aux petits oignons inc.","Final","Implantation","Industrie",null,"15-Laurentides",null,"AC","SU",172271.35999999999,"2022-02-23T08:47:22","2023-10-31","PMO - FECC",274386,0,0,43067.839999999997,86135.679999999993,43067.839999999997,0,0,0,0,0,43067.839999999997,{"$f":"SUM(Q186:Z186)","v":172271.35999999999}]
[163,"Optimisation des fours de trempe","Les Traitements d'acier S.T. inc.","Final","Implantation","Industrie",null,"04-Mauricie",null,"AC","SU",338823.19,"2021-10-06T14:54:23","2023-03-01","PMO - FECC",700000,0,0,0,338823.19,0,0,0,0,0,0,{"$f":"SUM(Q187:S187)","v":0},338823.19]
[164,"Conversion au gaz naturel","Produits Hevea inc.","Final","Implantation","Industrie",null,"05-Estrie",null,"AC","SU",132741.16,"2022-03-08T09:03:06","2022-12-31","PMO - FECC",315500,0,0,66370.58,66370.58,0,0,0,0,0,0,66370.58,{"$f":"SUM(Q188:Z188)","v":132741.16}]
[165,"Mur solaire et rideaux d'air","Emballages Mitchel-Lincoln ltée","Final","Implantation","Industrie",null,"16-Montérégie",null,"AC","SU",96340.99,"2022-02-16T08:17:47","2023-10-03","PMO - FECC",341750,0,0,48170.5,24085.25,24085.24,0,0,0,0,0,{"$f":"SUM(Q189:S189)","v":48170.5},96340.99]
[166,"Construction d’une ligne électrique","Érablière des Sept Lacs inc.","Final","Implantation","Industrie",null,"01-Bas-Saint-Laurent",null,"AC","SU",24852.33,"2022-01-17T10:48:23","2022-06-01","PMO - FECC",53740,0,0,18639.240000000002,6213.09,0,0,0,0,0,0,18639.240000000002,{"$f":"SUM(Q190:Z190)","v":24852.33}]
[167,"Intégration de thermopompe","Laboratoires Abbott Cie","Final","Implantation","Industrie",null,"17-Centre-du-Québec",null,"AC","SU",1240419.3600000001,"2021-12-13T08:24:49","2022-07-15","PMO - FECC",2176515,0,0,620209.68000000005,620209.68000000005,0,0,0,0,0,0,{"$f":"SUM(Q191:S191)","v":620209.68000000005},1240419.3600000001]
[168,"ESA-3000 : réduction des émissions de GES dans le poulailler de Ferme Sylvain Proulx inc.","Ferme Sylvain Proulx inc.","Final","Implantation","Industrie",null,"16-Montérégie",null,"AC","SU",38073.19,"2022-01-17T10:50:30","2023-06-01","PMO - FECC",54690,0,0,0,28554.9,9518.2900000000009,0,0,0,0,0,0,{"$f":"SUM(Q192:Z192)","v":38073.19}]
[169,"ESA-3000 : réduction des émissions de GES dans le poulailler De la comté SENC","De La Comté s.e.n.c.","Final","Implantation","Industrie",null,"05-Estrie",null,"AC","SU",59088.57,"2022-02-03T15:03:37","2023-05-01","PMO - FECC",84229,0,0,14772.14,29544.28,14772.15,0,0,0,0,0,{"$f":"SUM(Q193:S193)","v":14772.14},59088.57]
[170,"Projet LPI","Chimie ParaChem S.E.C.","Final","Implantation","Industrie",null,"06-Montréal",null,"AC","SU",5000000,"2021-09-15T08:28:54","2024-07-01","PMO - FECC",10904589,0,0,0,2500000,1250000,1250000,0,0,0,0,0,{"$f":"SUM(Q194:Z194)","v":5000000}]
[171,"Serre-Conversion chauffage-CII- électrique","Ferme Juniper (2017) inc.","Final","Implantation","Industrie",null,"07-Outaouais",null,"AC","SU",33750,"2021-07-23T15:35:57","2022-10-01","PMO - FECC",45000,0,0,0,33750,0,0,0,0,0,0,{"$f":"SUM(Q195:S195)","v":0},33750]
[172,"Implantation et électrification de nos chariots élévateurs","Métal Bernard inc.","Final","Implantation","Industrie",null,"12-Chaudière-Appalaches",null,"AC","SU",69382.89,"00:00:00","2022-05-15","PMO - FECC",248601,0,0,52037.16,17345.73,0,0,0,0,0,0,52037.16,{"$f":"SUM(Q196:Z196)","v":69382.89}]
[173,"Construction d'un bâtiment d'élevage avec échangeurs de chaleur","Ferme Porc Saint SENC","Final","Implantation","Industrie",null,"05-Estrie",null,"AC","SU",45809.97,"2021-10-21T14:08:03","2024-02-01","PMO - FECC",89586,0,0,34357.47,0,11452.5,0,0,0,0,0,{"$f":"SUM(Q197:S197)","v":34357.47},45809.97]
[174,"Conversion d'un système de pompage","Gosselin G2 inc.","Final","Implantation","Industrie",null,"14-Lanaudière",null,"AC","SU",38062.5,"2022-02-03T15:05:29","2022-10-01","PMO - FECC",50750,0,0,19031.240000000002,19031.259999999998,0,0,0,0,0,0,19031.240000000002,{"$f":"SUM(Q198:Z198)","v":38062.5}]
[175,"Optimisation de la centrale d’enrobés bitumineux par vis de préchauffage du GBR","Usine d'asphalte Ali inc.","Final","Implantation","Industrie",null,"16-Montérégie",null,"AC","SU",322835.14,"2021-08-31T10:45:44","2023-12-15","PMO - FECC",867000,0,0,0,161417.56,161417.57999999999,0,0,0,0,0,{"$f":"SUM(Q199:S199)","v":0},322835.14]
[176,"Ajout d'échangeurs de chaleur dans un bâtiment d'élevage de volailles","Les Fermes Meier (9032-5085 Québec inc.)","Final","Implantation","Industrie",null,"05-Estrie",null,"AC","SU",55545.87,"2022-01-20T15:04:54","2024-03-01","PMO - FECC",86750,0,0,41659.410000000003,0,13886.46,0,0,0,0,0,41659.410000000003,{"$f":"SUM(Q200:Z200)","v":55545.87}]
[177,"Installation d'une nouvelle chaudière à vapeur","Soylutions inc.","Final","Implantation","Industrie",null,"03-Capitale-Nationale",null,"AC","SU",185978.67,"2021-09-13","2023-08-31","PMO - FECC",377950,0,0,92989.34,46494.67,46494.66,0,0,0,0,0,{"$f":"SUM(Q201:S201)","v":92989.34},185978.67]
[178,"Projet d'économie d'énergie de Montréal Chrome","Placage au chrome de Montréal inc.","Final","Implantation","Industrie",null,"06-Montréal",null,"AC","SU",261544.56,"2021-12-20T10:40:17","2023-12-31","PMO - FECC",564585,0,0,0,196158.42,65386.14,0,0,0,0,0,0,{"$f":"SUM(Q202:Z202)","v":261544.56}]
[179,"« SCORE » - Saumure et Chaufferie : optimisation des ressources énergétiques","Axiall Canada, Inc.","Final","Implantation","Industrie",null,"16-Montérégie",null,"AC","SU",388613.61999999994,"2021-09-20T09:21:50","2023-12-15","PMO - FECC",1015000,0,0,97153.4,194306.8,97153.42,0,0,0,0,0,{"$f":"SUM(Q203:S203)","v":97153.4},388613.61999999994]
[180,"Infasco - Projet écoénergétique","Ifastgroupe 2004 L.P. agissant par son commanditaire Heico 2004 Member Inc.","Final","Implantation","Industrie",null,"16-Montérégie",null,"AC","SU",2118861.8899999997,"2021-10-26T14:19:10","2023-12-31","PMO - FECC",6324313,0,0,529715.47,1059430.94,529715.48,0,0,0,0,0,529715.47,{"$f":"SUM(Q204:Z204)","v":2118861.8899999997}]
[181,"Sivaco - Projet écoénergétique","Sivaco Wire Group 2004 L.P. agissant par son commenditaire Heico 2004 Member, inc.","Final","Implantation","Industrie",null,"16-Montérégie",null,"AC","SU",2228147.9699999997,"2021-12-08T13:51:42","2024-12-31","PMO - FECC",5877947,0,0,0,557036.99,1114073.98,557037,0,0,0,0,{"$f":"SUM(Q205:S205)","v":0},2228147.9699999997]
[182,"Installation d'échangeurs de chaleur dans un bâtiment d'élevage de volailles","Ferme N.C. Trottier inc.","Final","Implantation","Industrie",null,"17-Centre-du-Québec",null,"AC","SU",72879.27,"2022-02-03T15:07:15","2023-10-01","PMO - FECC",135596,0,0,18219.82,36439.64,18219.810000000001,0,0,0,0,0,18219.82,{"$f":"SUM(Q206:Z206)","v":72879.27}]
[183,"Conversion de la chaudière au mazout no 2 vers l'électricité","La Meunerie St-Patrice inc.","Final","Implantation","Industrie",null,"12-Chaudière-Appalaches",null,"AC","SU",775042.5,"2021-11-17T10:59:58","2023-01-10","PMO - FECC",1033390,0,0,193760.62,581281.88,0,0,0,0,0,0,{"$f":"SUM(Q207:S207)","v":193760.62},775042.5]
[184,"Chauffage de l’air du bâtiment par récupération de chaleur","Magotteaux ltée","Final","Implantation","Industrie",null,"05-Estrie",null,"AC","SU",1075950,"2021-10-07T15:44:39","2023-01-01","PMO - FECC",1474600,0,0,268987.5,806962.5,0,0,0,0,0,0,268987.5,{"$f":"SUM(Q208:Z208)","v":1075950}]
[185,"Installation de deux tamiseurs Triple-deck pour faire une ségrégation du lit de boulettes","ArcelorMittal Exploitation Minière Canada s.e.n.c.","Final","Implantation","Industrie",null,"09-Côte-Nord",null,"AC","SU",5000000,"2021-11-02T11:13:02","2023-12-31","PMO - FECC",7269226,0,0,0,2500000,2500000,0,0,0,0,0,{"$f":"SUM(Q209:S209)","v":0},5000000]
[186,"Arboria","Association Forestière de Lanaudière","Final","Implantation","Industrie",null,"14-Lanaudière",null,"AC","SU",19201.43,"2021-11-10T13:36:28","2023-05-31","PMO - FECC",34000,0,0,9600.7199999999993,4800.3599999999997,4800.3500000000004,0,0,0,0,0,9600.7199999999993,{"$f":"SUM(Q210:Z210)","v":19201.43}]
[187,"Mur solaire, récupération de chaleur de compresseur et rideaux d'air","Boccam inc.","Final","Implantation","Industrie",null,"12-Chaudière-Appalaches",null,"AC","SU",87706.81,"2022-02-28T08:28:33","2023-03-31","PMO - FECC",251100,0,0,43853.4,43853.41,0,0,0,0,0,0,{"$f":"SUM(Q211:S211)","v":43853.4},87706.81]
[188,"Conversion du système de chauffage à combustibles fossiles par de la géothermie","GM Modulaire (9419-4289 Québec inc.)","Final","Implantation","Industrie",null,"04-Mauricie",null,"AC","SU",84399.75,"2022-02-16T13:24:48","2023-03-15","PMO - FECC",283033,0,0,42199.88,42199.87,0,0,0,0,0,0,42199.88,{"$f":"SUM(Q212:Z212)","v":84399.75}]
[189,"Installation d'un séchoir à grains","Agri-Bienco inc.","Final","Implantation","Industrie",null,"05-Estrie",null,"AC","SU",74638.14,"2022-02-28T08:38:09","2025-06-01","PMO - FECC",353827,0,0,0,55978.62,0,0,18659.52,0,0,0,{"$f":"SUM(Q213:S213)","v":0},74638.14]
[190,"Conversion chauffage-CII- électrique","Sablière BY inc.","Final","Implantation","Industrie",null,"02-Saguenay--Lac-Saint-Jean",null,"AC","SU",13822,"2022-03-08T09:34:21","2022-07-01","PMO - FECC",18954,0,0,0,13822,0,0,0,0,0,0,0,{"$f":"SUM(Q214:Z214)","v":13822}]
[191,"Acériculture-Évaporateur électrique","Érablière A. F. Sénéchal inc.","Final","Implantation","Industrie",null,"01-Bas-Saint-Laurent",null,"AC","SU",42326.879999999997,"2020-06-16T09:36:37","2022-02-03","PMO - FECC",94003,0,0,42326.879999999997,0,0,0,0,0,0,0,{"$f":"SUM(Q215:S215)","v":42326.879999999997},42326.879999999997]
[192,"Chaudière électrique no 5","La Brasserie Labatt limitée","Final","Implantation","Industrie",null,"06-Montréal",null,"AC","SU",236465.65,"2021-10-06T14:21:29","2022-01-10","PMO - FECC",375844,0,0,236465.65,0,0,0,0,0,0,0,236465.65,{"$f":"SUM(Q216:Z216)","v":236465.65}]
[193,"Électrification et modernisation d'un procédé de concassage","Les Entreprises P. ROY Division Carrière / Concassage","Final","Implantation","Industrie",null,"15-Laurentides",null,"AC","SU",1676116.92,"2021-07-22T09:10:49","2022-11-15","PMO - FECC",5466281,0,0,1277041.47,399075.45,0,0,0,0,0,0,{"$f":"SUM(Q217:S217)","v":1277041.47},1676116.92]
[194,"Électrification du chauffage du garage","Scierie Girard inc.","Final","Implantation","Industrie",null,"02-Saguenay--Lac-Saint-Jean",null,"AC","SU",52753.21,"2021-10-08T13:53:41","2022-11-15","PMO - FECC",70338,0,0,39564.9,13188.31,0,0,0,0,0,0,39564.9,{"$f":"SUM(Q218:Z218)","v":52753.21}]
[195,"Récupération d'énergie sur le nouveau refroidisseur au CO2","La Fromagerie Polyethnique inc.","Final","Implantation","Industrie",null,"16-Montérégie",null,"AC","SU",232500,"2021-10-26T13:58:12","2022-04-15","PMO - FECC",979605,0,0,176293.71,56206.29,0,0,0,0,0,0,{"$f":"SUM(Q219:S219)","v":176293.71},232500]
[196,"Chauffage de l'unité de ventilation par la récupération des refroidisseurs","Fromagerie La Chaudière","Final","Implantation","Industrie",null,"05-Estrie",null,"AC","SU",79148,"2021-07-22T09:06:21","2022-07-01","PMO - FECC",174950,0,0,59361,19787,0,0,0,0,0,0,59361,{"$f":"SUM(Q220:Z220)","v":79148}]
[197,"Installation d'un secteur de refonte de rebuts","Shawinigan Aluminium inc.","Final","Implantation","Industrie",null,"04-Mauricie",null,"AC","SU",1638627.07,"2021-06-29T14:01:27","2023-01-13","PMO - FECC",6095800,0,0,1248477.76,390149.31,0,0,0,0,0,0,{"$f":"SUM(Q221:S221)","v":1248477.76},1638627.07]
[198,"Conversion d'un système de pompage à l'électricité","Les Fermes Hotte et Van Winden inc.","Final","Implantation","Industrie",null,"16-Montérégie",null,"AC","SU",55740.27,"2021-08-11T13:16:20","2022-10-10","PMO - FECC",96718,0,0,41805.21,13935.06,0,0,0,0,0,0,41805.21,{"$f":"SUM(Q222:Z222)","v":55740.27}]
[199,"Nouveau système de chaînes au four à chaux","Fibrek S.E.N.C.","Final","Implantation","Industrie",null,"02-Saguenay--Lac-Saint-Jean",null,"AC","SU",1875000,"2021-08-16T08:45:39","2022-06-17","PMO - FECC",2500000,0,0,1406250,468750,0,0,0,0,0,0,{"$f":"SUM(Q223:S223)","v":1406250},1875000]
[200,"Conversion d'un chariot élévateur au propane pour l'électricité","SDF Abrasif inc.","Final","Implantation","Industrie",null,"04-Mauricie",null,"AC","SU",22346.639999999999,"2021-12-13T08:39:11","2023-01-14","PMO - FECC",75457,0,0,17026.02,5320.62,0,0,0,0,0,0,17026.02,{"$f":"SUM(Q224:Z224)","v":22346.639999999999}]
[201,"Serre-Conversion chauffage-CII- électrique","Entreprise Gendron-Benoit","Final","Implantation","Industrie",null,"05-Estrie",null,"AC","SU",18182.37,"00:00:00","2021-09-01","PMO - FECC",24243,0,0,18182.37,0,0,0,0,0,0,0,{"$f":"SUM(Q225:S225)","v":18182.37},18182.37]
[202,"Acériculture-Évaporateur électrique","L'érablière de la Montagne Blanche (9066-3527 Québec inc)","Final","Implantation","Industrie",null,"01-Bas-Saint-Laurent",null,"AC","SU",100000,"2021-01-29T18:04:31","2021-06-30","PMO - FECC",176232,0,0,100000,0,0,0,0,0,0,0,100000,{"$f":"SUM(Q226:Z226)","v":100000}]
[203,"Acériculture-Évaporateur électrique","Érablière Billy Labrecque inc.","Final","Implantation","Industrie",null,"12-Chaudière-Appalaches",null,"AC","SU",86826.46,"2021-01-13T12:49:36","2022-03-06","PMO - FECC",140004,0,0,86826.46,0,0,0,0,0,0,0,{"$f":"SUM(Q227:S227)","v":86826.46},86826.46]
[204,"Serre agricole de fraises - Efficacité énergétique - Écrans thermiques et système de gestion climatique","Aux fruits de la colline (9254-8155 Québec inc.)","Final","Implantation","Industrie",null,"12-Chaudière-Appalaches",null,"AC","SU",91554.09,"2021-10-21T14:05:29","2022-11-16","PMO - FECC",180216,0,0,68665.56,22888.53,0,0,0,0,0,0,68665.56,{"$f":"SUM(Q228:Z228)","v":91554.09}]
[205,"Transition vers un séchoir avec un meilleur rendement énergétique","Productions JC Landry (9110-8274 Québec inc.)","Final","Implantation","Industrie",null,"16-Montérégie",null,"AC","SU",44408.47,"2021-11-10T13:13:10","2022-12-12","PMO - FECC",129808,0,0,33306.36,11102.11,0,0,0,0,0,0,{"$f":"SUM(Q229:S229)","v":33306.36},44408.47]
[206,"Acériculture-Évaporateur électrique","Les Entreprises GLM S.E.N.C.","Final","Implantation","Industrie",null,"12-Chaudière-Appalaches",null,"AC","SU",55140.08,"2021-05-05T09:22:54","2022-01-28","PMO - FECC",115441,0,0,55140.08,0,0,0,0,0,0,0,55140.08,{"$f":"SUM(Q230:Z230)","v":55140.08}]
[207,"Acériculture-Évaporateur électrique","Gestion 2022 inc.","Final","Implantation","Industrie",null,"04-Mauricie",null,"AC","SU",24131.56,"2021-11-23T12:19:44","2022-03-01","PMO - FECC",77339,0,0,24131.56,0,0,0,0,0,0,0,{"$f":"SUM(Q231:S231)","v":24131.56},24131.56]
[208,"Conversion chauffage-CII- électrique","Les Folies du Fleuve inc.","Final","Implantation","Industrie",null,"01-Bas-Saint-Laurent",null,"AC","SU",11633.2,"2021-10-21T16:09:13","2022-03-31","PMO - FECC",16058,0,0,11633.2,0,0,0,0,0,0,0,11633.2,{"$f":"SUM(Q232:Z232)","v":11633.2}]
[209,"Acériculture-Évaporateur électrique","Michel Carbonneau","Final","Implantation","Industrie",null,"05-Estrie",null,"AC","SU",58258.67,"2021-11-30T11:34:17","2022-01-31","PMO - FECC",92061,0,0,58258.67,0,0,0,0,0,0,0,{"$f":"SUM(Q233:S233)","v":58258.67},58258.67]
[210,"Acériculture-Évaporateur électrique","Érablière Lamontagne Inc.","Final","Implantation","Industrie",null,"12-Chaudière-Appalaches",null,"AC","SU",63303.08,"2021-11-02T10:04:49","2022-12-22","PMO - FECC",105066,0,0,0,63303.08,0,0,0,0,0,0,0,{"$f":"SUM(Q234:Z234)","v":63303.08}]
[211,"Acériculture-Évaporateur électrique","Gabriel Michaud","Final","Implantation","Industrie",null,"17-Centre-du-Québec",null,"AC","SU",6569.74,"2021-07-27T11:45:17","2022-01-28","PMO - FECC",60402,0,0,6569.74,0,0,0,0,0,0,0,{"$f":"SUM(Q235:S235)","v":6569.74},6569.74]
[212,"Installation d'un nouveau séchoir à grains","Ferme Réjeanique inc.","Final","Implantation","Industrie",null,"16-Montérégie",null,"AC","SU",50742.420000000006,"2021-11-10T13:32:26","2022-07-01","PMO - FECC",314666,0,0,38056.800000000003,12685.62,0,0,0,0,0,0,38056.800000000003,{"$f":"SUM(Q236:Z236)","v":50742.420000000006}]
[213,"Acériculture-Évaporateur électrique","Daniel Caron","Final","Implantation","Industrie",null,"12-Chaudière-Appalaches",null,"AC","SU",19332.439999999999,"2021-06-11T10:34:47","2022-09-01","PMO - FECC",73107,0,0,0,19332.439999999999,0,0,0,0,0,0,{"$f":"SUM(Q237:S237)","v":0},19332.439999999999]
[214,"Acériculture-Évaporateur électrique","Érablière Choga","Final","Implantation","Industrie",null,"01-Bas-Saint-Laurent",null,"AC","SU",37154.910000000003,"2021-06-09T14:40:46","2022-01-15","PMO - FECC",91146,0,0,37154.910000000003,0,0,0,0,0,0,0,37154.910000000003,{"$f":"SUM(Q238:Z238)","v":37154.910000000003}]
[215,"Serre-Conversion chauffage-CII- électrique","Ferme Cadet Roussel SENC","Final","Implantation","Industrie",null,"16-Montérégie",null,"AC","SU",93999.94,"2022-02-22T12:42:53","2022-03-24","PMO - FECC",128116,0,0,93999.94,0,0,0,0,0,0,0,{"$f":"SUM(Q239:S239)","v":93999.94},93999.94]
[216,"Modernisation énergétique - TRÉVI","Investissements Trévi inc.","Final","Implantation","Industrie",null,"15-Laurentides",null,"AC","SU",1320084.22,"2021-11-10T08:29:04","2024-02-26","PMO - FECC",2423665,0,0,990092.11,0,329992.11,0,0,0,0,0,990092.11,{"$f":"SUM(Q240:Z240)","v":1320084.22}]
[217,"Conversion du chauffage du garage au gaz naturel","Béton Régional inc.","Final","Implantation","Industrie",null,"02-Saguenay─Lac-Saint-Jean",null,"AC","SU",4927.99,"2021-08-11T13:45:20","2022-06-17","PMO - FECC",10799,0,0,3696,1231.99,0,0,0,0,0,0,{"$f":"SUM(Q241:S241)","v":3696},4927.99]
[218,"Serre-Conversion chauffage-CII- électrique","Girard-Migneault Étienne","Final","Implantation","Industrie",null,"03-Capitale-Nationale",null,"AC","SU",43942.5,"00:00:00","2022-03-01","PMO - FECC",58590,0,0,43942.5,0,0,0,0,0,0,0,43942.5,{"$f":"SUM(Q242:Z242)","v":43942.5}]
[219,"Ajout d'échangeurs de chaleur dans des bâtiments d'élevage de volailles","Ferme Plumes d'or (9190-3203 Québec inc.)","Final","Implantation","Industrie",null,"05-Estrie",null,"AC","SU",48105.22,"2022-01-20T15:07:40","2024-03-01","PMO - FECC",75875,0,0,36078.9,0,12026.32,0,0,0,0,0,{"$f":"SUM(Q243:S243)","v":36078.9},48105.22]
[220,"Acériculture-Évaporateur électrique","Érablière Pépin société en nom collectif","Final","Implantation","Industrie",null,"17-Centre-du-Québec",null,"AC","SU",15000.66,"2021-08-23T11:33:41","2022-02-23","PMO - FECC",70434,0,0,15000.66,0,0,0,0,0,0,0,15000.66,{"$f":"SUM(Q244:Z244)","v":15000.66}]
[221,"Serre-Conversion chauffage-CII- électrique","Coop de solidarité des Jardins du Pied de Céleri","Final","Implantation","Industrie",null,"05-Estrie",null,"AC","SU",59530.39,"2021-11-02T10:32:48","2022-11-01","PMO - FECC",150000,0,0,0,59530.39,0,0,0,0,0,0,{"$f":"SUM(Q245:S245)","v":0},59530.39]
[222,"Conversion chauffage-CII- électrique","Les Fibres de verre Rioux inc.","Final","Implantation","Industrie",null,"01-Bas-Saint-Laurent",null,"AC","SU",33754,"2021-08-26T15:24:31","2022-01-31","PMO - FECC",45325,0,0,33754,0,0,0,0,0,0,0,33754,{"$f":"SUM(Q246:Z246)","v":33754}]
[223,"Acériculture-Évaporateur électrique","4096011 Canada inc.","Final","Implantation","Industrie",null,"11-Gaspésie--Îles-de-la-Madeleine",null,"AC","SU",100000,"2021-11-16T10:32:20","2022-12-15","PMO - FECC",153249,0,0,0,100000,0,0,0,0,0,0,{"$f":"SUM(Q247:S247)","v":0},100000]
[224,"Serre-Conversion chauffage-CII- électrique","Les Serres Claude Lizotte inc.","Final","Implantation","Industrie",null,"12-Chaudière-Appalaches",null,"AC","SU",86494.88,"2021-11-04T15:52:22","2022-12-21","PMO - FECC",115326,0,0,0,86494.88,0,0,0,0,0,0,0,{"$f":"SUM(Q248:Z248)","v":86494.88}]
[225,"Serre-Conversion chauffage-CII- électrique","Jacques Dallaire","Final","Implantation","Industrie",null,"02-Saguenay--Lac-Saint-Jean",null,"AC","SU",57397.16,"2021-11-18T15:09:18","2022-03-01","PMO - FECC",82317,0,0,57397.16,0,0,0,0,0,0,0,{"$f":"SUM(Q249:S249)","v":57397.16},57397.16]
[226,"Conversion chauffage-CII- électrique","Fabrications Trémex inc.","Final","Implantation","Industrie",null,"12-Chaudière-Appalaches",null,"AC","SU",8070.27,"2021-12-03T10:02:29","2022-01-31","PMO - FECC",11343,0,0,8070.27,0,0,0,0,0,0,0,8070.27,{"$f":"SUM(Q250:Z250)","v":8070.27}]
[227,"Serre-Conversion chauffage-CII- électrique","Les Serres Dalton enr.","Final","Implantation","Industrie",null,"14-Lanaudière",null,"AC","SU",67500,"00:00:00","2022-12-31","PMO - FECC",90000,0,0,0,67500,0,0,0,0,0,0,{"$f":"SUM(Q251:S251)","v":0},67500]
[228,"Conversion chauffage-CII- électrique","Hydromellerie Saint-Paul-de-la-Croix","Final","Implantation","Industrie",null,"01-Bas-Saint-Laurent",null,"AC","SU",2690.8,"2022-01-21T14:35:19","2023-03-31","PMO - FECC",4227,0,0,0,2690.8,0,0,0,0,0,0,0,{"$f":"SUM(Q252:Z252)","v":2690.8}]
[229,"Serre-Conversion chauffage-CII- électrique- Serre A","Ferme Almana S.E.N.C.","Final","Implantation","Industrie",null,"03-Capitale-Nationale",null,"AC","SU",67956.55,"00:00:00","2023-03-15","PMO - FECC",105957,0,0,0,67956.55,0,0,0,0,0,0,{"$f":"SUM(Q253:S253)","v":0},67956.55]
[230,"Serre-Conversion chauffage-CII- électrique- Serre B","Ferme Almana S.E.N.C.","Final","Implantation","Industrie",null,"03-Capitale-Nationale",null,"AC","SU",67956.55,"00:00:00","2023-03-15","PMO - FECC",105957,0,0,0,67956.55,0,0,0,0,0,0,0,{"$f":"SUM(Q254:Z254)","v":67956.55}]
[231,"Serre-Conversion chauffage-CII- électrique","Les Serres de la Vallière","Final","Implantation","Industrie",null,"16-Montérégie",null,"AC","SU",100000,"00:00:00","2023-06-01","PMO - FECC",180000,0,0,0,0,100000,0,0,0,0,0,{"$f":"SUM(Q255:S255)","v":0},100000]
[232,"Serre-Conversion chauffage-CII- électrique - Serre no 6","Jardin chez Julie et Lova (9434-7192 Québec inc.)","Final","Implantation","Industrie",null,"16-Montérégie",null,"AC","SU",76632.28,"00:00:00","2023-11-30","PMO - FECC",102500,0,0,0,0,76632.28,0,0,0,0,0,0,{"$f":"SUM(Q256:Z256)","v":76632.28}]
[233,"Serre-Conversion chauffage-CII- électrique - Serres 7 et 8","Jardin chez Julie et Lova (9434-7192 Québec inc.)","Final","Implantation","Industrie",null,"16-Montérégie",null,"AC","SU",79752.490000000005,"00:00:00","2023-11-30","PMO - FECC",107500,0,0,0,0,79752.490000000005,0,0,0,0,0,{"$f":"SUM(Q257:S257)","v":0},79752.490000000005]
[234,"Serre-Conversion chauffage-CII- électrique - Serres 2 et 9","Jardin chez Julie et Lova","Final","Implantation","Industrie",null,"16-Montérégie",null,"AC","SU",37889.58,"00:00:00","2023-07-01","PMO - FECC",51285,0,0,0,0,37889.58,0,0,0,0,0,0,{"$f":"SUM(Q258:Z258)","v":37889.58}]
[235,"Serre-Conversion chauffage-CII- électrique","Hébert-Chartrand Loup","Final","Implantation","Industrie",null,"05-Estrie",null,"AC","SU",18810.55,"00:00:00","2022-03-20","PMO - FECC",25081,0,0,18810.55,0,0,0,0,0,0,0,{"$f":"SUM(Q259:S259)","v":18810.55},18810.55]
[236,"Serre-Conversion chauffage-CII- électrique","Les Jardins d'En Haut","Final","Implantation","Industrie",null,"16-Montérégie",null,"AC","SU",97500,"00:00:00","2023-03-01","PMO - FECC",130000,0,0,0,97500,0,0,0,0,0,0,0,{"$f":"SUM(Q260:Z260)","v":97500}]
[237,"Serre-Conversion chauffage-CII- électrique - Serre 1","Les Jardins Bastien inc.","Final","Implantation","Industrie",null,"13-Laval",null,"AC","SU",100000,"00:00:00","2022-08-01","PMO - FECC",135000,0,0,0,100000,0,0,0,0,0,0,{"$f":"SUM(Q261:S261)","v":0},100000]
[238,"Serre-Conversion chauffage-CII- électrique - Serre 2","Les Jardins Bastien inc.","Final","Implantation","Industrie",null,"13-Laval",null,"AC","SU",100000,"00:00:00","2022-08-01","PMO - FECC",135000,0,0,0,100000,0,0,0,0,0,0,0,{"$f":"SUM(Q262:Z262)","v":100000}]
[239,"Serre-Conversion chauffage-CII- électrique","Coopérative de solidarité, les jardins de la Montagne","Final","Implantation","Industrie",null,"02-Saguenay--Lac-Saint-Jean",null,"AC","SU",20250,"00:00:00","2022-09-30","PMO - FECC",27000,0,0,0,20250,0,0,0,0,0,0,{"$f":"SUM(Q263:S263)","v":0},20250]
[240,"Serre-Conversion chauffage-CII- électrique","Le Mont Vert","Final","Implantation","Industrie",null,"16-Montérégie",null,"AC","SU",78387.509999999995,"00:00:00","2022-09-15","PMO - FECC",104517,0,0,0,78387.509999999995,0,0,0,0,0,0,0,{"$f":"SUM(Q264:Z264)","v":78387.509999999995}]
[241,"Serre-Conversion chauffage-CII- électrique","Les jardins Tomates & Camomille S.E.N.C.","Final","Implantation","Industrie",null,"08-Abitibi-Témiscamingue",null,"AC","SU",100000,"00:00:00","2023-05-01","PMO - FECC",142100,0,0,0,0,100000,0,0,0,0,0,{"$f":"SUM(Q265:S265)","v":0},100000]
[242,"Serre-Conversion chauffage-CII- électrique","Villiard serres et jardins inc.","Final","Implantation","Industrie",null,"16-Montérégie",null,"AC","SU",75000,"00:00:00","2022-10-01","PMO - FECC",100000,0,0,0,75000,0,0,0,0,0,0,0,{"$f":"SUM(Q266:Z266)","v":75000}]
[243,"Serre-Conversion chauffage-CII- électrique","Ferme Coopérative Agricola","Final","Implantation","Industrie",null,"07-Outaouais",null,"AC","SU",52369.17,"00:00:00","2023-04-01","PMO - FECC",69826,0,0,0,0,52369.17,0,0,0,0,0,{"$f":"SUM(Q267:S267)","v":0},52369.17]
[244,"Système de réfrigération au CO2 avec récupération de chaleur","9401-4503 Québec inc.","Final","Implantation","Industrie",null,"16-Montérégie",null,"TE","SU",0,"2022-01-10T08:29:41","2022-03-22","PMO - FECC",133700,0,0,0,0,0,0,0,0,0,0,0,{"$f":"SUM(Q268:Z268)","v":0}]
[245,"Acériculture-Évaporateur électrique","L'Érablière Covey Hill","Final","Implantation","Industrie",null,"16-Montérégie",null,"TE","SU",30012.62,"2020-06-30T12:38:40","2021-11-05","PMO - FECC",105000,0,0,30012.62,0,0,0,0,0,0,0,{"$f":"SUM(Q269:S269)","v":30012.62},30012.62]
[246,"Acériculture-Évaporateur électrique","Ferme Nochamp (2015) inc.","Final","Implantation","Industrie",null,"12-Chaudière-Appalaches",null,"TE","SU",30715.68,"2020-06-29T12:52:06","2021-10-01","PMO - FECC",91481,0,0,30715.68,0,0,0,0,0,0,0,30715.68,{"$f":"SUM(Q270:Z270)","v":30715.68}]
[247,"Acériculture-Évaporateur électrique","Érablière Guy Fortier","Final","Implantation","Industrie",null,"17-Centre-du-Québec",null,"TE","SU",54958.18,"2020-07-01","2021-12-23","PMO - FECC",134275,0,0,54958.18,0,0,0,0,0,0,0,{"$f":"SUM(Q271:S271)","v":54958.18},54958.18]
[248,"Acériculture-Évaporateur électrique","Domaine du Roi (2006) inc.","Final","Implantation","Industrie",null,"01-Bas-Saint-Laurent",null,"TE","SU",105000,"2020-08-24T18:04:50","2021-06-02","PMO - FECC",164000,0,0,105000,0,0,0,0,0,0,0,105000,{"$f":"SUM(Q272:Z272)","v":105000}]
[249,"Acériculture-Évaporateur électrique","Aménagement forestier coopératif des Appalaches","Final","Implantation","Industrie",null,"05-Estrie",null,"TE","SU",53977.53,"2020-10-07T17:26:20","2021-05-01","PMO - FECC",140408,0,0,53977.53,0,0,0,0,0,0,0,{"$f":"SUM(Q273:S273)","v":53977.53},53977.53]
[250,"Conversion chauffage-CII- électrique","Les Tourbières Berger ltée","Final","Implantation","Industrie",null,"01-Bas-Saint-Laurent",null,"TE","SU",10158,"2021-02-10T12:57:59","2021-08-02","PMO - FECC",13544,0,0,10158,0,0,0,0,0,0,0,10158,{"$f":"SUM(Q274:Z274)","v":10158}]
[251,"Conversion chauffage-CII- électrique","Champignons Le Coprin","Final","Implantation","Industrie",null,"07-Outaouais",null,"TE","SU",11574.47,"2021-02-04T16:10:34","2022-02-03","PMO - FECC",15433,0,0,11574.47,0,0,0,0,0,0,0,{"$f":"SUM(Q275:S275)","v":11574.47},11574.47]
[252,"Conversion du bruleur vers le propane","Bituméco (9369-9692 Québec inc.)","Final","Implantation","Industrie",null,"17-Centre-du-Québec",null,"TE","SU",123180,"2021-11-19T10:55:17","2021-12-16","PMO - FECC",260179,0,0,123180,0,0,0,0,0,0,0,123180,{"$f":"SUM(Q276:Z276)","v":123180}]
[253,"Serre-Conversion chauffage-CII- électrique","Jardinier déchaîné","Final","Implantation","Industrie",null,"05-Estrie",null,"TE","SU",11437.25,"2021-05-07T11:23:51","2021-08-10","PMO - FECC",15250,0,0,11437.25,0,0,0,0,0,0,0,{"$f":"SUM(Q277:S277)","v":11437.25},11437.25]
[254,"Conversion chauffage-CII- électrique","Les Gravures A. Desmarais & Fils inc.","Final","Implantation","Industrie",null,"15-Laurentides",null,"TE","SU",3738.1,"2021-04-14T14:38:37","2021-08-31","PMO - FECC",27083,0,0,3738.1,0,0,0,0,0,0,0,3738.1,{"$f":"SUM(Q278:Z278)","v":3738.1}]
[255,null,null,null,null,null,null,null,null,null,null,null,null,null,null,null,null,null,null,null,null,null,null,null,null,null,{"$f":"SUM(Q279:S279)","v":0},0]
[256,null,null,null,null,null,null,null,null,null,null,null,null,null,null,null,null,null,null,null,null,null,null,null,null,null,0,{"$f":"SUM(Q280:Z280)","v":0}]
[257,null,null,null,null,null,null,null,null,null,null,null,null,null,null,null,null,null,null,null,null,null,null,null,null,null,{"$f":"SUM(Q281:S281)","v":0},0]
[258,null,null,null,null,null,null,null,null,null,null,null,null,null,null,null,null,null,null,null,null,null,null,null,null,null,0,{"$f":"SUM(Q282:Z282)","v":0}]
[259,null,null,null,null,null,null,null,null,null,null,null,null,null,null,null,null,null,null,null,null,null,null,null,null,null,{"$f":"SUM(Q283:S283)","v":0},0]
[null,"TOTAL DES DÉPENSES DE PROJET ($)",null,null,null,null,null,null,null,null,null,{"$f":"SUM(L25:L283)","v":104830066.13926187},null,null,null,{"$f":"SUM(P25:P283)","v":236459301.90000001},{"$f":"SUM(Q25:Q283)","v":0},0,41796023.358266778,43198440.365962073,16302453.124088002,4319583.9709450006,18659.52,0,0,0,41796023.358266778,105635160.33926187]

{"sheet":"GES","index":5,"n_rows":351,"n_cols":35,"rows_kept":351,"cut":false,"hidden":false,"merged":[[22,29,22,30],[22,31,22,32],[22,23,22,24],[22,27,22,28],[22,1,23,1],[22,2,23,2],[22,3,23,3],[22,13,22,14],[22,15,22,16],[18,1,18,2],[21,5,21,6],[22,6,23,6],[22,11,22,12],[22,25,22,26],[22,21,22,22],[22,8,23,8],[22,9,23,9],[22,17,22,18],[22,19,22,20],[18,3,18,4],[283,1,283,3],[1,9,1,10],[19,8,19,13],[1,11,1,14],[2,11,2,14],[3,11,3,14],[5,1,5,14],[1,1,3,8],[19,14,19,15],[19,1,19,5],[4,13,4,14],[4,10,4,12],[4,1,4,2],[21,7,21,37],[22,33,22,34],[22,4,23,4]]}
[]
[null,{"$f":"Utilitaire!E8","v":"Plan pour une économie verte 2030"},null,null,null,null,null,null,null,"GES",null,{"$f":"Accueil!D65 & \" - \" & Accueil!D53","v":"MERN (SITE) - 1.4.2.1"}]
[null,null,null,null,null,null,null,null,null,null,null,{"$f":"\"Action \" & Accueil!D58","v":"Action en cours"}]
[]
[null,"Conseils de rédaction :",null,null,null,null,null,null,null,null,"Informations en date du :",null,null,{"$f":"Utilitaire!G6","v":"2022-03-31"}]
[null,"- Veuillez sélectionner les choix pertinents pour votre action à la ligne 20.\n- Veuillez remplir le tableau uniquement si des résultats ont déjà pu être colligés.                                                                                                                                                                                 "]
[]
[]
[]
[]
[]
[]
[]
[]
[]
[]
[]
[]
[null,"Informations en date du :",null,"2022-03-31"]
[null,"Potentiel de réduction des GES évalué lors de la sélection des projets de cette action : ",null,null,null,null,"Oui",null,"Réductions réelles quantifiables des émissions de GES attendues pour cette action :   ",null,null,null,null,null,"Oui"]
[]
[null,null,null,null,null,"ÉVALUATION DU POTENTIEL DE RÉDUCTION ET D'ÉVITEMENT D'ÉMISSIONS DE GES À TERME.",null,"DÉTAIL DES ÉMISSIONS DE GES RÉDUITES OU ÉVITÉES  (en tonnes éq. CO2)"]
[null,"Nom du projet","Nom du requérant ou du bénéficiaire","Région administrative","Montant engagé ($)","Potentiel de réduction des GES sur une base annuelle","Horizon temporel pour la réalisation du potentiel","Coût/tonne estimé","Type d'émission","Émissions rapportées dans l'inventaire","Perrinité des réductions","Émissions",null,"Vérifiées",null,"2019-2020",null,"2020-2021",null,"2021-2022",null,"2022-2023",null,"2023-2024",null,"2024-2025",null,"2025-2026",null,"2026-2027",null,"2027-2028",null,"2028-2029"]
[null,null,null,null,null,"(tonnes éq. CO2)",null,"$\n------------ \ntonne éq. CO2",null,null,"(années)","Réduites","Évitées","Tierce partie","M/O","Vérifié","Non vérifié","Vérifié","Non vérifié","Vérifié","Non vérifié","Vérifié","Non vérifié","Vérifié","Non vérifié","Vérifié","Non vérifié","Vérifié","Non vérifié","Vérifié","Non vérifié","Vérifié","Non vérifié","Vérifié","Non vérifié"]
[null,{"$f":"IF(LEN('Détail des projets'!B25)=0,\"\",'Détail des projets'!B25)","v":"Frais de gestion et de coordination de l'action"},{"$f":"IF(LEN('Détail des projets'!C25)=0,\"\",'Détail des projets'!C25)","v":"MERN (SITE)"},{"$f":"IF(LEN('Détail des projets'!H25)=0,\"\",'Détail des projets'!H25)","v":"Sans objet"},{"$f":"IF(LEN('Détail des projets'!L25)=0,\"\",'Détail des projets'!L25)","v":""}]
[null,{"$f":"IF(LEN('Détail des projets'!B26)=0,\"\",'Détail des projets'!B26)","v":"Frais de gestion et de coordination de l'action"},{"$f":"IF(LEN('Détail des projets'!C26)=0,\"\",'Détail des projets'!C26)","v":"MERN (SITE)"},{"$f":"IF(LEN('Détail des projets'!H26)=0,\"\",'Détail des projets'!H26)","v":"Sans objet"},{"$f":"IF(LEN('Détail des projets'!L26)=0,\"\",'Détail des projets'!L26)","v":""}]
[null,{"$f":"IF(LEN('Détail des projets'!B27)=0,\"\",'Détail des projets'!B27)","v":""},{"$f":"IF(LEN('Détail des projets'!C27)=0,\"\",'Détail des projets'!C27)","v":""},{"$f":"IF(LEN('Détail des projets'!H27)=0,\"\",'Détail des projets'!H27)","v":""},{"$f":"IF(LEN('Détail des projets'!L27)=0,\"\",'Détail des projets'!L27)","v":""}]
[null,{"$f":"IF(LEN('Détail des projets'!B28)=0,\"\",'Détail des projets'!B28)","v":"RSI Environnement - Étude conversion énergétique"},{"$f":"IF(LEN('Détail des projets'!C28)=0,\"\",'Détail des projets'!C28)","v":"Énergie Tergasa inc."},{"$f":"IF(LEN('Détail des projets'!H28)=0,\"\",'Détail des projets'!H28)","v":"02-Saguenay--Lac-Saint-Jean"},{"$f":"IF(LEN('Détail des projets'!L28)=0,\"\",'Détail des projets'!L28)","v":22475.5},0,"À la fin du projet (suite au dernier versement)",0,"QC-Québec","Oui",0,"non","non","Non","Oui",0,0,0,0,0,0]
[null,{"$f":"IF(LEN('Détail des projets'!B29)=0,\"\",'Détail des projets'!B29)","v":"Excavation Alain Lemay - Audit énergétique, récupération de chaleur et optimisation énergétique"},{"$f":"IF(LEN('Détail des projets'!C29)=0,\"\",'Détail des projets'!C29)","v":"Excavation Alain Lemay inc."},{"$f":"IF(LEN('Détail des projets'!H29)=0,\"\",'Détail des projets'!H29)","v":"17-Centre-du-Québec"},{"$f":"IF(LEN('Détail des projets'!L29)=0,\"\",'Détail des projets'!L29)","v":6000},0,"À la fin du projet (suite au dernier versement)",0,"QC-Québec","Oui",0,"non","non","Non","Oui",0,0,0,0,0,0]
[null,{"$f":"IF(LEN('Détail des projets'!B30)=0,\"\",'Détail des projets'!B30)","v":"Études comparatives en énergie 010501"},{"$f":"IF(LEN('Détail des projets'!C30)=0,\"\",'Détail des projets'!C30)","v":"Minière Osisko Inc."},{"$f":"IF(LEN('Détail des projets'!H30)=0,\"\",'Détail des projets'!H30)","v":"10-Nord-du-Québec"},{"$f":"IF(LEN('Détail des projets'!L30)=0,\"\",'Détail des projets'!L30)","v":39272.1},0,"À la fin du projet (suite au dernier versement)",0,"QC-Québec","Oui",0,"non","non","Non","Oui",0,0,0,0,0,0]
[null,{"$f":"IF(LEN('Détail des projets'!B31)=0,\"\",'Détail des projets'!B31)","v":"Étude du chauffage des serres du Parc Marie-Victorin"},{"$f":"IF(LEN('Détail des projets'!C31)=0,\"\",'Détail des projets'!C31)","v":"Parc Marie-Victorin inc."},{"$f":"IF(LEN('Détail des projets'!H31)=0,\"\",'Détail des projets'!H31)","v":"17-Centre-du-Québec"},{"$f":"IF(LEN('Détail des projets'!L31)=0,\"\",'Détail des projets'!L31)","v":5231.1000000000004},0,"À la fin du projet (suite au dernier versement)",0,"QC-Québec","Oui",0,"non","non","Non","Oui",0,0,0,0,0,0]
[null,{"$f":"IF(LEN('Détail des projets'!B32)=0,\"\",'Détail des projets'!B32)","v":"Analyse bilan d'air - Usine Essity"},{"$f":"IF(LEN('Détail des projets'!C32)=0,\"\",'Détail des projets'!C32)","v":"Essity Canada inc."},{"$f":"IF(LEN('Détail des projets'!H32)=0,\"\",'Détail des projets'!H32)","v":"17-Centre-du-Québec"},{"$f":"IF(LEN('Détail des projets'!L32)=0,\"\",'Détail des projets'!L32)","v":7720},0,"À la fin du projet (suite au dernier versement)",0,"QC-Québec","Oui",0,"non","non","Non","Oui",0,0,0,0,0,0]
[null,{"$f":"IF(LEN('Détail des projets'!B33)=0,\"\",'Détail des projets'!B33)","v":"Étude en efficacité énergétique"},{"$f":"IF(LEN('Détail des projets'!C33)=0,\"\",'Détail des projets'!C33)","v":"Mercier, Industries en mécanique ltée"},{"$f":"IF(LEN('Détail des projets'!H33)=0,\"\",'Détail des projets'!H33)","v":"02-Saguenay--Lac-Saint-Jean"},{"$f":"IF(LEN('Détail des projets'!L33)=0,\"\",'Détail des projets'!L33)","v":8393.2199999999993},0,"À la fin du projet (suite au dernier versement)",0,"QC-Québec","Oui",0,"non","non","Non","Oui",0,0,0,0,0,0]
[null,{"$f":"IF(LEN('Détail des projets'!B34)=0,\"\",'Détail des projets'!B34)","v":"Audit des installations vapeur/condensat et des utilités thermiques"},{"$f":"IF(LEN('Détail des projets'!C34)=0,\"\",'Détail des projets'!C34)","v":"Canneberges Atoka inc."},{"$f":"IF(LEN('Détail des projets'!H34)=0,\"\",'Détail des projets'!H34)","v":"17-Centre-du-Québec"},{"$f":"IF(LEN('Détail des projets'!L34)=0,\"\",'Détail des projets'!L34)","v":41325},0,"À la fin du projet (suite au dernier versement)",0,"QC-Québec","Oui",0,"non","non","Non","Oui",0,0,0,0,0,0]
[null,{"$f":"IF(LEN('Détail des projets'!B35)=0,\"\",'Détail des projets'!B35)","v":"Étude pour la réduction de la consommation d'énergie et d'émission de GES"},{"$f":"IF(LEN('Détail des projets'!C35)=0,\"\",'Détail des projets'!C35)","v":"Fortier 2000 ltée"},{"$f":"IF(LEN('Détail des projets'!H35)=0,\"\",'Détail des projets'!H35)","v":"12-Chaudière-Appalaches"},{"$f":"IF(LEN('Détail des projets'!L35)=0,\"\",'Détail des projets'!L35)","v":8875},0,"À la fin du projet (suite au dernier versement)",0,"QC-Québec","Oui",0,"non","non","Non","Oui",0,0,0,0,0,0]
[null,{"$f":"IF(LEN('Détail des projets'!B36)=0,\"\",'Détail des projets'!B36)","v":"Étude IP - Phase II"},{"$f":"IF(LEN('Détail des projets'!C36)=0,\"\",'Détail des projets'!C36)","v":"Entreprise Greenfield Global Québec"},{"$f":"IF(LEN('Détail des projets'!H36)=0,\"\",'Détail des projets'!H36)","v":"16-Montérégie"},{"$f":"IF(LEN('Détail des projets'!L36)=0,\"\",'Détail des projets'!L36)","v":88018.5},0,"À la fin du projet (suite au dernier versement)",0,"QC-Québec","Oui",0,"non","non","Non","Oui",0,0,0,0,0,0]
[null,{"$f":"IF(LEN('Détail des projets'!B37)=0,\"\",'Détail des projets'!B37)","v":"Étude en intégration énergétique par analyse de pincement"},{"$f":"IF(LEN('Détail des projets'!C37)=0,\"\",'Détail des projets'!C37)","v":"Technocell inc."},{"$f":"IF(LEN('Détail des projets'!H37)=0,\"\",'Détail des projets'!H37)","v":"17-Centre-du-Québec"},{"$f":"IF(LEN('Détail des projets'!L37)=0,\"\",'Détail des projets'!L37)","v":46287.19},0,"À la fin du projet (suite au dernier versement)",0,"QC-Québec","Oui",0,"non","non","Non","Oui",0,0,0,0,0,0]
[null,{"$f":"IF(LEN('Détail des projets'!B38)=0,\"\",'Détail des projets'!B38)","v":"Étude écoénergétique à la teinturerie Cansew"},{"$f":"IF(LEN('Détail des projets'!C38)=0,\"\",'Détail des projets'!C38)","v":"Cansew inc."},{"$f":"IF(LEN('Détail des projets'!H38)=0,\"\",'Détail des projets'!H38)","v":"06-Montréal"},{"$f":"IF(LEN('Détail des projets'!L38)=0,\"\",'Détail des projets'!L38)","v":10384},0,"À la fin du projet (suite au dernier versement)",0,"QC-Québec","Oui",0,"non","non","Non","Oui",0,0,0,0,0,0]
[null,{"$f":"IF(LEN('Détail des projets'!B39)=0,\"\",'Détail des projets'!B39)","v":"Étude d’efficacité énergétique des procédés et utilités"},{"$f":"IF(LEN('Détail des projets'!C39)=0,\"\",'Détail des projets'!C39)","v":"Les Ingrédients Alimentaires BSA inc."},{"$f":"IF(LEN('Détail des projets'!H39)=0,\"\",'Détail des projets'!H39)","v":"06-Montréal"},{"$f":"IF(LEN('Détail des projets'!L39)=0,\"\",'Détail des projets'!L39)","v":9288},0,"À la fin du projet (suite au dernier versement)",0,"QC-Québec","Oui",0,"non","non","Non","Oui",0,0,0,0,0,0]
[null,{"$f":"IF(LEN('Détail des projets'!B40)=0,\"\",'Détail des projets'!B40)","v":"Conversion à l'hydrogène des fours du Centre de Coulée de Baie-Comeau"},{"$f":"IF(LEN('Détail des projets'!C40)=0,\"\",'Détail des projets'!C40)","v":"Alcoa Canada Cie"},{"$f":"IF(LEN('Détail des projets'!H40)=0,\"\",'Détail des projets'!H40)","v":"09-Côte-Nord"},{"$f":"IF(LEN('Détail des projets'!L40)=0,\"\",'Détail des projets'!L40)","v":27461.09},0,"À la fin du projet (suite au dernier versement)",0,"QC-Québec","Oui",0,"non","non","Non","Oui",0,0,0,0,0,0]
[null,{"$f":"IF(LEN('Détail des projets'!B41)=0,\"\",'Détail des projets'!B41)","v":"Étude d’efficacité énergétique"},{"$f":"IF(LEN('Détail des projets'!C41)=0,\"\",'Détail des projets'!C41)","v":"Fonderie Poitras ltée"},{"$f":"IF(LEN('Détail des projets'!H41)=0,\"\",'Détail des projets'!H41)","v":"12-Chaudière-Appalaches"},{"$f":"IF(LEN('Détail des projets'!L41)=0,\"\",'Détail des projets'!L41)","v":25000},0,"À la fin du projet (suite au dernier versement)",0,"QC-Québec","Oui",0,"non","non","Non","Oui",0,0,0,0,0,0]
[null,{"$f":"IF(LEN('Détail des projets'!B42)=0,\"\",'Détail des projets'!B42)","v":"Analyse énergétique et potentiel de récupération"},{"$f":"IF(LEN('Détail des projets'!C42)=0,\"\",'Détail des projets'!C42)","v":"La Fromagerie Polyethnique inc."},{"$f":"IF(LEN('Détail des projets'!H42)=0,\"\",'Détail des projets'!H42)","v":"16-Montérégie"},{"$f":"IF(LEN('Détail des projets'!L42)=0,\"\",'Détail des projets'!L42)","v":23909.13},0,"À la fin du projet (suite au dernier versement)",0,"QC-Québec","Oui",0,"non","non","Non","Oui",0,0,0,0,0,0]
[null,{"$f":"IF(LEN('Détail des projets'!B43)=0,\"\",'Détail des projets'!B43)","v":"Étude de faisabilité - remplacement de la chaudière et mesures d'efficacité énergétique"},{"$f":"IF(LEN('Détail des projets'!C43)=0,\"\",'Détail des projets'!C43)","v":"Boulangerie St-Méthode inc."},{"$f":"IF(LEN('Détail des projets'!H43)=0,\"\",'Détail des projets'!H43)","v":"12-Chaudière-Appalaches"},{"$f":"IF(LEN('Détail des projets'!L43)=0,\"\",'Détail des projets'!L43)","v":10195.48},0,"À la fin du projet (suite au dernier versement)",0,"QC-Québec","Oui",0,"non","non","Non","Oui",0,0,0,0,0,0]
[null,{"$f":"IF(LEN('Détail des projets'!B44)=0,\"\",'Détail des projets'!B44)","v":"Étude énergétique de récupération de chaleur du système de refroidissement"},{"$f":"IF(LEN('Détail des projets'!C44)=0,\"\",'Détail des projets'!C44)","v":"Les Plastiques Balcan"},{"$f":"IF(LEN('Détail des projets'!H44)=0,\"\",'Détail des projets'!H44)","v":"06-Montréal"},{"$f":"IF(LEN('Détail des projets'!L44)=0,\"\",'Détail des projets'!L44)","v":6247.5},0,"À la fin du projet (suite au dernier versement)",0,"QC-Québec","Oui",0,"non","non","Non","Oui",0,0,0,0,0,0]
[null,{"$f":"IF(LEN('Détail des projets'!B45)=0,\"\",'Détail des projets'!B45)","v":"Implantation d'un système de chauffage de serre"},{"$f":"IF(LEN('Détail des projets'!C45)=0,\"\",'Détail des projets'!C45)","v":"Entreprise Gendron-Benoit"},{"$f":"IF(LEN('Détail des projets'!H45)=0,\"\",'Détail des projets'!H45)","v":"05-Estrie"},{"$f":"IF(LEN('Détail des projets'!L45)=0,\"\",'Détail des projets'!L45)","v":4462.5},0,"À la fin du projet (suite au dernier versement)",0,"QC-Québec","Oui",0,"non","non","Non","Oui",0,0,0,0,0,0]
[null,{"$f":"IF(LEN('Détail des projets'!B46)=0,\"\",'Détail des projets'!B46)","v":"Analyse des opportunités de réduction des GES de 2021"},{"$f":"IF(LEN('Détail des projets'!C46)=0,\"\",'Détail des projets'!C46)","v":"Groupe Canam inc."},{"$f":"IF(LEN('Détail des projets'!H46)=0,\"\",'Détail des projets'!H46)","v":"16-Montérégie"},{"$f":"IF(LEN('Détail des projets'!L46)=0,\"\",'Détail des projets'!L46)","v":10352.58},0,"À la fin du projet (suite au dernier versement)",0,"QC-Québec","Oui",0,"non","non","Non","Oui",0,0,0,0,0,0]
[null,{"$f":"IF(LEN('Détail des projets'!B47)=0,\"\",'Détail des projets'!B47)","v":"Opportunités de réduction de coûts et de GES - MdFQ - Lac Bloom"},{"$f":"IF(LEN('Détail des projets'!C47)=0,\"\",'Détail des projets'!C47)","v":"Minerai de fer Québec inc."},{"$f":"IF(LEN('Détail des projets'!H47)=0,\"\",'Détail des projets'!H47)","v":"09-Côte-Nord"},{"$f":"IF(LEN('Détail des projets'!L47)=0,\"\",'Détail des projets'!L47)","v":31170},0,"À la fin du projet (suite au dernier versement)",0,"QC-Québec","Oui",0,"non","non","Non","Oui",0,0,0,0,0,0]
[null,{"$f":"IF(LEN('Détail des projets'!B48)=0,\"\",'Détail des projets'!B48)","v":"Étude pour une boucle d’eau de chauffage par géothermie et efficacité énergétique en serre"},{"$f":"IF(LEN('Détail des projets'!C48)=0,\"\",'Détail des projets'!C48)","v":"L'Abri Végétal"},{"$f":"IF(LEN('Détail des projets'!H48)=0,\"\",'Détail des projets'!H48)","v":"05-Estrie"},{"$f":"IF(LEN('Détail des projets'!L48)=0,\"\",'Détail des projets'!L48)","v":25000},0,"À la fin du projet (suite au dernier versement)",0,"QC-Québec","Oui",0,"non","non","Non","Oui",0,0,0,0,0,0]
[null,{"$f":"IF(LEN('Détail des projets'!B49)=0,\"\",'Détail des projets'!B49)","v":"Amélioration de la fiabilité des bassins"},{"$f":"IF(LEN('Détail des projets'!C49)=0,\"\",'Détail des projets'!C49)","v":"Sonaca Montréal inc."},{"$f":"IF(LEN('Détail des projets'!H49)=0,\"\",'Détail des projets'!H49)","v":"15-Laurentides"},{"$f":"IF(LEN('Détail des projets'!L49)=0,\"\",'Détail des projets'!L49)","v":12146.75},0,"À la fin du projet (suite au dernier versement)",0,"QC-Québec","Oui",0,"non","non","Non","Oui",0,0,0,0,0,0]
[null,{"$f":"IF(LEN('Détail des projets'!B50)=0,\"\",'Détail des projets'!B50)","v":"Étude d'intégration de procédés"},{"$f":"IF(LEN('Détail des projets'!C50)=0,\"\",'Détail des projets'!C50)","v":"Alcyon sel de mer inc."},{"$f":"IF(LEN('Détail des projets'!H50)=0,\"\",'Détail des projets'!H50)","v":"11-Gaspésie--Îles-de-la-Madeleine"},{"$f":"IF(LEN('Détail des projets'!L50)=0,\"\",'Détail des projets'!L50)","v":27984},0,"À la fin du projet (suite au dernier versement)",0,"QC-Québec","Oui",0,"non","non","Non","Oui",0,0,0,0,0,0]
[null,{"$f":"IF(LEN('Détail des projets'!B51)=0,\"\",'Détail des projets'!B51)","v":""},{"$f":"IF(LEN('Détail des projets'!C51)=0,\"\",'Détail des projets'!C51)","v":""},{"$f":"IF(LEN('Détail des projets'!H51)=0,\"\",'Détail des projets'!H51)","v":""},{"$f":"IF(LEN('Détail des projets'!L51)=0,\"\",'Détail des projets'!L51)","v":""}]
[null,{"$f":"IF(LEN('Détail des projets'!B52)=0,\"\",'Détail des projets'!B52)","v":"Économies d'énergie - Les Machineries Pronovost inc."},{"$f":"IF(LEN('Détail des projets'!C52)=0,\"\",'Détail des projets'!C52)","v":"Les Machineries Pronovost inc."},{"$f":"IF(LEN('Détail des projets'!H52)=0,\"\",'Détail des projets'!H52)","v":"04-Mauricie"},{"$f":"IF(LEN('Détail des projets'!L52)=0,\"\",'Détail des projets'!L52)","v":206330.83},224.11642355199999,"À la fin du projet (suite au dernier versement)",38.54627925709601,"QC-Québec","Oui",23.884050369262699,"oui","non","Non","Oui",0,0,0,0,0,0]
[null,{"$f":"IF(LEN('Détail des projets'!B53)=0,\"\",'Détail des projets'!B53)","v":"Efficacité et conversion énergétiques chez Séchoirs St-Élisabeth"},{"$f":"IF(LEN('Détail des projets'!C53)=0,\"\",'Détail des projets'!C53)","v":"Séchoirs St-Élisabeth (9200-4746 Québec inc.)"},{"$f":"IF(LEN('Détail des projets'!H53)=0,\"\",'Détail des projets'!H53)","v":"14-Lanaudière"},{"$f":"IF(LEN('Détail des projets'!L53)=0,\"\",'Détail des projets'!L53)","v":1066729.24},853.38338821599996,"À la fin du projet (suite au dernier versement)",62.500000277132187,"QC-Québec","Oui",20,"oui","non","Non","Oui",0,0,0,0,0,0]
[null,{"$f":"IF(LEN('Détail des projets'!B54)=0,\"\",'Détail des projets'!B54)","v":"Construction d’une ligne électrique en remplacement de deux génératrices pour 9246-7984 Québec inc."},{"$f":"IF(LEN('Détail des projets'!C54)=0,\"\",'Détail des projets'!C54)","v":"9246-7984 Québec inc."},{"$f":"IF(LEN('Détail des projets'!H54)=0,\"\",'Détail des projets'!H54)","v":"17-Centre-du-Québec"},{"$f":"IF(LEN('Détail des projets'!L54)=0,\"\",'Détail des projets'!L54)","v":14707.03},11.765626964300001,"À la fin du projet (suite au dernier versement)",49.99998740271127,"QC-Québec","Oui",25,"non","oui","Non","Oui",0,0,0,0,0,0]
[null,{"$f":"IF(LEN('Détail des projets'!B55)=0,\"\",'Détail des projets'!B55)","v":"Ventilation de l'entrepôt de maintenance de Kerry Ste-Claire"},{"$f":"IF(LEN('Détail des projets'!C55)=0,\"\",'Détail des projets'!C55)","v":"Kerry (Canada) inc."},{"$f":"IF(LEN('Détail des projets'!H55)=0,\"\",'Détail des projets'!H55)","v":"12-Chaudière-Appalaches"},{"$f":"IF(LEN('Détail des projets'!L55)=0,\"\",'Détail des projets'!L55)","v":35117.42},52.625872880000003,"À la fin du projet (suite au dernier versement)",26.69213303507679,"QC-Québec","Oui",25,"non","oui","Non","Oui",0,0,0,0,0,0]
[null,{"$f":"IF(LEN('Détail des projets'!B56)=0,\"\",'Détail des projets'!B56)","v":"Construction Agropod Verchères - Phase 3"},{"$f":"IF(LEN('Détail des projets'!C56)=0,\"\",'Détail des projets'!C56)","v":"9444-0609 Québec inc."},{"$f":"IF(LEN('Détail des projets'!H56)=0,\"\",'Détail des projets'!H56)","v":"16-Montérégie"},{"$f":"IF(LEN('Détail des projets'!L56)=0,\"\",'Détail des projets'!L56)","v":1823040},1624.4177038800001,"À la fin du projet (suite au dernier versement)",56.113646005137127,"QC-Québec","Oui",20,"oui","non","Non","Oui",0,0,0,0,0,0]
[null,{"$f":"IF(LEN('Détail des projets'!B57)=0,\"\",'Détail des projets'!B57)","v":"Agropod Partnership inc."},{"$f":"IF(LEN('Détail des projets'!C57)=0,\"\",'Détail des projets'!C57)","v":"Agropod Partnership inc."},{"$f":"IF(LEN('Détail des projets'!H57)=0,\"\",'Détail des projets'!H57)","v":"16-Montérégie"},{"$f":"IF(LEN('Détail des projets'!L57)=0,\"\",'Détail des projets'!L57)","v":2011961.17},1609.56893636,"À la fin du projet (suite au dernier versement)",62.499999986021102,"QC-Québec","Oui",20,"oui","non","Non","Oui",0,0,0,0,0,0]
[null,{"$f":"IF(LEN('Détail des projets'!B58)=0,\"\",'Détail des projets'!B58)","v":"Rideaux d'air - Agrimétal inc."},{"$f":"IF(LEN('Détail des projets'!C58)=0,\"\",'Détail des projets'!C58)","v":"Agrimétal inc."},{"$f":"IF(LEN('Détail des projets'!H58)=0,\"\",'Détail des projets'!H58)","v":"17-Centre-du-Québec"},{"$f":"IF(LEN('Détail des projets'!L58)=0,\"\",'Détail des projets'!L58)","v":23681.190000000002},18.9449455038806,"À la fin du projet (suite au dernier versement)",83.333361907882846,"QC-Québec","Oui",15,"oui","non","Non","Oui",0,0,0,0,0,0]
[null,{"$f":"IF(LEN('Détail des projets'!B59)=0,\"\",'Détail des projets'!B59)","v":"Récupération de chaleur pour la réduction de la consommation du propane"},{"$f":"IF(LEN('Détail des projets'!C59)=0,\"\",'Détail des projets'!C59)","v":"Ouellet Canada inc"},{"$f":"IF(LEN('Détail des projets'!H59)=0,\"\",'Détail des projets'!H59)","v":"12-Chaudière-Appalaches"},{"$f":"IF(LEN('Détail des projets'!L59)=0,\"\",'Détail des projets'!L59)","v":1022434.28},817.94742255999995,"À la fin du projet (suite au dernier versement)",50.000000088025224,"QC-Québec","Oui",25,"oui","non","Non","Oui",0,0,0,0,0,0]
[null,{"$f":"IF(LEN('Détail des projets'!B60)=0,\"\",'Détail des projets'!B60)","v":"Optimisation du système de traitement des COV des ateliers de peinture du bâtiment 318"},{"$f":"IF(LEN('Détail des projets'!C60)=0,\"\",'Détail des projets'!C60)","v":"Bombardier inc."},{"$f":"IF(LEN('Détail des projets'!H60)=0,\"\",'Détail des projets'!H60)","v":"06-Montréal"},{"$f":"IF(LEN('Détail des projets'!L60)=0,\"\",'Détail des projets'!L60)","v":140856.37},281.71272656000002,"À la fin du projet (suite au dernier versement)",20.000000954163493,"QC-Québec","Oui",25,"oui","non","Non","Oui",0,0,0,0,0,0]
[null,{"$f":"IF(LEN('Détail des projets'!B61)=0,\"\",'Détail des projets'!B61)","v":"Nouveau bâtiment de serre intérieure"},{"$f":"IF(LEN('Détail des projets'!C61)=0,\"\",'Détail des projets'!C61)","v":"PharmaflorX inc."},{"$f":"IF(LEN('Détail des projets'!H61)=0,\"\",'Détail des projets'!H61)","v":"07-Outaouais"},{"$f":"IF(LEN('Détail des projets'!L61)=0,\"\",'Détail des projets'!L61)","v":1311196.69389},2145.3355546460898,"À la fin du projet (suite au dernier versement)",24.447395952588959,"QC-Québec","Oui",25,"oui","non","Non","Oui",0,0,0,0,0,0]
[null,{"$f":"IF(LEN('Détail des projets'!B62)=0,\"\",'Détail des projets'!B62)","v":"Viandes Première - Agrandissement"},{"$f":"IF(LEN('Détail des projets'!C62)=0,\"\",'Détail des projets'!C62)","v":"4496663 Canada inc."},{"$f":"IF(LEN('Détail des projets'!H62)=0,\"\",'Détail des projets'!H62)","v":"16-Montérégie"},{"$f":"IF(LEN('Détail des projets'!L62)=0,\"\",'Détail des projets'!L62)","v":260790.11767190002},208.63193964000001,"À la fin du projet (suite au dernier versement)",41.66669752194548,"QC-Québec","Oui",30,"oui","non","Non","Oui",0,0,0,0,0,0]
[null,{"$f":"IF(LEN('Détail des projets'!B63)=0,\"\",'Détail des projets'!B63)","v":"Implantation d’un séchoir électrique sur rail"},{"$f":"IF(LEN('Détail des projets'!C63)=0,\"\",'Détail des projets'!C63)","v":"Bois LIB inc."},{"$f":"IF(LEN('Détail des projets'!H63)=0,\"\",'Détail des projets'!H63)","v":"17-Centre-du-Québec"},{"$f":"IF(LEN('Détail des projets'!L63)=0,\"\",'Détail des projets'!L63)","v":1135106.75},1206.6743999841501,"À la fin du projet (suite au dernier versement)",37.627606917488585,"QC-Québec","Oui",25,"oui","oui","Non","Oui",0,0,0,0,0,0]
[null,{"$f":"IF(LEN('Détail des projets'!B64)=0,\"\",'Détail des projets'!B64)","v":"Serre agricole, efficacité énergétique et conversion à la biomasse résiduelle"},{"$f":"IF(LEN('Détail des projets'!C64)=0,\"\",'Détail des projets'!C64)","v":"Fraîcheur Urbaine"},{"$f":"IF(LEN('Détail des projets'!H64)=0,\"\",'Détail des projets'!H64)","v":"05-Estrie"},{"$f":"IF(LEN('Détail des projets'!L64)=0,\"\",'Détail des projets'!L64)","v":22576.077700000002},18.061524832,"À la fin du projet (suite au dernier versement)",62.497706893499569,"QC-Québec","Oui",20,"oui","non","Non","Oui",0,0,0,0,0,0]
[null,{"$f":"IF(LEN('Détail des projets'!B65)=0,\"\",'Détail des projets'!B65)","v":"Installation de thermopompes pour le chauffage"},{"$f":"IF(LEN('Détail des projets'!C65)=0,\"\",'Détail des projets'!C65)","v":"GEA Houle, une division de GEA Farm Technologies Canada"},{"$f":"IF(LEN('Détail des projets'!H65)=0,\"\",'Détail des projets'!H65)","v":"17-Centre-du-Québec"},{"$f":"IF(LEN('Détail des projets'!L65)=0,\"\",'Détail des projets'!L65)","v":248750},227.03658795999999,"À la fin du projet (suite au dernier versement)",43.825535299856703,"QC-Québec","Oui",25,"non","oui","Non","Oui",0,0,0,0,0,0]
[null,{"$f":"IF(LEN('Détail des projets'!B66)=0,\"\",'Détail des projets'!B66)","v":"Amélioration de l'efficacité énergétique"},{"$f":"IF(LEN('Détail des projets'!C66)=0,\"\",'Détail des projets'!C66)","v":"Société en commandite Papier Masson WB"},{"$f":"IF(LEN('Détail des projets'!H66)=0,\"\",'Détail des projets'!H66)","v":"07-Outaouais"},{"$f":"IF(LEN('Détail des projets'!L66)=0,\"\",'Détail des projets'!L66)","v":4146363.08},9452.9481152000008,"À la fin du projet (suite au dernier versement)",17.545269600423584,"QC-Québec","Oui",25,"oui","non","Non","Oui",0,0,0,0,0,0]
[null,{"$f":"IF(LEN('Détail des projets'!B67)=0,\"\",'Détail des projets'!B67)","v":"Serre agricole de micropousses – Efficacité énergétique"},{"$f":"IF(LEN('Détail des projets'!C67)=0,\"\",'Détail des projets'!C67)","v":"Les Jardiniers du Chef"},{"$f":"IF(LEN('Détail des projets'!H67)=0,\"\",'Détail des projets'!H67)","v":"15-Laurentides"},{"$f":"IF(LEN('Détail des projets'!L67)=0,\"\",'Détail des projets'!L67)","v":31750.02},25.400018079999999,"À la fin du projet (suite au dernier versement)",49.999995905514723,"QC-Québec","Oui",25,"oui","non","Non","Oui",0,0,0,0,0,0]
[null,{"$f":"IF(LEN('Détail des projets'!B68)=0,\"\",'Détail des projets'!B68)","v":"Électrification d'une cannebergière, phase II"},{"$f":"IF(LEN('Détail des projets'!C68)=0,\"\",'Détail des projets'!C68)","v":"Les Canneberges Dion inc."},{"$f":"IF(LEN('Détail des projets'!H68)=0,\"\",'Détail des projets'!H68)","v":"17-Centre-du-Québec"},{"$f":"IF(LEN('Détail des projets'!L68)=0,\"\",'Détail des projets'!L68)","v":244625.28999999998},195.70023130800001,"À la fin du projet (suite au dernier versement)",50.000000176801016,"QC-Québec","Oui",25,"non","oui","Non","Oui",0,0,0,0,0,0]
[null,{"$f":"IF(LEN('Détail des projets'!B69)=0,\"\",'Détail des projets'!B69)","v":"Agrandissement de 3 hectares, efficacité énergétique et chauffage à la biomasse"},{"$f":"IF(LEN('Détail des projets'!C69)=0,\"\",'Détail des projets'!C69)","v":"9328-3810 Québec inc."},{"$f":"IF(LEN('Détail des projets'!H69)=0,\"\",'Détail des projets'!H69)","v":"15-Laurentides"},{"$f":"IF(LEN('Détail des projets'!L69)=0,\"\",'Détail des projets'!L69)","v":2209804.46},4419.6089223600002,"À la fin du projet (suite au dernier versement)",26.772587007028815,"QC-Québec","Oui",18.675819396972699,"oui","oui","Non","Oui",0,0,0,0,0,0]
[null,{"$f":"IF(LEN('Détail des projets'!B70)=0,\"\",'Détail des projets'!B70)","v":"Échangeur de chaleur"},{"$f":"IF(LEN('Détail des projets'!C70)=0,\"\",'Détail des projets'!C70)","v":"Soprema inc."},{"$f":"IF(LEN('Détail des projets'!H70)=0,\"\",'Détail des projets'!H70)","v":"17-Centre-du-Québec"},{"$f":"IF(LEN('Détail des projets'!L70)=0,\"\",'Détail des projets'!L70)","v":294750},235.71372083880601,"À la fin du projet (suite au dernier versement)",50.018301684112181,"QC-Québec","Oui",25,"oui","non","Non","Oui",0,0,0,0,0,0]
[null,{"$f":"IF(LEN('Détail des projets'!B71)=0,\"\",'Détail des projets'!B71)","v":"Remplacement de deux échangeurs de chaleur"},{"$f":"IF(LEN('Détail des projets'!C71)=0,\"\",'Détail des projets'!C71)","v":"Société en commandite FF Soucy WB"},{"$f":"IF(LEN('Détail des projets'!H71)=0,\"\",'Détail des projets'!H71)","v":"01-Bas-Saint-Laurent"},{"$f":"IF(LEN('Détail des projets'!L71)=0,\"\",'Détail des projets'!L71)","v":67198.799999999988},254.29100985596,"À la fin du projet (suite au dernier versement)",13.21297202721872,"QC-Québec","Oui",20,"oui","non","Non","Oui",0,0,0,0,0,0]
[null,{"$f":"IF(LEN('Détail des projets'!B72)=0,\"\",'Détail des projets'!B72)","v":"Écrans thermiques - Phase 3"},{"$f":"IF(LEN('Détail des projets'!C72)=0,\"\",'Détail des projets'!C72)","v":"Serres Toundra inc."},{"$f":"IF(LEN('Détail des projets'!H72)=0,\"\",'Détail des projets'!H72)","v":"02-Saguenay--Lac-Saint-Jean"},{"$f":"IF(LEN('Détail des projets'!L72)=0,\"\",'Détail des projets'!L72)","v":1904919.31},6591.83267832,"À la fin du projet (suite au dernier versement)",19.265449665362656,"QC-Québec","Oui",15,"oui","non","Non","Oui",0,0,0,0,0,0]
[null,{"$f":"IF(LEN('Détail des projets'!B73)=0,\"\",'Détail des projets'!B73)","v":"Valorisation de rejets thermiques industriels - phase 3"},{"$f":"IF(LEN('Détail des projets'!C73)=0,\"\",'Détail des projets'!C73)","v":"Serres Toundra inc."},{"$f":"IF(LEN('Détail des projets'!H73)=0,\"\",'Détail des projets'!H73)","v":"02-Saguenay--Lac-Saint-Jean"},{"$f":"IF(LEN('Détail des projets'!L73)=0,\"\",'Détail des projets'!L73)","v":3441707.25},7083.6476728799998,"À la fin du projet (suite au dernier versement)",32.391101392358443,"QC-Québec","Oui",15,"oui","non","Non","Oui",0,0,0,0,0,0]
[null,{"$f":"IF(LEN('Détail des projets'!B74)=0,\"\",'Détail des projets'!B74)","v":"Acériculture-Évaporateur électrique"},{"$f":"IF(LEN('Détail des projets'!C74)=0,\"\",'Détail des projets'!C74)","v":"9071-0567 Québec inc."},{"$f":"IF(LEN('Détail des projets'!H74)=0,\"\",'Détail des projets'!H74)","v":"12-Chaudière-Appalaches"},{"$f":"IF(LEN('Détail des projets'!L74)=0,\"\",'Détail des projets'!L74)","v":28839.67},21.973079039999998,"À la fin du projet (suite au dernier versement)",65.625008555924268,"QC-Québec","Oui",20,"oui","non","Non","Oui",0,0,0,0,0,0]
[null,{"$f":"IF(LEN('Détail des projets'!B75)=0,\"\",'Détail des projets'!B75)","v":"Système Thermo PVT, chauffage de l’eau de lavage avec récupération de chaleur sur le procédé de refroidissement du séchoir de canneberges"},{"$f":"IF(LEN('Détail des projets'!C75)=0,\"\",'Détail des projets'!C75)","v":"Fruit d'Or inc."},{"$f":"IF(LEN('Détail des projets'!H75)=0,\"\",'Détail des projets'!H75)","v":"17-Centre-du-Québec"},{"$f":"IF(LEN('Détail des projets'!L75)=0,\"\",'Détail des projets'!L75)","v":146244.19},348.20046000666298,"À la fin du projet (suite au dernier versement)",16.799999632074183,"QC-Québec","Oui",25,"non","oui","Non","Oui",0,0,0,0,0,0]
[null,{"$f":"IF(LEN('Détail des projets'!B76)=0,\"\",'Détail des projets'!B76)","v":"Brûleurs régénératifs Laterrière"},{"$f":"IF(LEN('Détail des projets'!C76)=0,\"\",'Détail des projets'!C76)","v":"Rio Tinto Aluminium"},{"$f":"IF(LEN('Détail des projets'!H76)=0,\"\",'Détail des projets'!H76)","v":"02-Saguenay--Lac-Saint-Jean"},{"$f":"IF(LEN('Détail des projets'!L76)=0,\"\",'Détail des projets'!L76)","v":302310.56000000006},1143.3219979999999,"À la fin du projet (suite au dernier versement)",13.220709499547306,"QC-Québec","Oui",20,"oui","non","Non","Oui",0,0,0,0,0,0]
[null,{"$f":"IF(LEN('Détail des projets'!B77)=0,\"\",'Détail des projets'!B77)","v":"Deux murs solaires et un rideau d'air"},{"$f":"IF(LEN('Détail des projets'!C77)=0,\"\",'Détail des projets'!C77)","v":"ABB Électrification Canada SRI"},{"$f":"IF(LEN('Détail des projets'!H77)=0,\"\",'Détail des projets'!H77)","v":"06-Montréal"},{"$f":"IF(LEN('Détail des projets'!L77)=0,\"\",'Détail des projets'!L77)","v":60808.99},48.647187247164197,"À la fin du projet (suite au dernier versement)",51.897458186404108,"QC-Québec","Oui",24.085960388183601,"oui","non","Non","Oui",0,0,0,0,0,0]
[null,{"$f":"IF(LEN('Détail des projets'!B78)=0,\"\",'Détail des projets'!B78)","v":"Mur solaire et rideau d'air"},{"$f":"IF(LEN('Détail des projets'!C78)=0,\"\",'Détail des projets'!C78)","v":"ABB Électrification Canada SRI"},{"$f":"IF(LEN('Détail des projets'!H78)=0,\"\",'Détail des projets'!H78)","v":"06-Montréal"},{"$f":"IF(LEN('Détail des projets'!L78)=0,\"\",'Détail des projets'!L78)","v":30572},25.342242360597002,"À la fin du projet (suite au dernier versement)",48.25460914624415,"QC-Québec","Oui",25,"oui","non","Non","Oui",0,0,0,0,0,0]
[null,{"$f":"IF(LEN('Détail des projets'!B79)=0,\"\",'Détail des projets'!B79)","v":"Remplacement d'un concasseur diesel par un nouveau concasseur électrique"},{"$f":"IF(LEN('Détail des projets'!C79)=0,\"\",'Détail des projets'!C79)","v":"Bellemare abrasifs & minéraux"},{"$f":"IF(LEN('Détail des projets'!H79)=0,\"\",'Détail des projets'!H79)","v":"04-Mauricie"},{"$f":"IF(LEN('Détail des projets'!L79)=0,\"\",'Détail des projets'!L79)","v":182780.28},139.26116999999999,"À la fin du projet (suite au dernier versement)",52.499998384330681,"QC-Québec","Oui",25,"oui","non","Non","Oui",0,0,0,0,0,0]
[null,{"$f":"IF(LEN('Détail des projets'!B80)=0,\"\",'Détail des projets'!B80)","v":"Remplacement d'un convoyeur empileur au diesel par un convoyeur électrique"},{"$f":"IF(LEN('Détail des projets'!C80)=0,\"\",'Détail des projets'!C80)","v":"Bellemare abrasifs & minéraux"},{"$f":"IF(LEN('Détail des projets'!H80)=0,\"\",'Détail des projets'!H80)","v":"04-Mauricie"},{"$f":"IF(LEN('Détail des projets'!L80)=0,\"\",'Détail des projets'!L80)","v":67811.3},51.6657498,"À la fin du projet (suite au dernier versement)",52.500002622627193,"QC-Québec","Oui",25,"oui","non","Non","Oui",0,0,0,0,0,0]
[null,{"$f":"IF(LEN('Détail des projets'!B81)=0,\"\",'Détail des projets'!B81)","v":"Remplacement d'un tamiseur rotatif Laprade diesel par un tamiseur rotatif Laprade électrique"},{"$f":"IF(LEN('Détail des projets'!C81)=0,\"\",'Détail des projets'!C81)","v":"Bellemare abrasifs & minéraux"},{"$f":"IF(LEN('Détail des projets'!H81)=0,\"\",'Détail des projets'!H81)","v":"04-Mauricie"},{"$f":"IF(LEN('Détail des projets'!L81)=0,\"\",'Détail des projets'!L81)","v":75129.149999999994},57.241255799999998,"À la fin du projet (suite au dernier versement)",52.500001231629156,"QC-Québec","Oui",25,"oui","non","Non","Oui",0,0,0,0,0,0]
[null,{"$f":"IF(LEN('Détail des projets'!B82)=0,\"\",'Détail des projets'!B82)","v":"Remplacement d'un tamiseur McCloskey diesel par un tamiseur bivi-TEC électrique"},{"$f":"IF(LEN('Détail des projets'!C82)=0,\"\",'Détail des projets'!C82)","v":"Bellemare abrasifs & minéraux"},{"$f":"IF(LEN('Détail des projets'!H82)=0,\"\",'Détail des projets'!H82)","v":"04-Mauricie"},{"$f":"IF(LEN('Détail des projets'!L82)=0,\"\",'Détail des projets'!L82)","v":136112.04},103.7044116,"À la fin du projet (suite au dernier versement)",65.624999891518598,"QC-Québec","Oui",20,"oui","non","Non","Oui",0,0,0,0,0,0]
[null,{"$f":"IF(LEN('Détail des projets'!B83)=0,\"\",'Détail des projets'!B83)","v":"Remplacement d'un tamiseur Powerscreen diesel par un tamiseur Midwestern électrique"},{"$f":"IF(LEN('Détail des projets'!C83)=0,\"\",'Détail des projets'!C83)","v":"Bellemare abrasifs & minéraux"},{"$f":"IF(LEN('Détail des projets'!H83)=0,\"\",'Détail des projets'!H83)","v":"04-Mauricie"},{"$f":"IF(LEN('Détail des projets'!L83)=0,\"\",'Détail des projets'!L83)","v":43899.08},33.446916000000002,"À la fin du projet (suite au dernier versement)",52.500003288793508,"QC-Québec","Oui",25,"oui","non","Non","Oui",0,0,0,0,0,0]
[null,{"$f":"IF(LEN('Détail des projets'!B84)=0,\"\",'Détail des projets'!B84)","v":"Remplacement tamiseur rotatif Vermeer diesel par tamiseur rotatif Vermeer électrique"},{"$f":"IF(LEN('Détail des projets'!C84)=0,\"\",'Détail des projets'!C84)","v":"Bellemare abrasifs & minéraux"},{"$f":"IF(LEN('Détail des projets'!H84)=0,\"\",'Détail des projets'!H84)","v":"04-Mauricie"},{"$f":"IF(LEN('Détail des projets'!L84)=0,\"\",'Détail des projets'!L84)","v":215435.9},164.14164299999999,"À la fin du projet (suite au dernier versement)",52.49999843123296,"QC-Québec","Oui",25,"oui","non","Non","Oui",0,0,0,0,0,0]
[null,{"$f":"IF(LEN('Détail des projets'!B85)=0,\"\",'Détail des projets'!B85)","v":"Récupération de chaleur sur les refroidisseurs"},{"$f":"IF(LEN('Détail des projets'!C85)=0,\"\",'Détail des projets'!C85)","v":"GSK Vaccins"},{"$f":"IF(LEN('Détail des projets'!H85)=0,\"\",'Détail des projets'!H85)","v":"03-Capitale-Nationale"},{"$f":"IF(LEN('Détail des projets'!L85)=0,\"\",'Détail des projets'!L85)","v":548076.5},3373.338526,"À la fin du projet (suite au dernier versement)",6.4989208260683178,"QC-Québec","Oui",25,"oui","non","Non","Oui",0,0,0,0,0,0]
[null,{"$f":"IF(LEN('Détail des projets'!B86)=0,\"\",'Détail des projets'!B86)","v":"Installation d'échangeurs de chaleur"},{"$f":"IF(LEN('Détail des projets'!C86)=0,\"\",'Détail des projets'!C86)","v":"Volailles St-Hugues inc."},{"$f":"IF(LEN('Détail des projets'!H86)=0,\"\",'Détail des projets'!H86)","v":"16-Montérégie"},{"$f":"IF(LEN('Détail des projets'!L86)=0,\"\",'Détail des projets'!L86)","v":53416.15},40.698014720000003,"À la fin du projet (suite au dernier versement)",131.25001395645472,"QC-Québec","Oui",10,"oui","non","Non","Oui",0,0,0,0,0,0]
[null,{"$f":"IF(LEN('Détail des projets'!B87)=0,\"\",'Détail des projets'!B87)","v":"Acériculture-Évaporateur électrique"},{"$f":"IF(LEN('Détail des projets'!C87)=0,\"\",'Détail des projets'!C87)","v":"B.M. Les Hauteurs inc."},{"$f":"IF(LEN('Détail des projets'!H87)=0,\"\",'Détail des projets'!H87)","v":"01-Bas-Saint-Laurent"},{"$f":"IF(LEN('Détail des projets'!L87)=0,\"\",'Détail des projets'!L87)","v":48923.41},37.274978023999999,"À la fin du projet (suite au dernier versement)",65.625001802147281,"QC-Québec","Oui",20,"oui","non","Non","Oui",0,0,0,0,0,0]
[null,{"$f":"IF(LEN('Détail des projets'!B88)=0,\"\",'Détail des projets'!B88)","v":"Serre agricole de culture mixte – Efficacité énergétique"},{"$f":"IF(LEN('Détail des projets'!C88)=0,\"\",'Détail des projets'!C88)","v":"Coop de travailleurs en serres Belle-de-Jour"},{"$f":"IF(LEN('Détail des projets'!H88)=0,\"\",'Détail des projets'!H88)","v":"02-Saguenay--Lac-Saint-Jean"},{"$f":"IF(LEN('Détail des projets'!L88)=0,\"\",'Détail des projets'!L88)","v":48309.33},38.647463504000001,"À la fin du projet (suite au dernier versement)",62.5000008021225,"QC-Québec","Oui",20,"oui","non","Non","Oui",0,0,0,0,0,0]
[null,{"$f":"IF(LEN('Détail des projets'!B89)=0,\"\",'Détail des projets'!B89)","v":"Électrification d’un deuxième séchoir sur rail"},{"$f":"IF(LEN('Détail des projets'!C89)=0,\"\",'Détail des projets'!C89)","v":"Damabois division Cap-Chat inc."},{"$f":"IF(LEN('Détail des projets'!H89)=0,\"\",'Détail des projets'!H89)","v":"11-Gaspésie--Îles-de-la-Madeleine"},{"$f":"IF(LEN('Détail des projets'!L89)=0,\"\",'Détail des projets'!L89)","v":1005090.53},917.65567336736001,"À la fin du projet (suite au dernier versement)",43.811227202978898,"QC-Québec","Oui",25,"oui","oui","Non","Oui",0,0,0,0,0,0]
[null,{"$f":"IF(LEN('Détail des projets'!B90)=0,\"\",'Détail des projets'!B90)","v":"Acériculture-Évaporateur électrique"},{"$f":"IF(LEN('Détail des projets'!C90)=0,\"\",'Détail des projets'!C90)","v":"Les érablières Lalanne inc."},{"$f":"IF(LEN('Détail des projets'!H90)=0,\"\",'Détail des projets'!H90)","v":"05-Estrie"},{"$f":"IF(LEN('Détail des projets'!L90)=0,\"\",'Détail des projets'!L90)","v":53345.729999999996},40.644367455999998,"À la fin du projet (suite au dernier versement)",65.624997187802222,"QC-Québec","Oui",20,"oui","non","Non","Oui",0,0,0,0,0,0]
[null,{"$f":"IF(LEN('Détail des projets'!B91)=0,\"\",'Détail des projets'!B91)","v":"Électrification du chauffage des unités air make-up"},{"$f":"IF(LEN('Détail des projets'!C91)=0,\"\",'Détail des projets'!C91)","v":"Structures CPI inc."},{"$f":"IF(LEN('Détail des projets'!H91)=0,\"\",'Détail des projets'!H91)","v":"02-Saguenay--Lac-Saint-Jean"},{"$f":"IF(LEN('Détail des projets'!L91)=0,\"\",'Détail des projets'!L91)","v":463896.91000000003},579.98496053743997,"À la fin du projet (suite au dernier versement)",31.993719945436684,"QC-Québec","Oui",25,"non","oui","Non","Oui",0,0,0,0,0,0]
[null,{"$f":"IF(LEN('Détail des projets'!B92)=0,\"\",'Détail des projets'!B92)","v":"Économie d'énergie"},{"$f":"IF(LEN('Détail des projets'!C92)=0,\"\",'Détail des projets'!C92)","v":"Quali-T-Groupe ULC"},{"$f":"IF(LEN('Détail des projets'!H92)=0,\"\",'Détail des projets'!H92)","v":"05-Estrie"},{"$f":"IF(LEN('Détail des projets'!L92)=0,\"\",'Détail des projets'!L92)","v":622769.25},570.86788443343301,"À la fin du projet (suite au dernier versement)",54.545829865528106,"QC-Québec","Oui",20,"oui","non","Non","Oui",0,0,0,0,0,0]
[null,{"$f":"IF(LEN('Détail des projets'!B93)=0,\"\",'Détail des projets'!B93)","v":"Conversion à la biomasse résiduelle et implantation d’écrans thermiques en serres"},{"$f":"IF(LEN('Détail des projets'!C93)=0,\"\",'Détail des projets'!C93)","v":"9354-1704 Québec inc. (Les serres Stéphane Bertrand inc.)"},{"$f":"IF(LEN('Détail des projets'!H93)=0,\"\",'Détail des projets'!H93)","v":"14-Lanaudière"},{"$f":"IF(LEN('Détail des projets'!L93)=0,\"\",'Détail des projets'!L93)","v":2263558.52},4527.1170484800004,"À la fin du projet (suite au dernier versement)",25,"QC-Québec","Oui",20,"oui","oui","Non","Oui",0,0,0,0,0,0]
[null,{"$f":"IF(LEN('Détail des projets'!B94)=0,\"\",'Détail des projets'!B94)","v":"Rideaux d'air"},{"$f":"IF(LEN('Détail des projets'!C94)=0,\"\",'Détail des projets'!C94)","v":"Industries Machinex inc."},{"$f":"IF(LEN('Détail des projets'!H94)=0,\"\",'Détail des projets'!H94)","v":"17-Centre-du-Québec"},{"$f":"IF(LEN('Détail des projets'!L94)=0,\"\",'Détail des projets'!L94)","v":58770.869999999995},47.016698143283598,"À la fin du projet (suite au dernier versement)",83.333329534534727,"QC-Québec","Oui",15,"oui","non","Non","Oui",0,0,0,0,0,0]
[null,{"$f":"IF(LEN('Détail des projets'!B95)=0,\"\",'Détail des projets'!B95)","v":"Acériculture-Évaporateur électrique"},{"$f":"IF(LEN('Détail des projets'!C95)=0,\"\",'Détail des projets'!C95)","v":"Ferme Pascal Binette inc."},{"$f":"IF(LEN('Détail des projets'!H95)=0,\"\",'Détail des projets'!H95)","v":"17-Centre-du-Québec"},{"$f":"IF(LEN('Détail des projets'!L95)=0,\"\",'Détail des projets'!L95)","v":65784.36},52.627491678719998,"À la fin du projet (suite au dernier versement)",62.499995631180731,"QC-Québec","Oui",20,"oui","non","Non","Oui",0,0,0,0,0,0]
[null,{"$f":"IF(LEN('Détail des projets'!B96)=0,\"\",'Détail des projets'!B96)","v":"Optimisation énergétique des bassins de galvanisation"},{"$f":"IF(LEN('Détail des projets'!C96)=0,\"\",'Détail des projets'!C96)","v":"ArcelorMittal Produits longs Canada s.e.n.c."},{"$f":"IF(LEN('Détail des projets'!H96)=0,\"\",'Détail des projets'!H96)","v":"06-Montréal"},{"$f":"IF(LEN('Détail des projets'!L96)=0,\"\",'Détail des projets'!L96)","v":202239.05},481.52154180000002,"À la fin du projet (suite au dernier versement)",16.800000203023107,"QC-Québec","Oui",25,"oui","non","Non","Oui",0,0,0,0,0,0]
[null,{"$f":"IF(LEN('Détail des projets'!B97)=0,\"\",'Détail des projets'!B97)","v":"Implantation d'une unité de traitement d'air efficace"},{"$f":"IF(LEN('Détail des projets'!C97)=0,\"\",'Détail des projets'!C97)","v":"Agropod Limitée"},{"$f":"IF(LEN('Détail des projets'!H97)=0,\"\",'Détail des projets'!H97)","v":"16-Montérégie"},{"$f":"IF(LEN('Détail des projets'!L97)=0,\"\",'Détail des projets'!L97)","v":1771200},1564.7159770400001,"À la fin du projet (suite au dernier versement)",56.59813109822683,"QC-Québec","Oui",20,"oui","non","Non","Oui",0,0,0,0,0,0]
[null,{"$f":"IF(LEN('Détail des projets'!B98)=0,\"\",'Détail des projets'!B98)","v":"Construction d'une nouvelle usine pour les produits pour la peau à base de lait de chèvre"},{"$f":"IF(LEN('Détail des projets'!C98)=0,\"\",'Détail des projets'!C98)","v":"Bopack inc."},{"$f":"IF(LEN('Détail des projets'!H98)=0,\"\",'Détail des projets'!H98)","v":"17-Centre-du-Québec"},{"$f":"IF(LEN('Détail des projets'!L98)=0,\"\",'Détail des projets'!L98)","v":54350},52.204338572799998,"À la fin du projet (suite au dernier versement)",52.055060446947174,"QC-Québec","Oui",20,"oui","non","Non","Oui",0,0,0,0,0,0]
[null,{"$f":"IF(LEN('Détail des projets'!B99)=0,\"\",'Détail des projets'!B99)","v":"Conversion électrique de chariots élévateurs"},{"$f":"IF(LEN('Détail des projets'!C99)=0,\"\",'Détail des projets'!C99)","v":"Boa-Franc, S.E.N.C."},{"$f":"IF(LEN('Détail des projets'!H99)=0,\"\",'Détail des projets'!H99)","v":"12-Chaudière-Appalaches"},{"$f":"IF(LEN('Détail des projets'!L99)=0,\"\",'Détail des projets'!L99)","v":117115.79000000001},89.231077252800006,"À la fin du projet (suite au dernier versement)",87.500000826094862,"QC-Québec","Oui",15,"non","oui","Non","Oui",0,0,0,0,0,0]
[null,{"$f":"IF(LEN('Détail des projets'!B100)=0,\"\",'Détail des projets'!B100)","v":"Remplacement de chariots élévateurs"},{"$f":"IF(LEN('Détail des projets'!C100)=0,\"\",'Détail des projets'!C100)","v":"Boa-Franc, S.E.N.C."},{"$f":"IF(LEN('Détail des projets'!H100)=0,\"\",'Détail des projets'!H100)","v":"12-Chaudière-Appalaches"},{"$f":"IF(LEN('Détail des projets'!L100)=0,\"\",'Détail des projets'!L100)","v":158272.82},150.73602027999999,"À la fin du projet (suite au dernier versement)",52.499999570772808,"QC-Québec","Oui",20,"non","oui","Non","Oui",0,0,0,0,0,0]
[null,{"$f":"IF(LEN('Détail des projets'!B101)=0,\"\",'Détail des projets'!B101)","v":"Mur solaire"},{"$f":"IF(LEN('Détail des projets'!C101)=0,\"\",'Détail des projets'!C101)","v":"Boa-Franc, S.E.N.C."},{"$f":"IF(LEN('Détail des projets'!H101)=0,\"\",'Détail des projets'!H101)","v":"12-Chaudière-Appalaches"},{"$f":"IF(LEN('Détail des projets'!L101)=0,\"\",'Détail des projets'!L101)","v":53448},55.784062319999997,"À la fin du projet (suite au dernier versement)",38.324924917371995,"QC-Québec","Oui",25,"oui","non","Non","Oui",0,0,0,0,0,0]
[null,{"$f":"IF(LEN('Détail des projets'!B102)=0,\"\",'Détail des projets'!B102)","v":"Mur solaire"},{"$f":"IF(LEN('Détail des projets'!C102)=0,\"\",'Détail des projets'!C102)","v":"Soprema inc."},{"$f":"IF(LEN('Détail des projets'!H102)=0,\"\",'Détail des projets'!H102)","v":"17-Centre-du-Québec"},{"$f":"IF(LEN('Détail des projets'!L102)=0,\"\",'Détail des projets'!L102)","v":12449},49.666444159999998,"À la fin du projet (suite au dernier versement)",10.026085185318006,"QC-Québec","Oui",25,"oui","non","Non","Oui",0,0,0,0,0,0]
[null,{"$f":"IF(LEN('Détail des projets'!B103)=0,\"\",'Détail des projets'!B103)","v":"Construction d'une usine de cannabis"},{"$f":"IF(LEN('Détail des projets'!C103)=0,\"\",'Détail des projets'!C103)","v":"Ono Cannabis inc."},{"$f":"IF(LEN('Détail des projets'!H103)=0,\"\",'Détail des projets'!H103)","v":"12-Chaudière-Appalaches"},{"$f":"IF(LEN('Détail des projets'!L103)=0,\"\",'Détail des projets'!L103)","v":887251.34000000008},1893.63789972,"À la fin du projet (suite au dernier versement)",18.74173177736234,"QC-Québec","Oui",25,"oui","non","Non","Oui",0,0,0,0,0,0]
[null,{"$f":"IF(LEN('Détail des projets'!B104)=0,\"\",'Détail des projets'!B104)","v":"Mur solaire"},{"$f":"IF(LEN('Détail des projets'!C104)=0,\"\",'Détail des projets'!C104)","v":"Soprema inc."},{"$f":"IF(LEN('Détail des projets'!H104)=0,\"\",'Détail des projets'!H104)","v":"14-Lanaudière"},{"$f":"IF(LEN('Détail des projets'!L104)=0,\"\",'Détail des projets'!L104)","v":31192.559999999998},23.765756280000002,"À la fin du projet (suite au dernier versement)",52.500008217706082,"QC-Québec","Oui",25,"oui","non","Non","Oui",0,0,0,0,0,0]
[null,{"$f":"IF(LEN('Détail des projets'!B105)=0,\"\",'Détail des projets'!B105)","v":"Réduction des GES par la technique de l'osmose inverse"},{"$f":"IF(LEN('Détail des projets'!C105)=0,\"\",'Détail des projets'!C105)","v":"Fromagerie Boivin"},{"$f":"IF(LEN('Détail des projets'!H105)=0,\"\",'Détail des projets'!H105)","v":"02-Saguenay--Lac-Saint-Jean"},{"$f":"IF(LEN('Détail des projets'!L105)=0,\"\",'Détail des projets'!L105)","v":604273.25},2220.9724645084798,"À la fin du projet (suite au dernier versement)",27.207597557213784,"QC-Québec","Oui",10,"oui","non","Non","Oui",0,0,0,0,0,0]
[null,{"$f":"IF(LEN('Détail des projets'!B106)=0,\"\",'Détail des projets'!B106)","v":"Ajout d'échangeurs de chaleur dans des bâtiments d'élevage de volailles"},{"$f":"IF(LEN('Détail des projets'!C106)=0,\"\",'Détail des projets'!C106)","v":"Ferme Avicole MGF inc."},{"$f":"IF(LEN('Détail des projets'!H106)=0,\"\",'Détail des projets'!H106)","v":"16-Montérégie"},{"$f":"IF(LEN('Détail des projets'!L106)=0,\"\",'Détail des projets'!L106)","v":184145.84},140.30159368841001,"À la fin du projet (suite au dernier versement)",65.624999388446668,"QC-Québec","Oui",20,"oui","non","Non","Oui",0,0,0,0,0,0]
[null,{"$f":"IF(LEN('Détail des projets'!B107)=0,\"\",'Détail des projets'!B107)","v":"Alimentation de l'usine en vapeur à faibles émissions de GES - Projet révisé"},{"$f":"IF(LEN('Détail des projets'!C107)=0,\"\",'Détail des projets'!C107)","v":"Produits Kruger Sherbrooke Inc."},{"$f":"IF(LEN('Détail des projets'!H107)=0,\"\",'Détail des projets'!H107)","v":"05-Estrie"},{"$f":"IF(LEN('Détail des projets'!L107)=0,\"\",'Détail des projets'!L107)","v":5000000},13909.3507810144,"À la fin du projet (suite au dernier versement)",14.378816319233998,"QC-Québec","Oui",25,"oui","non","Non","Oui",0,0,0,0,0,0]
[null,{"$f":"IF(LEN('Détail des projets'!B108)=0,\"\",'Détail des projets'!B108)","v":"Économie d'énergie"},{"$f":"IF(LEN('Détail des projets'!C108)=0,\"\",'Détail des projets'!C108)","v":"ABB Électrification Canada SRI"},{"$f":"IF(LEN('Détail des projets'!H108)=0,\"\",'Détail des projets'!H108)","v":"06-Montréal"},{"$f":"IF(LEN('Détail des projets'!L108)=0,\"\",'Détail des projets'!L108)","v":379443.31},337.11126119283603,"À la fin du projet (suite au dernier versement)",51.667626576847503,"QC-Québec","Oui",21.784877777099599,"oui","non","Non","Oui",0,0,0,0,0,0]
[null,{"$f":"IF(LEN('Détail des projets'!B109)=0,\"\",'Détail des projets'!B109)","v":"Alimentation au procédé et cascade"},{"$f":"IF(LEN('Détail des projets'!C109)=0,\"\",'Détail des projets'!C109)","v":"ABB Électrification Canada SRI"},{"$f":"IF(LEN('Détail des projets'!H109)=0,\"\",'Détail des projets'!H109)","v":"06-Montréal"},{"$f":"IF(LEN('Détail des projets'!L109)=0,\"\",'Détail des projets'!L109)","v":97459.579999999987},111.49963286746301,"À la fin du projet (suite au dernier versement)",40.56697733586936,"QC-Québec","Oui",21.546585083007798,"oui","non","Non","Oui",0,0,0,0,0,0]
[null,{"$f":"IF(LEN('Détail des projets'!B110)=0,\"\",'Détail des projets'!B110)","v":"Ajout d'échangeurs de chaleur dans des bâtiments d'élevage de volailles"},{"$f":"IF(LEN('Détail des projets'!C110)=0,\"\",'Détail des projets'!C110)","v":"Les Élevages Avico inc."},{"$f":"IF(LEN('Détail des projets'!H110)=0,\"\",'Détail des projets'!H110)","v":"16-Montérégie"},{"$f":"IF(LEN('Détail des projets'!L110)=0,\"\",'Détail des projets'!L110)","v":114267.07},87.060625504079596,"À la fin du projet (suite au dernier versement)",65.624999440559691,"QC-Québec","Oui",20,"oui","non","Non","Oui",0,0,0,0,0,0]
[null,{"$f":"IF(LEN('Détail des projets'!B111)=0,\"\",'Détail des projets'!B111)","v":"Ajout d'échangeurs de chaleur dans des bâtiments d'élevage de volailles"},{"$f":"IF(LEN('Détail des projets'!C111)=0,\"\",'Détail des projets'!C111)","v":"Ferme Gilles Brodeur inc."},{"$f":"IF(LEN('Détail des projets'!H111)=0,\"\",'Détail des projets'!H111)","v":"05-Estrie"},{"$f":"IF(LEN('Détail des projets'!L111)=0,\"\",'Détail des projets'!L111)","v":189318.26},164.25984980000001,"À la fin du projet (suite au dernier versement)",57.627673539976662,"QC-Québec","Oui",20,"oui","non","Non","Oui",0,0,0,0,0,0]
[null,{"$f":"IF(LEN('Détail des projets'!B112)=0,\"\",'Détail des projets'!B112)","v":"Remplacement d'une génératrice au diesel pour la production de granulats par une entrée électrique"},{"$f":"IF(LEN('Détail des projets'!C112)=0,\"\",'Détail des projets'!C112)","v":"Pavage Sartigan ltée"},{"$f":"IF(LEN('Détail des projets'!H112)=0,\"\",'Détail des projets'!H112)","v":"12-Chaudière-Appalaches"},{"$f":"IF(LEN('Détail des projets'!L112)=0,\"\",'Détail des projets'!L112)","v":514310.84},570.35035140000002,"À la fin du projet (suite au dernier versement)",30.058182000914371,"QC-Québec","Oui",30,"non","oui","Non","Oui",0,0,0,0,0,0]
[null,{"$f":"IF(LEN('Détail des projets'!B113)=0,\"\",'Détail des projets'!B113)","v":"Conversion électrique des systèmes de pompage (diesel) pour l'irrigation des petits fruits"},{"$f":"IF(LEN('Détail des projets'!C113)=0,\"\",'Détail des projets'!C113)","v":"Les Fraises de l'Île d'Orléans inc."},{"$f":"IF(LEN('Détail des projets'!H113)=0,\"\",'Détail des projets'!H113)","v":"03-Capitale-Nationale"},{"$f":"IF(LEN('Détail des projets'!L113)=0,\"\",'Détail des projets'!L113)","v":17878.690000000002},14.302948803,"À la fin du projet (suite au dernier versement)",50.000011176017075,"QC-Québec","Oui",25,"oui","non","Non","Oui",0,0,0,0,0,0]
[null,{"$f":"IF(LEN('Détail des projets'!B114)=0,\"\",'Détail des projets'!B114)","v":"Acériculture-Évaporateur électrique"},{"$f":"IF(LEN('Détail des projets'!C114)=0,\"\",'Détail des projets'!C114)","v":"Érablière Mont Yamaska 2009 inc."},{"$f":"IF(LEN('Détail des projets'!H114)=0,\"\",'Détail des projets'!H114)","v":"16-Montérégie"},{"$f":"IF(LEN('Détail des projets'!L114)=0,\"\",'Détail des projets'!L114)","v":67299.72},53.839776280000002,"À la fin du projet (suite au dernier versement)",62.499999674961501,"QC-Québec","Oui",20,"oui","non","Non","Oui",0,0,0,0,0,0]
[null,{"$f":"IF(LEN('Détail des projets'!B115)=0,\"\",'Détail des projets'!B115)","v":"Serre agricole de culture mixte – Efficacité énergétique - Écrans thermiques"},{"$f":"IF(LEN('Détail des projets'!C115)=0,\"\",'Détail des projets'!C115)","v":"Maurice Bélanger paysagiste inc."},{"$f":"IF(LEN('Détail des projets'!H115)=0,\"\",'Détail des projets'!H115)","v":"01-Bas-Saint-Laurent"},{"$f":"IF(LEN('Détail des projets'!L115)=0,\"\",'Détail des projets'!L115)","v":17954.22},14.363378568,"À la fin du projet (suite au dernier versement)",62.499988825748822,"QC-Québec","Oui",20,"oui","non","Non","Oui",0,0,0,0,0,0]
[null,{"$f":"IF(LEN('Détail des projets'!B116)=0,\"\",'Détail des projets'!B116)","v":"Mur solaire"},{"$f":"IF(LEN('Détail des projets'!C116)=0,\"\",'Détail des projets'!C116)","v":"Acier Rayco (2016) inc."},{"$f":"IF(LEN('Détail des projets'!H116)=0,\"\",'Détail des projets'!H116)","v":"04-Mauricie"},{"$f":"IF(LEN('Détail des projets'!L116)=0,\"\",'Détail des projets'!L116)","v":16609.18},13.2873438476418,"À la fin du projet (suite au dernier versement)",50.000000573320762,"QC-Québec","Oui",25,"oui","non","Non","Oui",0,0,0,0,0,0]
[null,{"$f":"IF(LEN('Détail des projets'!B117)=0,\"\",'Détail des projets'!B117)","v":"Serre-Conversion chauffage-CII- électrique"},{"$f":"IF(LEN('Détail des projets'!C117)=0,\"\",'Détail des projets'!C117)","v":"La Boîte à Légumes Inc."},{"$f":"IF(LEN('Détail des projets'!H117)=0,\"\",'Détail des projets'!H117)","v":"05-Estrie"},{"$f":"IF(LEN('Détail des projets'!L117)=0,\"\",'Détail des projets'!L117)","v":53010},98.886067474911897,"À la fin du projet (suite au dernier versement)",26.803573725615603,"QC-Québec","Oui",20,"oui","non","Non","Oui",0,0,0,0,0,0]
[null,{"$f":"IF(LEN('Détail des projets'!B118)=0,\"\",'Détail des projets'!B118)","v":"Installation d'un Flu-Ace et de trappes à vapeur Venturi"},{"$f":"IF(LEN('Détail des projets'!C118)=0,\"\",'Détail des projets'!C118)","v":"Société en commandite Stadacona WB"},{"$f":"IF(LEN('Détail des projets'!H118)=0,\"\",'Détail des projets'!H118)","v":"03-Capitale-Nationale"},{"$f":"IF(LEN('Détail des projets'!L118)=0,\"\",'Détail des projets'!L118)","v":3700585.55},8556.4053169599993,"À la fin du projet (suite au dernier versement)",15.852946960914391,"QC-Québec","Oui",27.281553268432599,"oui","non","Non","Oui",0,0,0,0,0,0]
[null,{"$f":"IF(LEN('Détail des projets'!B119)=0,\"\",'Détail des projets'!B119)","v":"Optimisation du réseau de vapeur et remplacement de la turbine à vapeur"},{"$f":"IF(LEN('Détail des projets'!C119)=0,\"\",'Détail des projets'!C119)","v":"Société en commandite Stadacona WB"},{"$f":"IF(LEN('Détail des projets'!H119)=0,\"\",'Détail des projets'!H119)","v":"03-Capitale-Nationale"},{"$f":"IF(LEN('Détail des projets'!L119)=0,\"\",'Détail des projets'!L119)","v":905941},3768.61447228,"À la fin du projet (suite au dernier versement)",16.026066638259028,"QC-Québec","Oui",15,"oui","oui","Non","Oui",0,0,0,0,0,0]
[null,{"$f":"IF(LEN('Détail des projets'!B120)=0,\"\",'Détail des projets'!B120)","v":"Économie d'énergie"},{"$f":"IF(LEN('Détail des projets'!C120)=0,\"\",'Détail des projets'!C120)","v":"Manac inc."},{"$f":"IF(LEN('Détail des projets'!H120)=0,\"\",'Détail des projets'!H120)","v":"12-Chaudière-Appalaches"},{"$f":"IF(LEN('Détail des projets'!L120)=0,\"\",'Détail des projets'!L120)","v":285344.63},245.20850397394301,"À la fin du projet (suite au dernier versement)",48.722499734923375,"QC-Québec","Oui",23.883865356445298,"oui","non","Non","Oui",0,0,0,0,0,0]
[null,{"$f":"IF(LEN('Détail des projets'!B121)=0,\"\",'Détail des projets'!B121)","v":"Économie d'énergie"},{"$f":"IF(LEN('Détail des projets'!C121)=0,\"\",'Détail des projets'!C121)","v":"Manac inc."},{"$f":"IF(LEN('Détail des projets'!H121)=0,\"\",'Détail des projets'!H121)","v":"12-Chaudière-Appalaches"},{"$f":"IF(LEN('Détail des projets'!L121)=0,\"\",'Détail des projets'!L121)","v":291880.49},239.06529560596999,"À la fin du projet (suite au dernier versement)",48.836948794287665,"QC-Québec","Oui",25,"oui","non","Non","Oui",0,0,0,0,0,0]
[null,{"$f":"IF(LEN('Détail des projets'!B122)=0,\"\",'Détail des projets'!B122)","v":"Serre-Conversion chauffage-CII- électrique"},{"$f":"IF(LEN('Détail des projets'!C122)=0,\"\",'Détail des projets'!C122)","v":"Ferme Cabru inc."},{"$f":"IF(LEN('Détail des projets'!H122)=0,\"\",'Détail des projets'!H122)","v":"16-Montérégie"},{"$f":"IF(LEN('Détail des projets'!L122)=0,\"\",'Détail des projets'!L122)","v":51212.91},39.747567869092798,"À la fin du projet (suite au dernier versement)",64.422696463677852,"QC-Québec","Oui",20,"oui","non","Non","Oui",0,0,0,0,0,0]
[null,{"$f":"IF(LEN('Détail des projets'!B123)=0,\"\",'Détail des projets'!B123)","v":"Construction Agropod Verchères"},{"$f":"IF(LEN('Détail des projets'!C123)=0,\"\",'Détail des projets'!C123)","v":"Agropod Services inc."},{"$f":"IF(LEN('Détail des projets'!H123)=0,\"\",'Détail des projets'!H123)","v":"16-Montérégie"},{"$f":"IF(LEN('Détail des projets'!L123)=0,\"\",'Détail des projets'!L123)","v":1913913},1565.90483784,"À la fin du projet (suite au dernier versement)",61.112046969598751,"QC-Québec","Oui",20,"oui","non","Non","Oui",0,0,0,0,0,0]
[null,{"$f":"IF(LEN('Détail des projets'!B124)=0,\"\",'Détail des projets'!B124)","v":"Conversion du chauffage à la géothermie"},{"$f":"IF(LEN('Détail des projets'!C124)=0,\"\",'Détail des projets'!C124)","v":"Les Jardins de l'Écoumène inc."},{"$f":"IF(LEN('Détail des projets'!H124)=0,\"\",'Détail des projets'!H124)","v":"14-Lanaudière"},{"$f":"IF(LEN('Détail des projets'!L124)=0,\"\",'Détail des projets'!L124)","v":28821.39},28.420770940000001,"À la fin du projet (suite au dernier versement)",40.563839821017886,"QC-Québec","Oui",25,"non","oui","Non","Oui",0,0,0,0,0,0]
[null,{"$f":"IF(LEN('Détail des projets'!B125)=0,\"\",'Détail des projets'!B125)","v":"Chauffage solaire sur l'agrandissement de l'usine Matritech"},{"$f":"IF(LEN('Détail des projets'!C125)=0,\"\",'Détail des projets'!C125)","v":"Gestion immeubles Cardin inc."},{"$f":"IF(LEN('Détail des projets'!H125)=0,\"\",'Détail des projets'!H125)","v":"17-Centre-du-Québec"},{"$f":"IF(LEN('Détail des projets'!L125)=0,\"\",'Détail des projets'!L125)","v":134107.39000000001},107.28591332000001,"À la fin du projet (suite au dernier versement)",49.999999384821386,"QC-Québec","Oui",25,"oui","non","Non","Oui",0,0,0,0,0,0]
[null,{"$f":"IF(LEN('Détail des projets'!B126)=0,\"\",'Détail des projets'!B126)","v":"Serre-Conversion chauffage-CII- électrique"},{"$f":"IF(LEN('Détail des projets'!C126)=0,\"\",'Détail des projets'!C126)","v":"La cigale et la fourmi!"},{"$f":"IF(LEN('Détail des projets'!H126)=0,\"\",'Détail des projets'!H126)","v":"11-Gaspésie--Îles-de-la-Madeleine"},{"$f":"IF(LEN('Détail des projets'!L126)=0,\"\",'Détail des projets'!L126)","v":16948.46},54.603613469034201,"À la fin du projet (suite au dernier versement)",15.519540670702588,"QC-Québec","Oui",20,"oui","non","Non","Oui",0,0,0,0,0,0]
[null,{"$f":"IF(LEN('Détail des projets'!B127)=0,\"\",'Détail des projets'!B127)","v":"Boucle de récupération de chaleur au glycol pour chauffage et préchauffage divers"},{"$f":"IF(LEN('Détail des projets'!C127)=0,\"\",'Détail des projets'!C127)","v":"9416-8382 Québec inc."},{"$f":"IF(LEN('Détail des projets'!H127)=0,\"\",'Détail des projets'!H127)","v":"05-Estrie"},{"$f":"IF(LEN('Détail des projets'!L127)=0,\"\",'Détail des projets'!L127)","v":1063486.74},2126.9734818687998,"À la fin du projet (suite au dernier versement)",25.01,"QC-Québec","Oui",20,"oui","non","Non","Oui",0,0,0,0,0,0]
[null,{"$f":"IF(LEN('Détail des projets'!B128)=0,\"\",'Détail des projets'!B128)","v":"Remplacement de deux séchoirs à grains"},{"$f":"IF(LEN('Détail des projets'!C128)=0,\"\",'Détail des projets'!C128)","v":"Ferme du Cordon inc."},{"$f":"IF(LEN('Détail des projets'!H128)=0,\"\",'Détail des projets'!H128)","v":"17-Centre-du-Québec"},{"$f":"IF(LEN('Détail des projets'!L128)=0,\"\",'Détail des projets'!L128)","v":42130.100000000006},33.704076060719999,"À la fin du projet (suite au dernier versement)",50.00000584392226,"QC-Québec","Oui",25,"oui","non","Non","Oui",0,0,0,0,0,0]
[null,{"$f":"IF(LEN('Détail des projets'!B129)=0,\"\",'Détail des projets'!B129)","v":"Plan de séchage de grains"},{"$f":"IF(LEN('Détail des projets'!C129)=0,\"\",'Détail des projets'!C129)","v":"Ferme Maquille inc."},{"$f":"IF(LEN('Détail des projets'!H129)=0,\"\",'Détail des projets'!H129)","v":"17-Centre-du-Québec"},{"$f":"IF(LEN('Détail des projets'!L129)=0,\"\",'Détail des projets'!L129)","v":92061.3},73.649036695999996,"À la fin du projet (suite au dernier versement)",50.00000224307076,"QC-Québec","Oui",25,"oui","non","Non","Oui",0,0,0,0,0,0]
[null,{"$f":"IF(LEN('Détail des projets'!B130)=0,\"\",'Détail des projets'!B130)","v":"Implantation de deux séchoirs fixes électriques"},{"$f":"IF(LEN('Détail des projets'!C130)=0,\"\",'Détail des projets'!C130)","v":"Normand Sioui"},{"$f":"IF(LEN('Détail des projets'!H130)=0,\"\",'Détail des projets'!H130)","v":"03-Capitale-Nationale"},{"$f":"IF(LEN('Détail des projets'!L130)=0,\"\",'Détail des projets'!L130)","v":688530.71},550.82456579999996,"À la fin du projet (suite au dernier versement)",50.000000199700608,"QC-Québec","Oui",25,"non","oui","Non","Oui",0,0,0,0,0,0]
[null,{"$f":"IF(LEN('Détail des projets'!B131)=0,\"\",'Détail des projets'!B131)","v":"Cannasher - Récupération de chaleur du procédé"},{"$f":"IF(LEN('Détail des projets'!C131)=0,\"\",'Détail des projets'!C131)","v":"TPC3 investissements inc."},{"$f":"IF(LEN('Détail des projets'!H131)=0,\"\",'Détail des projets'!H131)","v":"05-Estrie"},{"$f":"IF(LEN('Détail des projets'!L131)=0,\"\",'Détail des projets'!L131)","v":2193140.6},1754.5124777359999,"À la fin du projet (suite au dernier versement)",50.000000064519355,"QC-Québec","Oui",25,"oui","non","Non","Oui",0,0,0,0,0,0]
[null,{"$f":"IF(LEN('Détail des projets'!B132)=0,\"\",'Détail des projets'!B132)","v":"Conversion électrique des systèmes de pompage (diesel) pour l'irrigation des petits fruits"},{"$f":"IF(LEN('Détail des projets'!C132)=0,\"\",'Détail des projets'!C132)","v":"Les Fraises de l'Île d'Orléans inc."},{"$f":"IF(LEN('Détail des projets'!H132)=0,\"\",'Détail des projets'!H132)","v":"03-Capitale-Nationale"},{"$f":"IF(LEN('Détail des projets'!L132)=0,\"\",'Détail des projets'!L132)","v":20326.53},16.261225482,"À la fin du projet (suite au dernier versement)",49.999995443147867,"QC-Québec","Oui",25,"oui","non","Non","Oui",0,0,0,0,0,0]
[null,{"$f":"IF(LEN('Détail des projets'!B133)=0,\"\",'Détail des projets'!B133)","v":"Ajout d'une chaudière électrique de 1250 kW pour utilisation hors-pointe"},{"$f":"IF(LEN('Détail des projets'!C133)=0,\"\",'Détail des projets'!C133)","v":"Bernard Breton inc."},{"$f":"IF(LEN('Détail des projets'!H133)=0,\"\",'Détail des projets'!H133)","v":"12-Chaudière-Appalaches"},{"$f":"IF(LEN('Détail des projets'!L133)=0,\"\",'Détail des projets'!L133)","v":394770},384.04114895200001,"À la fin du projet (suite au dernier versement)",41.117468904285658,"QC-Québec","Oui",25,"non","oui","Non","Oui",0,0,0,0,0,0]
[null,{"$f":"IF(LEN('Détail des projets'!B134)=0,\"\",'Détail des projets'!B134)","v":"Construction d'un complexe de serres et implantation de mesures d’efficacité énergétique"},{"$f":"IF(LEN('Détail des projets'!C134)=0,\"\",'Détail des projets'!C134)","v":"Marie-Josée Daguerre, Louis Vaillancourt S.E.N.C."},{"$f":"IF(LEN('Détail des projets'!H134)=0,\"\",'Détail des projets'!H134)","v":"15-Laurentides"},{"$f":"IF(LEN('Détail des projets'!L134)=0,\"\",'Détail des projets'!L134)","v":633125},582.18978040000002,"À la fin du projet (suite au dernier versement)",58.820784181669282,"QC-Québec","Oui",18.488176345825199,"oui","oui","Non","Oui",0,0,0,0,0,0]
[null,{"$f":"IF(LEN('Détail des projets'!B135)=0,\"\",'Détail des projets'!B135)","v":"Acériculture-Évaporateur électrique"},{"$f":"IF(LEN('Détail des projets'!C135)=0,\"\",'Détail des projets'!C135)","v":"Érablière Maxime Caron inc."},{"$f":"IF(LEN('Détail des projets'!H135)=0,\"\",'Détail des projets'!H135)","v":"12-Chaudière-Appalaches"},{"$f":"IF(LEN('Détail des projets'!L135)=0,\"\",'Détail des projets'!L135)","v":69176.06},55.340849769275302,"À la fin du projet (suite au dernier versement)",62.499998001842997,"QC-Québec","Oui",20,"oui","non","Non","Oui",0,0,0,0,0,0]
[null,{"$f":"IF(LEN('Détail des projets'!B136)=0,\"\",'Détail des projets'!B136)","v":"Remplacement du brûleur Hauck"},{"$f":"IF(LEN('Détail des projets'!C136)=0,\"\",'Détail des projets'!C136)","v":"Les Pavages des Monts"},{"$f":"IF(LEN('Détail des projets'!H136)=0,\"\",'Détail des projets'!H136)","v":"01-Bas-Saint-Laurent"},{"$f":"IF(LEN('Détail des projets'!L136)=0,\"\",'Détail des projets'!L136)","v":58557.69},46.846154040000002,"À la fin du projet (suite au dernier versement)",62.499997278325132,"QC-Québec","Oui",20,"oui","non","Non","Oui",0,0,0,0,0,0]
[null,{"$f":"IF(LEN('Détail des projets'!B137)=0,\"\",'Détail des projets'!B137)","v":"Installation d'un nouveau séchoir à grains"},{"$f":"IF(LEN('Détail des projets'!C137)=0,\"\",'Détail des projets'!C137)","v":"R.S. Jeanson & Fils inc."},{"$f":"IF(LEN('Détail des projets'!H137)=0,\"\",'Détail des projets'!H137)","v":"16-Montérégie"},{"$f":"IF(LEN('Détail des projets'!L137)=0,\"\",'Détail des projets'!L137)","v":109195.08},87.356064283760006,"À la fin du projet (suite au dernier versement)",49.999999837584255,"QC-Québec","Oui",25,"oui","non","Non","Oui",0,0,0,0,0,0]
[null,{"$f":"IF(LEN('Détail des projets'!B138)=0,\"\",'Détail des projets'!B138)","v":"Remplacement du préchauffeur no 3"},{"$f":"IF(LEN('Détail des projets'!C138)=0,\"\",'Détail des projets'!C138)","v":"La Cie matériaux de construction BP Canada"},{"$f":"IF(LEN('Détail des projets'!H138)=0,\"\",'Détail des projets'!H138)","v":"06-Montréal"},{"$f":"IF(LEN('Détail des projets'!L138)=0,\"\",'Détail des projets'!L138)","v":525889},1051.7787760399999,"À la fin du projet (suite au dernier versement)",19.999985243284662,"QC-Québec","Oui",25,"oui","non","Non","Oui",0,0,0,0,0,0]
[null,{"$f":"IF(LEN('Détail des projets'!B139)=0,\"\",'Détail des projets'!B139)","v":"Installation d'un séchoir à grains"},{"$f":"IF(LEN('Détail des projets'!C139)=0,\"\",'Détail des projets'!C139)","v":"Ferme L.A.B.D. inc."},{"$f":"IF(LEN('Détail des projets'!H139)=0,\"\",'Détail des projets'!H139)","v":"12-Chaudière-Appalaches"},{"$f":"IF(LEN('Détail des projets'!L139)=0,\"\",'Détail des projets'!L139)","v":32917.22},26.333773131600001,"À la fin du projet (suite au dernier versement)",50.000005446238156,"QC-Québec","Oui",25,"oui","non","Non","Oui",0,0,0,0,0,0]
[null,{"$f":"IF(LEN('Détail des projets'!B140)=0,\"\",'Détail des projets'!B140)","v":"Implantation de deux séchoirs électriques"},{"$f":"IF(LEN('Détail des projets'!C140)=0,\"\",'Détail des projets'!C140)","v":"Arbec, Bois d'œuvre inc."},{"$f":"IF(LEN('Détail des projets'!H140)=0,\"\",'Détail des projets'!H140)","v":"04-Mauricie"},{"$f":"IF(LEN('Détail des projets'!L140)=0,\"\",'Détail des projets'!L140)","v":3663000},8053.7463093778097,"À la fin du projet (suite au dernier versement)",18.192775681224479,"QC-Québec","Oui",25,"oui","non","Non","Oui",0,0,0,0,0,0]
[null,{"$f":"IF(LEN('Détail des projets'!B141)=0,\"\",'Détail des projets'!B141)","v":"Serre-Conversion chauffage-CII- électrique"},{"$f":"IF(LEN('Détail des projets'!C141)=0,\"\",'Détail des projets'!C141)","v":"Ferme la Bourrasque"},{"$f":"IF(LEN('Détail des projets'!H141)=0,\"\",'Détail des projets'!H141)","v":"16-Montérégie"},{"$f":"IF(LEN('Détail des projets'!L141)=0,\"\",'Détail des projets'!L141)","v":56550},89.425173913683494,"À la fin du projet (suite au dernier versement)",31.618613375347842,"QC-Québec","Oui",20,"oui","non","Non","Oui",0,0,0,0,0,0]
[null,{"$f":"IF(LEN('Détail des projets'!B142)=0,\"\",'Détail des projets'!B142)","v":"Serre-Conversion chauffage-CII- électrique"},{"$f":"IF(LEN('Détail des projets'!C142)=0,\"\",'Détail des projets'!C142)","v":"Ferme la Bourrasque"},{"$f":"IF(LEN('Détail des projets'!H142)=0,\"\",'Détail des projets'!H142)","v":"16-Montérégie"},{"$f":"IF(LEN('Détail des projets'!L142)=0,\"\",'Détail des projets'!L142)","v":52200},68.872464683339999,"À la fin du projet (suite au dernier versement)",37.896131814073868,"QC-Québec","Oui",20,"oui","non","Non","Oui",0,0,0,0,0,0]
[null,{"$f":"IF(LEN('Détail des projets'!B143)=0,\"\",'Détail des projets'!B143)","v":"Récupération de chaleur avec thermopompe pour le chauffage de l'eau de procédé"},{"$f":"IF(LEN('Détail des projets'!C143)=0,\"\",'Détail des projets'!C143)","v":"Spécialités Lassonde inc."},{"$f":"IF(LEN('Détail des projets'!H143)=0,\"\",'Détail des projets'!H143)","v":"16-Montérégie"},{"$f":"IF(LEN('Détail des projets'!L143)=0,\"\",'Détail des projets'!L143)","v":534465.01},427.57200920000002,"À la fin du projet (suite au dernier versement)",49.999999859672762,"QC-Québec","Oui",25,"oui","non","Non","Oui",0,0,0,0,0,0]
[null,{"$f":"IF(LEN('Détail des projets'!B144)=0,\"\",'Détail des projets'!B144)","v":"Ajout d'échangeurs de chaleur dans des bâtiments d'élevage de volailles"},{"$f":"IF(LEN('Détail des projets'!C144)=0,\"\",'Détail des projets'!C144)","v":"Ferme Daniel Brodeur (1981) inc."},{"$f":"IF(LEN('Détail des projets'!H144)=0,\"\",'Détail des projets'!H144)","v":"05-Estrie"},{"$f":"IF(LEN('Détail des projets'!L144)=0,\"\",'Détail des projets'!L144)","v":158612.41999999998},127.84993590462101,"À la fin du projet (suite au dernier versement)",62.030699850459257,"QC-Québec","Oui",20,"oui","non","Non","Oui",0,0,0,0,0,0]
[null,{"$f":"IF(LEN('Détail des projets'!B145)=0,\"\",'Détail des projets'!B145)","v":"Implantation d'un séchoir électrique"},{"$f":"IF(LEN('Détail des projets'!C145)=0,\"\",'Détail des projets'!C145)","v":"Produits Forestiers Petit-Paris inc."},{"$f":"IF(LEN('Détail des projets'!H145)=0,\"\",'Détail des projets'!H145)","v":"02-Saguenay--Lac-Saint-Jean"},{"$f":"IF(LEN('Détail des projets'!L145)=0,\"\",'Détail des projets'!L145)","v":1476512.97},2460.8549502553601,"À la fin du projet (suite au dernier versement)",23.999999997509548,"QC-Québec","Oui",25,"non","oui","Non","Oui",0,0,0,0,0,0]
[null,{"$f":"IF(LEN('Détail des projets'!B146)=0,\"\",'Détail des projets'!B146)","v":"Implantation d'un chauffage électrique"},{"$f":"IF(LEN('Détail des projets'!C146)=0,\"\",'Détail des projets'!C146)","v":"Produits Forestiers Petit-Paris inc."},{"$f":"IF(LEN('Détail des projets'!H146)=0,\"\",'Détail des projets'!H146)","v":"02-Saguenay--Lac-Saint-Jean"},{"$f":"IF(LEN('Détail des projets'!L146)=0,\"\",'Détail des projets'!L146)","v":120415.88},238.17984679151999,"À la fin du projet (suite au dernier versement)",20.22268157816066,"QC-Québec","Oui",25,"non","oui","Non","Oui",0,0,0,0,0,0]
[null,{"$f":"IF(LEN('Détail des projets'!B147)=0,\"\",'Détail des projets'!B147)","v":"Nouvelle usine de filtration des résidus - Mine LaRonde"},{"$f":"IF(LEN('Détail des projets'!C147)=0,\"\",'Détail des projets'!C147)","v":"Mines Agnico Eagle limitée"},{"$f":"IF(LEN('Détail des projets'!H147)=0,\"\",'Détail des projets'!H147)","v":"08-Abitibi-Témiscamingue"},{"$f":"IF(LEN('Détail des projets'!L147)=0,\"\",'Détail des projets'!L147)","v":139000},378.38722283999999,"À la fin du projet (suite au dernier versement)",14.693942248549526,"QC-Québec","Oui",25,"oui","non","Non","Oui",0,0,0,0,0,0]
[null,{"$f":"IF(LEN('Détail des projets'!B148)=0,\"\",'Détail des projets'!B148)","v":"Électrification d'une cannebergière"},{"$f":"IF(LEN('Détail des projets'!C148)=0,\"\",'Détail des projets'!C148)","v":"Canneberges Dénitoine"},{"$f":"IF(LEN('Détail des projets'!H148)=0,\"\",'Détail des projets'!H148)","v":"17-Centre-du-Québec"},{"$f":"IF(LEN('Détail des projets'!L148)=0,\"\",'Détail des projets'!L148)","v":551662.41999999993},505.45172145599997,"À la fin du projet (suite au dernier versement)",54.571227733767117,"QC-Québec","Oui",20,"non","oui","Non","Oui",0,0,0,0,0,0]
[null,{"$f":"IF(LEN('Détail des projets'!B149)=0,\"\",'Détail des projets'!B149)","v":"Serre agricole de culture ornementale – Efficacité énergétique"},{"$f":"IF(LEN('Détail des projets'!C149)=0,\"\",'Détail des projets'!C149)","v":"Les Serres Jacques Barbe inc."},{"$f":"IF(LEN('Détail des projets'!H149)=0,\"\",'Détail des projets'!H149)","v":"15-Laurentides"},{"$f":"IF(LEN('Détail des projets'!L149)=0,\"\",'Détail des projets'!L149)","v":350534.99},280.42798895999999,"À la fin du projet (suite au dernier versement)",62.5,"QC-Québec","Oui",20,"oui","non","Non","Oui",0,0,0,0,0,0]
[null,{"$f":"IF(LEN('Détail des projets'!B150)=0,\"\",'Détail des projets'!B150)","v":"Acériculture-Évaporateur électrique"},{"$f":"IF(LEN('Détail des projets'!C150)=0,\"\",'Détail des projets'!C150)","v":"Érablière SFKL S.E.N.C."},{"$f":"IF(LEN('Détail des projets'!H150)=0,\"\",'Détail des projets'!H150)","v":"12-Chaudière-Appalaches"},{"$f":"IF(LEN('Détail des projets'!L150)=0,\"\",'Détail des projets'!L150)","v":17074.32},13.659452807999999,"À la fin du projet (suite au dernier versement)",62.5,"QC-Québec","Oui",20,"oui","non","Non","Oui",0,0,0,0,0,0]
[null,{"$f":"IF(LEN('Détail des projets'!B151)=0,\"\",'Détail des projets'!B151)","v":"Acériculture-Évaporateur électrique"},{"$f":"IF(LEN('Détail des projets'!C151)=0,\"\",'Détail des projets'!C151)","v":"Érablière Léonard (2017) inc."},{"$f":"IF(LEN('Détail des projets'!H151)=0,\"\",'Détail des projets'!H151)","v":"15-Laurentides"},{"$f":"IF(LEN('Détail des projets'!L151)=0,\"\",'Détail des projets'!L151)","v":54857},43.885597244107799,"À la fin du projet (suite au dernier versement)",62.500003924824384,"QC-Québec","Oui",20,"oui","non","Non","Oui",0,0,0,0,0,0]
[null,{"$f":"IF(LEN('Détail des projets'!B152)=0,\"\",'Détail des projets'!B152)","v":"Électrification des séchoirs à bois"},{"$f":"IF(LEN('Détail des projets'!C152)=0,\"\",'Détail des projets'!C152)","v":"Arbec, Bois d'œuvre inc."},{"$f":"IF(LEN('Détail des projets'!H152)=0,\"\",'Détail des projets'!H152)","v":"02-Saguenay--Lac-Saint-Jean"},{"$f":"IF(LEN('Détail des projets'!L152)=0,\"\",'Détail des projets'!L152)","v":2013436.5799999998},4026.8731546888998,"À la fin du projet (suite au dernier versement)",20.000000026378281,"QC-Québec","Oui",25,"non","oui","Non","Oui",0,0,0,0,0,0]
[null,{"$f":"IF(LEN('Détail des projets'!B153)=0,\"\",'Détail des projets'!B153)","v":"Installation d’un échangeur pour la ventilation de l'usine"},{"$f":"IF(LEN('Détail des projets'!C153)=0,\"\",'Détail des projets'!C153)","v":"Robert Bernard (TRM) ltée"},{"$f":"IF(LEN('Détail des projets'!H153)=0,\"\",'Détail des projets'!H153)","v":"05-Estrie"},{"$f":"IF(LEN('Détail des projets'!L153)=0,\"\",'Détail des projets'!L153)","v":452593.69},362.07495275999997,"À la fin du projet (suite au dernier versement)",49.999999895049356,"QC-Québec","Oui",25,"oui","non","Non","Oui",0,0,0,0,0,0]
[null,{"$f":"IF(LEN('Détail des projets'!B154)=0,\"\",'Détail des projets'!B154)","v":"Une ligne électrique pour éviter l'utilisation d'une génératrice à l'Érablière Dany Michaud"},{"$f":"IF(LEN('Détail des projets'!C154)=0,\"\",'Détail des projets'!C154)","v":"Dany Michaud"},{"$f":"IF(LEN('Détail des projets'!H154)=0,\"\",'Détail des projets'!H154)","v":"01-Bas-Saint-Laurent"},{"$f":"IF(LEN('Détail des projets'!L154)=0,\"\",'Détail des projets'!L154)","v":11709.42},9.3675392513000002,"À la fin du projet (suite au dernier versement)",31.249989153701705,"QC-Québec","Oui",40,"non","oui","Non","Oui",0,0,0,0,0,0]
[null,{"$f":"IF(LEN('Détail des projets'!B155)=0,\"\",'Détail des projets'!B155)","v":"Conversion du pompage diesel vers l'électricité"},{"$f":"IF(LEN('Détail des projets'!C155)=0,\"\",'Détail des projets'!C155)","v":"Gazonnière Alexander inc."},{"$f":"IF(LEN('Détail des projets'!H155)=0,\"\",'Détail des projets'!H155)","v":"14-Lanaudière"},{"$f":"IF(LEN('Détail des projets'!L155)=0,\"\",'Détail des projets'!L155)","v":85169.66},68.135728499999999,"À la fin du projet (suite au dernier versement)",62.499999541356637,"QC-Québec","Oui",20,"non","oui","Non","Oui",0,0,0,0,0,0]
[null,{"$f":"IF(LEN('Détail des projets'!B156)=0,\"\",'Détail des projets'!B156)","v":"Isocanmed – Récupération de chaleur du procédé"},{"$f":"IF(LEN('Détail des projets'!C156)=0,\"\",'Détail des projets'!C156)","v":"Isocanmed inc."},{"$f":"IF(LEN('Détail des projets'!H156)=0,\"\",'Détail des projets'!H156)","v":"04-Mauricie"},{"$f":"IF(LEN('Détail des projets'!L156)=0,\"\",'Détail des projets'!L156)","v":1907106.75},1525.685402136,"À la fin du projet (suite au dernier versement)",49.999999929998673,"QC-Québec","Oui",25,"oui","non","Non","Oui",0,0,0,0,0,0]
[null,{"$f":"IF(LEN('Détail des projets'!B157)=0,\"\",'Détail des projets'!B157)","v":"Phase 3 - Projet d’agrandissement et d’efficacité énergétique"},{"$f":"IF(LEN('Détail des projets'!C157)=0,\"\",'Détail des projets'!C157)","v":"Les Serres Coulombe inc."},{"$f":"IF(LEN('Détail des projets'!H157)=0,\"\",'Détail des projets'!H157)","v":"14-Lanaudière"},{"$f":"IF(LEN('Détail des projets'!L157)=0,\"\",'Détail des projets'!L157)","v":161754.82},189.11189872,"À la fin du projet (suite au dernier versement)",49.5201444072041,"QC-Québec","Oui",17.2725505828857,"oui","non","Non","Oui",0,0,0,0,0,0]
[null,{"$f":"IF(LEN('Détail des projets'!B158)=0,\"\",'Détail des projets'!B158)","v":"Phase 4 - Projet d’agrandissement et d’efficacité énergétique"},{"$f":"IF(LEN('Détail des projets'!C158)=0,\"\",'Détail des projets'!C158)","v":"12809672 Canada inc."},{"$f":"IF(LEN('Détail des projets'!H158)=0,\"\",'Détail des projets'!H158)","v":"14-Lanaudière"},{"$f":"IF(LEN('Détail des projets'!L158)=0,\"\",'Détail des projets'!L158)","v":283880.74},403.837294128,"À la fin du projet (suite au dernier versement)",40.545936965726973,"QC-Québec","Oui",17.337327957153299,"oui","non","Non","Oui",0,0,0,0,0,0]
[null,{"$f":"IF(LEN('Détail des projets'!B159)=0,\"\",'Détail des projets'!B159)","v":"Acériculture-Évaporateur électrique"},{"$f":"IF(LEN('Détail des projets'!C159)=0,\"\",'Détail des projets'!C159)","v":"9274-6544 Québec inc."},{"$f":"IF(LEN('Détail des projets'!H159)=0,\"\",'Détail des projets'!H159)","v":"01-Bas-Saint-Laurent"},{"$f":"IF(LEN('Détail des projets'!L159)=0,\"\",'Détail des projets'!L159)","v":100000},85.512474678497597,"À la fin du projet (suite au dernier versement)",58.471001088420927,"QC-Québec","Oui",20,"oui","non","Non","Oui",0,0,0,0,0,0]
[null,{"$f":"IF(LEN('Détail des projets'!B160)=0,\"\",'Détail des projets'!B160)","v":"Beaulieu Canada - Nouvelle centrale thermique"},{"$f":"IF(LEN('Détail des projets'!C160)=0,\"\",'Détail des projets'!C160)","v":"Beaulieu Canada"},{"$f":"IF(LEN('Détail des projets'!H160)=0,\"\",'Détail des projets'!H160)","v":"16-Montérégie"},{"$f":"IF(LEN('Détail des projets'!L160)=0,\"\",'Détail des projets'!L160)","v":1587139.6},3174.2792066799998,"À la fin du projet (suite au dernier versement)",19.999999957911708,"QC-Québec","Oui",25,"oui","non","Non","Oui",0,0,0,0,0,0]
[null,{"$f":"IF(LEN('Détail des projets'!B161)=0,\"\",'Détail des projets'!B161)","v":"Acériculture-Évaporateur électrique"},{"$f":"IF(LEN('Détail des projets'!C161)=0,\"\",'Détail des projets'!C161)","v":"La Coulée LRP"},{"$f":"IF(LEN('Détail des projets'!H161)=0,\"\",'Détail des projets'!H161)","v":"05-Estrie"},{"$f":"IF(LEN('Détail des projets'!L161)=0,\"\",'Détail des projets'!L161)","v":100000},97.434972183910702,"À la fin du projet (suite au dernier versement)",51.316276773419588,"QC-Québec","Oui",20,"oui","non","Non","Oui",0,0,0,0,0,0]
[null,{"$f":"IF(LEN('Détail des projets'!B162)=0,\"\",'Détail des projets'!B162)","v":"Construction d'une ligne électrique aérienne au champ 2326"},{"$f":"IF(LEN('Détail des projets'!C162)=0,\"\",'Détail des projets'!C162)","v":"Cultures H. Dolbec inc."},{"$f":"IF(LEN('Détail des projets'!H162)=0,\"\",'Détail des projets'!H162)","v":"03-Capitale-Nationale"},{"$f":"IF(LEN('Détail des projets'!L162)=0,\"\",'Détail des projets'!L162)","v":111261.97},89.009578739999995,"À la fin du projet (suite au dernier versement)",49.999998460839812,"QC-Québec","Oui",25,"non","oui","Non","Oui",0,0,0,0,0,0]
[null,{"$f":"IF(LEN('Détail des projets'!B163)=0,\"\",'Détail des projets'!B163)","v":"Conversion de la bouilloire au gaz naturel"},{"$f":"IF(LEN('Détail des projets'!C163)=0,\"\",'Détail des projets'!C163)","v":"Béton Provincial Div. Granby ltée"},{"$f":"IF(LEN('Détail des projets'!H163)=0,\"\",'Détail des projets'!H163)","v":"05-Estrie"},{"$f":"IF(LEN('Détail des projets'!L163)=0,\"\",'Détail des projets'!L163)","v":24995.55},28.5249787912378,"À la fin du projet (suite au dernier versement)",43.813441866042758,"QC-Québec","Oui",20,"non","oui","Non","Oui",0,0,0,0,0,0]
[null,{"$f":"IF(LEN('Détail des projets'!B164)=0,\"\",'Détail des projets'!B164)","v":"Ajout d'échangeurs de chaleur dans des bâtiments d'élevage de volailles"},{"$f":"IF(LEN('Détail des projets'!C164)=0,\"\",'Détail des projets'!C164)","v":"Ferme Handschin inc."},{"$f":"IF(LEN('Détail des projets'!H164)=0,\"\",'Détail des projets'!H164)","v":"16-Montérégie"},{"$f":"IF(LEN('Détail des projets'!L164)=0,\"\",'Détail des projets'!L164)","v":105935.6},84.748480048647906,"À la fin du projet (suite au dernier versement)",62.499999964123319,"QC-Québec","Oui",20,"oui","non","Non","Oui",0,0,0,0,0,0]
[null,{"$f":"IF(LEN('Détail des projets'!B165)=0,\"\",'Détail des projets'!B165)","v":"Optimisation énergétique des presses"},{"$f":"IF(LEN('Détail des projets'!C165)=0,\"\",'Détail des projets'!C165)","v":"Formica Canada inc."},{"$f":"IF(LEN('Détail des projets'!H165)=0,\"\",'Détail des projets'!H165)","v":"16-Montérégie"},{"$f":"IF(LEN('Détail des projets'!L165)=0,\"\",'Détail des projets'!L165)","v":749311.68},1665.13706744,"À la fin du projet (suite au dernier versement)",29.999999986067216,"QC-Québec","Oui",15,"oui","non","Non","Oui",0,0,0,0,0,0]
[null,{"$f":"IF(LEN('Détail des projets'!B166)=0,\"\",'Détail des projets'!B166)","v":"Chauffage de l'accumulateur par récupération de l'énergie dans l'évacuation du traiteur 5"},{"$f":"IF(LEN('Détail des projets'!C166)=0,\"\",'Détail des projets'!C166)","v":"Formica Canada inc."},{"$f":"IF(LEN('Détail des projets'!H166)=0,\"\",'Détail des projets'!H166)","v":"16-Montérégie"},{"$f":"IF(LEN('Détail des projets'!L166)=0,\"\",'Détail des projets'!L166)","v":371210.76},742.42151923999995,"À la fin du projet (suite au dernier versement)",33.333333367455914,"QC-Québec","Oui",15,"oui","non","Non","Oui",0,0,0,0,0,0]
[null,{"$f":"IF(LEN('Détail des projets'!B167)=0,\"\",'Détail des projets'!B167)","v":"Chauffage de l'accumulateur par récupération de l'énergie des fumées des chaudières"},{"$f":"IF(LEN('Détail des projets'!C167)=0,\"\",'Détail des projets'!C167)","v":"Formica Canada inc."},{"$f":"IF(LEN('Détail des projets'!H167)=0,\"\",'Détail des projets'!H167)","v":"16-Montérégie"},{"$f":"IF(LEN('Détail des projets'!L167)=0,\"\",'Détail des projets'!L167)","v":224155.53999999998},448.31107484,"À la fin du projet (suite au dernier versement)",33.333333716995497,"QC-Québec","Oui",15,"oui","non","Non","Oui",0,0,0,0,0,0]
[null,{"$f":"IF(LEN('Détail des projets'!B168)=0,\"\",'Détail des projets'!B168)","v":"Récupération de l'énergie dans l'évacuation du traiteur 6"},{"$f":"IF(LEN('Détail des projets'!C168)=0,\"\",'Détail des projets'!C168)","v":"Formica Canada inc."},{"$f":"IF(LEN('Détail des projets'!H168)=0,\"\",'Détail des projets'!H168)","v":"16-Montérégie"},{"$f":"IF(LEN('Détail des projets'!L168)=0,\"\",'Détail des projets'!L168)","v":351308.66},702.61732547999998,"À la fin du projet (suite au dernier versement)",33.333333073353025,"QC-Québec","Oui",15,"oui","non","Non","Oui",0,0,0,0,0,0]
[null,{"$f":"IF(LEN('Détail des projets'!B169)=0,\"\",'Détail des projets'!B169)","v":"Implantation - Projet d'amélioration de l'efficacité des réseaux de chauffage (Site Expo)"},{"$f":"IF(LEN('Détail des projets'!C169)=0,\"\",'Détail des projets'!C169)","v":"Canadian Royalties inc."},{"$f":"IF(LEN('Détail des projets'!H169)=0,\"\",'Détail des projets'!H169)","v":"06-Montréal"},{"$f":"IF(LEN('Détail des projets'!L169)=0,\"\",'Détail des projets'!L169)","v":468660.12},1023.245856126,"À la fin du projet (suite au dernier versement)",45.801321079798278,"QC-Québec","Oui",10,"oui","non","Non","Oui",0,0,0,0,0,0]
[null,{"$f":"IF(LEN('Détail des projets'!B170)=0,\"\",'Détail des projets'!B170)","v":"Chauffage de la ventilation du garage H1"},{"$f":"IF(LEN('Détail des projets'!C170)=0,\"\",'Détail des projets'!C170)","v":"Canadian Royalties inc."},{"$f":"IF(LEN('Détail des projets'!H170)=0,\"\",'Détail des projets'!H170)","v":"06-Montréal"},{"$f":"IF(LEN('Détail des projets'!L170)=0,\"\",'Détail des projets'!L170)","v":147512.26},480.017363166,"À la fin du projet (suite au dernier versement)",12.292243682775883,"QC-Québec","Oui",25,"oui","non","Non","Oui",0,0,0,0,0,0]
[null,{"$f":"IF(LEN('Détail des projets'!B171)=0,\"\",'Détail des projets'!B171)","v":"Serre agricole de tomates - Efficacité énergétique"},{"$f":"IF(LEN('Détail des projets'!C171)=0,\"\",'Détail des projets'!C171)","v":"TOMATÉ! Inc."},{"$f":"IF(LEN('Détail des projets'!H171)=0,\"\",'Détail des projets'!H171)","v":"16-Montérégie"},{"$f":"IF(LEN('Détail des projets'!L171)=0,\"\",'Détail des projets'!L171)","v":349278.59},279.42287071999999,"À la fin du projet (suite au dernier versement)",64.398699939667381,"QC-Québec","Oui",19.4103298187256,"oui","non","Non","Oui",0,0,0,0,0,0]
[null,{"$f":"IF(LEN('Détail des projets'!B172)=0,\"\",'Détail des projets'!B172)","v":"Acériculture-Évaporateur électrique"},{"$f":"IF(LEN('Détail des projets'!C172)=0,\"\",'Détail des projets'!C172)","v":"Érablière Nadeau & Fils inc."},{"$f":"IF(LEN('Détail des projets'!H172)=0,\"\",'Détail des projets'!H172)","v":"12-Chaudière-Appalaches"},{"$f":"IF(LEN('Détail des projets'!L172)=0,\"\",'Détail des projets'!L172)","v":52541.53},42.033225557020501,"À la fin du projet (suite au dernier versement)",62.499997684836693,"QC-Québec","Oui",20,"oui","non","Non","Oui",0,0,0,0,0,0]
[null,{"$f":"IF(LEN('Détail des projets'!B173)=0,\"\",'Détail des projets'!B173)","v":"Nouveau AMU et échangeur de chaleur pour l'apport d'air frais"},{"$f":"IF(LEN('Détail des projets'!C173)=0,\"\",'Détail des projets'!C173)","v":"Ani-Mat inc."},{"$f":"IF(LEN('Détail des projets'!H173)=0,\"\",'Détail des projets'!H173)","v":"05-Estrie"},{"$f":"IF(LEN('Détail des projets'!L173)=0,\"\",'Détail des projets'!L173)","v":312375},307.86975719999998,"À la fin du projet (suite au dernier versement)",40.585343989740871,"QC-Québec","Oui",25,"oui","non","Non","Oui",0,0,0,0,0,0]
[null,{"$f":"IF(LEN('Détail des projets'!B174)=0,\"\",'Détail des projets'!B174)","v":"Installation d’un échangeur de chaleur de 30 000 CFM pour la ventilation du secteur maturation"},{"$f":"IF(LEN('Détail des projets'!C174)=0,\"\",'Détail des projets'!C174)","v":"Domfoam inc."},{"$f":"IF(LEN('Détail des projets'!H174)=0,\"\",'Détail des projets'!H174)","v":"06-Montréal"},{"$f":"IF(LEN('Détail des projets'!L174)=0,\"\",'Détail des projets'!L174)","v":604008.52},483.20681524000003,"À la fin du projet (suite au dernier versement)",50.000000078641271,"QC-Québec","Oui",25,"oui","non","Non","Oui",0,0,0,0,0,0]
[null,{"$f":"IF(LEN('Détail des projets'!B175)=0,\"\",'Détail des projets'!B175)","v":"Récupération de chaleur des compresseurs et du dépoussiéreur avec un nouveau contrôleur central"},{"$f":"IF(LEN('Détail des projets'!C175)=0,\"\",'Détail des projets'!C175)","v":"Elopak Canada inc."},{"$f":"IF(LEN('Détail des projets'!H175)=0,\"\",'Détail des projets'!H175)","v":"15-Laurentides"},{"$f":"IF(LEN('Détail des projets'!L175)=0,\"\",'Détail des projets'!L175)","v":401195.01},1077.9565787199999,"À la fin du projet (suite au dernier versement)",14.88724195092874,"QC-Québec","Oui",25,"oui","oui","Non","Oui",0,0,0,0,0,0]
[null,{"$f":"IF(LEN('Détail des projets'!B176)=0,\"\",'Détail des projets'!B176)","v":"Conversion d'un système de pompage"},{"$f":"IF(LEN('Détail des projets'!C176)=0,\"\",'Détail des projets'!C176)","v":"Ferme L.M. Drainville & Fils inc."},{"$f":"IF(LEN('Détail des projets'!H176)=0,\"\",'Détail des projets'!H176)","v":"14-Lanaudière"},{"$f":"IF(LEN('Détail des projets'!L176)=0,\"\",'Détail des projets'!L176)","v":27091.52},21.673214712,"À la fin du projet (suite au dernier versement)",50.000002971409685,"QC-Québec","Oui",25,"non","oui","Non","Oui",0,0,0,0,0,0]
[null,{"$f":"IF(LEN('Détail des projets'!B177)=0,\"\",'Détail des projets'!B177)","v":"Pl5 - Conversion du chauffage des bassins par une chaudière électrique"},{"$f":"IF(LEN('Détail des projets'!C177)=0,\"\",'Détail des projets'!C177)","v":"Pratt & Whitney Canada Cie."},{"$f":"IF(LEN('Détail des projets'!H177)=0,\"\",'Détail des projets'!H177)","v":"16-Montérégie"},{"$f":"IF(LEN('Détail des projets'!L177)=0,\"\",'Détail des projets'!L177)","v":1309415},2640.9415062799999,"À la fin du projet (suite au dernier versement)",19.832548307280415,"QC-Québec","Oui",25,"oui","oui","Non","Oui",0,0,0,0,0,0]
[null,{"$f":"IF(LEN('Détail des projets'!B178)=0,\"\",'Détail des projets'!B178)","v":"Chauffage solaire avec collecteur à faible émissivité"},{"$f":"IF(LEN('Détail des projets'!C178)=0,\"\",'Détail des projets'!C178)","v":"BHS Composites inc."},{"$f":"IF(LEN('Détail des projets'!H178)=0,\"\",'Détail des projets'!H178)","v":"05-Estrie"},{"$f":"IF(LEN('Détail des projets'!L178)=0,\"\",'Détail des projets'!L178)","v":80072.149999999994},64.057719800000001,"À la fin du projet (suite au dernier versement)",50.000000156109209,"QC-Québec","Oui",25,"oui","non","Non","Oui",0,0,0,0,0,0]
[null,{"$f":"IF(LEN('Détail des projets'!B179)=0,\"\",'Détail des projets'!B179)","v":"Électrification d'une cannebergière"},{"$f":"IF(LEN('Détail des projets'!C179)=0,\"\",'Détail des projets'!C179)","v":"Atocas St-Louis inc."},{"$f":"IF(LEN('Détail des projets'!H179)=0,\"\",'Détail des projets'!H179)","v":"17-Centre-du-Québec"},{"$f":"IF(LEN('Détail des projets'!L179)=0,\"\",'Détail des projets'!L179)","v":469402.94},375.52235012400001,"À la fin du projet (suite au dernier versement)",62.500000312231748,"QC-Québec","Oui",20,"non","oui","Non","Oui",0,0,0,0,0,0]
[null,{"$f":"IF(LEN('Détail des projets'!B180)=0,\"\",'Détail des projets'!B180)","v":"Électrification d'une cannebergière"},{"$f":"IF(LEN('Détail des projets'!C180)=0,\"\",'Détail des projets'!C180)","v":"Atocas Blandford inc."},{"$f":"IF(LEN('Détail des projets'!H180)=0,\"\",'Détail des projets'!H180)","v":"17-Centre-du-Québec"},{"$f":"IF(LEN('Détail des projets'!L180)=0,\"\",'Détail des projets'!L180)","v":306571.26},245.25700719899999,"À la fin du projet (suite au dernier versement)",62.500000204122614,"QC-Québec","Oui",20,"non","oui","Non","Oui",0,0,0,0,0,0]
[null,{"$f":"IF(LEN('Détail des projets'!B181)=0,\"\",'Détail des projets'!B181)","v":"Électrification d'une cannebergière"},{"$f":"IF(LEN('Détail des projets'!C181)=0,\"\",'Détail des projets'!C181)","v":"Les Bassins Rouges S.E.N.C."},{"$f":"IF(LEN('Détail des projets'!H181)=0,\"\",'Détail des projets'!H181)","v":"17-Centre-du-Québec"},{"$f":"IF(LEN('Détail des projets'!L181)=0,\"\",'Détail des projets'!L181)","v":1004221.41},803.37712925999995,"À la fin du projet (suite au dernier versement)",62.49999990197631,"QC-Québec","Oui",20,"non","oui","Non","Oui",0,0,0,0,0,0]
[null,{"$f":"IF(LEN('Détail des projets'!B182)=0,\"\",'Détail des projets'!B182)","v":"Remplacement d’un séchoir à grains par un séchoir écoénergétique"},{"$f":"IF(LEN('Détail des projets'!C182)=0,\"\",'Détail des projets'!C182)","v":"Les Élévateurs D.P. inc."},{"$f":"IF(LEN('Détail des projets'!H182)=0,\"\",'Détail des projets'!H182)","v":"16-Montérégie"},{"$f":"IF(LEN('Détail des projets'!L182)=0,\"\",'Détail des projets'!L182)","v":405681.8},324.5454368,"À la fin du projet (suite au dernier versement)",50.000000492997223,"QC-Québec","Oui",25,"oui","non","Non","Oui",0,0,0,0,0,0]
[null,{"$f":"IF(LEN('Détail des projets'!B183)=0,\"\",'Détail des projets'!B183)","v":"Remplacement des séchoirs à grains de la Ferme Porclair"},{"$f":"IF(LEN('Détail des projets'!C183)=0,\"\",'Détail des projets'!C183)","v":"Ferme Porclair S.E.N.C."},{"$f":"IF(LEN('Détail des projets'!H183)=0,\"\",'Détail des projets'!H183)","v":"17-Centre-du-Québec"},{"$f":"IF(LEN('Détail des projets'!L183)=0,\"\",'Détail des projets'!L183)","v":49047.040000000001},39.237633776000003,"À la fin du projet (suite au dernier versement)",41.666664780722158,"QC-Québec","Oui",30,"oui","non","Non","Oui",0,0,0,0,0,0]
[null,{"$f":"IF(LEN('Détail des projets'!B184)=0,\"\",'Détail des projets'!B184)","v":"Projet d'efficacité énergétique"},{"$f":"IF(LEN('Détail des projets'!C184)=0,\"\",'Détail des projets'!C184)","v":"Boulangerie WF"},{"$f":"IF(LEN('Détail des projets'!H184)=0,\"\",'Détail des projets'!H184)","v":"16-Montérégie"},{"$f":"IF(LEN('Détail des projets'!L184)=0,\"\",'Détail des projets'!L184)","v":339639.56},679.27910978267005,"À la fin du projet (suite au dernier versement)",21.814448039236176,"QC-Québec","Oui",22.920589447021499,"oui","non","Non","Oui",0,0,0,0,0,0]
[null,{"$f":"IF(LEN('Détail des projets'!B185)=0,\"\",'Détail des projets'!B185)","v":"Optimisation de la centrale d’enrobés bitumineux par vis de préchauffage du GBR"},{"$f":"IF(LEN('Détail des projets'!C185)=0,\"\",'Détail des projets'!C185)","v":"P. Baillargeon ltée"},{"$f":"IF(LEN('Détail des projets'!H185)=0,\"\",'Détail des projets'!H185)","v":"16-Montérégie"},{"$f":"IF(LEN('Détail des projets'!L185)=0,\"\",'Détail des projets'!L185)","v":126668.49},101.334794,"À la fin du projet (suite au dernier versement)",62.499998766465147,"QC-Québec","Oui",20,"oui","non","Non","Oui",0,0,0,0,0,0]
[null,{"$f":"IF(LEN('Détail des projets'!B186)=0,\"\",'Détail des projets'!B186)","v":"Serre de plants : efficacité énergétique"},{"$f":"IF(LEN('Détail des projets'!C186)=0,\"\",'Détail des projets'!C186)","v":"Ferme aux petits oignons inc."},{"$f":"IF(LEN('Détail des projets'!H186)=0,\"\",'Détail des projets'!H186)","v":"15-Laurentides"},{"$f":"IF(LEN('Détail des projets'!L186)=0,\"\",'Détail des projets'!L186)","v":172271.35999999999},137.81708700799999,"À la fin du projet (suite au dernier versement)",50.000000359897321,"QC-Québec","Oui",25,"non","oui","Non","Oui",0,0,0,0,0,0]
[null,{"$f":"IF(LEN('Détail des projets'!B187)=0,\"\",'Détail des projets'!B187)","v":"Optimisation des fours de trempe"},{"$f":"IF(LEN('Détail des projets'!C187)=0,\"\",'Détail des projets'!C187)","v":"Les Traitements d'acier S.T. inc."},{"$f":"IF(LEN('Détail des projets'!H187)=0,\"\",'Détail des projets'!H187)","v":"04-Mauricie"},{"$f":"IF(LEN('Détail des projets'!L187)=0,\"\",'Détail des projets'!L187)","v":338823.19},271.05854878880001,"À la fin du projet (suite au dernier versement)",50.00000059234435,"QC-Québec","Oui",25,"oui","non","Non","Oui",0,0,0,0,0,0]
[null,{"$f":"IF(LEN('Détail des projets'!B188)=0,\"\",'Détail des projets'!B188)","v":"Conversion au gaz naturel"},{"$f":"IF(LEN('Détail des projets'!C188)=0,\"\",'Détail des projets'!C188)","v":"Produits Hevea inc."},{"$f":"IF(LEN('Détail des projets'!H188)=0,\"\",'Détail des projets'!H188)","v":"05-Estrie"},{"$f":"IF(LEN('Détail des projets'!L188)=0,\"\",'Détail des projets'!L188)","v":132741.16},115.47222275199999,"À la fin du projet (suite au dernier versement)",48.860974110970631,"QC-Québec","Oui",23.5269680023193,"non","oui","Non","Oui",0,0,0,0,0,0]
[null,{"$f":"IF(LEN('Détail des projets'!B189)=0,\"\",'Détail des projets'!B189)","v":"Mur solaire et rideaux d'air"},{"$f":"IF(LEN('Détail des projets'!C189)=0,\"\",'Détail des projets'!C189)","v":"Emballages Mitchel-Lincoln ltée"},{"$f":"IF(LEN('Détail des projets'!H189)=0,\"\",'Détail des projets'!H189)","v":"16-Montérégie"},{"$f":"IF(LEN('Détail des projets'!L189)=0,\"\",'Détail des projets'!L189)","v":96340.99},192.68197774507499,"À la fin du projet (suite au dernier versement)",24.023876794404472,"QC-Québec","Oui",20.812627792358398,"oui","non","Non","Oui",0,0,0,0,0,0]
[null,{"$f":"IF(LEN('Détail des projets'!B190)=0,\"\",'Détail des projets'!B190)","v":"Construction d’une ligne électrique"},{"$f":"IF(LEN('Détail des projets'!C190)=0,\"\",'Détail des projets'!C190)","v":"Érablière des Sept Lacs inc."},{"$f":"IF(LEN('Détail des projets'!H190)=0,\"\",'Détail des projets'!H190)","v":"01-Bas-Saint-Laurent"},{"$f":"IF(LEN('Détail des projets'!L190)=0,\"\",'Détail des projets'!L190)","v":24852.33},19.881861606000001,"À la fin du projet (suite au dernier versement)",50.000006020562985,"QC-Québec","Oui",25,"non","oui","Non","Oui",0,0,0,0,0,0]
[null,{"$f":"IF(LEN('Détail des projets'!B191)=0,\"\",'Détail des projets'!B191)","v":"Intégration de thermopompe"},{"$f":"IF(LEN('Détail des projets'!C191)=0,\"\",'Détail des projets'!C191)","v":"Laboratoires Abbott Cie"},{"$f":"IF(LEN('Détail des projets'!H191)=0,\"\",'Détail des projets'!H191)","v":"17-Centre-du-Québec"},{"$f":"IF(LEN('Détail des projets'!L191)=0,\"\",'Détail des projets'!L191)","v":1240419.3600000001},2480.8387177596001,"À la fin du projet (suite au dernier versement)",20.000000018061634,"QC-Québec","Oui",25,"oui","non","Non","Oui",0,0,0,0,0,0]
[null,{"$f":"IF(LEN('Détail des projets'!B192)=0,\"\",'Détail des projets'!B192)","v":"ESA-3000 : réduction des émissions de GES dans le poulailler de Ferme Sylvain Proulx inc."},{"$f":"IF(LEN('Détail des projets'!C192)=0,\"\",'Détail des projets'!C192)","v":"Ferme Sylvain Proulx inc."},{"$f":"IF(LEN('Détail des projets'!H192)=0,\"\",'Détail des projets'!H192)","v":"16-Montérégie"},{"$f":"IF(LEN('Détail des projets'!L192)=0,\"\",'Détail des projets'!L192)","v":38073.19},30.458548588239999,"À la fin du projet (suite au dernier versement)",50.000005600660835,"QC-Québec","Oui",25,"oui","non","Non","Oui",0,0,0,0,0,0]
[null,{"$f":"IF(LEN('Détail des projets'!B193)=0,\"\",'Détail des projets'!B193)","v":"ESA-3000 : réduction des émissions de GES dans le poulailler De la comté SENC"},{"$f":"IF(LEN('Détail des projets'!C193)=0,\"\",'Détail des projets'!C193)","v":"De La Comté s.e.n.c."},{"$f":"IF(LEN('Détail des projets'!H193)=0,\"\",'Détail des projets'!H193)","v":"05-Estrie"},{"$f":"IF(LEN('Détail des projets'!L193)=0,\"\",'Détail des projets'!L193)","v":59088.57},47.270855328000003,"À la fin du projet (suite au dernier versement)",50.000000710797373,"QC-Québec","Oui",25,"oui","non","Non","Oui",0,0,0,0,0,0]
[null,{"$f":"IF(LEN('Détail des projets'!B194)=0,\"\",'Détail des projets'!B194)","v":"Projet LPI"},{"$f":"IF(LEN('Détail des projets'!C194)=0,\"\",'Détail des projets'!C194)","v":"Chimie ParaChem S.E.C."},{"$f":"IF(LEN('Détail des projets'!H194)=0,\"\",'Détail des projets'!H194)","v":"06-Montréal"},{"$f":"IF(LEN('Détail des projets'!L194)=0,\"\",'Détail des projets'!L194)","v":5000000},11872.2380222384,"À la fin du projet (suite au dernier versement)",16.846023439335649,"QC-Québec","Oui",25,"oui","non","Non","Oui",0,0,0,0,0,0]
[null,{"$f":"IF(LEN('Détail des projets'!B195)=0,\"\",'Détail des projets'!B195)","v":"Serre-Conversion chauffage-CII- électrique"},{"$f":"IF(LEN('Détail des projets'!C195)=0,\"\",'Détail des projets'!C195)","v":"Ferme Juniper (2017) inc."},{"$f":"IF(LEN('Détail des projets'!H195)=0,\"\",'Détail des projets'!H195)","v":"07-Outaouais"},{"$f":"IF(LEN('Détail des projets'!L195)=0,\"\",'Détail des projets'!L195)","v":33750},66.400033577387106,"À la fin du projet (suite au dernier versement)",25.414143774991814,"QC-Québec","Oui",20,"oui","non","Non","Oui",0,0,0,0,0,0]
[null,{"$f":"IF(LEN('Détail des projets'!B196)=0,\"\",'Détail des projets'!B196)","v":"Implantation et électrification de nos chariots élévateurs"},{"$f":"IF(LEN('Détail des projets'!C196)=0,\"\",'Détail des projets'!C196)","v":"Métal Bernard inc."},{"$f":"IF(LEN('Détail des projets'!H196)=0,\"\",'Détail des projets'!H196)","v":"12-Chaudière-Appalaches"},{"$f":"IF(LEN('Détail des projets'!L196)=0,\"\",'Détail des projets'!L196)","v":69382.89},55.506312000000001,"À la fin du projet (suite au dernier versement)",50,"QC-Québec","Oui",25,"non","oui","Non","Oui",0,0,0,0,0,0]
[null,{"$f":"IF(LEN('Détail des projets'!B197)=0,\"\",'Détail des projets'!B197)","v":"Construction d'un bâtiment d'élevage avec échangeurs de chaleur"},{"$f":"IF(LEN('Détail des projets'!C197)=0,\"\",'Détail des projets'!C197)","v":"Ferme Porc Saint SENC"},{"$f":"IF(LEN('Détail des projets'!H197)=0,\"\",'Détail des projets'!H197)","v":"05-Estrie"},{"$f":"IF(LEN('Détail des projets'!L197)=0,\"\",'Détail des projets'!L197)","v":45809.97},36.6479787801619,"À la fin du projet (suite au dernier versement)",62.499995258671163,"QC-Québec","Oui",20,"oui","non","Non","Oui",0,0,0,0,0,0]
[null,{"$f":"IF(LEN('Détail des projets'!B198)=0,\"\",'Détail des projets'!B198)","v":"Conversion d'un système de pompage"},{"$f":"IF(LEN('Détail des projets'!C198)=0,\"\",'Détail des projets'!C198)","v":"Gosselin G2 inc."},{"$f":"IF(LEN('Détail des projets'!H198)=0,\"\",'Détail des projets'!H198)","v":"14-Lanaudière"},{"$f":"IF(LEN('Détail des projets'!L198)=0,\"\",'Détail des projets'!L198)","v":38062.5},31.30255125,"À la fin du projet (suite au dernier versement)",48.63820804382518,"QC-Québec","Oui",25,"non","oui","Non","Oui",0,0,0,0,0,0]
[null,{"$f":"IF(LEN('Détail des projets'!B199)=0,\"\",'Détail des projets'!B199)","v":"Optimisation de la centrale d’enrobés bitumineux par vis de préchauffage du GBR"},{"$f":"IF(LEN('Détail des projets'!C199)=0,\"\",'Détail des projets'!C199)","v":"Usine d'asphalte Ali inc."},{"$f":"IF(LEN('Détail des projets'!H199)=0,\"\",'Détail des projets'!H199)","v":"16-Montérégie"},{"$f":"IF(LEN('Détail des projets'!L199)=0,\"\",'Détail des projets'!L199)","v":322835.14},645.67027924000001,"À la fin du projet (suite au dernier versement)",20.000000023541428,"QC-Québec","Oui",25,"oui","non","Non","Oui",0,0,0,0,0,0]
[null,{"$f":"IF(LEN('Détail des projets'!B200)=0,\"\",'Détail des projets'!B200)","v":"Ajout d'échangeurs de chaleur dans un bâtiment d'élevage de volailles"},{"$f":"IF(LEN('Détail des projets'!C200)=0,\"\",'Détail des projets'!C200)","v":"Les Fermes Meier (9032-5085 Québec inc.)"},{"$f":"IF(LEN('Détail des projets'!H200)=0,\"\",'Détail des projets'!H200)","v":"05-Estrie"},{"$f":"IF(LEN('Détail des projets'!L200)=0,\"\",'Détail des projets'!L200)","v":55545.87},44.436698909867097,"À la fin du projet (suite au dernier versement)",62.499995907286142,"QC-Québec","Oui",20,"oui","non","Non","Oui",0,0,0,0,0,0]
[null,{"$f":"IF(LEN('Détail des projets'!B201)=0,\"\",'Détail des projets'!B201)","v":"Installation d'une nouvelle chaudière à vapeur"},{"$f":"IF(LEN('Détail des projets'!C201)=0,\"\",'Détail des projets'!C201)","v":"Soylutions inc."},{"$f":"IF(LEN('Détail des projets'!H201)=0,\"\",'Détail des projets'!H201)","v":"03-Capitale-Nationale"},{"$f":"IF(LEN('Détail des projets'!L201)=0,\"\",'Détail des projets'!L201)","v":185978.67},424.60388748000003,"À la fin du projet (suite au dernier versement)",21.900255212425499,"QC-Québec","Oui",20,"oui","non","Non","Oui",0,0,0,0,0,0]
[null,{"$f":"IF(LEN('Détail des projets'!B202)=0,\"\",'Détail des projets'!B202)","v":"Projet d'économie d'énergie de Montréal Chrome"},{"$f":"IF(LEN('Détail des projets'!C202)=0,\"\",'Détail des projets'!C202)","v":"Placage au chrome de Montréal inc."},{"$f":"IF(LEN('Détail des projets'!H202)=0,\"\",'Détail des projets'!H202)","v":"06-Montréal"},{"$f":"IF(LEN('Détail des projets'!L202)=0,\"\",'Détail des projets'!L202)","v":261544.56},238.56316219999999,"À la fin du projet (suite au dernier versement)",54.816627510313914,"QC-Québec","Oui",20,"oui","non","Non","Oui",0,0,0,0,0,0]
[null,{"$f":"IF(LEN('Détail des projets'!B203)=0,\"\",'Détail des projets'!B203)","v":"« SCORE » - Saumure et Chaufferie : optimisation des ressources énergétiques"},{"$f":"IF(LEN('Détail des projets'!C203)=0,\"\",'Détail des projets'!C203)","v":"Axiall Canada, Inc."},{"$f":"IF(LEN('Détail des projets'!H203)=0,\"\",'Détail des projets'!H203)","v":"16-Montérégie"},{"$f":"IF(LEN('Détail des projets'!L203)=0,\"\",'Détail des projets'!L203)","v":388613.61999999994},777.22724297377397,"À la fin du projet (suite au dernier versement)",24.999999904346698,"QC-Québec","Oui",20,"oui","non","Non","Oui",0,0,0,0,0,0]
[null,{"$f":"IF(LEN('Détail des projets'!B204)=0,\"\",'Détail des projets'!B204)","v":"Infasco - Projet écoénergétique"},{"$f":"IF(LEN('Détail des projets'!C204)=0,\"\",'Détail des projets'!C204)","v":"Ifastgroupe 2004 L.P. agissant par son commanditaire Heico 2004 Member Inc."},{"$f":"IF(LEN('Détail des projets'!H204)=0,\"\",'Détail des projets'!H204)","v":"16-Montérégie"},{"$f":"IF(LEN('Détail des projets'!L204)=0,\"\",'Détail des projets'!L204)","v":2118861.8899999997},3531.4364822399998,"À la fin du projet (suite au dernier versement)",30.355575983883366,"QC-Québec","Oui",19.7657260894775,"oui","non","Non","Oui",0,0,0,0,0,0]
[null,{"$f":"IF(LEN('Détail des projets'!B205)=0,\"\",'Détail des projets'!B205)","v":"Sivaco - Projet écoénergétique"},{"$f":"IF(LEN('Détail des projets'!C205)=0,\"\",'Détail des projets'!C205)","v":"Sivaco Wire Group 2004 L.P. agissant par son commenditaire Heico 2004 Member, inc."},{"$f":"IF(LEN('Détail des projets'!H205)=0,\"\",'Détail des projets'!H205)","v":"16-Montérégie"},{"$f":"IF(LEN('Détail des projets'!L205)=0,\"\",'Détail des projets'!L205)","v":2228147.9699999997},3713.57994048,"À la fin du projet (suite au dernier versement)",30.000000076906918,"QC-Québec","Oui",20,"oui","non","Non","Oui",0,0,0,0,0,0]
[null,{"$f":"IF(LEN('Détail des projets'!B206)=0,\"\",'Détail des projets'!B206)","v":"Installation d'échangeurs de chaleur dans un bâtiment d'élevage de volailles"},{"$f":"IF(LEN('Détail des projets'!C206)=0,\"\",'Détail des projets'!C206)","v":"Ferme N.C. Trottier inc."},{"$f":"IF(LEN('Détail des projets'!H206)=0,\"\",'Détail des projets'!H206)","v":"17-Centre-du-Québec"},{"$f":"IF(LEN('Détail des projets'!L206)=0,\"\",'Détail des projets'!L206)","v":72879.27},58.303414799999999,"À la fin du projet (suite au dernier versement)",62.500001286374058,"QC-Québec","Oui",20,"oui","non","Non","Oui",0,0,0,0,0,0]
[null,{"$f":"IF(LEN('Détail des projets'!B207)=0,\"\",'Détail des projets'!B207)","v":"Conversion de la chaudière au mazout no 2 vers l'électricité"},{"$f":"IF(LEN('Détail des projets'!C207)=0,\"\",'Détail des projets'!C207)","v":"La Meunerie St-Patrice inc."},{"$f":"IF(LEN('Détail des projets'!H207)=0,\"\",'Détail des projets'!H207)","v":"12-Chaudière-Appalaches"},{"$f":"IF(LEN('Détail des projets'!L207)=0,\"\",'Détail des projets'!L207)","v":775042.5},810.84589158400001,"À la fin du projet (suite au dernier versement)",31.861479805405953,"QC-Québec","Oui",30,"non","oui","Non","Oui",0,0,0,0,0,0]
[null,{"$f":"IF(LEN('Détail des projets'!B208)=0,\"\",'Détail des projets'!B208)","v":"Chauffage de l’air du bâtiment par récupération de chaleur"},{"$f":"IF(LEN('Détail des projets'!C208)=0,\"\",'Détail des projets'!C208)","v":"Magotteaux ltée"},{"$f":"IF(LEN('Détail des projets'!H208)=0,\"\",'Détail des projets'!H208)","v":"05-Estrie"},{"$f":"IF(LEN('Détail des projets'!L208)=0,\"\",'Détail des projets'!L208)","v":1075950},870.63833172,"À la fin du projet (suite au dernier versement)",61.790870031784266,"QC-Québec","Oui",20,"oui","non","Non","Oui",0,0,0,0,0,0]
[null,{"$f":"IF(LEN('Détail des projets'!B209)=0,\"\",'Détail des projets'!B209)","v":"Installation de deux tamiseurs Triple-deck pour faire une ségrégation du lit de boulettes"},{"$f":"IF(LEN('Détail des projets'!C209)=0,\"\",'Détail des projets'!C209)","v":"ArcelorMittal Exploitation Minière Canada s.e.n.c."},{"$f":"IF(LEN('Détail des projets'!H209)=0,\"\",'Détail des projets'!H209)","v":"09-Côte-Nord"},{"$f":"IF(LEN('Détail des projets'!L209)=0,\"\",'Détail des projets'!L209)","v":5000000},20246.531418660001,"À la fin du projet (suite au dernier versement)",9.8782352327111269,"QC-Québec","Oui",25,"oui","non","Non","Oui",0,0,0,0,0,0]
[null,{"$f":"IF(LEN('Détail des projets'!B210)=0,\"\",'Détail des projets'!B210)","v":"Arboria"},{"$f":"IF(LEN('Détail des projets'!C210)=0,\"\",'Détail des projets'!C210)","v":"Association Forestière de Lanaudière"},{"$f":"IF(LEN('Détail des projets'!H210)=0,\"\",'Détail des projets'!H210)","v":"14-Lanaudière"},{"$f":"IF(LEN('Détail des projets'!L210)=0,\"\",'Détail des projets'!L210)","v":19201.43},15.361144769599999,"À la fin du projet (suite au dernier versement)",62.49999686872296,"QC-Québec","Oui",20,"non","oui","Non","Oui",0,0,0,0,0,0]
[null,{"$f":"IF(LEN('Détail des projets'!B211)=0,\"\",'Détail des projets'!B211)","v":"Mur solaire, récupération de chaleur de compresseur et rideaux d'air"},{"$f":"IF(LEN('Détail des projets'!C211)=0,\"\",'Détail des projets'!C211)","v":"Boccam inc."},{"$f":"IF(LEN('Détail des projets'!H211)=0,\"\",'Détail des projets'!H211)","v":"12-Chaudière-Appalaches"},{"$f":"IF(LEN('Détail des projets'!L211)=0,\"\",'Détail des projets'!L211)","v":87706.81},70.165443829850702,"À la fin du projet (suite au dernier versement)",65.9803618378766,"QC-Québec","Oui",18.945032119751001,"oui","non","Non","Oui",0,0,0,0,0,0]
[null,{"$f":"IF(LEN('Détail des projets'!B212)=0,\"\",'Détail des projets'!B212)","v":"Conversion du système de chauffage à combustibles fossiles par de la géothermie"},{"$f":"IF(LEN('Détail des projets'!C212)=0,\"\",'Détail des projets'!C212)","v":"GM Modulaire (9419-4289 Québec inc.)"},{"$f":"IF(LEN('Détail des projets'!H212)=0,\"\",'Détail des projets'!H212)","v":"04-Mauricie"},{"$f":"IF(LEN('Détail des projets'!L212)=0,\"\",'Détail des projets'!L212)","v":84399.75},94.449032991999999,"À la fin du projet (suite au dernier versement)",44.68,"QC-Québec","Oui",20,"non","oui","Non","Oui",0,0,0,0,0,0]
[null,{"$f":"IF(LEN('Détail des projets'!B213)=0,\"\",'Détail des projets'!B213)","v":"Installation d'un séchoir à grains"},{"$f":"IF(LEN('Détail des projets'!C213)=0,\"\",'Détail des projets'!C213)","v":"Agri-Bienco inc."},{"$f":"IF(LEN('Détail des projets'!H213)=0,\"\",'Détail des projets'!H213)","v":"05-Estrie"},{"$f":"IF(LEN('Détail des projets'!L213)=0,\"\",'Détail des projets'!L213)","v":74638.14},59.710508760000003,"À la fin du projet (suite au dernier versement)",50.000002713090261,"QC-Québec","Oui",25,"oui","non","Non","Oui",0,0,0,0,0,0]
[null,{"$f":"IF(LEN('Détail des projets'!B214)=0,\"\",'Détail des projets'!B214)","v":"Conversion chauffage-CII- électrique"},{"$f":"IF(LEN('Détail des projets'!C214)=0,\"\",'Détail des projets'!C214)","v":"Sablière BY inc."},{"$f":"IF(LEN('Détail des projets'!H214)=0,\"\",'Détail des projets'!H214)","v":"02-Saguenay--Lac-Saint-Jean"},{"$f":"IF(LEN('Détail des projets'!L214)=0,\"\",'Détail des projets'!L214)","v":13822},18.778517176000001,"À la fin du projet (suite au dernier versement)",36.802692860289554,"QC-Québec","Oui",20,"oui","non","Non","Oui",0,0,0,0,0,0]
[null,{"$f":"IF(LEN('Détail des projets'!B215)=0,\"\",'Détail des projets'!B215)","v":"Acériculture-Évaporateur électrique"},{"$f":"IF(LEN('Détail des projets'!C215)=0,\"\",'Détail des projets'!C215)","v":"Érablière A. F. Sénéchal inc."},{"$f":"IF(LEN('Détail des projets'!H215)=0,\"\",'Détail des projets'!H215)","v":"01-Bas-Saint-Laurent"},{"$f":"IF(LEN('Détail des projets'!L215)=0,\"\",'Détail des projets'!L215)","v":42326.879999999997},32.249046200000002,"À la fin du projet (suite au dernier versement)",65.62,"QC-Québec","Oui",20,"oui","non","Non","Oui",0,0,0,0,0,0]
[null,{"$f":"IF(LEN('Détail des projets'!B216)=0,\"\",'Détail des projets'!B216)","v":"Chaudière électrique no 5"},{"$f":"IF(LEN('Détail des projets'!C216)=0,\"\",'Détail des projets'!C216)","v":"La Brasserie Labatt limitée"},{"$f":"IF(LEN('Détail des projets'!H216)=0,\"\",'Détail des projets'!H216)","v":"06-Montréal"},{"$f":"IF(LEN('Détail des projets'!L216)=0,\"\",'Détail des projets'!L216)","v":236465.65},6098.3865599999999,"À la fin du projet (suite au dernier versement)",3.8775116610515417,"QC-Québec","Oui",10,"oui","non","Non","Oui",0,0,0,0,0,0]
[null,{"$f":"IF(LEN('Détail des projets'!B217)=0,\"\",'Détail des projets'!B217)","v":"Électrification et modernisation d'un procédé de concassage"},{"$f":"IF(LEN('Détail des projets'!C217)=0,\"\",'Détail des projets'!C217)","v":"Les Entreprises P. ROY Division Carrière / Concassage"},{"$f":"IF(LEN('Détail des projets'!H217)=0,\"\",'Détail des projets'!H217)","v":"15-Laurentides"},{"$f":"IF(LEN('Détail des projets'!L217)=0,\"\",'Détail des projets'!L217)","v":1676116.92},1277.0414639999999,"À la fin du projet (suite au dernier versement)",52.499999953016406,"QC-Québec","Oui",25,"non","oui","Non","Oui",0,0,0,0,0,0]
[null,{"$f":"IF(LEN('Détail des projets'!B218)=0,\"\",'Détail des projets'!B218)","v":"Électrification du chauffage du garage"},{"$f":"IF(LEN('Détail des projets'!C218)=0,\"\",'Détail des projets'!C218)","v":"Scierie Girard inc."},{"$f":"IF(LEN('Détail des projets'!H218)=0,\"\",'Détail des projets'!H218)","v":"02-Saguenay--Lac-Saint-Jean"},{"$f":"IF(LEN('Détail des projets'!L218)=0,\"\",'Détail des projets'!L218)","v":52753.21},50.227526435598101,"À la fin du projet (suite au dernier versement)",42.011393945620902,"QC-Québec","Oui",25,"non","oui","Non","Oui",0,0,0,0,0,0]
[null,{"$f":"IF(LEN('Détail des projets'!B219)=0,\"\",'Détail des projets'!B219)","v":"Récupération d'énergie sur le nouveau refroidisseur au CO2"},{"$f":"IF(LEN('Détail des projets'!C219)=0,\"\",'Détail des projets'!C219)","v":"La Fromagerie Polyethnique inc."},{"$f":"IF(LEN('Détail des projets'!H219)=0,\"\",'Détail des projets'!H219)","v":"16-Montérégie"},{"$f":"IF(LEN('Détail des projets'!L219)=0,\"\",'Détail des projets'!L219)","v":232500},202.681535776,"À la fin du projet (suite au dernier versement)",45.884791450752537,"QC-Québec","Oui",25,"oui","non","Non","Oui",0,0,0,0,0,0]
[null,{"$f":"IF(LEN('Détail des projets'!B220)=0,\"\",'Détail des projets'!B220)","v":"Chauffage de l'unité de ventilation par la récupération des refroidisseurs"},{"$f":"IF(LEN('Détail des projets'!C220)=0,\"\",'Détail des projets'!C220)","v":"Fromagerie La Chaudière"},{"$f":"IF(LEN('Détail des projets'!H220)=0,\"\",'Détail des projets'!H220)","v":"05-Estrie"},{"$f":"IF(LEN('Détail des projets'!L220)=0,\"\",'Détail des projets'!L220)","v":79148},63.318426524306901,"À la fin du projet (suite au dernier versement)",49.999979054827826,"QC-Québec","Oui",25,"oui","non","Non","Oui",0,0,0,0,0,0]
[null,{"$f":"IF(LEN('Détail des projets'!B221)=0,\"\",'Détail des projets'!B221)","v":"Installation d'un secteur de refonte de rebuts"},{"$f":"IF(LEN('Détail des projets'!C221)=0,\"\",'Détail des projets'!C221)","v":"Shawinigan Aluminium inc."},{"$f":"IF(LEN('Détail des projets'!H221)=0,\"\",'Détail des projets'!H221)","v":"04-Mauricie"},{"$f":"IF(LEN('Détail des projets'!L221)=0,\"\",'Détail des projets'!L221)","v":1638627.07},3121.1944263999999,"À la fin du projet (suite au dernier versement)",20.999999950531759,"QC-Québec","Oui",25,"oui","non","Non","Oui",0,0,0,0,0,0]
[null,{"$f":"IF(LEN('Détail des projets'!B222)=0,\"\",'Détail des projets'!B222)","v":"Conversion d'un système de pompage à l'électricité"},{"$f":"IF(LEN('Détail des projets'!C222)=0,\"\",'Détail des projets'!C222)","v":"Les Fermes Hotte et Van Winden inc."},{"$f":"IF(LEN('Détail des projets'!H222)=0,\"\",'Détail des projets'!H222)","v":"16-Montérégie"},{"$f":"IF(LEN('Détail des projets'!L222)=0,\"\",'Détail des projets'!L222)","v":55740.27},44.592217488000003,"À la fin du projet (suite au dernier versement)",49.999998331547424,"QC-Québec","Oui",25,"non","oui","Non","Oui",0,0,0,0,0,0]
[null,{"$f":"IF(LEN('Détail des projets'!B223)=0,\"\",'Détail des projets'!B223)","v":"Nouveau système de chaînes au four à chaux"},{"$f":"IF(LEN('Détail des projets'!C223)=0,\"\",'Détail des projets'!C223)","v":"Fibrek S.E.N.C."},{"$f":"IF(LEN('Détail des projets'!H223)=0,\"\",'Détail des projets'!H223)","v":"02-Saguenay--Lac-Saint-Jean"},{"$f":"IF(LEN('Détail des projets'!L223)=0,\"\",'Détail des projets'!L223)","v":1875000},4801.8957119999995,"À la fin du projet (suite au dernier versement)",26.031385831146515,"QC-Québec","Oui",15,"oui","non","Non","Oui",0,0,0,0,0,0]
[null,{"$f":"IF(LEN('Détail des projets'!B224)=0,\"\",'Détail des projets'!B224)","v":"Conversion d'un chariot élévateur au propane pour l'électricité"},{"$f":"IF(LEN('Détail des projets'!C224)=0,\"\",'Détail des projets'!C224)","v":"SDF Abrasif inc."},{"$f":"IF(LEN('Détail des projets'!H224)=0,\"\",'Détail des projets'!H224)","v":"04-Mauricie"},{"$f":"IF(LEN('Détail des projets'!L224)=0,\"\",'Détail des projets'!L224)","v":22346.639999999999},18.199797271200001,"À la fin du projet (suite au dernier versement)",61.392551980131415,"QC-Québec","Oui",20,"non","oui","Non","Oui",0,0,0,0,0,0]
[null,{"$f":"IF(LEN('Détail des projets'!B225)=0,\"\",'Détail des projets'!B225)","v":"Serre-Conversion chauffage-CII- électrique"},{"$f":"IF(LEN('Détail des projets'!C225)=0,\"\",'Détail des projets'!C225)","v":"Entreprise Gendron-Benoit"},{"$f":"IF(LEN('Détail des projets'!H225)=0,\"\",'Détail des projets'!H225)","v":"05-Estrie"},{"$f":"IF(LEN('Détail des projets'!L225)=0,\"\",'Détail des projets'!L225)","v":18182.37},49.798094168687598,"À la fin du projet (suite au dernier versement)",18.256090221453537,"QC-Québec","Oui",20,"oui","non","Non","Oui",0,0,0,0,0,0]
[null,{"$f":"IF(LEN('Détail des projets'!B226)=0,\"\",'Détail des projets'!B226)","v":"Acériculture-Évaporateur électrique"},{"$f":"IF(LEN('Détail des projets'!C226)=0,\"\",'Détail des projets'!C226)","v":"L'érablière de la Montagne Blanche (9066-3527 Québec inc)"},{"$f":"IF(LEN('Détail des projets'!H226)=0,\"\",'Détail des projets'!H226)","v":"01-Bas-Saint-Laurent"},{"$f":"IF(LEN('Détail des projets'!L226)=0,\"\",'Détail des projets'!L226)","v":100000},98.768559359949407,"À la fin du projet (suite au dernier versement)",50.623397085079858,"QC-Québec","Oui",20,"oui","non","Non","Oui",0,0,0,0,0,0]
[null,{"$f":"IF(LEN('Détail des projets'!B227)=0,\"\",'Détail des projets'!B227)","v":"Acériculture-Évaporateur électrique"},{"$f":"IF(LEN('Détail des projets'!C227)=0,\"\",'Détail des projets'!C227)","v":"Érablière Billy Labrecque inc."},{"$f":"IF(LEN('Détail des projets'!H227)=0,\"\",'Détail des projets'!H227)","v":"12-Chaudière-Appalaches"},{"$f":"IF(LEN('Détail des projets'!L227)=0,\"\",'Détail des projets'!L227)","v":86826.46},69.461166095999999,"À la fin du projet (suite au dernier versement)",62.500001713187487,"QC-Québec","Oui",20,"oui","non","Non","Oui",0,0,0,0,0,0]
[null,{"$f":"IF(LEN('Détail des projets'!B228)=0,\"\",'Détail des projets'!B228)","v":"Serre agricole de fraises - Efficacité énergétique - Écrans thermiques et système de gestion climatique"},{"$f":"IF(LEN('Détail des projets'!C228)=0,\"\",'Détail des projets'!C228)","v":"Aux fruits de la colline (9254-8155 Québec inc.)"},{"$f":"IF(LEN('Détail des projets'!H228)=0,\"\",'Détail des projets'!H228)","v":"12-Chaudière-Appalaches"},{"$f":"IF(LEN('Détail des projets'!L228)=0,\"\",'Détail des projets'!L228)","v":91554.09},73.243268439999994,"À la fin du projet (suite au dernier versement)",65.842486792910861,"QC-Québec","Oui",18.984703063964801,"oui","non","Non","Oui",0,0,0,0,0,0]
[null,{"$f":"IF(LEN('Détail des projets'!B229)=0,\"\",'Détail des projets'!B229)","v":"Transition vers un séchoir avec un meilleur rendement énergétique"},{"$f":"IF(LEN('Détail des projets'!C229)=0,\"\",'Détail des projets'!C229)","v":"Productions JC Landry (9110-8274 Québec inc.)"},{"$f":"IF(LEN('Détail des projets'!H229)=0,\"\",'Détail des projets'!H229)","v":"16-Montérégie"},{"$f":"IF(LEN('Détail des projets'!L229)=0,\"\",'Détail des projets'!L229)","v":44408.47},36.114351800000001,"À la fin du projet (suite au dernier versement)",61.483133140437531,"QC-Québec","Oui",20,"oui","non","Non","Oui",0,0,0,0,0,0]
[null,{"$f":"IF(LEN('Détail des projets'!B230)=0,\"\",'Détail des projets'!B230)","v":"Acériculture-Évaporateur électrique"},{"$f":"IF(LEN('Détail des projets'!C230)=0,\"\",'Détail des projets'!C230)","v":"Les Entreprises GLM S.E.N.C."},{"$f":"IF(LEN('Détail des projets'!H230)=0,\"\",'Détail des projets'!H230)","v":"12-Chaudière-Appalaches"},{"$f":"IF(LEN('Détail des projets'!L230)=0,\"\",'Détail des projets'!L230)","v":55140.08},44.112063433119999,"À la fin du projet (suite au dernier versement)",62.500000803181663,"QC-Québec","Oui",20,"oui","non","Non","Oui",0,0,0,0,0,0]
[null,{"$f":"IF(LEN('Détail des projets'!B231)=0,\"\",'Détail des projets'!B231)","v":"Acériculture-Évaporateur électrique"},{"$f":"IF(LEN('Détail des projets'!C231)=0,\"\",'Détail des projets'!C231)","v":"Gestion 2022 inc."},{"$f":"IF(LEN('Détail des projets'!H231)=0,\"\",'Détail des projets'!H231)","v":"04-Mauricie"},{"$f":"IF(LEN('Détail des projets'!L231)=0,\"\",'Détail des projets'!L231)","v":24131.56},19.305250252800001,"À la fin du projet (suite au dernier versement)",62.499992706647255,"QC-Québec","Oui",20,"oui","non","Non","Oui",0,0,0,0,0,0]
[null,{"$f":"IF(LEN('Détail des projets'!B232)=0,\"\",'Détail des projets'!B232)","v":"Conversion chauffage-CII- électrique"},{"$f":"IF(LEN('Détail des projets'!C232)=0,\"\",'Détail des projets'!C232)","v":"Les Folies du Fleuve inc."},{"$f":"IF(LEN('Détail des projets'!H232)=0,\"\",'Détail des projets'!H232)","v":"01-Bas-Saint-Laurent"},{"$f":"IF(LEN('Détail des projets'!L232)=0,\"\",'Détail des projets'!L232)","v":11633.2},15.8048246176,"À la fin du projet (suite au dernier versement)",36.802686146372849,"QC-Québec","Oui",20,"oui","non","Non","Oui",0,0,0,0,0,0]
[null,{"$f":"IF(LEN('Détail des projets'!B233)=0,\"\",'Détail des projets'!B233)","v":"Acériculture-Évaporateur électrique"},{"$f":"IF(LEN('Détail des projets'!C233)=0,\"\",'Détail des projets'!C233)","v":"Michel Carbonneau"},{"$f":"IF(LEN('Détail des projets'!H233)=0,\"\",'Détail des projets'!H233)","v":"05-Estrie"},{"$f":"IF(LEN('Détail des projets'!L233)=0,\"\",'Détail des projets'!L233)","v":58258.67},46.606937232,"À la fin du projet (suite au dernier versement)",62.499998347885438,"QC-Québec","Oui",20,"oui","non","Non","Oui",0,0,0,0,0,0]
[null,{"$f":"IF(LEN('Détail des projets'!B234)=0,\"\",'Détail des projets'!B234)","v":"Acériculture-Évaporateur électrique"},{"$f":"IF(LEN('Détail des projets'!C234)=0,\"\",'Détail des projets'!C234)","v":"Érablière Lamontagne Inc."},{"$f":"IF(LEN('Détail des projets'!H234)=0,\"\",'Détail des projets'!H234)","v":"12-Chaudière-Appalaches"},{"$f":"IF(LEN('Détail des projets'!L234)=0,\"\",'Détail des projets'!L234)","v":63303.08},50.642460873600001,"À la fin du projet (suite au dernier versement)",62.500003858422289,"QC-Québec","Oui",20,"oui","non","Non","Oui",0,0,0,0,0,0]
[null,{"$f":"IF(LEN('Détail des projets'!B235)=0,\"\",'Détail des projets'!B235)","v":"Acériculture-Évaporateur électrique"},{"$f":"IF(LEN('Détail des projets'!C235)=0,\"\",'Détail des projets'!C235)","v":"Gabriel Michaud"},{"$f":"IF(LEN('Détail des projets'!H235)=0,\"\",'Détail des projets'!H235)","v":"17-Centre-du-Québec"},{"$f":"IF(LEN('Détail des projets'!L235)=0,\"\",'Détail des projets'!L235)","v":6569.74},5.2557953919999996,"À la fin du projet (suite au dernier versement)",62.499959663574359,"QC-Québec","Oui",20,"oui","non","Non","Oui",0,0,0,0,0,0]
[null,{"$f":"IF(LEN('Détail des projets'!B236)=0,\"\",'Détail des projets'!B236)","v":"Installation d'un nouveau séchoir à grains"},{"$f":"IF(LEN('Détail des projets'!C236)=0,\"\",'Détail des projets'!C236)","v":"Ferme Réjeanique inc."},{"$f":"IF(LEN('Détail des projets'!H236)=0,\"\",'Détail des projets'!H236)","v":"16-Montérégie"},{"$f":"IF(LEN('Détail des projets'!L236)=0,\"\",'Détail des projets'!L236)","v":50742.420000000006},40.593937199999999,"À la fin du projet (suite au dernier versement)",49.999998521946772,"QC-Québec","Oui",25,"oui","non","Non","Oui",0,0,0,0,0,0]
[null,{"$f":"IF(LEN('Détail des projets'!B237)=0,\"\",'Détail des projets'!B237)","v":"Acériculture-Évaporateur électrique"},{"$f":"IF(LEN('Détail des projets'!C237)=0,\"\",'Détail des projets'!C237)","v":"Daniel Caron"},{"$f":"IF(LEN('Détail des projets'!H237)=0,\"\",'Détail des projets'!H237)","v":"12-Chaudière-Appalaches"},{"$f":"IF(LEN('Détail des projets'!L237)=0,\"\",'Détail des projets'!L237)","v":19332.439999999999},15.465954584,"À la fin du projet (suite au dernier versement)",62.499989557708886,"QC-Québec","Oui",20,"oui","non","Non","Oui",0,0,0,0,0,0]
[null,{"$f":"IF(LEN('Détail des projets'!B238)=0,\"\",'Détail des projets'!B238)","v":"Acériculture-Évaporateur électrique"},{"$f":"IF(LEN('Détail des projets'!C238)=0,\"\",'Détail des projets'!C238)","v":"Érablière Choga"},{"$f":"IF(LEN('Détail des projets'!H238)=0,\"\",'Détail des projets'!H238)","v":"01-Bas-Saint-Laurent"},{"$f":"IF(LEN('Détail des projets'!L238)=0,\"\",'Détail des projets'!L238)","v":37154.910000000003},29.723931056000001,"À la fin du projet (suite au dernier versement)",62.49999357420122,"QC-Québec","Oui",20,"oui","non","Non","Oui",0,0,0,0,0,0]
[null,{"$f":"IF(LEN('Détail des projets'!B239)=0,\"\",'Détail des projets'!B239)","v":"Serre-Conversion chauffage-CII- électrique"},{"$f":"IF(LEN('Détail des projets'!C239)=0,\"\",'Détail des projets'!C239)","v":"Ferme Cadet Roussel SENC"},{"$f":"IF(LEN('Détail des projets'!H239)=0,\"\",'Détail des projets'!H239)","v":"16-Montérégie"},{"$f":"IF(LEN('Détail des projets'!L239)=0,\"\",'Détail des projets'!L239)","v":93999.94},95.755832510493903,"À la fin du projet (suite au dernier versement)",49.083140700436459,"QC-Québec","Oui",20,"oui","non","Non","Oui",0,0,0,0,0,0]
[null,{"$f":"IF(LEN('Détail des projets'!B240)=0,\"\",'Détail des projets'!B240)","v":"Modernisation énergétique - TRÉVI"},{"$f":"IF(LEN('Détail des projets'!C240)=0,\"\",'Détail des projets'!C240)","v":"Investissements Trévi inc."},{"$f":"IF(LEN('Détail des projets'!H240)=0,\"\",'Détail des projets'!H240)","v":"15-Laurentides"},{"$f":"IF(LEN('Détail des projets'!L240)=0,\"\",'Détail des projets'!L240)","v":1320084.22},1212.7410259513799,"À la fin du projet (suite au dernier versement)",43.540514973983363,"QC-Québec","Oui",25,"oui","non","Non","Oui",0,0,0,0,0,0]
[null,{"$f":"IF(LEN('Détail des projets'!B241)=0,\"\",'Détail des projets'!B241)","v":"Conversion du chauffage du garage au gaz naturel"},{"$f":"IF(LEN('Détail des projets'!C241)=0,\"\",'Détail des projets'!C241)","v":"Béton Régional inc."},{"$f":"IF(LEN('Détail des projets'!H241)=0,\"\",'Détail des projets'!H241)","v":"02-Saguenay─Lac-Saint-Jean"},{"$f":"IF(LEN('Détail des projets'!L241)=0,\"\",'Détail des projets'!L241)","v":4927.99},6.46366678654464,"À la fin du projet (suite au dernier versement)",38.120699617889912,"QC-Québec","Oui",20,"non","oui","Non","Oui",0,0,0,0,0,0]
[null,{"$f":"IF(LEN('Détail des projets'!B242)=0,\"\",'Détail des projets'!B242)","v":"Serre-Conversion chauffage-CII- électrique"},{"$f":"IF(LEN('Détail des projets'!C242)=0,\"\",'Détail des projets'!C242)","v":"Girard-Migneault Étienne"},{"$f":"IF(LEN('Détail des projets'!H242)=0,\"\",'Détail des projets'!H242)","v":"03-Capitale-Nationale"},{"$f":"IF(LEN('Détail des projets'!L242)=0,\"\",'Détail des projets'!L242)","v":43942.5},41.175613037823403,"À la fin du projet (suite au dernier versement)",53.359861284439127,"QC-Québec","Oui",20,"oui","non","Non","Oui",0,0,0,0,0,0]
[null,{"$f":"IF(LEN('Détail des projets'!B243)=0,\"\",'Détail des projets'!B243)","v":"Ajout d'échangeurs de chaleur dans des bâtiments d'élevage de volailles"},{"$f":"IF(LEN('Détail des projets'!C243)=0,\"\",'Détail des projets'!C243)","v":"Ferme Plumes d'or (9190-3203 Québec inc.)"},{"$f":"IF(LEN('Détail des projets'!H243)=0,\"\",'Détail des projets'!H243)","v":"05-Estrie"},{"$f":"IF(LEN('Détail des projets'!L243)=0,\"\",'Détail des projets'!L243)","v":48105.22},38.484173280543502,"À la fin du projet (suite au dernier versement)",62.500004416517662,"QC-Québec","Oui",20,"oui","non","Non","Oui",0,0,0,0,0,0]
[null,{"$f":"IF(LEN('Détail des projets'!B244)=0,\"\",'Détail des projets'!B244)","v":"Acériculture-Évaporateur électrique"},{"$f":"IF(LEN('Détail des projets'!C244)=0,\"\",'Détail des projets'!C244)","v":"Érablière Pépin société en nom collectif"},{"$f":"IF(LEN('Détail des projets'!H244)=0,\"\",'Détail des projets'!H244)","v":"17-Centre-du-Québec"},{"$f":"IF(LEN('Détail des projets'!L244)=0,\"\",'Détail des projets'!L244)","v":15000.66},12.000530896000001,"À la fin du projet (suite au dernier versement)",62.49998491733394,"QC-Québec","Oui",20,"oui","non","Non","Oui",0,0,0,0,0,0]
[null,{"$f":"IF(LEN('Détail des projets'!B245)=0,\"\",'Détail des projets'!B245)","v":"Serre-Conversion chauffage-CII- électrique"},{"$f":"IF(LEN('Détail des projets'!C245)=0,\"\",'Détail des projets'!C245)","v":"Coop de solidarité des Jardins du Pied de Céleri"},{"$f":"IF(LEN('Détail des projets'!H245)=0,\"\",'Détail des projets'!H245)","v":"05-Estrie"},{"$f":"IF(LEN('Détail des projets'!L245)=0,\"\",'Détail des projets'!L245)","v":59530.39},46.202963480065698,"À la fin du projet (suite au dernier versement)",64.422696636855804,"QC-Québec","Oui",20,"oui","non","Non","Oui",0,0,0,0,0,0]
[null,{"$f":"IF(LEN('Détail des projets'!B246)=0,\"\",'Détail des projets'!B246)","v":"Conversion chauffage-CII- électrique"},{"$f":"IF(LEN('Détail des projets'!C246)=0,\"\",'Détail des projets'!C246)","v":"Les Fibres de verre Rioux inc."},{"$f":"IF(LEN('Détail des projets'!H246)=0,\"\",'Détail des projets'!H246)","v":"01-Bas-Saint-Laurent"},{"$f":"IF(LEN('Détail des projets'!L246)=0,\"\",'Détail des projets'!L246)","v":33754},45.858061215299003,"À la fin du projet (suite au dernier versement)",36.802689762142748,"QC-Québec","Oui",20,"oui","non","Non","Oui",0,0,0,0,0,0]
[null,{"$f":"IF(LEN('Détail des projets'!B247)=0,\"\",'Détail des projets'!B247)","v":"Acériculture-Évaporateur électrique"},{"$f":"IF(LEN('Détail des projets'!C247)=0,\"\",'Détail des projets'!C247)","v":"4096011 Canada inc."},{"$f":"IF(LEN('Détail des projets'!H247)=0,\"\",'Détail des projets'!H247)","v":"11-Gaspésie--Îles-de-la-Madeleine"},{"$f":"IF(LEN('Détail des projets'!L247)=0,\"\",'Détail des projets'!L247)","v":100000},80.801992020422304,"À la fin du projet (suite au dernier versement)",61.879662555055255,"QC-Québec","Oui",20,"oui","non","Non","Oui",0,0,0,0,0,0]
[null,{"$f":"IF(LEN('Détail des projets'!B248)=0,\"\",'Détail des projets'!B248)","v":"Serre-Conversion chauffage-CII- électrique"},{"$f":"IF(LEN('Détail des projets'!C248)=0,\"\",'Détail des projets'!C248)","v":"Les Serres Claude Lizotte inc."},{"$f":"IF(LEN('Détail des projets'!H248)=0,\"\",'Détail des projets'!H248)","v":"12-Chaudière-Appalaches"},{"$f":"IF(LEN('Détail des projets'!L248)=0,\"\",'Détail des projets'!L248)","v":86494.88},304.83447195999997,"À la fin du projet (suite au dernier versement)",14.187188122764175,"QC-Québec","Oui",20,"oui","non","Non","Oui",0,0,0,0,0,0]
[null,{"$f":"IF(LEN('Détail des projets'!B249)=0,\"\",'Détail des projets'!B249)","v":"Serre-Conversion chauffage-CII- électrique"},{"$f":"IF(LEN('Détail des projets'!C249)=0,\"\",'Détail des projets'!C249)","v":"Jacques Dallaire"},{"$f":"IF(LEN('Détail des projets'!H249)=0,\"\",'Détail des projets'!H249)","v":"02-Saguenay--Lac-Saint-Jean"},{"$f":"IF(LEN('Détail des projets'!L249)=0,\"\",'Détail des projets'!L249)","v":57397.16},44.547313152000001,"À la fin du projet (suite au dernier versement)",64.422695712483275,"QC-Québec","Oui",20,"oui","non","Non","Oui",0,0,0,0,0,0]
[null,{"$f":"IF(LEN('Détail des projets'!B250)=0,\"\",'Détail des projets'!B250)","v":"Conversion chauffage-CII- électrique"},{"$f":"IF(LEN('Détail des projets'!C250)=0,\"\",'Détail des projets'!C250)","v":"Fabrications Trémex inc."},{"$f":"IF(LEN('Détail des projets'!H250)=0,\"\",'Détail des projets'!H250)","v":"12-Chaudière-Appalaches"},{"$f":"IF(LEN('Détail des projets'!L250)=0,\"\",'Détail des projets'!L250)","v":8070.27},9.4061878320000005,"À la fin du projet (suite au dernier versement)",42.898728709971181,"QC-Québec","Oui",20,"oui","non","Non","Oui",0,0,0,0,0,0]
[null,{"$f":"IF(LEN('Détail des projets'!B251)=0,\"\",'Détail des projets'!B251)","v":"Serre-Conversion chauffage-CII- électrique"},{"$f":"IF(LEN('Détail des projets'!C251)=0,\"\",'Détail des projets'!C251)","v":"Les Serres Dalton enr."},{"$f":"IF(LEN('Détail des projets'!H251)=0,\"\",'Détail des projets'!H251)","v":"14-Lanaudière"},{"$f":"IF(LEN('Détail des projets'!L251)=0,\"\",'Détail des projets'!L251)","v":67500},363.607363317872,"À la fin du projet (suite au dernier versement)",9.2819902468518372,"QC-Québec","Oui",20,"oui","non","Non","Oui",0,0,0,0,0,0]
[null,{"$f":"IF(LEN('Détail des projets'!B252)=0,\"\",'Détail des projets'!B252)","v":"Conversion chauffage-CII- électrique"},{"$f":"IF(LEN('Détail des projets'!C252)=0,\"\",'Détail des projets'!C252)","v":"Hydromellerie Saint-Paul-de-la-Croix"},{"$f":"IF(LEN('Détail des projets'!H252)=0,\"\",'Détail des projets'!H252)","v":"01-Bas-Saint-Laurent"},{"$f":"IF(LEN('Détail des projets'!L252)=0,\"\",'Détail des projets'!L252)","v":2690.8},3.6557110144,"À la fin du projet (suite au dernier versement)",36.802690220873934,"QC-Québec","Oui",20,"oui","non","Non","Oui",0,0,0,0,0,0]
[null,{"$f":"IF(LEN('Détail des projets'!B253)=0,\"\",'Détail des projets'!B253)","v":"Serre-Conversion chauffage-CII- électrique- Serre A"},{"$f":"IF(LEN('Détail des projets'!C253)=0,\"\",'Détail des projets'!C253)","v":"Ferme Almana S.E.N.C."},{"$f":"IF(LEN('Détail des projets'!H253)=0,\"\",'Détail des projets'!H253)","v":"03-Capitale-Nationale"},{"$f":"IF(LEN('Détail des projets'!L253)=0,\"\",'Détail des projets'!L253)","v":67956.55},52.742709331176798,"À la fin du projet (suite au dernier versement)",64.422695441462778,"QC-Québec","Oui",20,"oui","non","Non","Oui",0,0,0,0,0,0]
[null,{"$f":"IF(LEN('Détail des projets'!B254)=0,\"\",'Détail des projets'!B254)","v":"Serre-Conversion chauffage-CII- électrique- Serre B"},{"$f":"IF(LEN('Détail des projets'!C254)=0,\"\",'Détail des projets'!C254)","v":"Ferme Almana S.E.N.C."},{"$f":"IF(LEN('Détail des projets'!H254)=0,\"\",'Détail des projets'!H254)","v":"03-Capitale-Nationale"},{"$f":"IF(LEN('Détail des projets'!L254)=0,\"\",'Détail des projets'!L254)","v":67956.55},52.742709331176798,"À la fin du projet (suite au dernier versement)",64.422695441462778,"QC-Québec","Oui",20,"oui","non","Non","Oui",0,0,0,0,0,0]
[null,{"$f":"IF(LEN('Détail des projets'!B255)=0,\"\",'Détail des projets'!B255)","v":"Serre-Conversion chauffage-CII- électrique"},{"$f":"IF(LEN('Détail des projets'!C255)=0,\"\",'Détail des projets'!C255)","v":"Les Serres de la Vallière"},{"$f":"IF(LEN('Détail des projets'!H255)=0,\"\",'Détail des projets'!H255)","v":"16-Montérégie"},{"$f":"IF(LEN('Détail des projets'!L255)=0,\"\",'Détail des projets'!L255)","v":100000},94.9467576533863,"À la fin du projet (suite au dernier versement)",52.661092633126621,"QC-Québec","Oui",20,"oui","non","Non","Oui",0,0,0,0,0,0]
[null,{"$f":"IF(LEN('Détail des projets'!B256)=0,\"\",'Détail des projets'!B256)","v":"Serre-Conversion chauffage-CII- électrique - Serre no 6"},{"$f":"IF(LEN('Détail des projets'!C256)=0,\"\",'Détail des projets'!C256)","v":"Jardin chez Julie et Lova (9434-7192 Québec inc.)"},{"$f":"IF(LEN('Détail des projets'!H256)=0,\"\",'Détail des projets'!H256)","v":"16-Montérégie"},{"$f":"IF(LEN('Détail des projets'!L256)=0,\"\",'Détail des projets'!L256)","v":76632.28},59.476150775802303,"À la fin du projet (suite au dernier versement)",64.422696324841539,"QC-Québec","Oui",20,"oui","non","Non","Oui",0,0,0,0,0,0]
[null,{"$f":"IF(LEN('Détail des projets'!B257)=0,\"\",'Détail des projets'!B257)","v":"Serre-Conversion chauffage-CII- électrique - Serres 7 et 8"},{"$f":"IF(LEN('Détail des projets'!C257)=0,\"\",'Détail des projets'!C257)","v":"Jardin chez Julie et Lova (9434-7192 Québec inc.)"},{"$f":"IF(LEN('Détail des projets'!H257)=0,\"\",'Détail des projets'!H257)","v":"16-Montérégie"},{"$f":"IF(LEN('Détail des projets'!L257)=0,\"\",'Détail des projets'!L257)","v":79752.490000000005},61.897822552016002,"À la fin du projet (suite au dernier versement)",64.422694298317026,"QC-Québec","Oui",20,"oui","non","Non","Oui",0,0,0,0,0,0]
[null,{"$f":"IF(LEN('Détail des projets'!B258)=0,\"\",'Détail des projets'!B258)","v":"Serre-Conversion chauffage-CII- électrique - Serres 2 et 9"},{"$f":"IF(LEN('Détail des projets'!C258)=0,\"\",'Détail des projets'!C258)","v":"Jardin chez Julie et Lova"},{"$f":"IF(LEN('Détail des projets'!H258)=0,\"\",'Détail des projets'!H258)","v":"16-Montérégie"},{"$f":"IF(LEN('Détail des projets'!L258)=0,\"\",'Détail des projets'!L258)","v":37889.58},31.782275678662,"À la fin du projet (suite au dernier versement)",59.608034967487129,"QC-Québec","Oui",20,"oui","non","Non","Oui",0,0,0,0,0,0]
[null,{"$f":"IF(LEN('Détail des projets'!B259)=0,\"\",'Détail des projets'!B259)","v":"Serre-Conversion chauffage-CII- électrique"},{"$f":"IF(LEN('Détail des projets'!C259)=0,\"\",'Détail des projets'!C259)","v":"Hébert-Chartrand Loup"},{"$f":"IF(LEN('Détail des projets'!H259)=0,\"\",'Détail des projets'!H259)","v":"05-Estrie"},{"$f":"IF(LEN('Détail des projets'!L259)=0,\"\",'Détail des projets'!L259)","v":18810.55},85.548764839158807,"À la fin du projet (suite au dernier versement)",10.994051191367827,"QC-Québec","Oui",20,"oui","non","Non","Oui",0,0,0,0,0,0]
[null,{"$f":"IF(LEN('Détail des projets'!B260)=0,\"\",'Détail des projets'!B260)","v":"Serre-Conversion chauffage-CII- électrique"},{"$f":"IF(LEN('Détail des projets'!C260)=0,\"\",'Détail des projets'!C260)","v":"Les Jardins d'En Haut"},{"$f":"IF(LEN('Détail des projets'!H260)=0,\"\",'Détail des projets'!H260)","v":"16-Montérégie"},{"$f":"IF(LEN('Détail des projets'!L260)=0,\"\",'Détail des projets'!L260)","v":97500},83.828543814814296,"À la fin du projet (suite au dernier versement)",58.154415884515025,"QC-Québec","Oui",20,"oui","non","Non","Oui",0,0,0,0,0,0]
[null,{"$f":"IF(LEN('Détail des projets'!B261)=0,\"\",'Détail des projets'!B261)","v":"Serre-Conversion chauffage-CII- électrique - Serre 1"},{"$f":"IF(LEN('Détail des projets'!C261)=0,\"\",'Détail des projets'!C261)","v":"Les Jardins Bastien inc."},{"$f":"IF(LEN('Détail des projets'!H261)=0,\"\",'Détail des projets'!H261)","v":"13-Laval"},{"$f":"IF(LEN('Détail des projets'!L261)=0,\"\",'Détail des projets'!L261)","v":100000},78.831113385896103,"À la fin du projet (suite au dernier versement)",63.426733243305478,"QC-Québec","Oui",20,"oui","non","Non","Oui",0,0,0,0,0,0]
[null,{"$f":"IF(LEN('Détail des projets'!B262)=0,\"\",'Détail des projets'!B262)","v":"Serre-Conversion chauffage-CII- électrique - Serre 2"},{"$f":"IF(LEN('Détail des projets'!C262)=0,\"\",'Détail des projets'!C262)","v":"Les Jardins Bastien inc."},{"$f":"IF(LEN('Détail des projets'!H262)=0,\"\",'Détail des projets'!H262)","v":"13-Laval"},{"$f":"IF(LEN('Détail des projets'!L262)=0,\"\",'Détail des projets'!L262)","v":100000},88.324000869362806,"À la fin du projet (suite au dernier versement)",56.609754435777198,"QC-Québec","Oui",20,"oui","non","Non","Oui",0,0,0,0,0,0]
[null,{"$f":"IF(LEN('Détail des projets'!B263)=0,\"\",'Détail des projets'!B263)","v":"Serre-Conversion chauffage-CII- électrique"},{"$f":"IF(LEN('Détail des projets'!C263)=0,\"\",'Détail des projets'!C263)","v":"Coopérative de solidarité, les jardins de la Montagne"},{"$f":"IF(LEN('Détail des projets'!H263)=0,\"\",'Détail des projets'!H263)","v":"02-Saguenay--Lac-Saint-Jean"},{"$f":"IF(LEN('Détail des projets'!L263)=0,\"\",'Détail des projets'!L263)","v":20250},64.1411375214076,"À la fin du projet (suite au dernier versement)",15.78550114833979,"QC-Québec","Oui",20,"oui","non","Non","Oui",0,0,0,0,0,0]
[null,{"$f":"IF(LEN('Détail des projets'!B264)=0,\"\",'Détail des projets'!B264)","v":"Serre-Conversion chauffage-CII- électrique"},{"$f":"IF(LEN('Détail des projets'!C264)=0,\"\",'Détail des projets'!C264)","v":"Le Mont Vert"},{"$f":"IF(LEN('Détail des projets'!H264)=0,\"\",'Détail des projets'!H264)","v":"16-Montérégie"},{"$f":"IF(LEN('Détail des projets'!L264)=0,\"\",'Détail des projets'!L264)","v":78387.509999999995},164.356801446031,"À la fin du projet (suite au dernier versement)",23.846749666073205,"QC-Québec","Oui",20,"oui","non","Non","Oui",0,0,0,0,0,0]
[null,{"$f":"IF(LEN('Détail des projets'!B265)=0,\"\",'Détail des projets'!B265)","v":"Serre-Conversion chauffage-CII- électrique"},{"$f":"IF(LEN('Détail des projets'!C265)=0,\"\",'Détail des projets'!C265)","v":"Les jardins Tomates & Camomille S.E.N.C."},{"$f":"IF(LEN('Détail des projets'!H265)=0,\"\",'Détail des projets'!H265)","v":"08-Abitibi-Témiscamingue"},{"$f":"IF(LEN('Détail des projets'!L265)=0,\"\",'Détail des projets'!L265)","v":100000},153.76008916642701,"À la fin du projet (suite au dernier versement)",32.518191340199436,"QC-Québec","Oui",20,"oui","non","Non","Oui",0,0,0,0,0,0]
[null,{"$f":"IF(LEN('Détail des projets'!B266)=0,\"\",'Détail des projets'!B266)","v":"Serre-Conversion chauffage-CII- électrique"},{"$f":"IF(LEN('Détail des projets'!C266)=0,\"\",'Détail des projets'!C266)","v":"Villiard serres et jardins inc."},{"$f":"IF(LEN('Détail des projets'!H266)=0,\"\",'Détail des projets'!H266)","v":"16-Montérégie"},{"$f":"IF(LEN('Détail des projets'!L266)=0,\"\",'Détail des projets'!L266)","v":75000},425.53628148107703,"À la fin du projet (suite au dernier versement)",8.8124095716307487,"QC-Québec","Oui",20,"oui","non","Non","Oui",0,0,0,0,0,0]
[null,{"$f":"IF(LEN('Détail des projets'!B267)=0,\"\",'Détail des projets'!B267)","v":"Serre-Conversion chauffage-CII- électrique"},{"$f":"IF(LEN('Détail des projets'!C267)=0,\"\",'Détail des projets'!C267)","v":"Ferme Coopérative Agricola"},{"$f":"IF(LEN('Détail des projets'!H267)=0,\"\",'Détail des projets'!H267)","v":"07-Outaouais"},{"$f":"IF(LEN('Détail des projets'!L267)=0,\"\",'Détail des projets'!L267)","v":52369.17},144.81292840410501,"À la fin du projet (suite au dernier versement)",18.0816625204423,"QC-Québec","Oui",20,"oui","non","Non","Oui",0,0,0,0,0,0]
[null,{"$f":"IF(LEN('Détail des projets'!B268)=0,\"\",'Détail des projets'!B268)","v":"Système de réfrigération au CO2 avec récupération de chaleur"},{"$f":"IF(LEN('Détail des projets'!C268)=0,\"\",'Détail des projets'!C268)","v":"9401-4503 Québec inc."},{"$f":"IF(LEN('Détail des projets'!H268)=0,\"\",'Détail des projets'!H268)","v":"16-Montérégie"},{"$f":"IF(LEN('Détail des projets'!L268)=0,\"\",'Détail des projets'!L268)","v":0},11.33592,"À la fin du projet (suite au dernier versement)",0,"QC-Québec","Oui",25,"oui","non","Non","Oui",0,0,3.2830806557377099,0,11.273975081967199,0]
[null,{"$f":"IF(LEN('Détail des projets'!B269)=0,\"\",'Détail des projets'!B269)","v":"Acériculture-Évaporateur électrique"},{"$f":"IF(LEN('Détail des projets'!C269)=0,\"\",'Détail des projets'!C269)","v":"L'Érablière Covey Hill"},{"$f":"IF(LEN('Détail des projets'!H269)=0,\"\",'Détail des projets'!H269)","v":"16-Montérégie"},{"$f":"IF(LEN('Détail des projets'!L269)=0,\"\",'Détail des projets'!L269)","v":30012.62},22.866760392,"À la fin du projet (suite au dernier versement)",65.624993408554715,"QC-Québec","Oui",20,"oui","non","Non","Oui",0,0,0,0,7.99711838845902,0]
[null,{"$f":"IF(LEN('Détail des projets'!B270)=0,\"\",'Détail des projets'!B270)","v":"Acériculture-Évaporateur électrique"},{"$f":"IF(LEN('Détail des projets'!C270)=0,\"\",'Détail des projets'!C270)","v":"Ferme Nochamp (2015) inc."},{"$f":"IF(LEN('Détail des projets'!H270)=0,\"\",'Détail des projets'!H270)","v":"12-Chaudière-Appalaches"},{"$f":"IF(LEN('Détail des projets'!L270)=0,\"\",'Détail des projets'!L270)","v":30715.68},23.402421847999999,"À la fin du projet (suite au dernier versement)",65.625002829835324,"QC-Québec","Oui",20,"oui","non","Non","Oui",0,0,0,0,18.542902557158499,0]
[null,{"$f":"IF(LEN('Détail des projets'!B271)=0,\"\",'Détail des projets'!B271)","v":"Acériculture-Évaporateur électrique"},{"$f":"IF(LEN('Détail des projets'!C271)=0,\"\",'Détail des projets'!C271)","v":"Érablière Guy Fortier"},{"$f":"IF(LEN('Détail des projets'!H271)=0,\"\",'Détail des projets'!H271)","v":"17-Centre-du-Québec"},{"$f":"IF(LEN('Détail des projets'!L271)=0,\"\",'Détail des projets'!L271)","v":54958.18},41.872895640928,"À la fin du projet (suite au dernier versement)",65.62,"QC-Québec","Oui",20,"oui","non","Non","Oui",0,0,0,0,0,0]
[null,{"$f":"IF(LEN('Détail des projets'!B272)=0,\"\",'Détail des projets'!B272)","v":"Acériculture-Évaporateur électrique"},{"$f":"IF(LEN('Détail des projets'!C272)=0,\"\",'Détail des projets'!C272)","v":"Domaine du Roi (2006) inc."},{"$f":"IF(LEN('Détail des projets'!H272)=0,\"\",'Détail des projets'!H272)","v":"01-Bas-Saint-Laurent"},{"$f":"IF(LEN('Détail des projets'!L272)=0,\"\",'Détail des projets'!L272)","v":105000},136.590105970027,"À la fin du projet (suite au dernier versement)",38.436166095017505,"QC-Québec","Oui",20,"oui","non","Non","Oui",0,0,0,0,112.705497275814,0]
[null,{"$f":"IF(LEN('Détail des projets'!B273)=0,\"\",'Détail des projets'!B273)","v":"Acériculture-Évaporateur électrique"},{"$f":"IF(LEN('Détail des projets'!C273)=0,\"\",'Détail des projets'!C273)","v":"Aménagement forestier coopératif des Appalaches"},{"$f":"IF(LEN('Détail des projets'!H273)=0,\"\",'Détail des projets'!H273)","v":"05-Estrie"},{"$f":"IF(LEN('Détail des projets'!L273)=0,\"\",'Détail des projets'!L273)","v":53977.53},41.125732247999998,"À la fin du projet (suite au dernier versement)",65.625007810803169,"QC-Québec","Oui",20,"oui","non","Non","Oui",0,0,1.9102116071475399,0,40.901001470688499,0]
[null,{"$f":"IF(LEN('Détail des projets'!B274)=0,\"\",'Détail des projets'!B274)","v":"Conversion chauffage-CII- électrique"},{"$f":"IF(LEN('Détail des projets'!C274)=0,\"\",'Détail des projets'!C274)","v":"Les Tourbières Berger ltée"},{"$f":"IF(LEN('Détail des projets'!H274)=0,\"\",'Détail des projets'!H274)","v":"01-Bas-Saint-Laurent"},{"$f":"IF(LEN('Détail des projets'!L274)=0,\"\",'Détail des projets'!L274)","v":10158},21.3335702400082,"À la fin du projet (suite au dernier versement)",23.807548117169009,"QC-Québec","Oui",20,"oui","non","Non","Oui",0,0,0,0,21.2169933534508,0]
[null,{"$f":"IF(LEN('Détail des projets'!B275)=0,\"\",'Détail des projets'!B275)","v":"Conversion chauffage-CII- électrique"},{"$f":"IF(LEN('Détail des projets'!C275)=0,\"\",'Détail des projets'!C275)","v":"Champignons Le Coprin"},{"$f":"IF(LEN('Détail des projets'!H275)=0,\"\",'Détail des projets'!H275)","v":"07-Outaouais"},{"$f":"IF(LEN('Détail des projets'!L275)=0,\"\",'Détail des projets'!L275)","v":11574.47},19.2703306357113,"À la fin du projet (suite au dernier versement)",30.031840705811447,"QC-Québec","Oui",20,"oui","non","Non","Oui",0,0,0,0,11.1093982626642,0]
[null,{"$f":"IF(LEN('Détail des projets'!B276)=0,\"\",'Détail des projets'!B276)","v":"Conversion du bruleur vers le propane"},{"$f":"IF(LEN('Détail des projets'!C276)=0,\"\",'Détail des projets'!C276)","v":"Bituméco (9369-9692 Québec inc.)"},{"$f":"IF(LEN('Détail des projets'!H276)=0,\"\",'Détail des projets'!H276)","v":"17-Centre-du-Québec"},{"$f":"IF(LEN('Détail des projets'!L276)=0,\"\",'Détail des projets'!L276)","v":123180},408.742368,"À la fin du projet (suite au dernier versement)",12.054537003612015,"QC-Québec","Oui",25,"non","oui","Non","Oui",0,0,0,0,338.38507514754099,0]
[null,{"$f":"IF(LEN('Détail des projets'!B277)=0,\"\",'Détail des projets'!B277)","v":"Serre-Conversion chauffage-CII- électrique"},{"$f":"IF(LEN('Détail des projets'!C277)=0,\"\",'Détail des projets'!C277)","v":"Jardinier déchaîné"},{"$f":"IF(LEN('Détail des projets'!H277)=0,\"\",'Détail des projets'!H277)","v":"05-Estrie"},{"$f":"IF(LEN('Détail des projets'!L277)=0,\"\",'Détail des projets'!L277)","v":11437.25},32.462328978616704,"À la fin du projet (suite au dernier versement)",17.616188301729434,"QC-Québec","Oui",20,"oui","non","Non","Oui",0,0,0,0,21.464162876571699,0]
[null,{"$f":"IF(LEN('Détail des projets'!B278)=0,\"\",'Détail des projets'!B278)","v":"Conversion chauffage-CII- électrique"},{"$f":"IF(LEN('Détail des projets'!C278)=0,\"\",'Détail des projets'!C278)","v":"Les Gravures A. Desmarais & Fils inc."},{"$f":"IF(LEN('Détail des projets'!H278)=0,\"\",'Détail des projets'!H278)","v":"15-Laurentides"},{"$f":"IF(LEN('Détail des projets'!L278)=0,\"\",'Détail des projets'!L278)","v":3738.1},5.0874443188000003,"À la fin du projet (suite au dernier versement)",36.738485630067039,"QC-Québec","Oui",20,"oui","non","Non","Oui",0,0,0,0,4.4480387486776003,0]
[null,{"$f":"IF(LEN('Détail des projets'!B279)=0,\"\",'Détail des projets'!B279)","v":""},{"$f":"IF(LEN('Détail des projets'!C279)=0,\"\",'Détail des projets'!C279)","v":""},{"$f":"IF(LEN('Détail des projets'!H279)=0,\"\",'Détail des projets'!H279)","v":""},{"$f":"IF(LEN('Détail des projets'!L279)=0,\"\",'Détail des projets'!L279)","v":""}]
[null,{"$f":"IF(LEN('Détail des projets'!B280)=0,\"\",'Détail des projets'!B280)","v":""},{"$f":"IF(LEN('Détail des projets'!C280)=0,\"\",'Détail des projets'!C280)","v":""},{"$f":"IF(LEN('Détail des projets'!H280)=0,\"\",'Détail des projets'!H280)","v":""},{"$f":"IF(LEN('Détail des projets'!L280)=0,\"\",'Détail des projets'!L280)","v":""}]
[null,{"$f":"IF(LEN('Détail des projets'!B281)=0,\"\",'Détail des projets'!B281)","v":""},{"$f":"IF(LEN('Détail des projets'!C281)=0,\"\",'Détail des projets'!C281)","v":""},{"$f":"IF(LEN('Détail des projets'!H281)=0,\"\",'Détail des projets'!H281)","v":""},{"$f":"IF(LEN('Détail des projets'!L281)=0,\"\",'Détail des projets'!L281)","v":""}]
[null,{"$f":"IF(LEN('Détail des projets'!B282)=0,\"\",'Détail des projets'!B282)","v":""},{"$f":"IF(LEN('Détail des projets'!C282)=0,\"\",'Détail des projets'!C282)","v":""},{"$f":"IF(LEN('Détail des projets'!H282)=0,\"\",'Détail des projets'!H282)","v":""},{"$f":"IF(LEN('Détail des projets'!L282)=0,\"\",'Détail des projets'!L282)","v":""}]
[null,{"$f":"IF(LEN('Détail des projets'!B283)=0,\"\",'Détail des projets'!B283)","v":""},{"$f":"IF(LEN('Détail des projets'!C283)=0,\"\",'Détail des projets'!C283)","v":""},{"$f":"IF(LEN('Détail des projets'!H283)=0,\"\",'Détail des projets'!H283)","v":""},{"$f":"IF(LEN('Détail des projets'!L283)=0,\"\",'Détail des projets'!L283)","v":""}]
[null,"TOTAL (tonnes CO2 éq.)",null,null,{"$f":"SUM(E27:E50)","v":497198.64},0,null,null,null,null,null,null,null,null,null,{"$f":"SUM(P27:P283)","v":0},0,5.19329226288525,0,588.0441631629925,0]
[]
[]
[]
[]
[]
[]
[]
[]
[]
[]
[]
[]
[]
[]
[]
[]
[]
[]
[]
[]
[]
[null,null,null,null,null,null,null,null,null,null,null,null,null,null,null,null,null,null,null,null,null,{"$f":"SUM(V25:V42)","v":0},0,0,0,0,0,0,0,0,0,0,0,0,0]
[]
[]
[]
[]
[]
[]
[]
[]
[]
[]
[]
[]
[]
[]
[]
[]
[]
[]
[]
[]
[]
[]
[]
[]
[]
[]
[]
[]
[]
[]
[]
[]
[]
[]
[]
[]
[]
[]
[]
[]
[]
[]
[]
[]
[null," TOTAL (tonnes CO2 éq.)"]

{"sheet":"Adaptation","index":6,"n_rows":283,"n_cols":12,"rows_kept":283,"cut":false,"hidden":false,"merged":[[1,10,1,12],[2,10,2,12],[3,10,3,12],[1,7,1,8],[1,1,3,6],[4,1,4,2],[23,8,23,12],[22,7,22,12],[22,4,23,4],[22,5,23,5],[5,1,5,12],[22,2,23,2],[22,6,23,6],[22,1,23,1],[22,3,23,3],[4,8,4,10],[4,11,4,12],[21,1,21,3],[21,4,21,6]]}
[]
[null,{"$f":"Utilitaire!E8","v":"Plan pour une économie verte 2030"},null,null,null,null,null,"Adaptation",null,null,{"$f":"Accueil!D65 & \" - \" & Accueil!D53","v":"MERN (SITE) - 1.4.2.1"}]
[null,null,null,null,null,null,null,null,null,null,{"$f":"\"Action \" & Accueil!D58","v":"Action en cours"}]
[]
[null,"Conseils de rédaction :",null,null,null,null,null,null,"Informations en date du :",null,null,{"$f":"Utilitaire!G6","v":"2022-03-31"}]
[null,"- Veuillez compléter cet onglet seulement pour les projets en adaptation aux changements climatiques qui sont lancés, le cas échéant."]
[]
[]
[]
[]
[]
[]
[]
[]
[]
[]
[]
[]
[]
[]
[]
[null,"Informations en date du :",null,null,"2022-03-31"]
[null,"Lignes de l'onglet Détail des projets","Nom du projet","Étape d'adaptation","Secteur","Aléas climatiques","Commentaires et précisions","Région administrative"]
[null,null,null,null,null,null,null,"(Détail des projets)","Autre(s) région(s) concernées"]
[null,{"$f":"'Détail des projets'!A25+24","v":25},{"$f":"IF(LEN('Détail des projets'!B25)>0,'Détail des projets'!B25,\"\")","v":"Frais de gestion et de coordination de l'action"},null,null,null,null,{"$f":"IF(LEN('Détail des projets'!H25)>0,'Détail des projets'!H25,\"\")","v":"Sans objet"}]
[null,{"$f":"'Détail des projets'!A26+24","v":26},{"$f":"IF(LEN('Détail des projets'!B26)>0,'Détail des projets'!B26,\"\")","v":"Frais de gestion et de coordination de l'action"},null,null,null,null,{"$f":"IF(LEN('Détail des projets'!H26)>0,'Détail des projets'!H26,\"\")","v":"Sans objet"}]
[null,27,{"$f":"IF(LEN('Détail des projets'!B27)>0,'Détail des projets'!B27,\"\")","v":""}]
[null,28,{"$f":"IF(LEN('Détail des projets'!B28)>0,'Détail des projets'!B28,\"\")","v":"RSI Environnement - Étude conversion énergétique"},"Planification de la mise en œuvre",null,null,null,"02-Saguenay--Lac-Saint-Jean"]
[null,29,{"$f":"IF(LEN('Détail des projets'!B29)>0,'Détail des projets'!B29,\"\")","v":"Excavation Alain Lemay - Audit énergétique, récupération de chaleur et optimisation énergétique"},"Planification de la mise en œuvre",null,null,null,"17-Centre-du-Québec"]
[null,30,{"$f":"IF(LEN('Détail des projets'!B30)>0,'Détail des projets'!B30,\"\")","v":"Études comparatives en énergie 010501"},"Planification de la mise en œuvre",null,null,null,"10-Nord-du-Québec"]
[null,31,{"$f":"IF(LEN('Détail des projets'!B31)>0,'Détail des projets'!B31,\"\")","v":"Étude du chauffage des serres du Parc Marie-Victorin"},"Planification de la mise en œuvre",null,null,null,"17-Centre-du-Québec"]
[null,32,{"$f":"IF(LEN('Détail des projets'!B32)>0,'Détail des projets'!B32,\"\")","v":"Analyse bilan d'air - Usine Essity"},"Planification de la mise en œuvre",null,null,null,"17-Centre-du-Québec"]
[null,33,{"$f":"IF(LEN('Détail des projets'!B33)>0,'Détail des projets'!B33,\"\")","v":"Étude en efficacité énergétique"},"Planification de la mise en œuvre",null,null,null,"02-Saguenay--Lac-Saint-Jean"]
[null,34,{"$f":"IF(LEN('Détail des projets'!B34)>0,'Détail des projets'!B34,\"\")","v":"Audit des installations vapeur/condensat et des utilités thermiques"},"Planification de la mise en œuvre",null,null,null,"17-Centre-du-Québec"]
[null,35,{"$f":"IF(LEN('Détail des projets'!B35)>0,'Détail des projets'!B35,\"\")","v":"Étude pour la réduction de la consommation d'énergie et d'émission de GES"},"Planification de la mise en œuvre",null,null,null,"12-Chaudière-Appalaches"]
[null,36,{"$f":"IF(LEN('Détail des projets'!B36)>0,'Détail des projets'!B36,\"\")","v":"Étude IP - Phase II"},"Planification de la mise en œuvre",null,null,null,"16-Montérégie"]
[null,37,{"$f":"IF(LEN('Détail des projets'!B37)>0,'Détail des projets'!B37,\"\")","v":"Étude en intégration énergétique par analyse de pincement"},"Planification de la mise en œuvre",null,null,null,"17-Centre-du-Québec"]
[null,38,{"$f":"IF(LEN('Détail des projets'!B38)>0,'Détail des projets'!B38,\"\")","v":"Étude écoénergétique à la teinturerie Cansew"},"Planification de la mise en œuvre",null,null,null,"06-Montréal"]
[null,39,{"$f":"IF(LEN('Détail des projets'!B39)>0,'Détail des projets'!B39,\"\")","v":"Étude d’efficacité énergétique des procédés et utilités"},"Planification de la mise en œuvre",null,null,null,"06-Montréal"]
[null,40,{"$f":"IF(LEN('Détail des projets'!B40)>0,'Détail des projets'!B40,\"\")","v":"Conversion à l'hydrogène des fours du Centre de Coulée de Baie-Comeau"},"Planification de la mise en œuvre",null,null,null,"09-Côte-Nord"]
[null,41,{"$f":"IF(LEN('Détail des projets'!B41)>0,'Détail des projets'!B41,\"\")","v":"Étude d’efficacité énergétique"},"Planification de la mise en œuvre",null,null,null,"12-Chaudière-Appalaches"]
[null,42,{"$f":"IF(LEN('Détail des projets'!B42)>0,'Détail des projets'!B42,\"\")","v":"Analyse énergétique et potentiel de récupération"},"Planification de la mise en œuvre",null,null,null,"16-Montérégie"]
[null,43,{"$f":"IF(LEN('Détail des projets'!B43)>0,'Détail des projets'!B43,\"\")","v":"Étude de faisabilité - remplacement de la chaudière et mesures d'efficacité énergétique"},"Planification de la mise en œuvre",null,null,null,"12-Chaudière-Appalaches"]
[null,44,{"$f":"IF(LEN('Détail des projets'!B44)>0,'Détail des projets'!B44,\"\")","v":"Étude énergétique de récupération de chaleur du système de refroidissement"},"Planification de la mise en œuvre",null,null,null,"06-Montréal"]
[null,45,{"$f":"IF(LEN('Détail des projets'!B45)>0,'Détail des projets'!B45,\"\")","v":"Implantation d'un système de chauffage de serre"},"Planification de la mise en œuvre",null,null,null,"05-Estrie"]
[null,46,{"$f":"IF(LEN('Détail des projets'!B46)>0,'Détail des projets'!B46,\"\")","v":"Analyse des opportunités de réduction des GES de 2021"},"Planification de la mise en œuvre",null,null,null,"16-Montérégie"]
[null,47,{"$f":"IF(LEN('Détail des projets'!B47)>0,'Détail des projets'!B47,\"\")","v":"Opportunités de réduction de coûts et de GES - MdFQ - Lac Bloom"},"Planification de la mise en œuvre",null,null,null,"09-Côte-Nord"]
[null,48,{"$f":"IF(LEN('Détail des projets'!B48)>0,'Détail des projets'!B48,\"\")","v":"Étude pour une boucle d’eau de chauffage par géothermie et efficacité énergétique en serre"},"Planification de la mise en œuvre",null,null,null,"05-Estrie"]
[null,49,{"$f":"IF(LEN('Détail des projets'!B49)>0,'Détail des projets'!B49,\"\")","v":"Amélioration de la fiabilité des bassins"},"Planification de la mise en œuvre",null,null,null,"15-Laurentides"]
[null,50,{"$f":"IF(LEN('Détail des projets'!B50)>0,'Détail des projets'!B50,\"\")","v":"Étude d'intégration de procédés"},"Planification de la mise en œuvre",null,null,null,"11-Gaspésie--Îles-de-la-Madeleine"]
[null,51,{"$f":"IF(LEN('Détail des projets'!B51)>0,'Détail des projets'!B51,\"\")","v":""}]
[null,52,{"$f":"IF(LEN('Détail des projets'!B52)>0,'Détail des projets'!B52,\"\")","v":"Économies d'énergie - Les Machineries Pronovost inc."},"Implantation de solutions ",null,null,null,"04-Mauricie"]
[null,53,{"$f":"IF(LEN('Détail des projets'!B53)>0,'Détail des projets'!B53,\"\")","v":"Efficacité et conversion énergétiques chez Séchoirs St-Élisabeth"},"Implantation de solutions ",null,null,null,"14-Lanaudière"]
[null,54,{"$f":"IF(LEN('Détail des projets'!B54)>0,'Détail des projets'!B54,\"\")","v":"Construction d’une ligne électrique en remplacement de deux génératrices pour 9246-7984 Québec inc."},"Implantation de solutions ",null,null,null,"17-Centre-du-Québec"]
[null,55,{"$f":"IF(LEN('Détail des projets'!B55)>0,'Détail des projets'!B55,\"\")","v":"Ventilation de l'entrepôt de maintenance de Kerry Ste-Claire"},"Implantation de solutions ",null,null,null,"12-Chaudière-Appalaches"]
[null,56,{"$f":"IF(LEN('Détail des projets'!B56)>0,'Détail des projets'!B56,\"\")","v":"Construction Agropod Verchères - Phase 3"},"Implantation de solutions ",null,null,null,"16-Montérégie"]
[null,57,{"$f":"IF(LEN('Détail des projets'!B57)>0,'Détail des projets'!B57,\"\")","v":"Agropod Partnership inc."},"Implantation de solutions ",null,null,null,"16-Montérégie"]
[null,58,{"$f":"IF(LEN('Détail des projets'!B58)>0,'Détail des projets'!B58,\"\")","v":"Rideaux d'air - Agrimétal inc."},"Implantation de solutions ",null,null,null,"17-Centre-du-Québec"]
[null,59,{"$f":"IF(LEN('Détail des projets'!B59)>0,'Détail des projets'!B59,\"\")","v":"Récupération de chaleur pour la réduction de la consommation du propane"},"Implantation de solutions ",null,null,null,"12-Chaudière-Appalaches"]
[null,60,{"$f":"IF(LEN('Détail des projets'!B60)>0,'Détail des projets'!B60,\"\")","v":"Optimisation du système de traitement des COV des ateliers de peinture du bâtiment 318"},"Implantation de solutions ",null,null,null,"06-Montréal"]
[null,61,{"$f":"IF(LEN('Détail des projets'!B61)>0,'Détail des projets'!B61,\"\")","v":"Nouveau bâtiment de serre intérieure"},"Implantation de solutions ",null,null,null,"07-Outaouais"]
[null,62,{"$f":"IF(LEN('Détail des projets'!B62)>0,'Détail des projets'!B62,\"\")","v":"Viandes Première - Agrandissement"},"Implantation de solutions ",null,null,null,"16-Montérégie"]
[null,63,{"$f":"IF(LEN('Détail des projets'!B63)>0,'Détail des projets'!B63,\"\")","v":"Implantation d’un séchoir électrique sur rail"},"Implantation de solutions ",null,null,null,"17-Centre-du-Québec"]
[null,64,{"$f":"IF(LEN('Détail des projets'!B64)>0,'Détail des projets'!B64,\"\")","v":"Serre agricole, efficacité énergétique et conversion à la biomasse résiduelle"},"Implantation de solutions ",null,null,null,"05-Estrie"]
[null,65,{"$f":"IF(LEN('Détail des projets'!B65)>0,'Détail des projets'!B65,\"\")","v":"Installation de thermopompes pour le chauffage"},"Implantation de solutions ",null,null,null,"17-Centre-du-Québec"]
[null,66,{"$f":"IF(LEN('Détail des projets'!B66)>0,'Détail des projets'!B66,\"\")","v":"Amélioration de l'efficacité énergétique"},"Implantation de solutions ",null,null,null,"07-Outaouais"]
[null,67,{"$f":"IF(LEN('Détail des projets'!B67)>0,'Détail des projets'!B67,\"\")","v":"Serre agricole de micropousses – Efficacité énergétique"},"Implantation de solutions ",null,null,null,"15-Laurentides"]
[null,68,{"$f":"IF(LEN('Détail des projets'!B68)>0,'Détail des projets'!B68,\"\")","v":"Électrification d'une cannebergière, phase II"},"Implantation de solutions ",null,null,null,"17-Centre-du-Québec"]
[null,69,{"$f":"IF(LEN('Détail des projets'!B69)>0,'Détail des projets'!B69,\"\")","v":"Agrandissement de 3 hectares, efficacité énergétique et chauffage à la biomasse"},"Implantation de solutions ",null,null,null,"15-Laurentides"]
[null,70,{"$f":"IF(LEN('Détail des projets'!B70)>0,'Détail des projets'!B70,\"\")","v":"Échangeur de chaleur"},"Implantation de solutions ",null,null,null,"17-Centre-du-Québec"]
[null,71,{"$f":"IF(LEN('Détail des projets'!B71)>0,'Détail des projets'!B71,\"\")","v":"Remplacement de deux échangeurs de chaleur"},"Implantation de solutions ",null,null,null,"01-Bas-Saint-Laurent"]
[null,72,{"$f":"IF(LEN('Détail des projets'!B72)>0,'Détail des projets'!B72,\"\")","v":"Écrans thermiques - Phase 3"},"Implantation de solutions ",null,null,null,"02-Saguenay--Lac-Saint-Jean"]
[null,73,{"$f":"IF(LEN('Détail des projets'!B73)>0,'Détail des projets'!B73,\"\")","v":"Valorisation de rejets thermiques industriels - phase 3"},"Implantation de solutions ",null,null,null,"02-Saguenay--Lac-Saint-Jean"]
[null,74,{"$f":"IF(LEN('Détail des projets'!B74)>0,'Détail des projets'!B74,\"\")","v":"Acériculture-Évaporateur électrique"},"Implantation de solutions ",null,null,null,"12-Chaudière-Appalaches"]
[null,75,{"$f":"IF(LEN('Détail des projets'!B75)>0,'Détail des projets'!B75,\"\")","v":"Système Thermo PVT, chauffage de l’eau de lavage avec récupération de chaleur sur le procédé de refroidissement du séchoir de canneberges"},"Implantation de solutions ",null,null,null,"17-Centre-du-Québec"]
[null,76,{"$f":"IF(LEN('Détail des projets'!B76)>0,'Détail des projets'!B76,\"\")","v":"Brûleurs régénératifs Laterrière"},"Implantation de solutions ",null,null,null,"02-Saguenay--Lac-Saint-Jean"]
[null,77,{"$f":"IF(LEN('Détail des projets'!B77)>0,'Détail des projets'!B77,\"\")","v":"Deux murs solaires et un rideau d'air"},"Implantation de solutions ",null,null,null,"06-Montréal"]
[null,78,{"$f":"IF(LEN('Détail des projets'!B78)>0,'Détail des projets'!B78,\"\")","v":"Mur solaire et rideau d'air"},"Implantation de solutions ",null,null,null,"06-Montréal"]
[null,79,{"$f":"IF(LEN('Détail des projets'!B79)>0,'Détail des projets'!B79,\"\")","v":"Remplacement d'un concasseur diesel par un nouveau concasseur électrique"},"Implantation de solutions ",null,null,null,"04-Mauricie"]
[null,80,{"$f":"IF(LEN('Détail des projets'!B80)>0,'Détail des projets'!B80,\"\")","v":"Remplacement d'un convoyeur empileur au diesel par un convoyeur électrique"},"Implantation de solutions ",null,null,null,"04-Mauricie"]
[null,81,{"$f":"IF(LEN('Détail des projets'!B81)>0,'Détail des projets'!B81,\"\")","v":"Remplacement d'un tamiseur rotatif Laprade diesel par un tamiseur rotatif Laprade électrique"},"Implantation de solutions ",null,null,null,"04-Mauricie"]
[null,82,{"$f":"IF(LEN('Détail des projets'!B82)>0,'Détail des projets'!B82,\"\")","v":"Remplacement d'un tamiseur McCloskey diesel par un tamiseur bivi-TEC électrique"},"Implantation de solutions ",null,null,null,"04-Mauricie"]
[null,83,{"$f":"IF(LEN('Détail des projets'!B83)>0,'Détail des projets'!B83,\"\")","v":"Remplacement d'un tamiseur Powerscreen diesel par un tamiseur Midwestern électrique"},"Implantation de solutions ",null,null,null,"04-Mauricie"]
[null,84,{"$f":"IF(LEN('Détail des projets'!B84)>0,'Détail des projets'!B84,\"\")","v":"Remplacement tamiseur rotatif Vermeer diesel par tamiseur rotatif Vermeer électrique"},"Implantation de solutions ",null,null,null,"04-Mauricie"]
[null,85,{"$f":"IF(LEN('Détail des projets'!B85)>0,'Détail des projets'!B85,\"\")","v":"Récupération de chaleur sur les refroidisseurs"},"Implantation de solutions ",null,null,null,"03-Capitale-Nationale"]
[null,86,{"$f":"IF(LEN('Détail des projets'!B86)>0,'Détail des projets'!B86,\"\")","v":"Installation d'échangeurs de chaleur"},"Implantation de solutions ",null,null,null,"16-Montérégie"]
[null,87,{"$f":"IF(LEN('Détail des projets'!B87)>0,'Détail des projets'!B87,\"\")","v":"Acériculture-Évaporateur électrique"},"Implantation de solutions ",null,null,null,"01-Bas-Saint-Laurent"]
[null,88,{"$f":"IF(LEN('Détail des projets'!B88)>0,'Détail des projets'!B88,\"\")","v":"Serre agricole de culture mixte – Efficacité énergétique"},"Implantation de solutions ",null,null,null,"02-Saguenay--Lac-Saint-Jean"]
[null,89,{"$f":"IF(LEN('Détail des projets'!B89)>0,'Détail des projets'!B89,\"\")","v":"Électrification d’un deuxième séchoir sur rail"},"Implantation de solutions ",null,null,null,"11-Gaspésie--Îles-de-la-Madeleine"]
[null,90,{"$f":"IF(LEN('Détail des projets'!B90)>0,'Détail des projets'!B90,\"\")","v":"Acériculture-Évaporateur électrique"},"Implantation de solutions ",null,null,null,"05-Estrie"]
[null,91,{"$f":"IF(LEN('Détail des projets'!B91)>0,'Détail des projets'!B91,\"\")","v":"Électrification du chauffage des unités air make-up"},"Implantation de solutions ",null,null,null,"02-Saguenay--Lac-Saint-Jean"]
[null,92,{"$f":"IF(LEN('Détail des projets'!B92)>0,'Détail des projets'!B92,\"\")","v":"Économie d'énergie"},"Implantation de solutions ",null,null,null,"05-Estrie"]
[null,93,{"$f":"IF(LEN('Détail des projets'!B93)>0,'Détail des projets'!B93,\"\")","v":"Conversion à la biomasse résiduelle et implantation d’écrans thermiques en serres"},"Implantation de solutions ",null,null,null,"14-Lanaudière"]
[null,94,{"$f":"IF(LEN('Détail des projets'!B94)>0,'Détail des projets'!B94,\"\")","v":"Rideaux d'air"},"Implantation de solutions ",null,null,null,"17-Centre-du-Québec"]
[null,95,{"$f":"IF(LEN('Détail des projets'!B95)>0,'Détail des projets'!B95,\"\")","v":"Acériculture-Évaporateur électrique"},"Implantation de solutions ",null,null,null,"17-Centre-du-Québec"]
[null,96,{"$f":"IF(LEN('Détail des projets'!B96)>0,'Détail des projets'!B96,\"\")","v":"Optimisation énergétique des bassins de galvanisation"},"Implantation de solutions ",null,null,null,"06-Montréal"]
[null,97,{"$f":"IF(LEN('Détail des projets'!B97)>0,'Détail des projets'!B97,\"\")","v":"Implantation d'une unité de traitement d'air efficace"},"Implantation de solutions ",null,null,null,"16-Montérégie"]
[null,98,{"$f":"IF(LEN('Détail des projets'!B98)>0,'Détail des projets'!B98,\"\")","v":"Construction d'une nouvelle usine pour les produits pour la peau à base de lait de chèvre"},"Implantation de solutions ",null,null,null,"17-Centre-du-Québec"]
[null,99,{"$f":"IF(LEN('Détail des projets'!B99)>0,'Détail des projets'!B99,\"\")","v":"Conversion électrique de chariots élévateurs"},"Implantation de solutions ",null,null,null,"12-Chaudière-Appalaches"]
[null,100,{"$f":"IF(LEN('Détail des projets'!B100)>0,'Détail des projets'!B100,\"\")","v":"Remplacement de chariots élévateurs"},"Implantation de solutions ",null,null,null,"12-Chaudière-Appalaches"]
[null,101,{"$f":"IF(LEN('Détail des projets'!B101)>0,'Détail des projets'!B101,\"\")","v":"Mur solaire"},"Implantation de solutions ",null,null,null,"12-Chaudière-Appalaches"]
[null,102,{"$f":"IF(LEN('Détail des projets'!B102)>0,'Détail des projets'!B102,\"\")","v":"Mur solaire"},"Implantation de solutions ",null,null,null,"17-Centre-du-Québec"]
[null,103,{"$f":"IF(LEN('Détail des projets'!B103)>0,'Détail des projets'!B103,\"\")","v":"Construction d'une usine de cannabis"},"Implantation de solutions ",null,null,null,"12-Chaudière-Appalaches"]
[null,104,{"$f":"IF(LEN('Détail des projets'!B104)>0,'Détail des projets'!B104,\"\")","v":"Mur solaire"},"Implantation de solutions ",null,null,null,"14-Lanaudière"]
[null,105,{"$f":"IF(LEN('Détail des projets'!B105)>0,'Détail des projets'!B105,\"\")","v":"Réduction des GES par la technique de l'osmose inverse"},"Implantation de solutions ",null,null,null,"02-Saguenay--Lac-Saint-Jean"]
[null,106,{"$f":"IF(LEN('Détail des projets'!B106)>0,'Détail des projets'!B106,\"\")","v":"Ajout d'échangeurs de chaleur dans des bâtiments d'élevage de volailles"},"Implantation de solutions ",null,null,null,"16-Montérégie"]
[null,107,{"$f":"IF(LEN('Détail des projets'!B107)>0,'Détail des projets'!B107,\"\")","v":"Alimentation de l'usine en vapeur à faibles émissions de GES - Projet révisé"},"Implantation de solutions ",null,null,null,"05-Estrie"]
[null,108,{"$f":"IF(LEN('Détail des projets'!B108)>0,'Détail des projets'!B108,\"\")","v":"Économie d'énergie"},"Implantation de solutions ",null,null,null,"06-Montréal"]
[null,109,{"$f":"IF(LEN('Détail des projets'!B109)>0,'Détail des projets'!B109,\"\")","v":"Alimentation au procédé et cascade"},"Implantation de solutions ",null,null,null,"06-Montréal"]
[null,110,{"$f":"IF(LEN('Détail des projets'!B110)>0,'Détail des projets'!B110,\"\")","v":"Ajout d'échangeurs de chaleur dans des bâtiments d'élevage de volailles"},"Implantation de solutions ",null,null,null,"16-Montérégie"]
[null,111,{"$f":"IF(LEN('Détail des projets'!B111)>0,'Détail des projets'!B111,\"\")","v":"Ajout d'échangeurs de chaleur dans des bâtiments d'élevage de volailles"},"Implantation de solutions ",null,null,null,"05-Estrie"]
[null,112,{"$f":"IF(LEN('Détail des projets'!B112)>0,'Détail des projets'!B112,\"\")","v":"Remplacement d'une génératrice au diesel pour la production de granulats par une entrée électrique"},"Implantation de solutions ",null,null,null,"12-Chaudière-Appalaches"]
[null,113,{"$f":"IF(LEN('Détail des projets'!B113)>0,'Détail des projets'!B113,\"\")","v":"Conversion électrique des systèmes de pompage (diesel) pour l'irrigation des petits fruits"},"Implantation de solutions ",null,null,null,"03-Capitale-Nationale"]
[null,114,{"$f":"IF(LEN('Détail des projets'!B114)>0,'Détail des projets'!B114,\"\")","v":"Acériculture-Évaporateur électrique"},"Implantation de solutions ",null,null,null,"16-Montérégie"]
[null,115,{"$f":"IF(LEN('Détail des projets'!B115)>0,'Détail des projets'!B115,\"\")","v":"Serre agricole de culture mixte – Efficacité énergétique - Écrans thermiques"},"Implantation de solutions ",null,null,null,"01-Bas-Saint-Laurent"]
[null,116,{"$f":"IF(LEN('Détail des projets'!B116)>0,'Détail des projets'!B116,\"\")","v":"Mur solaire"},"Implantation de solutions ",null,null,null,"04-Mauricie"]
[null,117,{"$f":"IF(LEN('Détail des projets'!B117)>0,'Détail des projets'!B117,\"\")","v":"Serre-Conversion chauffage-CII- électrique"},"Implantation de solutions ",null,null,null,"05-Estrie"]
[null,118,{"$f":"IF(LEN('Détail des projets'!B118)>0,'Détail des projets'!B118,\"\")","v":"Installation d'un Flu-Ace et de trappes à vapeur Venturi"},"Implantation de solutions ",null,null,null,"03-Capitale-Nationale"]
[null,119,{"$f":"IF(LEN('Détail des projets'!B119)>0,'Détail des projets'!B119,\"\")","v":"Optimisation du réseau de vapeur et remplacement de la turbine à vapeur"},"Implantation de solutions ",null,null,null,"03-Capitale-Nationale"]
[null,120,{"$f":"IF(LEN('Détail des projets'!B120)>0,'Détail des projets'!B120,\"\")","v":"Économie d'énergie"},"Implantation de solutions ",null,null,null,"12-Chaudière-Appalaches"]
[null,121,{"$f":"IF(LEN('Détail des projets'!B121)>0,'Détail des projets'!B121,\"\")","v":"Économie d'énergie"},"Implantation de solutions ",null,null,null,"12-Chaudière-Appalaches"]
[null,122,{"$f":"IF(LEN('Détail des projets'!B122)>0,'Détail des projets'!B122,\"\")","v":"Serre-Conversion chauffage-CII- électrique"},"Implantation de solutions ",null,null,null,"16-Montérégie"]
[null,123,{"$f":"IF(LEN('Détail des projets'!B123)>0,'Détail des projets'!B123,\"\")","v":"Construction Agropod Verchères"},"Implantation de solutions ",null,null,null,"16-Montérégie"]
[null,124,{"$f":"IF(LEN('Détail des projets'!B124)>0,'Détail des projets'!B124,\"\")","v":"Conversion du chauffage à la géothermie"},"Implantation de solutions ",null,null,null,"14-Lanaudière"]
[null,125,{"$f":"IF(LEN('Détail des projets'!B125)>0,'Détail des projets'!B125,\"\")","v":"Chauffage solaire sur l'agrandissement de l'usine Matritech"},"Implantation de solutions ",null,null,null,"17-Centre-du-Québec"]
[null,126,{"$f":"IF(LEN('Détail des projets'!B126)>0,'Détail des projets'!B126,\"\")","v":"Serre-Conversion chauffage-CII- électrique"},"Implantation de solutions ",null,null,null,"11-Gaspésie--Îles-de-la-Madeleine"]
[null,127,{"$f":"IF(LEN('Détail des projets'!B127)>0,'Détail des projets'!B127,\"\")","v":"Boucle de récupération de chaleur au glycol pour chauffage et préchauffage divers"},"Implantation de solutions ",null,null,null,"05-Estrie"]
[null,128,{"$f":"IF(LEN('Détail des projets'!B128)>0,'Détail des projets'!B128,\"\")","v":"Remplacement de deux séchoirs à grains"},"Implantation de solutions ",null,null,null,"17-Centre-du-Québec"]
[null,129,{"$f":"IF(LEN('Détail des projets'!B129)>0,'Détail des projets'!B129,\"\")","v":"Plan de séchage de grains"},"Implantation de solutions ",null,null,null,"17-Centre-du-Québec"]
[null,130,{"$f":"IF(LEN('Détail des projets'!B130)>0,'Détail des projets'!B130,\"\")","v":"Implantation de deux séchoirs fixes électriques"},"Implantation de solutions ",null,null,null,"03-Capitale-Nationale"]
[null,131,{"$f":"IF(LEN('Détail des projets'!B131)>0,'Détail des projets'!B131,\"\")","v":"Cannasher - Récupération de chaleur du procédé"},"Implantation de solutions ",null,null,null,"05-Estrie"]
[null,132,{"$f":"IF(LEN('Détail des projets'!B132)>0,'Détail des projets'!B132,\"\")","v":"Conversion électrique des systèmes de pompage (diesel) pour l'irrigation des petits fruits"},"Implantation de solutions ",null,null,null,"03-Capitale-Nationale"]
[null,133,{"$f":"IF(LEN('Détail des projets'!B133)>0,'Détail des projets'!B133,\"\")","v":"Ajout d'une chaudière électrique de 1250 kW pour utilisation hors-pointe"},"Implantation de solutions ",null,null,null,"12-Chaudière-Appalaches"]
[null,134,{"$f":"IF(LEN('Détail des projets'!B134)>0,'Détail des projets'!B134,\"\")","v":"Construction d'un complexe de serres et implantation de mesures d’efficacité énergétique"},"Implantation de solutions ",null,null,null,"15-Laurentides"]
[null,135,{"$f":"IF(LEN('Détail des projets'!B135)>0,'Détail des projets'!B135,\"\")","v":"Acériculture-Évaporateur électrique"},"Implantation de solutions ",null,null,null,"12-Chaudière-Appalaches"]
[null,136,{"$f":"IF(LEN('Détail des projets'!B136)>0,'Détail des projets'!B136,\"\")","v":"Remplacement du brûleur Hauck"},"Implantation de solutions ",null,null,null,"01-Bas-Saint-Laurent"]
[null,137,{"$f":"IF(LEN('Détail des projets'!B137)>0,'Détail des projets'!B137,\"\")","v":"Installation d'un nouveau séchoir à grains"},"Implantation de solutions ",null,null,null,"16-Montérégie"]
[null,138,{"$f":"IF(LEN('Détail des projets'!B138)>0,'Détail des projets'!B138,\"\")","v":"Remplacement du préchauffeur no 3"},"Implantation de solutions ",null,null,null,"06-Montréal"]
[null,139,{"$f":"IF(LEN('Détail des projets'!B139)>0,'Détail des projets'!B139,\"\")","v":"Installation d'un séchoir à grains"},"Implantation de solutions ",null,null,null,"12-Chaudière-Appalaches"]
[null,140,{"$f":"IF(LEN('Détail des projets'!B140)>0,'Détail des projets'!B140,\"\")","v":"Implantation de deux séchoirs électriques"},"Implantation de solutions ",null,null,null,"04-Mauricie"]
[null,141,{"$f":"IF(LEN('Détail des projets'!B141)>0,'Détail des projets'!B141,\"\")","v":"Serre-Conversion chauffage-CII- électrique"},"Implantation de solutions ",null,null,null,"16-Montérégie"]
[null,142,{"$f":"IF(LEN('Détail des projets'!B142)>0,'Détail des projets'!B142,\"\")","v":"Serre-Conversion chauffage-CII- électrique"},"Implantation de solutions ",null,null,null,"16-Montérégie"]
[null,143,{"$f":"IF(LEN('Détail des projets'!B143)>0,'Détail des projets'!B143,\"\")","v":"Récupération de chaleur avec thermopompe pour le chauffage de l'eau de procédé"},"Implantation de solutions ",null,null,null,"16-Montérégie"]
[null,144,{"$f":"IF(LEN('Détail des projets'!B144)>0,'Détail des projets'!B144,\"\")","v":"Ajout d'échangeurs de chaleur dans des bâtiments d'élevage de volailles"},"Implantation de solutions ",null,null,null,"05-Estrie"]
[null,145,{"$f":"IF(LEN('Détail des projets'!B145)>0,'Détail des projets'!B145,\"\")","v":"Implantation d'un séchoir électrique"},"Implantation de solutions ",null,null,null,"02-Saguenay--Lac-Saint-Jean"]
[null,146,{"$f":"IF(LEN('Détail des projets'!B146)>0,'Détail des projets'!B146,\"\")","v":"Implantation d'un chauffage électrique"},"Implantation de solutions ",null,null,null,"02-Saguenay--Lac-Saint-Jean"]
[null,147,{"$f":"IF(LEN('Détail des projets'!B147)>0,'Détail des projets'!B147,\"\")","v":"Nouvelle usine de filtration des résidus - Mine LaRonde"},"Implantation de solutions ",null,null,null,"08-Abitibi-Témiscamingue"]
[null,148,{"$f":"IF(LEN('Détail des projets'!B148)>0,'Détail des projets'!B148,\"\")","v":"Électrification d'une cannebergière"},"Implantation de solutions ",null,null,null,"17-Centre-du-Québec"]
[null,149,{"$f":"IF(LEN('Détail des projets'!B149)>0,'Détail des projets'!B149,\"\")","v":"Serre agricole de culture ornementale – Efficacité énergétique"},"Implantation de solutions ",null,null,null,"15-Laurentides"]
[null,150,{"$f":"IF(LEN('Détail des projets'!B150)>0,'Détail des projets'!B150,\"\")","v":"Acériculture-Évaporateur électrique"},"Implantation de solutions ",null,null,null,"12-Chaudière-Appalaches"]
[null,151,{"$f":"IF(LEN('Détail des projets'!B151)>0,'Détail des projets'!B151,\"\")","v":"Acériculture-Évaporateur électrique"},"Implantation de solutions ",null,null,null,"15-Laurentides"]
[null,152,{"$f":"IF(LEN('Détail des projets'!B152)>0,'Détail des projets'!B152,\"\")","v":"Électrification des séchoirs à bois"},"Implantation de solutions ",null,null,null,"02-Saguenay--Lac-Saint-Jean"]
[null,153,{"$f":"IF(LEN('Détail des projets'!B153)>0,'Détail des projets'!B153,\"\")","v":"Installation d’un échangeur pour la ventilation de l'usine"},"Implantation de solutions ",null,null,null,"05-Estrie"]
[null,154,{"$f":"IF(LEN('Détail des projets'!B154)>0,'Détail des projets'!B154,\"\")","v":"Une ligne électrique pour éviter l'utilisation d'une génératrice à l'Érablière Dany Michaud"},"Implantation de solutions ",null,null,null,"01-Bas-Saint-Laurent"]
[null,155,{"$f":"IF(LEN('Détail des projets'!B155)>0,'Détail des projets'!B155,\"\")","v":"Conversion du pompage diesel vers l'électricité"},"Implantation de solutions ",null,null,null,"14-Lanaudière"]
[null,156,{"$f":"IF(LEN('Détail des projets'!B156)>0,'Détail des projets'!B156,\"\")","v":"Isocanmed – Récupération de chaleur du procédé"},"Implantation de solutions ",null,null,null,"04-Mauricie"]
[null,157,{"$f":"IF(LEN('Détail des projets'!B157)>0,'Détail des projets'!B157,\"\")","v":"Phase 3 - Projet d’agrandissement et d’efficacité énergétique"},"Implantation de solutions ",null,null,null,"14-Lanaudière"]
[null,158,{"$f":"IF(LEN('Détail des projets'!B158)>0,'Détail des projets'!B158,\"\")","v":"Phase 4 - Projet d’agrandissement et d’efficacité énergétique"},"Implantation de solutions ",null,null,null,"14-Lanaudière"]
[null,159,{"$f":"IF(LEN('Détail des projets'!B159)>0,'Détail des projets'!B159,\"\")","v":"Acériculture-Évaporateur électrique"},"Implantation de solutions ",null,null,null,"01-Bas-Saint-Laurent"]
[null,160,{"$f":"IF(LEN('Détail des projets'!B160)>0,'Détail des projets'!B160,\"\")","v":"Beaulieu Canada - Nouvelle centrale thermique"},"Implantation de solutions ",null,null,null,"16-Montérégie"]
[null,161,{"$f":"IF(LEN('Détail des projets'!B161)>0,'Détail des projets'!B161,\"\")","v":"Acériculture-Évaporateur électrique"},"Implantation de solutions ",null,null,null,"05-Estrie"]
[null,162,{"$f":"IF(LEN('Détail des projets'!B162)>0,'Détail des projets'!B162,\"\")","v":"Construction d'une ligne électrique aérienne au champ 2326"},"Implantation de solutions ",null,null,null,"03-Capitale-Nationale"]
[null,163,{"$f":"IF(LEN('Détail des projets'!B163)>0,'Détail des projets'!B163,\"\")","v":"Conversion de la bouilloire au gaz naturel"},"Implantation de solutions ",null,null,null,"05-Estrie"]
[null,164,{"$f":"IF(LEN('Détail des projets'!B164)>0,'Détail des projets'!B164,\"\")","v":"Ajout d'échangeurs de chaleur dans des bâtiments d'élevage de volailles"},"Implantation de solutions ",null,null,null,"16-Montérégie"]
[null,165,{"$f":"IF(LEN('Détail des projets'!B165)>0,'Détail des projets'!B165,\"\")","v":"Optimisation énergétique des presses"},"Implantation de solutions ",null,null,null,"16-Montérégie"]
[null,166,{"$f":"IF(LEN('Détail des projets'!B166)>0,'Détail des projets'!B166,\"\")","v":"Chauffage de l'accumulateur par récupération de l'énergie dans l'évacuation du traiteur 5"},"Implantation de solutions ",null,null,null,"16-Montérégie"]
[null,167,{"$f":"IF(LEN('Détail des projets'!B167)>0,'Détail des projets'!B167,\"\")","v":"Chauffage de l'accumulateur par récupération de l'énergie des fumées des chaudières"},"Implantation de solutions ",null,null,null,"16-Montérégie"]
[null,168,{"$f":"IF(LEN('Détail des projets'!B168)>0,'Détail des projets'!B168,\"\")","v":"Récupération de l'énergie dans l'évacuation du traiteur 6"},"Implantation de solutions ",null,null,null,"16-Montérégie"]
[null,169,{"$f":"IF(LEN('Détail des projets'!B169)>0,'Détail des projets'!B169,\"\")","v":"Implantation - Projet d'amélioration de l'efficacité des réseaux de chauffage (Site Expo)"},"Implantation de solutions ",null,null,null,"06-Montréal"]
[null,170,{"$f":"IF(LEN('Détail des projets'!B170)>0,'Détail des projets'!B170,\"\")","v":"Chauffage de la ventilation du garage H1"},"Implantation de solutions ",null,null,null,"06-Montréal"]
[null,171,{"$f":"IF(LEN('Détail des projets'!B171)>0,'Détail des projets'!B171,\"\")","v":"Serre agricole de tomates - Efficacité énergétique"},"Implantation de solutions ",null,null,null,"16-Montérégie"]
[null,172,{"$f":"IF(LEN('Détail des projets'!B172)>0,'Détail des projets'!B172,\"\")","v":"Acériculture-Évaporateur électrique"},"Implantation de solutions ",null,null,null,"12-Chaudière-Appalaches"]
[null,173,{"$f":"IF(LEN('Détail des projets'!B173)>0,'Détail des projets'!B173,\"\")","v":"Nouveau AMU et échangeur de chaleur pour l'apport d'air frais"},"Implantation de solutions ",null,null,null,"05-Estrie"]
[null,174,{"$f":"IF(LEN('Détail des projets'!B174)>0,'Détail des projets'!B174,\"\")","v":"Installation d’un échangeur de chaleur de 30 000 CFM pour la ventilation du secteur maturation"},"Implantation de solutions ",null,null,null,"06-Montréal"]
[null,175,{"$f":"IF(LEN('Détail des projets'!B175)>0,'Détail des projets'!B175,\"\")","v":"Récupération de chaleur des compresseurs et du dépoussiéreur avec un nouveau contrôleur central"},"Implantation de solutions ",null,null,null,"15-Laurentides"]
[null,176,{"$f":"IF(LEN('Détail des projets'!B176)>0,'Détail des projets'!B176,\"\")","v":"Conversion d'un système de pompage"},"Implantation de solutions ",null,null,null,"14-Lanaudière"]
[null,177,{"$f":"IF(LEN('Détail des projets'!B177)>0,'Détail des projets'!B177,\"\")","v":"Pl5 - Conversion du chauffage des bassins par une chaudière électrique"},"Implantation de solutions ",null,null,null,"16-Montérégie"]
[null,178,{"$f":"IF(LEN('Détail des projets'!B178)>0,'Détail des projets'!B178,\"\")","v":"Chauffage solaire avec collecteur à faible émissivité"},"Implantation de solutions ",null,null,null,"05-Estrie"]
[null,179,{"$f":"IF(LEN('Détail des projets'!B179)>0,'Détail des projets'!B179,\"\")","v":"Électrification d'une cannebergière"},"Implantation de solutions ",null,null,null,"17-Centre-du-Québec"]
[null,180,{"$f":"IF(LEN('Détail des projets'!B180)>0,'Détail des projets'!B180,\"\")","v":"Électrification d'une cannebergière"},"Implantation de solutions ",null,null,null,"17-Centre-du-Québec"]
[null,181,{"$f":"IF(LEN('Détail des projets'!B181)>0,'Détail des projets'!B181,\"\")","v":"Électrification d'une cannebergière"},"Implantation de solutions ",null,null,null,"17-Centre-du-Québec"]
[null,182,{"$f":"IF(LEN('Détail des projets'!B182)>0,'Détail des projets'!B182,\"\")","v":"Remplacement d’un séchoir à grains par un séchoir écoénergétique"},"Implantation de solutions ",null,null,null,"16-Montérégie"]
[null,183,{"$f":"IF(LEN('Détail des projets'!B183)>0,'Détail des projets'!B183,\"\")","v":"Remplacement des séchoirs à grains de la Ferme Porclair"},"Implantation de solutions ",null,null,null,"17-Centre-du-Québec"]
[null,184,{"$f":"IF(LEN('Détail des projets'!B184)>0,'Détail des projets'!B184,\"\")","v":"Projet d'efficacité énergétique"},"Implantation de solutions ",null,null,null,"16-Montérégie"]
[null,185,{"$f":"IF(LEN('Détail des projets'!B185)>0,'Détail des projets'!B185,\"\")","v":"Optimisation de la centrale d’enrobés bitumineux par vis de préchauffage du GBR"},"Implantation de solutions ",null,null,null,"16-Montérégie"]
[null,186,{"$f":"IF(LEN('Détail des projets'!B186)>0,'Détail des projets'!B186,\"\")","v":"Serre de plants : efficacité énergétique"},"Implantation de solutions ",null,null,null,"15-Laurentides"]
[null,187,{"$f":"IF(LEN('Détail des projets'!B187)>0,'Détail des projets'!B187,\"\")","v":"Optimisation des fours de trempe"},"Implantation de solutions ",null,null,null,"04-Mauricie"]
[null,188,{"$f":"IF(LEN('Détail des projets'!B188)>0,'Détail des projets'!B188,\"\")","v":"Conversion au gaz naturel"},"Implantation de solutions ",null,null,null,"05-Estrie"]
[null,189,{"$f":"IF(LEN('Détail des projets'!B189)>0,'Détail des projets'!B189,\"\")","v":"Mur solaire et rideaux d'air"},"Implantation de solutions ",null,null,null,"16-Montérégie"]
[null,190,{"$f":"IF(LEN('Détail des projets'!B190)>0,'Détail des projets'!B190,\"\")","v":"Construction d’une ligne électrique"},"Implantation de solutions ",null,null,null,"01-Bas-Saint-Laurent"]
[null,191,{"$f":"IF(LEN('Détail des projets'!B191)>0,'Détail des projets'!B191,\"\")","v":"Intégration de thermopompe"},"Implantation de solutions ",null,null,null,"17-Centre-du-Québec"]
[null,192,{"$f":"IF(LEN('Détail des projets'!B192)>0,'Détail des projets'!B192,\"\")","v":"ESA-3000 : réduction des émissions de GES dans le poulailler de Ferme Sylvain Proulx inc."},"Implantation de solutions ",null,null,null,"16-Montérégie"]
[null,193,{"$f":"IF(LEN('Détail des projets'!B193)>0,'Détail des projets'!B193,\"\")","v":"ESA-3000 : réduction des émissions de GES dans le poulailler De la comté SENC"},"Implantation de solutions ",null,null,null,"05-Estrie"]
[null,194,{"$f":"IF(LEN('Détail des projets'!B194)>0,'Détail des projets'!B194,\"\")","v":"Projet LPI"},"Implantation de solutions ",null,null,null,"06-Montréal"]
[null,195,{"$f":"IF(LEN('Détail des projets'!B195)>0,'Détail des projets'!B195,\"\")","v":"Serre-Conversion chauffage-CII- électrique"},"Implantation de solutions ",null,null,null,"07-Outaouais"]
[null,196,{"$f":"IF(LEN('Détail des projets'!B196)>0,'Détail des projets'!B196,\"\")","v":"Implantation et électrification de nos chariots élévateurs"},"Implantation de solutions ",null,null,null,"12-Chaudière-Appalaches"]
[null,197,{"$f":"IF(LEN('Détail des projets'!B197)>0,'Détail des projets'!B197,\"\")","v":"Construction d'un bâtiment d'élevage avec échangeurs de chaleur"},"Implantation de solutions ",null,null,null,"05-Estrie"]
[null,198,{"$f":"IF(LEN('Détail des projets'!B198)>0,'Détail des projets'!B198,\"\")","v":"Conversion d'un système de pompage"},"Implantation de solutions ",null,null,null,"14-Lanaudière"]
[null,199,{"$f":"IF(LEN('Détail des projets'!B199)>0,'Détail des projets'!B199,\"\")","v":"Optimisation de la centrale d’enrobés bitumineux par vis de préchauffage du GBR"},"Implantation de solutions ",null,null,null,"16-Montérégie"]
[null,200,{"$f":"IF(LEN('Détail des projets'!B200)>0,'Détail des projets'!B200,\"\")","v":"Ajout d'échangeurs de chaleur dans un bâtiment d'élevage de volailles"},"Implantation de solutions ",null,null,null,"05-Estrie"]
[null,201,{"$f":"IF(LEN('Détail des projets'!B201)>0,'Détail des projets'!B201,\"\")","v":"Installation d'une nouvelle chaudière à vapeur"},"Implantation de solutions ",null,null,null,"03-Capitale-Nationale"]
[null,202,{"$f":"IF(LEN('Détail des projets'!B202)>0,'Détail des projets'!B202,\"\")","v":"Projet d'économie d'énergie de Montréal Chrome"},"Implantation de solutions ",null,null,null,"06-Montréal"]
[null,203,{"$f":"IF(LEN('Détail des projets'!B203)>0,'Détail des projets'!B203,\"\")","v":"« SCORE » - Saumure et Chaufferie : optimisation des ressources énergétiques"},"Implantation de solutions ",null,null,null,"16-Montérégie"]
[null,204,{"$f":"IF(LEN('Détail des projets'!B204)>0,'Détail des projets'!B204,\"\")","v":"Infasco - Projet écoénergétique"},"Implantation de solutions ",null,null,null,"16-Montérégie"]
[null,205,{"$f":"IF(LEN('Détail des projets'!B205)>0,'Détail des projets'!B205,\"\")","v":"Sivaco - Projet écoénergétique"},"Implantation de solutions ",null,null,null,"16-Montérégie"]
[null,206,{"$f":"IF(LEN('Détail des projets'!B206)>0,'Détail des projets'!B206,\"\")","v":"Installation d'échangeurs de chaleur dans un bâtiment d'élevage de volailles"},"Implantation de solutions ",null,null,null,"17-Centre-du-Québec"]
[null,207,{"$f":"IF(LEN('Détail des projets'!B207)>0,'Détail des projets'!B207,\"\")","v":"Conversion de la chaudière au mazout no 2 vers l'électricité"},"Implantation de solutions ",null,null,null,"12-Chaudière-Appalaches"]
[null,208,{"$f":"IF(LEN('Détail des projets'!B208)>0,'Détail des projets'!B208,\"\")","v":"Chauffage de l’air du bâtiment par récupération de chaleur"},"Implantation de solutions ",null,null,null,"05-Estrie"]
[null,211,{"$f":"IF(LEN('Détail des projets'!B209)>0,'Détail des projets'!B209,\"\")","v":"Installation de deux tamiseurs Triple-deck pour faire une ségrégation du lit de boulettes"},"Implantation de solutions ",null,null,null,"09-Côte-Nord"]
[null,212,{"$f":"IF(LEN('Détail des projets'!B210)>0,'Détail des projets'!B210,\"\")","v":"Arboria"},"Implantation de solutions ",null,null,null,"14-Lanaudière"]
[null,{"$f":"'Détail des projets'!A209+24","v":209},{"$f":"IF(LEN('Détail des projets'!B211)>0,'Détail des projets'!B211,\"\")","v":"Mur solaire, récupération de chaleur de compresseur et rideaux d'air"},"Implantation de solutions ",null,null,null,"12-Chaudière-Appalaches"]
[null,{"$f":"'Détail des projets'!A210+24","v":210},{"$f":"IF(LEN('Détail des projets'!B212)>0,'Détail des projets'!B212,\"\")","v":"Conversion du système de chauffage à combustibles fossiles par de la géothermie"},"Implantation de solutions ",null,null,null,"04-Mauricie"]
[null,{"$f":"'Détail des projets'!A211+24","v":211},{"$f":"IF(LEN('Détail des projets'!B213)>0,'Détail des projets'!B213,\"\")","v":"Installation d'un séchoir à grains"},"Implantation de solutions ",null,null,null,"05-Estrie"]
[null,{"$f":"'Détail des projets'!A212+24","v":212},{"$f":"IF(LEN('Détail des projets'!B214)>0,'Détail des projets'!B214,\"\")","v":"Conversion chauffage-CII- électrique"},"Implantation de solutions ",null,null,null,"02-Saguenay--Lac-Saint-Jean"]
[null,{"$f":"'Détail des projets'!A213+24","v":213},{"$f":"IF(LEN('Détail des projets'!B215)>0,'Détail des projets'!B215,\"\")","v":"Acériculture-Évaporateur électrique"},"Implantation de solutions ",null,null,null,"01-Bas-Saint-Laurent"]
[null,{"$f":"'Détail des projets'!A214+24","v":214},{"$f":"IF(LEN('Détail des projets'!B216)>0,'Détail des projets'!B216,\"\")","v":"Chaudière électrique no 5"},"Implantation de solutions ",null,null,null,"06-Montréal"]
[null,{"$f":"'Détail des projets'!A215+24","v":215},{"$f":"IF(LEN('Détail des projets'!B217)>0,'Détail des projets'!B217,\"\")","v":"Électrification et modernisation d'un procédé de concassage"},"Implantation de solutions ",null,null,null,"15-Laurentides"]
[null,{"$f":"'Détail des projets'!A216+24","v":216},{"$f":"IF(LEN('Détail des projets'!B218)>0,'Détail des projets'!B218,\"\")","v":"Électrification du chauffage du garage"},"Implantation de solutions ",null,null,null,"02-Saguenay--Lac-Saint-Jean"]
[null,{"$f":"'Détail des projets'!A217+24","v":217},{"$f":"IF(LEN('Détail des projets'!B219)>0,'Détail des projets'!B219,\"\")","v":"Récupération d'énergie sur le nouveau refroidisseur au CO2"},"Implantation de solutions ",null,null,null,"16-Montérégie"]
[null,{"$f":"'Détail des projets'!A218+24","v":218},{"$f":"IF(LEN('Détail des projets'!B220)>0,'Détail des projets'!B220,\"\")","v":"Chauffage de l'unité de ventilation par la récupération des refroidisseurs"},"Implantation de solutions ",null,null,null,"05-Estrie"]
[null,{"$f":"'Détail des projets'!A219+24","v":219},{"$f":"IF(LEN('Détail des projets'!B221)>0,'Détail des projets'!B221,\"\")","v":"Installation d'un secteur de refonte de rebuts"},"Implantation de solutions ",null,null,null,"04-Mauricie"]
[null,{"$f":"'Détail des projets'!A220+24","v":220},{"$f":"IF(LEN('Détail des projets'!B222)>0,'Détail des projets'!B222,\"\")","v":"Conversion d'un système de pompage à l'électricité"},"Implantation de solutions ",null,null,null,"16-Montérégie"]
[null,{"$f":"'Détail des projets'!A221+24","v":221},{"$f":"IF(LEN('Détail des projets'!B223)>0,'Détail des projets'!B223,\"\")","v":"Nouveau système de chaînes au four à chaux"},"Implantation de solutions ",null,null,null,"02-Saguenay--Lac-Saint-Jean"]
[null,{"$f":"'Détail des projets'!A222+24","v":222},{"$f":"IF(LEN('Détail des projets'!B224)>0,'Détail des projets'!B224,\"\")","v":"Conversion d'un chariot élévateur au propane pour l'électricité"},"Implantation de solutions ",null,null,null,"04-Mauricie"]
[null,{"$f":"'Détail des projets'!A223+24","v":223},{"$f":"IF(LEN('Détail des projets'!B225)>0,'Détail des projets'!B225,\"\")","v":"Serre-Conversion chauffage-CII- électrique"},"Implantation de solutions ",null,null,null,"05-Estrie"]
[null,{"$f":"'Détail des projets'!A224+24","v":224},{"$f":"IF(LEN('Détail des projets'!B226)>0,'Détail des projets'!B226,\"\")","v":"Acériculture-Évaporateur électrique"},"Implantation de solutions ",null,null,null,"01-Bas-Saint-Laurent"]
[null,{"$f":"'Détail des projets'!A225+24","v":225},{"$f":"IF(LEN('Détail des projets'!B227)>0,'Détail des projets'!B227,\"\")","v":"Acériculture-Évaporateur électrique"},"Implantation de solutions ",null,null,null,"12-Chaudière-Appalaches"]
[null,{"$f":"'Détail des projets'!A226+24","v":226},{"$f":"IF(LEN('Détail des projets'!B228)>0,'Détail des projets'!B228,\"\")","v":"Serre agricole de fraises - Efficacité énergétique - Écrans thermiques et système de gestion climatique"},"Implantation de solutions ",null,null,null,"12-Chaudière-Appalaches"]
[null,{"$f":"'Détail des projets'!A227+24","v":227},{"$f":"IF(LEN('Détail des projets'!B229)>0,'Détail des projets'!B229,\"\")","v":"Transition vers un séchoir avec un meilleur rendement énergétique"},"Implantation de solutions ",null,null,null,"16-Montérégie"]
[null,{"$f":"'Détail des projets'!A228+24","v":228},{"$f":"IF(LEN('Détail des projets'!B230)>0,'Détail des projets'!B230,\"\")","v":"Acériculture-Évaporateur électrique"},"Implantation de solutions ",null,null,null,"12-Chaudière-Appalaches"]
[null,{"$f":"'Détail des projets'!A229+24","v":229},{"$f":"IF(LEN('Détail des projets'!B231)>0,'Détail des projets'!B231,\"\")","v":"Acériculture-Évaporateur électrique"},"Implantation de solutions ",null,null,null,"04-Mauricie"]
[null,{"$f":"'Détail des projets'!A230+24","v":230},{"$f":"IF(LEN('Détail des projets'!B232)>0,'Détail des projets'!B232,\"\")","v":"Conversion chauffage-CII- électrique"},"Implantation de solutions ",null,null,null,"01-Bas-Saint-Laurent"]
[null,{"$f":"'Détail des projets'!A231+24","v":231},{"$f":"IF(LEN('Détail des projets'!B233)>0,'Détail des projets'!B233,\"\")","v":"Acériculture-Évaporateur électrique"},"Implantation de solutions ",null,null,null,"05-Estrie"]
[null,{"$f":"'Détail des projets'!A232+24","v":232},{"$f":"IF(LEN('Détail des projets'!B234)>0,'Détail des projets'!B234,\"\")","v":"Acériculture-Évaporateur électrique"},"Implantation de solutions ",null,null,null,"12-Chaudière-Appalaches"]
[null,{"$f":"'Détail des projets'!A233+24","v":233},{"$f":"IF(LEN('Détail des projets'!B235)>0,'Détail des projets'!B235,\"\")","v":"Acériculture-Évaporateur électrique"},"Implantation de solutions ",null,null,null,"17-Centre-du-Québec"]
[null,{"$f":"'Détail des projets'!A234+24","v":234},{"$f":"IF(LEN('Détail des projets'!B236)>0,'Détail des projets'!B236,\"\")","v":"Installation d'un nouveau séchoir à grains"},"Implantation de solutions ",null,null,null,"16-Montérégie"]
[null,{"$f":"'Détail des projets'!A235+24","v":235},{"$f":"IF(LEN('Détail des projets'!B237)>0,'Détail des projets'!B237,\"\")","v":"Acériculture-Évaporateur électrique"},"Implantation de solutions ",null,null,null,"12-Chaudière-Appalaches"]
[null,{"$f":"'Détail des projets'!A236+24","v":236},{"$f":"IF(LEN('Détail des projets'!B238)>0,'Détail des projets'!B238,\"\")","v":"Acériculture-Évaporateur électrique"},"Implantation de solutions ",null,null,null,"01-Bas-Saint-Laurent"]
[null,{"$f":"'Détail des projets'!A237+24","v":237},{"$f":"IF(LEN('Détail des projets'!B239)>0,'Détail des projets'!B239,\"\")","v":"Serre-Conversion chauffage-CII- électrique"},"Implantation de solutions ",null,null,null,"16-Montérégie"]
[null,{"$f":"'Détail des projets'!A238+24","v":238},{"$f":"IF(LEN('Détail des projets'!B240)>0,'Détail des projets'!B240,\"\")","v":"Modernisation énergétique - TRÉVI"},"Implantation de solutions ",null,null,null,"15-Laurentides"]
[null,{"$f":"'Détail des projets'!A239+24","v":239},{"$f":"IF(LEN('Détail des projets'!B241)>0,'Détail des projets'!B241,\"\")","v":"Conversion du chauffage du garage au gaz naturel"},"Implantation de solutions ",null,null,null,"02-Saguenay─Lac-Saint-Jean"]
[null,{"$f":"'Détail des projets'!A240+24","v":240},{"$f":"IF(LEN('Détail des projets'!B242)>0,'Détail des projets'!B242,\"\")","v":"Serre-Conversion chauffage-CII- électrique"},"Implantation de solutions ",null,null,null,"03-Capitale-Nationale"]
[null,{"$f":"'Détail des projets'!A241+24","v":241},{"$f":"IF(LEN('Détail des projets'!B243)>0,'Détail des projets'!B243,\"\")","v":"Ajout d'échangeurs de chaleur dans des bâtiments d'élevage de volailles"},"Implantation de solutions ",null,null,null,"05-Estrie"]
[null,{"$f":"'Détail des projets'!A242+24","v":242},{"$f":"IF(LEN('Détail des projets'!B244)>0,'Détail des projets'!B244,\"\")","v":"Acériculture-Évaporateur électrique"},"Implantation de solutions ",null,null,null,"17-Centre-du-Québec"]
[null,{"$f":"'Détail des projets'!A243+24","v":243},{"$f":"IF(LEN('Détail des projets'!B245)>0,'Détail des projets'!B245,\"\")","v":"Serre-Conversion chauffage-CII- électrique"},"Implantation de solutions ",null,null,null,"05-Estrie"]
[null,{"$f":"'Détail des projets'!A244+24","v":244},{"$f":"IF(LEN('Détail des projets'!B246)>0,'Détail des projets'!B246,\"\")","v":"Conversion chauffage-CII- électrique"},"Implantation de solutions ",null,null,null,"01-Bas-Saint-Laurent"]
[null,{"$f":"'Détail des projets'!A245+24","v":245},{"$f":"IF(LEN('Détail des projets'!B247)>0,'Détail des projets'!B247,\"\")","v":"Acériculture-Évaporateur électrique"},"Implantation de solutions ",null,null,null,"11-Gaspésie--Îles-de-la-Madeleine"]
[null,{"$f":"'Détail des projets'!A246+24","v":246},{"$f":"IF(LEN('Détail des projets'!B248)>0,'Détail des projets'!B248,\"\")","v":"Serre-Conversion chauffage-CII- électrique"},"Implantation de solutions ",null,null,null,"12-Chaudière-Appalaches"]
[null,{"$f":"'Détail des projets'!A247+24","v":247},{"$f":"IF(LEN('Détail des projets'!B249)>0,'Détail des projets'!B249,\"\")","v":"Serre-Conversion chauffage-CII- électrique"},"Implantation de solutions ",null,null,null,"02-Saguenay--Lac-Saint-Jean"]
[null,{"$f":"'Détail des projets'!A248+24","v":248},{"$f":"IF(LEN('Détail des projets'!B250)>0,'Détail des projets'!B250,\"\")","v":"Conversion chauffage-CII- électrique"},"Implantation de solutions ",null,null,null,"12-Chaudière-Appalaches"]
[null,{"$f":"'Détail des projets'!A249+24","v":249},{"$f":"IF(LEN('Détail des projets'!B251)>0,'Détail des projets'!B251,\"\")","v":"Serre-Conversion chauffage-CII- électrique"},"Implantation de solutions ",null,null,null,"14-Lanaudière"]
[null,{"$f":"'Détail des projets'!A250+24","v":250},{"$f":"IF(LEN('Détail des projets'!B252)>0,'Détail des projets'!B252,\"\")","v":"Conversion chauffage-CII- électrique"},"Implantation de solutions ",null,null,null,"01-Bas-Saint-Laurent"]
[null,{"$f":"'Détail des projets'!A251+24","v":251},{"$f":"IF(LEN('Détail des projets'!B253)>0,'Détail des projets'!B253,\"\")","v":"Serre-Conversion chauffage-CII- électrique- Serre A"},"Implantation de solutions ",null,null,null,"03-Capitale-Nationale"]
[null,{"$f":"'Détail des projets'!A252+24","v":252},{"$f":"IF(LEN('Détail des projets'!B254)>0,'Détail des projets'!B254,\"\")","v":"Serre-Conversion chauffage-CII- électrique- Serre B"},"Implantation de solutions ",null,null,null,"03-Capitale-Nationale"]
[null,{"$f":"'Détail des projets'!A253+24","v":253},{"$f":"IF(LEN('Détail des projets'!B255)>0,'Détail des projets'!B255,\"\")","v":"Serre-Conversion chauffage-CII- électrique"},"Implantation de solutions ",null,null,null,"16-Montérégie"]
[null,{"$f":"'Détail des projets'!A254+24","v":254},{"$f":"IF(LEN('Détail des projets'!B256)>0,'Détail des projets'!B256,\"\")","v":"Serre-Conversion chauffage-CII- électrique - Serre no 6"},"Implantation de solutions ",null,null,null,"16-Montérégie"]
[null,{"$f":"'Détail des projets'!A255+24","v":255},{"$f":"IF(LEN('Détail des projets'!B257)>0,'Détail des projets'!B257,\"\")","v":"Serre-Conversion chauffage-CII- électrique - Serres 7 et 8"},"Implantation de solutions ",null,null,null,"16-Montérégie"]
[null,{"$f":"'Détail des projets'!A256+24","v":256},{"$f":"IF(LEN('Détail des projets'!B258)>0,'Détail des projets'!B258,\"\")","v":"Serre-Conversion chauffage-CII- électrique - Serres 2 et 9"},"Implantation de solutions ",null,null,null,"16-Montérégie"]
[null,{"$f":"'Détail des projets'!A257+24","v":257},{"$f":"IF(LEN('Détail des projets'!B259)>0,'Détail des projets'!B259,\"\")","v":"Serre-Conversion chauffage-CII- électrique"},"Implantation de solutions ",null,null,null,"05-Estrie"]
[null,{"$f":"'Détail des projets'!A258+24","v":258},{"$f":"IF(LEN('Détail des projets'!B260)>0,'Détail des projets'!B260,\"\")","v":"Serre-Conversion chauffage-CII- électrique"},"Implantation de solutions ",null,null,null,"16-Montérégie"]
[null,{"$f":"'Détail des projets'!A259+24","v":259},{"$f":"IF(LEN('Détail des projets'!B261)>0,'Détail des projets'!B261,\"\")","v":"Serre-Conversion chauffage-CII- électrique - Serre 1"},"Implantation de solutions ",null,null,null,"13-Laval"]
[null,{"$f":"'Détail des projets'!A260+24","v":260},{"$f":"IF(LEN('Détail des projets'!B262)>0,'Détail des projets'!B262,\"\")","v":"Serre-Conversion chauffage-CII- électrique - Serre 2"},"Implantation de solutions ",null,null,null,"13-Laval"]
[null,{"$f":"'Détail des projets'!A261+24","v":261},{"$f":"IF(LEN('Détail des projets'!B263)>0,'Détail des projets'!B263,\"\")","v":"Serre-Conversion chauffage-CII- électrique"},"Implantation de solutions ",null,null,null,"02-Saguenay--Lac-Saint-Jean"]
[null,{"$f":"'Détail des projets'!A262+24","v":262},{"$f":"IF(LEN('Détail des projets'!B264)>0,'Détail des projets'!B264,\"\")","v":"Serre-Conversion chauffage-CII- électrique"},"Implantation de solutions ",null,null,null,"16-Montérégie"]
[null,{"$f":"'Détail des projets'!A263+24","v":263},{"$f":"IF(LEN('Détail des projets'!B265)>0,'Détail des projets'!B265,\"\")","v":"Serre-Conversion chauffage-CII- électrique"},"Implantation de solutions ",null,null,null,"08-Abitibi-Témiscamingue"]
[null,{"$f":"'Détail des projets'!A264+24","v":264},{"$f":"IF(LEN('Détail des projets'!B266)>0,'Détail des projets'!B266,\"\")","v":"Serre-Conversion chauffage-CII- électrique"},"Implantation de solutions ",null,null,null,"16-Montérégie"]
[null,{"$f":"'Détail des projets'!A265+24","v":265},{"$f":"IF(LEN('Détail des projets'!B267)>0,'Détail des projets'!B267,\"\")","v":"Serre-Conversion chauffage-CII- électrique"},"Implantation de solutions ",null,null,null,"07-Outaouais"]
[null,{"$f":"'Détail des projets'!A266+24","v":266},{"$f":"IF(LEN('Détail des projets'!B268)>0,'Détail des projets'!B268,\"\")","v":"Système de réfrigération au CO2 avec récupération de chaleur"},"Implantation de solutions ",null,null,null,"16-Montérégie"]
[null,{"$f":"'Détail des projets'!A267+24","v":267},{"$f":"IF(LEN('Détail des projets'!B269)>0,'Détail des projets'!B269,\"\")","v":"Acériculture-Évaporateur électrique"},"Implantation de solutions ",null,null,null,"16-Montérégie"]
[null,{"$f":"'Détail des projets'!A268+24","v":268},{"$f":"IF(LEN('Détail des projets'!B270)>0,'Détail des projets'!B270,\"\")","v":"Acériculture-Évaporateur électrique"},"Implantation de solutions ",null,null,null,"12-Chaudière-Appalaches"]
[null,{"$f":"'Détail des projets'!A269+24","v":269},{"$f":"IF(LEN('Détail des projets'!B271)>0,'Détail des projets'!B271,\"\")","v":"Acériculture-Évaporateur électrique"},"Implantation de solutions ",null,null,null,"17-Centre-du-Québec"]
[null,{"$f":"'Détail des projets'!A270+24","v":270},{"$f":"IF(LEN('Détail des projets'!B272)>0,'Détail des projets'!B272,\"\")","v":"Acériculture-Évaporateur électrique"},"Implantation de solutions ",null,null,null,"01-Bas-Saint-Laurent"]
[null,{"$f":"'Détail des projets'!A271+24","v":271},{"$f":"IF(LEN('Détail des projets'!B273)>0,'Détail des projets'!B273,\"\")","v":"Acériculture-Évaporateur électrique"},"Implantation de solutions ",null,null,null,"05-Estrie"]
[null,{"$f":"'Détail des projets'!A272+24","v":272},{"$f":"IF(LEN('Détail des projets'!B274)>0,'Détail des projets'!B274,\"\")","v":"Conversion chauffage-CII- électrique"},"Implantation de solutions ",null,null,null,"01-Bas-Saint-Laurent"]
[null,{"$f":"'Détail des projets'!A273+24","v":273},{"$f":"IF(LEN('Détail des projets'!B275)>0,'Détail des projets'!B275,\"\")","v":"Conversion chauffage-CII- électrique"},"Implantation de solutions ",null,null,null,"07-Outaouais"]
[null,{"$f":"'Détail des projets'!A274+24","v":274},{"$f":"IF(LEN('Détail des projets'!B276)>0,'Détail des projets'!B276,\"\")","v":"Conversion du bruleur vers le propane"},"Implantation de solutions ",null,null,null,"17-Centre-du-Québec"]
[null,{"$f":"'Détail des projets'!A275+24","v":275},{"$f":"IF(LEN('Détail des projets'!B277)>0,'Détail des projets'!B277,\"\")","v":"Serre-Conversion chauffage-CII- électrique"},"Implantation de solutions ",null,null,null,"05-Estrie"]
[null,{"$f":"'Détail des projets'!A276+24","v":276},{"$f":"IF(LEN('Détail des projets'!B278)>0,'Détail des projets'!B278,\"\")","v":"Conversion chauffage-CII- électrique"},"Implantation de solutions ",null,null,null,"15-Laurentides"]
[null,{"$f":"'Détail des projets'!A277+24","v":277},{"$f":"IF(LEN('Détail des projets'!B279)>0,'Détail des projets'!B279,\"\")","v":""},null,null,null,null,{"$f":"IF(LEN('Détail des projets'!H279)>0,'Détail des projets'!H279,\"\")","v":""}]
[null,{"$f":"'Détail des projets'!A278+24","v":278},{"$f":"IF(LEN('Détail des projets'!B280)>0,'Détail des projets'!B280,\"\")","v":""},null,null,null,null,{"$f":"IF(LEN('Détail des projets'!H280)>0,'Détail des projets'!H280,\"\")","v":""}]
[null,{"$f":"'Détail des projets'!A279+24","v":279},{"$f":"IF(LEN('Détail des projets'!B281)>0,'Détail des projets'!B281,\"\")","v":""},null,null,null,null,{"$f":"IF(LEN('Détail des projets'!H281)>0,'Détail des projets'!H281,\"\")","v":""}]
[null,{"$f":"'Détail des projets'!A280+24","v":280},{"$f":"IF(LEN('Détail des projets'!B282)>0,'Détail des projets'!B282,\"\")","v":""},null,null,null,null,{"$f":"IF(LEN('Détail des projets'!H282)>0,'Détail des projets'!H282,\"\")","v":""}]
[null,{"$f":"'Détail des projets'!A283+24","v":283},{"$f":"IF(LEN('Détail des projets'!B283)>0,'Détail des projets'!B283,\"\")","v":""},null,null,null,null,{"$f":"IF(LEN('Détail des projets'!H283)>0,'Détail des projets'!H283,\"\")","v":""}]

{"sheet":"Indicateurs","index":7,"n_rows":292,"n_cols":44,"rows_kept":292,"cut":false,"hidden":false,"merged":[[152,1,152,4],[70,1,72,3],[73,1,75,3],[69,1,69,3],[68,1,68,5],[21,1,21,6],[1,1,3,8],[1,9,1,10],[1,11,1,14],[2,11,2,14],[3,11,3,14],[21,7,21,20],[1,18,1,21],[2,18,2,21],[3,18,3,21],[5,1,5,21],[4,19,4,20],[4,1,4,3],[68,7,68,21],[6,20,6,21],[6,1,6,19],[19,1,19,3],[19,4,19,5],[22,22,23,22],[22,19,23,19],[22,18,23,18],[22,3,23,3],[22,4,23,4],[22,1,23,1],[22,2,23,2],[22,5,23,5],[22,20,23,20],[22,6,23,6],[155,18,155,19],[155,10,155,11],[156,18,156,19],[156,10,156,11],[154,10,154,11],[153,10,153,11],[155,1,155,2],[155,8,155,9],[155,5,155,7],[154,5,154,7],[153,5,153,7],[154,8,154,9],[153,8,153,9],[156,5,156,7],[156,1,156,2],[156,8,156,9],[154,18,154,19],[153,12,154,14],[155,12,155,14],[156,12,156,14],[157,1,157,2],[157,5,157,7],[157,8,157,9],[157,10,157,11],[157,18,157,19],[172,1,172,2],[173,1,173,2],[174,1,174,2],[158,1,158,2],[159,1,159,2],[160,1,160,2],[161,1,161,2],[162,1,162,2],[163,1,163,2],[164,1,164,2],[165,1,165,2],[166,1,166,2],[167,1,167,2],[168,1,168,2],[169,1,169,2],[170,1,170,2],[171,1,171,2],[158,5,158,7],[159,5,159,7],[175,1,175,2],[176,1,176,2],[177,1,177,2],[178,1,178,2],[179,1,179,2],[274,18,274,19],[275,1,275,2],[275,5,275,7],[275,8,275,9],[275,10,275,11],[275,18,275,19],[274,1,274,2],[274,5,274,7],[274,8,274,9],[274,10,274,11],[181,1,181,2],[182,1,182,2],[183,1,183,2],[184,1,184,2],[185,1,185,2],[180,1,180,2],[191,1,191,2],[192,1,192,2],[193,1,193,2],[276,18,276,19],[277,1,277,2],[277,5,277,7],[277,8,277,9],[277,10,277,11],[277,18,277,19],[276,1,276,2],[276,5,276,7],[276,8,276,9],[276,10,276,11],[278,18,278,19],[279,1,279,2],[279,5,279,7],[279,8,279,9],[279,10,279,11],[279,18,279,19],[278,1,278,2],[278,5,278,7],[278,8,278,9],[278,10,278,11],[280,18,280,19],[281,1,281,2],[281,5,281,7],[281,8,281,9],[281,10,281,11],[281,18,281,19],[280,1,280,2],[280,5,280,7],[280,8,280,9],[280,10,280,11],[282,18,282,19],[283,1,283,2],[283,5,283,7],[283,8,283,9],[283,10,283,11],[283,18,283,19],[282,1,282,2],[282,5,282,7],[282,8,282,9],[282,10,282,11],[283,12,283,14],[284,18,284,19],[285,1,285,2],[285,5,285,7],[285,8,285,9],[285,10,285,11],[285,18,285,19],[284,1,284,2],[284,5,284,7],[284,8,284,9],[284,10,284,11],[284,12,284,14],[285,12,285,14],[286,18,286,19],[287,1,287,2],[287,5,287,7],[287,8,287,9],[287,10,287,11],[287,18,287,19],[286,1,286,2],[286,5,286,7],[286,8,286,9],[286,10,286,11],[286,12,286,14],[287,12,287,14],[290,18,290,19],[291,1,291,21],[290,1,290,2],[290,5,290,7],[290,8,290,9],[290,10,290,11],[288,18,288,19],[289,1,289,2],[289,5,289,7],[289,8,289,9],[289,10,289,11],[289,18,289,19],[288,1,288,2],[288,5,288,7],[288,8,288,9],[288,10,288,11],[288,12,288,14],[289,12,289,14],[290,12,290,14],[194,1,194,2],[195,1,195,2],[186,1,186,2],[187,1,187,2],[188,1,188,2],[189,1,189,2],[190,1,190,2],[201,1,201,2],[202,1,202,2],[203,1,203,2],[204,1,204,2],[205,1,205,2],[196,1,196,2],[197,1,197,2],[198,1,198,2],[199,1,199,2],[200,1,200,2],[211,1,211,2],[212,1,212,2],[213,1,213,2],[214,1,214,2],[215,1,215,2],[206,1,206,2],[207,1,207,2],[208,1,208,2],[209,1,209,2],[210,1,210,2],[221,1,221,2],[222,1,222,2],[223,1,223,2],[224,1,224,2],[225,1,225,2],[216,1,216,2],[217,1,217,2],[218,1,218,2],[219,1,219,2],[220,1,220,2],[231,1,231,2],[232,1,232,2],[233,1,233,2],[234,1,234,2],[235,1,235,2],[226,1,226,2],[227,1,227,2],[228,1,228,2],[229,1,229,2],[230,1,230,2],[241,1,241,2],[242,1,242,2],[243,1,243,2],[244,1,244,2],[245,1,245,2],[236,1,236,2],[237,1,237,2],[238,1,238,2],[239,1,239,2],[240,1,240,2],[252,1,252,2],[253,1,253,2],[254,1,254,2],[255,1,255,2],[246,1,246,2],[247,1,247,2],[248,1,248,2],[249,1,249,2],[250,1,250,2],[160,5,160,7],[161,5,161,7],[162,5,162,7],[272,1,272,2],[273,1,273,2],[267,1,267,2],[268,1,268,2],[269,1,269,2],[261,1,261,2],[262,1,262,2],[263,1,263,2],[270,1,270,2],[271,1,271,2],[266,1,266,2],[265,1,265,2],[264,1,264,2],[256,1,256,2],[257,1,257,2],[258,1,258,2],[259,1,259,2],[260,1,260,2],[251,1,251,2],[168,5,168,7],[169,5,169,7],[170,5,170,7],[171,5,171,7],[172,5,172,7],[163,5,163,7],[164,5,164,7],[165,5,165,7],[166,5,166,7],[167,5,167,7],[178,5,178,7],[179,5,179,7],[180,5,180,7],[181,5,181,7],[182,5,182,7],[173,5,173,7],[174,5,174,7],[175,5,175,7],[176,5,176,7],[177,5,177,7],[188,5,188,7],[189,5,189,7],[190,5,190,7],[191,5,191,7],[192,5,192,7],[183,5,183,7],[184,5,184,7],[185,5,185,7],[186,5,186,7],[187,5,187,7],[198,5,198,7],[199,5,199,7],[200,5,200,7],[201,5,201,7],[202,5,202,7],[193,5,193,7],[194,5,194,7],[195,5,195,7],[196,5,196,7],[197,5,197,7],[208,5,208,7],[209,5,209,7],[210,5,210,7],[211,5,211,7],[212,5,212,7],[203,5,203,7],[204,5,204,7],[205,5,205,7],[206,5,206,7],[207,5,207,7],[218,5,218,7],[219,5,219,7],[220,5,220,7],[221,5,221,7],[222,5,222,7],[213,5,213,7],[214,5,214,7],[215,5,215,7],[216,5,216,7],[217,5,217,7],[228,5,228,7],[229,5,229,7],[230,5,230,7],[231,5,231,7],[232,5,232,7],[223,5,223,7],[224,5,224,7],[225,5,225,7],[226,5,226,7],[227,5,227,7],[238,5,238,7],[239,5,239,7],[240,5,240,7],[241,5,241,7],[242,5,242,7],[233,5,233,7],[234,5,234,7],[235,5,235,7],[236,5,236,7],[237,5,237,7],[248,5,248,7],[249,5,249,7],[250,5,250,7],[251,5,251,7],[252,5,252,7],[243,5,243,7],[244,5,244,7],[245,5,245,7],[246,5,246,7],[247,5,247,7],[266,5,266,7],[267,5,267,7],[258,5,258,7],[259,5,259,7],[260,5,260,7],[261,5,261,7],[262,5,262,7],[253,5,253,7],[254,5,254,7],[255,5,255,7],[256,5,256,7],[257,5,257,7],[273,5,273,7],[229,8,229,9],[230,8,230,9],[231,8,231,9],[232,8,232,9],[233,8,233,9],[234,8,234,9],[235,8,235,9],[236,8,236,9],[237,8,237,9],[238,8,238,9],[239,8,239,9],[240,8,240,9],[241,8,241,9],[242,8,242,9],[243,8,243,9],[268,5,268,7],[269,5,269,7],[270,5,270,7],[271,5,271,7],[272,5,272,7],[263,5,263,7],[264,5,264,7],[265,5,265,7],[249,8,249,9],[250,8,250,9],[251,8,251,9],[252,8,252,9],[253,8,253,9],[244,8,244,9],[245,8,245,9],[246,8,246,9],[247,8,247,9],[248,8,248,9],[259,8,259,9],[260,8,260,9],[261,8,261,9],[262,8,262,9],[263,8,263,9],[254,8,254,9],[255,8,255,9],[256,8,256,9],[257,8,257,9],[258,8,258,9],[269,8,269,9],[270,8,270,9],[271,8,271,9],[272,8,272,9],[273,8,273,9],[264,8,264,9],[265,8,265,9],[266,8,266,9],[267,8,267,9],[268,8,268,9],[228,8,228,9],[208,8,208,9],[209,8,209,9],[210,8,210,9],[211,8,211,9],[212,8,212,9],[213,8,213,9],[214,8,214,9],[215,8,215,9],[216,8,216,9],[222,8,222,9],[223,8,223,9],[224,8,224,9],[225,8,225,9],[226,8,226,9],[217,8,217,9],[218,8,218,9],[219,8,219,9],[220,8,220,9],[221,8,221,9],[203,8,203,9],[204,8,204,9],[200,8,200,9],[201,8,201,9],[202,8,202,9],[205,8,205,9],[206,8,206,9],[207,8,207,9],[227,8,227,9],[170,8,170,9],[171,8,171,9],[172,8,172,9],[173,8,173,9],[174,8,174,9],[175,8,175,9],[176,8,176,9],[177,8,177,9],[178,8,178,9],[179,8,179,9],[180,8,180,9],[181,8,181,9],[182,8,182,9],[195,8,195,9],[196,8,196,9],[197,8,197,9],[198,8,198,9],[199,8,199,9],[190,8,190,9],[191,8,191,9],[192,8,192,9],[193,8,193,9],[194,8,194,9],[185,8,185,9],[186,8,186,9],[187,8,187,9],[188,8,188,9],[189,8,189,9],[158,10,158,11],[159,10,159,11],[160,10,160,11],[161,10,161,11],[162,10,162,11],[183,8,183,9],[184,8,184,9],[158,8,158,9],[159,8,159,9],[160,8,160,9],[161,8,161,9],[162,8,162,9],[163,8,163,9],[164,8,164,9],[165,8,165,9],[166,8,166,9],[167,8,167,9],[168,8,168,9],[169,8,169,9],[168,10,168,11],[169,10,169,11],[170,10,170,11],[171,10,171,11],[172,10,172,11],[163,10,163,11],[164,10,164,11],[165,10,165,11],[166,10,166,11],[167,10,167,11],[178,10,178,11],[179,10,179,11],[180,10,180,11],[181,10,181,11],[182,10,182,11],[173,10,173,11],[174,10,174,11],[175,10,175,11],[176,10,176,11],[177,10,177,11],[188,10,188,11],[189,10,189,11],[190,10,190,11],[208,10,208,11],[191,10,191,11],[192,10,192,11],[183,10,183,11],[184,10,184,11],[185,10,185,11],[186,10,186,11],[187,10,187,11],[198,10,198,11],[199,10,199,11],[203,10,203,11],[204,10,204,11],[205,10,205,11],[206,10,206,11],[207,10,207,11],[200,10,200,11],[201,10,201,11],[202,10,202,11],[193,10,193,11],[194,10,194,11],[195,10,195,11],[196,10,196,11],[197,10,197,11],[213,10,213,11],[214,10,214,11],[215,10,215,11],[216,10,216,11],[217,10,217,11],[209,10,209,11],[210,10,210,11],[211,10,211,11],[212,10,212,11],[223,10,223,11],[224,10,224,11],[225,10,225,11],[226,10,226,11],[227,10,227,11],[218,10,218,11],[219,10,219,11],[220,10,220,11],[221,10,221,11],[222,10,222,11],[233,10,233,11],[234,10,234,11],[235,10,235,11],[236,10,236,11],[237,10,237,11],[228,10,228,11],[229,10,229,11],[230,10,230,11],[231,10,231,11],[232,10,232,11],[243,10,243,11],[244,10,244,11],[245,10,245,11],[246,10,246,11],[247,10,247,11],[238,10,238,11],[239,10,239,11],[240,10,240,11],[241,10,241,11],[242,10,242,11],[253,10,253,11],[254,10,254,11],[255,10,255,11],[256,10,256,11],[257,10,257,11],[248,10,248,11],[249,10,249,11],[250,10,250,11],[251,10,251,11],[252,10,252,11],[175,12,175,14],[176,12,176,14],[177,12,177,14],[178,12,178,14],[179,12,179,14],[180,12,180,14],[181,12,181,14],[182,12,182,14],[273,10,273,11],[268,10,268,11],[269,10,269,11],[270,10,270,11],[271,10,271,11],[272,10,272,11],[263,10,263,11],[264,10,264,11],[265,10,265,11],[266,10,266,11],[267,10,267,11],[258,10,258,11],[259,10,259,11],[260,10,260,11],[261,10,261,11],[262,10,262,11],[202,12,202,14],[183,12,183,14],[184,12,184,14],[185,12,185,14],[186,12,186,14],[187,12,187,14],[188,12,188,14],[189,12,189,14],[190,12,190,14],[191,12,191,14],[192,12,192,14],[193,12,193,14],[194,12,194,14],[195,12,195,14],[196,12,196,14],[197,12,197,14],[198,12,198,14],[199,12,199,14],[200,12,200,14],[201,12,201,14],[222,12,222,14],[203,12,203,14],[204,12,204,14],[205,12,205,14],[206,12,206,14],[207,12,207,14],[208,12,208,14],[209,12,209,14],[210,12,210,14],[211,12,211,14],[212,12,212,14],[213,12,213,14],[214,12,214,14],[215,12,215,14],[216,12,216,14],[217,12,217,14],[218,12,218,14],[219,12,219,14],[220,12,220,14],[221,12,221,14],[238,12,238,14],[239,12,239,14],[240,12,240,14],[241,12,241,14],[242,12,242,14],[223,12,223,14],[224,12,224,14],[225,12,225,14],[226,12,226,14],[227,12,227,14],[228,12,228,14],[229,12,229,14],[230,12,230,14],[231,12,231,14],[232,12,232,14],[256,12,256,14],[257,12,257,14],[258,12,258,14],[259,12,259,14],[260,12,260,14],[261,12,261,14],[262,12,262,14],[263,12,263,14],[264,12,264,14],[167,18,167,19],[168,18,168,19],[169,18,169,19],[170,18,170,19],[171,18,171,19],[172,18,172,19],[253,12,253,14],[254,12,254,14],[255,12,255,14],[243,12,243,14],[244,12,244,14],[245,12,245,14],[246,12,246,14],[247,12,247,14],[248,12,248,14],[249,12,249,14],[250,12,250,14],[251,12,251,14],[252,12,252,14],[233,12,233,14],[234,12,234,14],[235,12,235,14],[236,12,236,14],[237,12,237,14],[158,18,158,19],[159,18,159,19],[160,18,160,19],[161,18,161,19],[162,18,162,19],[163,18,163,19],[164,18,164,19],[165,18,165,19],[166,18,166,19],[178,18,178,19],[179,18,179,19],[180,18,180,19],[181,18,181,19],[182,18,182,19],[173,18,173,19],[174,18,174,19],[175,18,175,19],[176,18,176,19],[177,18,177,19],[188,18,188,19],[189,18,189,19],[190,18,190,19],[191,18,191,19],[192,18,192,19],[183,18,183,19],[184,18,184,19],[185,18,185,19],[186,18,186,19],[187,18,187,19],[198,18,198,19],[199,18,199,19],[200,18,200,19],[201,18,201,19],[202,18,202,19],[193,18,193,19],[194,18,194,19],[195,18,195,19],[196,18,196,19],[197,18,197,19],[208,18,208,19],[209,18,209,19],[210,18,210,19],[211,18,211,19],[212,18,212,19],[203,18,203,19],[204,18,204,19],[205,18,205,19],[206,18,206,19],[207,18,207,19],[218,18,218,19],[219,18,219,19],[220,18,220,19],[221,18,221,19],[222,18,222,19],[213,18,213,19],[214,18,214,19],[215,18,215,19],[216,18,216,19],[217,18,217,19],[228,18,228,19],[229,18,229,19],[230,18,230,19],[231,18,231,19],[232,18,232,19],[223,18,223,19],[224,18,224,19],[225,18,225,19],[226,18,226,19],[227,18,227,19],[238,18,238,19],[239,18,239,19],[240,18,240,19],[241,18,241,19],[242,18,242,19],[233,18,233,19],[234,18,234,19],[235,18,235,19],[236,18,236,19],[237,18,237,19],[257,18,257,19],[248,18,248,19],[249,18,249,19],[250,18,250,19],[251,18,251,19],[252,18,252,19],[243,18,243,19],[244,18,244,19],[245,18,245,19],[246,18,246,19],[247,18,247,19],[273,18,273,19],[153,1,154,2],[153,3,154,3],[153,4,154,4],[153,18,153,19],[268,18,268,19],[269,18,269,19],[270,18,270,19],[271,18,271,19],[272,18,272,19],[263,18,263,19],[264,18,264,19],[265,18,265,19],[266,18,266,19],[267,18,267,19],[258,18,258,19],[259,18,259,19],[260,18,260,19],[261,18,261,19],[262,18,262,19],[253,18,253,19],[254,18,254,19],[255,18,255,19],[256,18,256,19],[157,12,157,14],[158,12,158,14],[159,12,159,14],[160,12,160,14],[161,12,161,14],[162,12,162,14],[163,12,163,14],[164,12,164,14],[165,12,165,14],[166,12,166,14],[167,12,167,14],[168,12,168,14],[169,12,169,14],[170,12,170,14],[171,12,171,14],[172,12,172,14],[173,12,173,14],[174,12,174,14],[265,12,265,14],[266,12,266,14],[267,12,267,14],[268,12,268,14],[269,12,269,14],[270,12,270,14],[271,12,271,14],[272,12,272,14],[273,12,273,14],[274,12,274,14],[275,12,275,14],[276,12,276,14],[277,12,277,14],[278,12,278,14],[279,12,279,14],[280,12,280,14],[281,12,281,14],[282,12,282,14]]}
[]
[null,{"$f":"Utilitaire!E8","v":"Plan pour une économie verte 2030"},null,null,null,null,null,null,null,"Indicateurs",null,null,null,null,null,null,null,null,{"$f":"Accueil!D65 & \" - \" & Accueil!D53","v":"MERN (SITE) - 1.4.2.1"}]
[null,null,null,null,null,null,null,null,null,null,null,{"$f":"Accueil!D58","v":"en cours"},null,null,null,null,null,null,{"$f":"\"Action \" & Accueil!D58","v":"Action en cours"}]
[null,null,null,null,null,null,null,null,null,null,null,{"$f":"Accueil!D65","v":"MERN (SITE)"}]
[null,"Conseils de rédaction :",null,null,null,null,null,null,null,null,null,null,null,null,null,null,null,null,null,"Informations en date du :",null,{"$f":"Utilitaire!G6","v":"2022-03-31"}]
[null,"- Veuillez vérifier que les indicateurs inscrits au tableau de la ligne 22 sont adéquats et que vous serez en mesure d'en fournir les résultats.\n- Vous pouvez nous faire part de vos commentaires en bleu dans la case réservée à cet effet.\n- Le cas échéant, veuillez vérifier et corriger les résultats inscrits au tableau de la ligne 69.                                                                                                                                                                                                                                                                                                                                                                                                                                                                                                                                                                                                                                                                                         "]
[null,"- Pour ajouter de nouveaux indicateurs à votre fiche, veuillez nous faire parvenir une fiche indicateur remplie. Le gabarit de fiche indicateur est disponible au lien ci-contre. (Fiche indicateur)"]
[]
[]
[]
[]
[]
[]
[]
[]
[]
[]
[]
[]
[null,"Informations en date du :",null,null,"2022-03-31"]
[]
[null,"INDICATEURS DE PERFORMANCE"]
[null,"Cible","Unité de mesure","Année prévue d'atteinte de la cible","Description de l'indicateur","Type d'indicateur","Finalités des indicateurs","2019-2020","2020-2021","2021-2022","2022-2023","2021-2022","2022-2023","2023-2024","2024-2025","2025-2026","2026-2027","2027-2028","RÉSULTAT À COMPARER AVEC LA CIBLE","Pourcentage d'atteinte de la cible","Pourcentage en électrification","Commentaires sur les résultats"]
[null,null,null,null,null,null,null,"Réel","Réel","Réel","Réel","Prévu","Prévu","Prévu","Prévu","Prévu","Prévu","Prévu",null,null,null,"(justification des écarts à la cible)"]
[1,100,"%","2030","Pourcentage d’avancement de l’action","Minimum à atteindre","Atténuation des changements climatiques",{"$f":"PourcentageAvancementJbf(Utilitaire!C229,'Détail des projets'!Q284,1000000*Accueil!$D$67)","v":0},{"$f":"PourcentageAvancementJbf(Utilitaire!D229,'Détail des projets'!R284,1000000*Accueil!$D$67)","v":0},{"$f":"PourcentageAvancementJbf(Utilitaire!E229,'Détail des projets'!S284,1000000*Accueil!$D$67)","v":8.3288696960302777E-2},null,null,null,null,null,null,null,null,null,{"$f":"IF(COUNTA(B25)=1,IF(COUNTA(S25)=1,IF(F25=\"Minimum à atteindre\",IF(B25=0,IF(S25>0,1,0),S25/B25),IF(F25=\"Maximum à ne pas dépasser\",IF(B25=0,IF(S25<0,1,0),IF(S25-B25>0,B25/S25,1)),IF(F25=\"Binaire\",IF(B25=S25,1,0),\"\"))),0),\"\")","v":0}]
[2,14730,"T éq. CO2","2023","Réduction des émissions de gaz à effet de serre (base annuelle)","Minimum à atteindre",null,null,null,588,null,null,null,null,null,null,null,null,588,{"$f":"IF(COUNTA(B26)=1,IF(COUNTA(S26)=1,IF(F26=\"Minimum à atteindre\",IF(B26=0,IF(S26>0,1,0),S26/B26),IF(F26=\"Maximum à ne pas dépasser\",IF(B26=0,IF(S26<0,1,0),IF(S26-B26>0,B26/S26,1)),IF(F26=\"Binaire\",IF(B26=S26,1,0),\"\"))),0),\"\")","v":3.9918533604887986E-2},null,"La cible GES est provisoire. Une validation sera faite en fonction des directives pour la quantification des réductions d’émissions de GES liées aux actions du Plan pour une économie verte 2030 et à son plan de mise en œuvre lors du renouvellement du programme prévu à l’automne 2022. "]
[3,108020,"T éq. CO2","2025","Réduction des émissions de gaz à effet de serre (base annuelle)","Minimum à atteindre",null,null,null,null,null,null,null,null,null,null,null,null,null,{"$f":"IF(COUNTA(B27)=1,IF(COUNTA(S27)=1,IF(F27=\"Minimum à atteindre\",IF(B27=0,IF(S27>0,1,0),S27/B27),IF(F27=\"Maximum à ne pas dépasser\",IF(B27=0,IF(S27<0,1,0),IF(S27-B27>0,B27/S27,1)),IF(F27=\"Binaire\",IF(B27=S27,1,0),\"\"))),0),\"\")","v":0},null,"La cible GES est provisoire. Une validation sera faite en fonction des directives pour la quantification des réductions d’émissions de GES liées aux actions du Plan pour une économie verte 2030 et à son plan de mise en œuvre lors du renouvellement du programme  prévu à l’automne 2022. "]
[4,491000,"T éq. CO2","2030","Réduction des émissions de gaz à effet de serre (base annuelle)","Minimum à atteindre",null,null,null,null,null,null,null,null,null,null,null,null,null,0,null,"La cible GES est provisoire. Une validation sera faite en fonction des directives pour la quantification des réductions d’émissions de GES liées aux actions du Plan pour une économie verte 2030 et à son plan de mise en œuvre lors du renouvellement du programme  prévu à l’automne 2022. "]
[5,43,"Étude de conversion","2023","Nombre d’étude en efficacité énergétique","Minimum à atteindre",null,null,null,23,null,null,null,null,null,null,null,null,23,0.53488372093023251]
[6,89,"Étude de conversion","2025","Nombre d’étude en efficacité énergétique","Minimum à atteindre",null,null,null,null,null,null,null,null,null,null,null,null,null,0]
[7,112,"Étude de conversion","2030","Nombre d’étude en efficacité énergétique","Minimum à atteindre",null,null,null,null,null,null,null,null,null,null,null,null,null,0]
[8,240,"Projet de conversion","2023","Nombre de projets implantées en efficacité énergétique","Minimum à atteindre",null,null,null,227,null,null,null,null,null,null,null,null,227,0.9458333333333333]
[9,470,"Projet de conversion","2025","Nombre de projets implantées en efficacité énergétique","Minimum à atteindre",null,null,null,null,null,null,null,null,null,null,null,null,null,0]
[10,585,"Projet de conversion","2030","Nombre de projets implantées en efficacité énergétique","Minimum à atteindre",null,null,null,null,null,null,null,null,null,null,null,null,null,0]
[11,null,null,null,null,null,null,null,null,null,null,null,null,null,null,null,null,null,null,""]
[12,null,null,null,null,null,null,null,null,null,null,null,null,null,null,null,null,null,null,""]
[13,null,null,null,null,null,null,null,null,null,null,null,null,null,null,null,null,null,null,""]
[14,null,null,null,null,null,null,null,null,null,null,null,null,null,null,null,null,null,null,""]
[15,null,null,null,null,null,null,null,null,null,null,null,null,null,null,null,null,null,null,""]
[16,null,null,null,null,null,null,null,null,null,null,null,null,null,null,null,null,null,null,""]
[17,null,null,null,null,null,null,null,null,null,null,null,null,null,null,null,null,null,null,""]
[18,null,null,null,null,null,null,null,null,null,null,null,null,null,null,null,null,null,null,""]
[19,null,null,null,null,null,null,null,null,null,null,null,null,null,null,null,null,null,null,""]
[20,null,null,null,null,null,null,null,null,null,null,null,null,null,null,null,null,null,null,""]
[21,null,null,null,null,null,null,null,null,null,null,null,null,null,null,null,null,null,null,"",null,null,null,null,null,null,null,null,null,null,null,null,null,null,null,null,null,null,null,null,null,null,null,false]
[]
[]
[]
[]
[]
[]
[]
[]
[]
[]
[]
[]
[]
[]
[]
[]
[]
[]
[]
[]
[]
[]
[]
[null,"PRÉVISIONS DES RETOMBÉES SUR LES RÉDUCTIONS DES ÉMISSIONS DE GES"]
[null,"Niveau de certitude",null,null,"Lieu",2022,2022,2023,2024,2025,2030,2030,2026,2030,2035,2027,2028,2029,2035,2040,2050,"Commentaires sur les résultats"]
[null,"Pérennité des réductions d'émissions de GES réalisées à ce jour \n(T éq. CO2)",null,null,"Au Québec"]
[null,null,null,null,"Hors Québec"]
[null,null,null,null,"Non distingué"]
[null,"Développement du potentiel de réduction des émissions de GES pour le futur \n(T éq. CO2)",null,null,"Au Québec"]
[null,null,null,null,"Hors Québec"]
[null,null,null,null,"Non distingué"]
[]
[]
[]
[]
[]
[]
[]
[]
[]
[]
[]
[]
[]
[]
[]
[]
[]
[]
[]
[]
[]
[]
[]
[]
[]
[]
[]
[]
[]
[]
[]
[]
[]
[]
[]
[]
[]
[]
[]
[]
[]
[]
[]
[]
[]
[]
[]
[]
[]
[]
[]
[]
[]
[]
[]
[]
[]
[]
[]
[]
[]
[]
[]
[]
[]
[]
[]
[]
[]
[]
[]
[]
[]
[]
[]
[]
[null,"ADAPTATION AUX EFFETS DES CHANGEMENTS CLIMATIQUES"]
[null,"Solutions d'adaptation proposées",null,"Lignes concernées de l'onglet Détail des projets","Étape","Ajustements",null,null,"Risques",null,"Effets des changements climatiques",null,"Région",null,null,null,null,null,"Échelle humaine",null,null,"Échelle environnementale"]
[null,null,null,null,null,"La solution agit sur : ",null,null,"afin de protéger : ",null,"de :",null,null,null,null,null,null,null,"(estimation du nombre de personnes desservies)",null,null,"(estimation du nombre d'espèces desservies)"]
[]
[]
[]
[]
[]
[]
[]
[]
[]
[]
[]
[]
[]
[]
[]
[]
[]
[]
[]
[]
[]
[]
[]
[]
[]
[]
[]
[]
[]
[]
[]
[]
[]
[]
[]
[]
[]
[]
[]
[]
[]
[]
[]
[]
[]
[]
[]
[]
[]
[]
[]
[]
[]
[]
[]
[]
[]
[]
[]
[]
[]
[]
[]
[]
[]
[]
[]
[]
[]
[]
[]
[]
[]
[]
[]
[]
[]
[]
[]
[]
[]
[]
[]
[]
[]
[]
[]
[]
[]
[]
[]
[]
[]
[]
[]
[]
[]
[]
[]
[]
[]
[]
[]
[]
[]
[]
[]
[]
[]
[]
[]
[]
[]
[]
[]
[]
[]
[]
[]
[]
[]
[]
[]
[]
[]
[]
[]
[]
[]
[]
[]
[]
[]
[]
[]
[]
[null,"Ajouter une ligne"]

{"sheet":"Commentaires","index":8,"n_rows":24,"n_cols":20,"rows_kept":24,"cut":false,"hidden":true,"merged":[[19,1,19,3],[19,4,19,5],[28,1,28,11],[31,12,31,13],[32,12,32,13],[25,1,25,11],[26,1,26,11],[23,1,23,11],[24,1,24,11],[28,14,28,15],[29,14,29,15],[31,14,31,15],[32,14,32,15],[30,14,30,15],[3,1,3,4],[1,1,2,15],[3,6,3,15],[4,6,4,15],[6,1,6,15],[5,14,5,15],[5,1,5,2],[5,6,5,13],[27,14,27,15],[34,14,34,15],[34,1,34,11],[27,12,27,13],[29,12,29,13],[34,12,34,13],[31,1,31,11],[32,1,32,11],[30,1,30,11],[30,12,30,13],[28,12,28,13],[29,1,29,11],[27,1,27,11],[33,12,33,13],[33,1,33,11],[33,14,33,15],[23,14,23,15],[25,14,25,15],[26,14,26,15],[24,14,24,15],[24,12,24,13],[25,12,25,13],[26,12,26,13],[23,12,23,13]]}
[]
[null,{"$f":"Utilitaire!E8","v":"Plan pour une économie verte 2030"},null,null,null,null,null,null,null,null,null,null,null,null,null,null,null,null,null,"COF"]
[null,null,null,null,null,null,null,null,null,null,null,null,null,null,null,null,null,null,null,"Frais"]
[null,"Commentaires",null,null,null,null,{"$f":"Accueil!D65 & \" - \" & Accueil!D53","v":"MERN (SITE) - 1.4.2.1"},null,null,null,null,null,null,null,null,null,null,null,null,"Détail des projets"]
[null,null,null,null,null,null,{"$f":"\"Action \" & Accueil!D58","v":"Action en cours"},null,null,null,null,null,null,null,null,null,null,null,null,"Détail des projets (GES)"]
[null,"Conseils de rédaction :",null,null,null,null,"Informations en date du :",null,null,null,null,null,null,null,{"$f":"Utilitaire!G6","v":"2022-03-31"},null,null,null,null,"Bilan GES"]
[null,"- Veuillez inscrire ici tout commentaire pertinent.\n- Veuillez inscrire en bleu les commentaires que vous souhaitez ne pas publier.",null,null,null,null,null,null,null,null,null,null,null,null,null,null,null,null,null,"Indicateurs"]
[null,null,null,null,null,null,null,null,null,null,null,null,null,null,null,null,null,null,null,"Toutes-Autre"]
[]
[]
[]
[null,null,null,null,null,null,null,null,null,null,null,null,null,null,null,null,null,null,null,"2013-2014"]
[null,null,null,null,null,null,null,null,null,null,null,null,null,null,null,null,null,null,null,"2014-2015"]
[null,null,null,null,null,null,null,null,null,null,null,null,null,null,null,null,null,null,null,"2015-2016"]
[null,null,null,null,null,null,null,null,null,null,null,null,null,null,null,null,null,null,null,"2016-2017"]
[null,null,null,null,null,null,null,null,null,null,null,null,null,null,null,null,null,null,null,"2017-2018"]
[null,null,null,null,null,null,null,null,null,null,null,null,null,null,null,null,null,null,null,"2018-2019"]
[null,null,null,null,null,null,null,null,null,null,null,null,null,null,null,null,null,null,null,"2019-2020"]
[null,null,null,null,null,null,null,null,null,null,null,null,null,null,null,null,null,null,null,"2020-2021"]
[null,"Informations en date du :",null,null,"2022-03-31",null,null,null,null,null,null,null,null,null,null,null,null,null,null,"2021-2022"]
[null,null,null,null,null,null,null,null,null,null,null,null,null,null,null,null,null,null,null,"2022-2023"]
[null,null,null,null,null,null,null,null,null,null,null,null,null,null,null,null,null,null,null,"2023-2024"]
[]
[null,"Commentaires",null,null,null,null,null,null,null,null,null,null,"Section concernée",null,"Date",null,"Nom du commentateur","Courriel du commentateur"]

{"sheet":"Évaluation","index":9,"n_rows":222,"n_cols":14,"rows_kept":222,"cut":false,"hidden":true,"merged":[[1,1,1,5],[210,1,211,1],[210,2,211,2],[210,3,210,13],[211,3,211,13],[143,3,143,4],[143,5,143,7],[143,8,143,9],[143,10,143,11],[136,1,136,2],[136,3,136,4],[136,5,136,7],[136,8,136,9],[136,10,136,11],[142,1,142,2],[142,3,142,4],[142,5,142,7],[142,8,142,9],[142,10,142,11],[141,1,141,2],[141,3,141,4],[141,5,141,7],[141,8,141,9],[141,10,141,11],[137,8,137,9],[137,10,137,11],[135,1,135,2],[135,3,135,4],[135,5,135,7],[135,8,135,9],[135,10,135,11],[134,1,134,2],[134,3,134,4],[134,5,134,7],[134,8,134,9],[134,10,134,11],[133,1,133,2],[133,3,133,4],[133,5,133,7],[133,8,133,9],[133,10,133,11],[132,1,132,2],[132,3,132,4],[132,5,132,7],[132,8,132,9],[132,10,132,11],[131,1,131,2],[131,3,131,4],[131,5,131,7],[131,8,131,9],[131,10,131,11],[130,1,130,2],[130,3,130,4],[130,5,130,7],[130,8,130,9],[130,10,130,11],[129,1,129,2],[129,3,129,4],[129,5,129,7],[129,8,129,9],[129,10,129,11],[128,1,128,2],[128,3,128,4],[128,5,128,7],[128,8,128,9],[128,10,128,11],[127,1,127,2],[127,3,127,4],[127,5,127,7],[127,8,127,9],[127,10,127,11],[126,1,126,2],[126,3,126,4],[126,5,126,7],[126,8,126,9],[126,10,126,11],[125,1,125,2],[125,3,125,4],[125,5,125,7],[125,8,125,9],[125,10,125,11],[124,1,124,2],[124,3,124,4],[124,5,124,7],[124,8,124,9],[124,10,124,11],[123,1,123,2],[123,3,123,4],[123,5,123,7],[123,8,123,9],[123,10,123,11],[122,1,122,2],[122,3,122,4],[122,5,122,7],[122,8,122,9],[122,10,122,11],[121,1,121,2],[121,3,121,4],[121,5,121,7],[121,8,121,9],[121,10,121,11],[120,1,120,2],[120,3,120,4],[120,5,120,7],[120,8,120,9],[120,10,120,11],[119,1,119,2],[119,3,119,4],[119,5,119,7],[119,8,119,9],[119,10,119,11],[118,1,118,2],[118,3,118,4],[118,5,118,7],[118,8,118,9],[118,10,118,11],[117,1,117,2],[117,3,117,4],[117,5,117,7],[117,8,117,9],[117,10,117,11],[116,1,116,2],[116,3,116,4],[116,5,116,7],[116,8,116,9],[116,10,116,11],[115,1,115,2],[115,3,115,4],[115,5,115,7],[115,8,115,9],[115,10,115,11],[114,1,114,2],[114,3,114,4],[114,5,114,7],[114,8,114,9],[114,10,114,11],[113,1,113,2],[113,3,113,4],[113,5,113,7],[113,8,113,9],[113,10,113,11],[112,1,112,2],[112,3,112,4],[112,5,112,7],[112,8,112,9],[112,10,112,11],[111,1,111,2],[111,3,111,4],[111,5,111,7],[111,8,111,9],[111,10,111,11],[110,1,110,2],[110,3,110,4],[110,5,110,7],[110,8,110,9],[110,10,110,11],[109,1,109,2],[109,3,109,4],[109,5,109,7],[109,8,109,9],[109,10,109,11],[108,1,108,2],[108,3,108,4],[108,5,108,7],[108,8,108,9],[108,10,108,11],[107,1,107,2],[107,3,107,4],[107,5,107,7],[107,8,107,9],[107,10,107,11],[106,1,106,2],[106,3,106,4],[106,5,106,7],[106,8,106,9],[106,10,106,11],[105,1,105,2],[105,3,105,4],[105,5,105,7],[105,8,105,9],[105,10,105,11],[104,1,104,2],[104,3,104,4],[104,5,104,7],[104,8,104,9],[104,10,104,11],[103,1,103,2],[103,3,103,4],[103,5,103,7],[103,8,103,9],[103,10,103,11],[102,1,102,2],[102,3,102,4],[102,5,102,7],[102,8,102,9],[102,10,102,11],[101,1,101,2],[101,3,101,4],[101,5,101,7],[101,8,101,9],[101,10,101,11],[100,1,100,2],[100,3,100,4],[100,5,100,7],[100,8,100,9],[100,10,100,11],[99,1,99,2],[99,3,99,4],[99,5,99,7],[99,8,99,9],[99,10,99,11],[98,1,98,2],[98,3,98,4],[98,5,98,7],[98,8,98,9],[98,10,98,11],[97,1,97,2],[97,3,97,4],[97,5,97,7],[97,8,97,9],[97,10,97,11],[96,1,96,2],[96,3,96,4],[96,5,96,7],[96,8,96,9],[96,10,96,11],[95,1,95,2],[95,3,95,4],[95,5,95,7],[95,8,95,9],[95,10,95,11],[94,1,94,2],[94,3,94,4],[94,5,94,7],[94,8,94,9],[94,10,94,11],[93,1,93,2],[93,3,93,4],[93,5,93,7],[93,8,93,9],[93,10,93,11],[92,1,92,2],[92,3,92,4],[92,5,92,7],[92,8,92,9],[92,10,92,11],[91,1,91,2],[91,3,91,4],[91,5,91,7],[91,8,91,9],[91,10,91,11],[90,1,90,2],[90,3,90,4],[90,5,90,7],[90,8,90,9],[90,10,90,11],[89,1,89,2],[89,3,89,4],[89,5,89,7],[89,8,89,9],[89,10,89,11],[88,1,88,2],[88,3,88,4],[88,5,88,7],[88,8,88,9],[88,10,88,11],[87,1,87,2],[87,3,87,4],[87,5,87,7],[87,8,87,9],[87,10,87,11],[86,1,86,2],[86,3,86,4],[86,5,86,7],[86,8,86,9],[86,10,86,11],[85,1,85,2],[85,3,85,4],[85,5,85,7],[85,8,85,9],[85,10,85,11],[84,1,84,2],[84,3,84,4],[84,5,84,7],[84,8,84,9],[84,10,84,11],[83,1,83,2],[83,3,83,4],[83,5,83,7],[83,8,83,9],[83,10,83,11],[82,1,82,2],[82,3,82,4],[82,5,82,7],[82,8,82,9],[82,10,82,11],[81,1,81,2],[81,3,81,4],[81,5,81,7],[81,8,81,9],[81,10,81,11],[80,1,80,2],[80,3,80,4],[80,5,80,7],[80,8,80,9],[80,10,80,11],[79,1,79,2],[79,3,79,4],[79,5,79,7],[79,8,79,9],[79,10,79,11],[78,1,78,2],[78,3,78,4],[78,5,78,7],[78,8,78,9],[78,10,78,11],[77,1,77,2],[77,3,77,4],[77,5,77,7],[77,8,77,9],[77,10,77,11],[76,1,76,2],[76,3,76,4],[76,5,76,7],[76,8,76,9],[76,10,76,11],[75,1,75,2],[75,3,75,4],[75,5,75,7],[75,8,75,9],[75,10,75,11],[74,1,74,2],[74,3,74,4],[74,5,74,7],[74,8,74,9],[74,10,74,11],[73,1,73,2],[73,3,73,4],[73,5,73,7],[73,8,73,9],[73,10,73,11],[72,1,72,2],[72,3,72,4],[72,5,72,7],[72,8,72,9],[72,10,72,11],[71,1,71,2],[71,3,71,4],[71,5,71,7],[71,8,71,9],[71,10,71,11],[70,1,70,2],[70,3,70,4],[70,5,70,7],[70,8,70,9],[70,10,70,11],[69,1,69,2],[69,3,69,4],[69,5,69,7],[69,8,69,9],[69,10,69,11],[68,1,68,2],[68,3,68,4],[68,5,68,7],[68,8,68,9],[68,10,68,11],[67,1,67,2],[67,3,67,4],[67,5,67,7],[67,8,67,9],[67,10,67,11],[66,1,66,2],[66,3,66,4],[66,5,66,7],[66,8,66,9],[66,10,66,11],[65,1,65,2],[65,3,65,4],[65,5,65,7],[65,8,65,9],[65,10,65,11],[64,1,64,2],[64,3,64,4],[64,5,64,7],[64,8,64,9],[64,10,64,11],[63,1,63,2],[63,3,63,4],[63,5,63,7],[63,8,63,9],[63,10,63,11],[62,1,62,2],[62,3,62,4],[62,5,62,7],[62,8,62,9],[62,10,62,11],[61,1,61,2],[61,3,61,4],[61,5,61,7],[61,8,61,9],[61,10,61,11],[60,1,60,2],[60,3,60,4],[60,5,60,7],[60,8,60,9],[60,10,60,11],[59,1,59,2],[59,3,59,4],[59,5,59,7],[59,8,59,9],[59,10,59,11],[58,1,58,2],[58,3,58,4],[58,5,58,7],[58,8,58,9],[58,10,58,11],[57,1,57,2],[57,3,57,4],[57,5,57,7],[57,8,57,9],[57,10,57,11],[56,1,56,2],[56,3,56,4],[56,5,56,7],[56,8,56,9],[56,10,56,11],[55,1,55,2],[55,3,55,4],[55,5,55,7],[55,8,55,9],[55,10,55,11],[54,1,54,2],[54,3,54,4],[54,5,54,7],[54,8,54,9],[54,10,54,11],[50,8,50,9],[50,10,50,11],[53,1,53,2],[53,3,53,4],[53,5,53,7],[53,8,53,9],[53,10,53,11],[52,1,52,2],[52,3,52,4],[52,5,52,7],[52,8,52,9],[52,10,52,11],[139,8,139,9],[139,10,139,11],[138,1,138,2],[138,3,138,4],[138,5,138,7],[138,8,138,9],[138,10,138,11],[203,1,203,14],[208,9,208,11],[208,3,208,5],[140,1,140,2],[140,3,140,4],[140,5,140,7],[140,8,140,9],[140,10,140,11],[144,1,144,2],[144,3,144,4],[144,5,144,7],[144,8,144,9],[144,10,144,11],[143,1,143,2],[219,2,219,13],[221,2,221,13],[39,1,39,14],[40,1,40,2],[40,3,40,4],[40,5,40,7],[40,8,40,9],[40,10,40,11],[40,13,40,14],[41,1,41,2],[41,3,41,4],[41,5,41,7],[41,8,41,9],[41,10,41,11],[42,1,42,2],[42,3,42,4],[42,5,42,7],[42,8,42,9],[42,10,42,11],[43,1,43,2],[43,3,43,4],[49,1,49,2],[209,2,209,13],[139,5,139,7],[44,3,44,4],[44,5,44,7],[44,8,44,9],[44,10,44,11],[45,1,45,2],[45,3,45,4],[45,5,45,7],[45,8,45,9],[45,10,45,11],[2,1,2,3],[3,2,3,5],[4,2,4,5],[5,1,5,5],[1,7,5,14],[139,1,139,2],[139,3,139,4],[48,1,48,2],[48,3,48,4],[48,5,48,7],[48,8,48,9],[48,10,48,11],[137,1,137,2],[137,3,137,4],[137,5,137,7],[49,3,49,4],[49,5,49,7],[49,8,49,9],[49,10,49,11],[51,1,51,2],[51,3,51,4],[51,5,51,7],[51,8,51,9],[44,1,44,2],[217,3,217,13],[37,12,37,14],[37,1,37,11],[218,2,218,13],[220,2,220,13],[216,2,216,13],[145,1,145,14],[51,10,51,11],[50,1,50,2],[50,3,50,4],[50,5,50,7],[46,1,46,2],[46,3,46,4],[46,5,46,7],[46,8,46,9],[46,10,46,11],[47,1,47,2],[47,3,47,4],[47,5,47,7],[47,8,47,9],[47,10,47,11],[43,5,43,7],[43,8,43,9],[43,10,43,11]]}
[]
[null,{"$f":"Utilitaire!E8","v":"Plan pour une économie verte 2030"},null,null,null,null,null,"\nConseils de rédaction :\n\n- Cet onglet sera pour usage interne seulement, il ne sera pas publié.\n\n"]
[null,{"$f":"\"Action \" & Accueil!D58","v":"Action en cours"}]
[null,{"$f":"Accueil!D55","v":"1.4.2.1a"},{"$f":"Accueil!E55","v":"Appuyer la réalisation de projets en efficacité énergétique et en conversion énergétique - Programme ÉcoPerformance Industrie - Standard"}]
[null,"Ministère porteur:",{"$f":"Accueil!$D$65","v":"MERN (SITE)"}]
[null,"Évaluation"]
[]
[]
[]
[]
[]
[]
[]
[]
[]
[]
[]
[]
[]
[]
[]
[]
[]
[]
[]
[]
[]
[]
[]
[]
[]
[]
[]
[]
[]
[]
[]
[null,"Production d'un rapport d'évaluation complet prévu dans le cadre de cette action : "]
[]
[null,"Liste des livrables"]
[null,"Titre du document",null,"Date du document",null,"Type de document",null,null,"Date prévue de transmission au CGFV",null,"Date réelle de transmission au CGFV",null,"Référence","Commentaires"]
[null,null,null,null,null,null,null,null,"2021-01-01",null,"2021-01-01"]
[]
[]
[]
[]
[]
[]
[]
[]
[]
[]
[]
[]
[]
[]
[]
[]
[]
[]
[]
[]
[]
[]
[]
[]
[]
[]
[]
[]
[]
[]
[]
[]
[]
[]
[]
[]
[]
[]
[]
[]
[]
[]
[]
[]
[]
[]
[]
[]
[]
[]
[]
[]
[]
[]
[]
[]
[]
[]
[]
[]
[]
[]
[]
[]
[]
[]
[]
[]
[]
[]
[]
[]
[]
[]
[]
[]
[]
[]
[]
[]
[]
[]
[]
[]
[]
[]
[]
[]
[]
[]
[]
[]
[]
[]
[]
[]
[]
[]
[]
[]
[]
[]
[]
[null,"Ajouter une ligne"]
[]
[]
[]
[]
[]
[]
[]
[]
[]
[]
[]
[]
[]
[]
[]
[]
[]
[]
[]
[]
[]
[]
[]
[]
[]
[]
[]
[]
[]
[]
[]
[]
[]
[]
[]
[]
[]
[]
[]
[]
[]
[]
[]
[]
[]
[]
[]
[]
[]
[]
[]
[]
[]
[]
[]
[]
[]
[null,"Évaluation de l'action par rapport au Plan pour une économie verte 2030"]
[]
[]
[]
[]
[null,null,"Début : ",{"$f":"Accueil!$D$68","v":"2021-04-01"},null,null,null,null,"Fin : ",{"$f":"Accueil!$K$68","v":"2025-12-31"}]
[null,"Résultats attendus : ",{"$f":"IF(LEN(Description!C51)>0,Description!C51,\"\")","v":"Les résultats directs attendus sont l'économie d'énergie, la réduction des émissions de GES, des investissements importants dans le secteur industriel, la création d'emplois et une amélioration soutenue de la performance du secteur industriel au Québec.\n\nLes autres avantages ou co-bénéfices attendus de l'action sont de faire appel à des énergies renouvelables ou moins émettrices en carbone, d'améliorer les procédés industriels, de permettre de faire des choix de procédés et d'équipements plus performants lors de nouveaux projets. Également, l'action permet de transformer le marché et de dynamiser les interventions dans le secteur industriel. Plusieurs analyses permettront aux entreprises de se conscientiser sur leur consommation énergétique et de prendre action pour améliorer leur performance."}]
[null,"Résultats obtenus \n(Cibles, indicateurs et description) : ",{"$f":"IF(COUNTA(Indicateurs!B25:B45)=0,0,AVERAGE(Indicateurs!$T$25:$T$45))","v":0.15206355878684538},{"$f":"IF(LEN(Description!C52)>0,Description!C52,\"\")","v":"Du 1er avril 2021 au 31 mars 2022, 23 dossiers d’analyse et 227 projets d’implantation ont été acceptés par le ministre, pour une réduction annuelle potentielle de 196 789 tCO2é, nécessitant des investissements de 236,5 M$ grâce à des aides financières de 104,8 M$ pour un coût moyen de l’aide financière de 25.37 $/t sur la durée de vie des équipements (21 ans). Ces investissements entraîneraient la création de 3 310 emplois."}]
[null,null,null,{"$f":"IF(LEN(Description!C53)>0,Description!C53,\"\")","v":""}]
[]
[]
[]
[]
[null,"Type d'évaluation : "]
[null,"Est-ce que les résultats obtenus dans le cadre de l'action sont satisfaisants?"]
[null,"Quelles sont les améliorations possibles pour le futur?"]
[null,"Quels sont les forces et les points positifs de l'action?"]
[null,"Quelle est votre recommandation quant à la poursuite de cette action? "]
[null,"Autres commentaires"]

{"sheet":"Validation","index":10,"n_rows":62,"n_cols":10,"rows_kept":62,"cut":false,"hidden":true,"merged":[[30,1,30,3],[19,1,19,4],[1,5,1,6],[1,1,3,4],[24,1,24,4],[5,1,5,6],[21,1,21,4],[18,1,18,4],[22,1,22,4],[17,1,17,5],[20,1,20,5],[23,1,23,5],[16,1,16,6],[4,1,4,2],[4,4,4,5],[31,1,31,4],[29,1,29,4],[1,9,1,10],[38,1,38,4],[37,1,37,5],[36,1,36,4],[10,1,10,6],[11,1,11,6],[33,1,33,4],[32,1,32,5],[34,1,34,5],[35,1,35,4],[25,1,25,4],[26,1,26,4],[27,1,27,4],[28,1,28,5]]}
[]
[null,{"$f":"Utilitaire!E8","v":"Plan pour une économie verte 2030"},null,null,null,{"$f":"Accueil!D65 & \" - \" & Accueil!D53","v":"MERN (SITE) - 1.4.2.1"},null,null,null,"Détail des projets"]
[null,null,null,null,null,null,{"$f":"\"Action \" & Accueil!D58","v":"Action en cours"}]
[]
[null,"Conseils de rédaction ",null,null,"Informations en date du:",null,{"$f":"Utilitaire!G6","v":"2022-03-31"}]
[null,"- Veuillez faire les vérifications requises."]
[]
[]
[]
[]
[null,"Votre appréciation de la fiche de suivi et suggestions pour les prochains exercices"]
[]
[]
[]
[]
[]
[null,"Grille de validation de la fiche de suivi"]
[null,"Onglet Accueil",null,null,null,null,"Commentaires"]
[null,"Vérifier que toutes les cases sont remplies."]
[null,"Vérifier, s'il y a lieu, que le nom du programme est inscrit."]
[null,"Onglet Administration",null,null,null,null,"Commentaires"]
[null,"Vérifier que le tableau de la ligne 25 est complété."]
[null,"Vérifiez que la liste des livrables convient et, le cas échéant, transmettez les documents requis au BECC."]
[null,"Onglet Description",null,null,null,null,"Commentaires"]
[null,"Vérifier que l'onglet est rempli au meilleur de votre connaissance"]
[null,"Vérifier que l'entièreté du texte est lisible. "]
[null,"Vérifier que l'échéancier dans la section \"Mise en œuvre\" est inscrit."]
[null,"Vérifier que le tableau \"Plans, stratégies, politiques incluant la mise en œuvre de cette action\" est rempli."]
[null,"Onglet Détail des projets",null,null,null,null,"Commentaires"]
[null,"Vérifier que l'onglet est rempli au meilleur de votre connaissance"]
[null,"Onglet Adaptation",null,null,null,null,"Commentaires"]
[null,"Vérifier que l'onglet est rempli au meilleur de votre connaissance"]
[null,"Onglet GES",null,null,null,null,"Commentaires"]
[null,"Vérifier que les deux cases de la ligne 20 sont bien remplies."]
[null,"Onglet Indicateurs",null,null,null,null,"Commentaires"]
[null,"Vérifier que la liste d'indicateurs inscrits convient et que vous serez en mesure de fournir les résultats et une cible."]
[null,"Vérifier que le tableau \"PRÉVISIONS DES RETOMBÉES SUR LES RÉDUCTIONS DES ÉMISSIONS DE GES\" est bien rempli si votre action vise la réduction des GES."]
[null,"Onglet Commentaires",null,null,null,null,"Commentaires"]
[null,"Inscrire en noir les commentaires nécessaires à afficher lors de la publication des fiches"]
[]
[]
[]
[]
[]
[]
[]
[]
[]
[]
[]
[]
[]
[]
[]
[]
[]
[]
["Code de couleur","Onglet concerné","no ligne","Description de la problématique","No d'erreur",null,"Commentaires"]
[null,"Description",null,"Les informations \"Description, objectif, clientèle, critères d'admissibilité, processus de suivi de l'action, résultats attendus, résultats obtenus dans la dernière année, résultats obtenus, finalité, catégorie\" sont manquantes dans l'onglet Description.",18]
[null,"détail des projets",null,"Aucun projet n'est mentionné dans la fiche. Cette situation est acceptable seulement si l'action n'est pas encore lancée (statut non démarrée ou en élaboration).",12]
[null,"GES",null,"Les informations \"Potentiel de réduction des GES, réduction réelle des émissions de GES\" sont manquantes dans l'onglet GES.",18]
[null,"indicateurs",null,"Aucun indicateur n'est inscrit pour cette action. Acceptable seulement si l'action n'est pas démarrée.",20]

{"sheet":"Prochain Exercice-Commentaires","index":11,"n_rows":125,"n_cols":6,"rows_kept":125,"cut":false,"hidden":true,"merged":[[6,1,6,5],[5,14,5,15],[1,1,2,5],[3,1,4,2],[3,4,3,5],[4,4,4,5],[5,1,5,3]]}
[]
[null,{"$f":"Utilitaire!E8","v":"Plan pour une économie verte 2030"}]
[]
[null,null,null,null,{"$f":"Accueil!D65 & \" - \" & Accueil!D53","v":"MERN (SITE) - 1.4.2.1"}]
[null,null,null,null,{"$f":"\"Action \" & Accueil!D58","v":"Action en cours"}]
[null,"Conseils de rédaction :",null,null,"Info en date du :",{"$f":"Utilitaire!G6","v":"2022-03-31"}]
[null,"- Veuillez inscrire ici tout commentaire améliorer pour le prochain exercice."]
[]
[]
[null,"Onglet de la fiche","Case","Commentaire"]
[null,"Administration","d37","Veuillez remplir ce tableau"]
[]
[]
[]
[]
[]
[]
[]
[]
[]
[]
[]
[]
[]
[]
[]
[]
[]
[]
[]
[]
[]
[]
[]
[]
[]
[]
[]
[]
[]
[]
[]
[]
[]
[]
[]
[]
[]
[]
[]
[]
[]
[]
[]
[]
[]
[]
[]
[]
[]
[]
[]
[]
[]
[]
[]
[]
[]
[]
[]
[]
[]
[]
[]
[]
[]
[]
[]
[]
[]
[]
[]
[]
[]
[]
[]
[]
[]
[]
[]
[]
[]
[]
[]
[]
[]
[]
[]
[]
[]
[]
[]
[]
[]
[]
[null,"HQ"]
[null,"MAMH"]
[null,"MAPAQ"]
[null,"MEES"]
[null,"MEI"]
[null,"MELCC - BECC"]
[null,"MELCC - hors BECC"]
[null,"MERN"]
[null,"MERN (SITE)"]
[null,"MFFP"]
[null,"MFQ"]
[null,"MRIF"]
[null,"MSP"]
[null,"MSSS"]
[null,"MTESS"]
[null,"MTO"]
[null,"MTQ"]
[null,"RBQ"]
[null,"MELCC - Gouvernance"]
[null,"CGFV"]